Workbook

Sheet Customer Information
K2: Refrigeration Calculator Tool
K4: V.1.1
B6: Customer Information
C7: Name | G7: Phone
C8: Contact | G8: Email
B10: Building Information
C11: Address | G11: Type | H11: Commercial and Industrial Storage
C12: City | G12: SQFT
C13: Zip | D13: 94127 | E13: Zone | F13: =VLOOKUP(D13,tbl_ZIP_Code,2,0) -> 3 | G13: Year Built
B15: Consumption
C16: Peak kW | D16: kWh | E16: Therms | F16: Electric Cost | G16: Therm Cost
B17: Jan | H17: Include Total Cost for customers that receive bundled service. If the customer is direct access and the commodity cost is available, it should be included. Otherwise the Total Cost can be omitted.
B18: Feb
B19: Mar
B20: Apr
B21: May
B22: Jun
B23: Jul
B24: Aug
B25: Sep
B26: Oct
B27: Nov
B28: Dec | H28: $/kWh | J28: $/Therm
B29: Annual | C29: =MAX($C$17:$C$28) -> 0 | D29: =SUM($D$17:$D$28) -> 0 | E29: =SUM($E$17:$E$28) -> 0 | F29: =SUM($F$17:$F$28) -> 0 | G29: =SUM($G$17:$G$28) -> 0 | H29: =$F$29/$D$29 ->  | J29: =G29/E29 -> 
B31: Current PG&E Incentive Rates ($/unit)
C32: Basic Non Lighting | D32: 0.08 | E32: /kWh | H32: Peak Demand | I32: 150 | J32: /kW
C33: Target Non Lighting | D33: 0.15 | E33: /kWh | H33: Natural Gas | I33: 1 | J33: /therm
C34: To Code/ISP Electric | D34: 0.03 | E34: /kWh | H34: To Code/ISP Natural Gas | I34: 0.4 | J34: /therm
B36: Additional Information Section

Sheet Refrigeration Template (hidden)
A1: Refrigeration Calculations
B2: Refrigeration System Specifications | L2: Savings | N2: CP kW | O2: CP kWh | P2: CD kW | Q2: CD kWh | R2: EV kW | S2: EV kWh | T2: Total kW | U2: Total kWh | V2: Cost | W2: Incentives
B3: General Information | H3: Compressors | M3: Reduce Condensing Temp | N3: =N13-N14 -> 0 | O3: 0 | P3: 0 | Q3: 0 | R3: 0 | S3: 0 | T3: =SUM(N3,P3,R3) -> 0 | U3: =SUM(O3,Q3,S3) -> 0 | V3: =I16 -> 0
C4: Refrigerant Type | I4: Capacity | J4: HP | M4: Condenser VFD | N4: 0 | O4: 0 | P4: 0 | Q4: 0 | R4: 0 | S4: 0 | T4: =SUM(N4,P4,R4) -> 0 | U4: =SUM(O4,Q4,S4) -> 0 | V4: =I21 -> 0
D5: Condenser Approach Temp | G5: Data Type | H5: CP1 | M5: Floating Head Pressure | N5: 0 | O5: 0 | P5: 0 | Q5: 0 | R5: 0 | S5: 0 | T5: 0 | U5: 0 | V5: =I25 -> 0
C6: Condenser Type | G6: Detailed | H6: CP2 | M6: Increase Suction Pressure | N6: 0 | O6: 0 | P6: 0 | Q6: 0 | R6: 0 | S6: 0 | T6: 0 | U6: 0 | V6: =I32 -> 0
C7: Majority of Load | H7: CP3 | M7: Staging Optimization | N7: 0 | O7: 0 | P7: 0 | Q7: 0 | R7: 0 | S7: 0 | T7: 0 | U7: 0 | V7: =I37 -> 0
B8: Condenser Fan Motors | F8: Evaporator Fan Motor | M8: Compressor VFD | N8: 0 | O8: 0 | P8: 0 | Q8: 0 | R8: 0 | S8: 0 | T8: 0 | U8: 0 | V8: =I37 -> 0
C9: Rated Hp | D9: Load Factor | E9: Efficiency | G9: Quantity | H9: Rated Hp | I9: Load Factor | J9: Efficiency | M9: Evaporator VFD | N9: 0 | O9: 0 | P9: 0 | Q9: 0 | R9: 0 | S9: 0 | T9: 0 | U9: 0 | V9: =I53 -> 0
B10: CD1 | F10: EV1 | M10: Total | N10: =SUM(N3:N9) -> 0 | O10: 0 | P10: 0 | Q10: 0 | R10: 0 | S10: 0 | T10: 0 | U10: 0 | V10: =SUM(V3:V9) -> 0 | W10: =SUM(W3:W9) -> 0
B11: CD2 | F11: EV2
B12: CD3 | F12: EV3 | L12: Consumption | N12: CP kW | O12: CP kWh | P12: CD kW | Q12: CD kWh | R12: EV kW | S12: EV kWh | T12: Total kW | U12: Total kWh
B13: CD4 | F13: EV4 | M13: Baseline | N13: 0 | O13: 1150091.986 | P13: 0 | Q13: 34483.31827 | R13: 0 | S13: 36393.80449 | T13: =SUM(N13,P13,R13) -> 0 | U13: =SUM(O13,Q13,S13) -> 1220969.109
B14: CD5 | F14: EV5 | M14: Reduce Condensing Temp | N14: 0 | O14: 1150091.986 | P14: 0 | Q14: 34483.31827 | R14: 0 | S14: 36393.80449 | T14: =SUM(N14,P14,R14) -> 0 | U14: =SUM(O14,Q14,S14) -> 1220969.109
F15: All Temperatures Are In (F°), All Capacities Are In (Tons) | M15: Condenser VFD | N15: 0 | O15: 1150091.986 | P15: 0 | Q15: 34483.31827 | R15: 0 | S15: 36393.80449 | T15: 0 | U15: 1220969.109
B16: Reduce Condensing Temperature | H16: Cost | J16: Disable | M16: Floating Head Pressure | N16: 0 | O16: 1150091.986 | P16: 0 | Q16: 34483.31827 | R16: 0 | S16: 36393.80449 | T16: 0 | U16: 1220969.109
C17: Baseline | H17: Proposed | M17: Increase Suction Pressure | N17: 0 | O17: 1150091.986 | P17: 0 | Q17: 34483.31827 | R17: 0 | S17: 36393.80449 | T17: 0 | U17: 1220969.109
E18: Min Condensing Setpoint (psig) | J18: =IF(OR(C18<>H18,D18<>I18),"*","") ->  | M18: Staging Optimization | N18: 0 | O18: 1150091.986 | P18: 0 | Q18: 34483.31827 | R18: 0 | S18: 36393.80449 | T18: 0 | U18: 1220969.109
C19: =FORECAST($C$18,OFFSET(TBL_Refrigerant_Pressure_Temperature[[#Headers],[Temp]],'Refrigeration Template'!M70,0,-2),OFFSET(TBL_Refrigerant_Pressure_Temperature[[#Headers],[Temp]],'Refrigeration Template'!M70,'Refrigeration Template'!J63-1,-2)) ->  | E19: Min Discharge Temp | H19: =FORECAST($H$18,OFFSET(TBL_Refrigerant_Pressure_Temperature[[#Headers],[Temp]],'Refrigeration Template'!N70,0,-2),OFFSET(TBL_Refrigerant_Pressure_Temperature[[#Headers],[Temp]],'Refrigeration Template'!N70,'Refrigeration Template'!J63-1,-2)) ->  | M19: Compressor VFD | N19: 0 | O19: 1150091.986 | P19: 0 | Q19: 34483.31827 | R19: 0 | S19: 36393.80449 | T19: 0 | U19: 1220969.109
M20: Evaporator VFD | N20: 0 | O20: 1150091.986 | P20: 0 | Q20: 34483.31827 | R20: 0 | S20: 36393.80449 | T20: 0 | U20: 1220969.109
B21: Condenser Fan VFD | H21: Cost | J21: Disable | M21: Proposed | N21: =AF76 -> 0 | O21: =AF75 ->  | P21: =AG76 -> 0 | Q21: =AG75 ->  | R21: =AH76 -> 0 | S21: =AH75 ->  | T21: 0
C22: Baseline | H22: Proposed
E23: Condenser Fan Control | J23: =IF(OR(C23<>H23,D23<>I23),"*","") -> 
B25: Floating Head Pressure | H25: Cost | J25: Disable
C26: Baseline | H26: Proposed
E27: Head Pressure | J27: =IF(OR(C27<>H27,D27<>I27),"*","") -> 
C28: Baseline | H28: Proposed
C29: =IF(OR(H18="",$J$16="Disable"),C18,H18) -> 0 | E29: Min Condensing Setpoint (psig) | H29: 110 | J29: =IF(OR(C29<>H29,D29<>I29),"*","") -> *
C30: =IF(OR(H18="",$J$16="Disable"),C19,H19) ->  | E30: Min Discharge Temp | H30: =FORECAST($H$29,OFFSET(TBL_Refrigerant_Pressure_Temperature[[#Headers],[Temp]],'Refrigeration Template'!N71,0,-2),OFFSET(TBL_Refrigerant_Pressure_Temperature[[#Headers],[Temp]],'Refrigeration Template'!N71,'Refrigeration Template'!J63-1,-2)) -> 
B32: Increase Suction Pressure | H32: Cost | J32: Disable
C33: Baseline | H33: Proposed
E34: Average Suction Pressure (psig) | J34: =IF(OR(C34<>H34,D34<>I34),"*","") -> 
C35: =FORECAST($C$34,OFFSET(TBL_Refrigerant_Pressure_Temperature[[#Headers],[Temp]],'Refrigeration Template'!M72,0,-2),OFFSET(TBL_Refrigerant_Pressure_Temperature[[#Headers],[Temp]],'Refrigeration Template'!M72,'Refrigeration Template'!J63-1,-2)) ->  | E35: Suction Temp | H35: =FORECAST($H$34,OFFSET(TBL_Refrigerant_Pressure_Temperature[[#Headers],[Temp]],'Refrigeration Template'!N72,0,-2),OFFSET(TBL_Refrigerant_Pressure_Temperature[[#Headers],[Temp]],'Refrigeration Template'!N72,'Refrigeration Template'!J63-1,-2)) -> 
F36: The Delta of Baseline and Proposed is used for detailed calculation
B37: Compresor Staging | H37: Cost | J37: Disable
D38: Baseline Staging | H38: Proposed Staging
C39: CP1 | D39: CP2 | E39: CP3 | F39: Stage | G39: CP1 | H39: CP2 | I39: CP3
C40: T1 | D40: BL | E40: T2 | F40: 1 | G40: BL | H40: T1 | I40: T2 | J40: =IF(OR(C40<>G40,D40<>H40,E40<>I40),"*","") -> *
F41: 2 | J41: =IF(OR(C41<>G41,D41<>H41,E41<>I41),"*","") -> 
F42: 3
F43: 4
F44: 5
F45: 6
F46: 7
B48: Compresor VFD | H48: Cost | J48: Disable
D49: Baseline | H49: Proposed
C50: CP1 | D50: CP2 | E50: CP3 | G50: CP1 | H50: CP2 | I50: CP3
F51: Type | J51: =IF(OR(C51<>G51,D51<>H51,E51<>I51),"*","") -> 
B53: Evaporator VFD | H53: Cost | J53: Disable
C54: Baseline | H54: Proposed
A55: Evaporator VFD | E55: Evaporator Control | J55: =IF(OR(C55<>H55,D55<>I55),"*","") -> 
E56: Minimum Speed | J56: =IF(OR(C56<>H56,D56<>I56),"*","") -> 
B58: Processing
B60: Switches | E60: Assumptions | J60: Calculated Variables | O60: Stage Optimation | T60: Simple Load | V60: Load | X60: OAT | Y60: Detailed Load Curve | AA60: SST2 | AB60: SST | AC60: SCT2 | AD60: SCT | AE60: kW2 | AF60: kW | AG60: Intercept
B61: Proposed | C61: Reduce Condensing Temp | E61: 0.97 | F61: VFD Efficiency | J61: =MATCH($G$74,INDEX(TBL_Refrigerant_Pressure_Temperature[#All],0,$J$63),1) ->  | K61: Lookup Suction Temp Col | O61: Stage | P61: CP | Q61: CP1 | R61: CP2 | S61: CP3 | T61: Data Type | U61: Peak | V61: =SUM($Q$70:$S$70)*$E$66 -> 0 | W61: @ | X61: ='CTZ2'!$R$3 -> 69 | Z61: CP1 | AA61: =LINEST( OFFSET(tbl_CP_Curve[[#Headers],[CapCP1]],1,,COUNT(tbl_CP_Curve[CapCP1])), OFFSET(tbl_CP_Curve[[#Headers],[kWCP1]],1,,COUNT(tbl_CP_Curve[CapCP1]),COUNTA(tbl_CP_Curve[[#Headers],[kWCP1]:[SST2CP1]])),TRUE,TRUE) -> 
B62: Proposed | C62: Condenser Fan Control | E62: 0.003 | F62: Capacity Increase per degree decrease in SCT | J62: =0.339-0.00692*$J$64+0.000128*$J$64^2+0.00561*J65+0.0000917*J65^2-0.000235*$J$64*J65 ->  | K62: bhp/ton (by general equation) | O62: 1 | P62: =IF(OR($J$37="Disable",$B$65="Baseline"), TRIM(CONCATENATE(IF(ISBLANK($C40),"",$C$39&" ")&IF(ISBLANK($D40),"",$D$39&" ")&IF(ISBLANK($E40),"",$E$39&" "))), TRIM(CONCATENATE(IF(ISBLANK($G40),"",$G$39&" ")&IF(ISBLANK($H40),"",$H$39&" ")&IF(ISBLANK($I40),"",$I$39&" ")))) -> CP1 CP2 CP3 | Q62: =IF(OR($J$37="Disable",$B$65="Baseline"),C40,G40) -> T1 | R62: BL | S62: T2 | T62: =$G$6 -> Detailed | U62: Assumed Load | V62: =IF($D$7="Product Load",0.8,0.5)*$V$61 -> 0 | W62: @ | X62: =ROUND(MEDIAN(tbl_Refrigeration_Calc_Engine[DBT]),0) -> 57 | Z62: CP2 | AA62: =LINEST( OFFSET(tbl_CP_Curve[[#Headers],[CapCP2]],1,,COUNT(tbl_CP_Curve[CapCP2])), OFFSET(tbl_CP_Curve[[#Headers],[kWCP2]],1,,COUNT(tbl_CP_Curve[CapCP2]),COUNTA(tbl_CP_Curve[[#Headers],[kWCP2]:[SST2CP2]])),TRUE,FALSE) -> 
B63: Proposed | C63: Head Pressure | E63: 0.013 | F63: kW/ton Decreases per degree decrease in SCT | J63: =MATCH($D$4,TBL_Refrigerant_Pressure_Temperature[#Headers],0) ->  | K63: Lookup Min Discharge Temp Col | O63: 2 | Q63: 0 | R63: 0 | S63: 0 | T63: Part Load Cap to Power Polynomial (Simplified) | Z63: CP3 | AA63: =LINEST( OFFSET(tbl_CP_Curve[[#Headers],[CapCP3]],1,,COUNT(tbl_CP_Curve[CapCP3])), OFFSET(tbl_CP_Curve[[#Headers],[kWCP3]],1,,COUNT(tbl_CP_Curve[CapCP3]),COUNTA(tbl_CP_Curve[[#Headers],[kWCP3]:[SST2CP3]])),TRUE,FALSE) -> 
B64: Proposed | C64: Suction Set Point (psig) | E64: 0.8 | F64: Compressor Load Factor | J64: =FORECAST($G$74,OFFSET(TBL_Refrigerant_Pressure_Temperature[[#Headers],[Temp]],'Refrigeration Template'!J61,0,-2),OFFSET(TBL_Refrigerant_Pressure_Temperature[[#Headers],[Temp]],'Refrigeration Template'!J61,'Refrigeration Template'!J63-1,-2)) ->  | K64: Current Suction Temperature Set Point (°F) | O64: 3 | Q64: 0 | R64: 0 | S64: 0 | T64: Capacity vs Power | U64: 1 | V64: 2 | W64: 3 | X64: 4 | AA64: CAP2 | AB64: Cap | AC64: SST2 | AD64: SST | AE64: SCT2 | AF64: SCT | AG64: Intercept
B65: Proposed | C65: Staging Optimization | E65: 0.95 | F65: Compresser Motor Eff | J65: =IF(AND($J$25="Enable",$B$63="Proposed"),$H$30,IF(AND($J$16="Enable",$B$61="Proposed"),$H$19,$C$19)) ->  | K65: Minimum Discharge Temperature | O65: 4 | Q65: 0 | R65: 0 | S65: 0 | T65: y = m1*x3+m2x2+m3*x+m4 | U65: m1 | V65: m2 | W65: m3 | X65: m4 | Y65: Detailed kW Curve | Z65: CP1 | AA65: =LINEST(OFFSET(tbl_CP_Curve[[#Headers],[kWCP1]],1,,COUNT(tbl_CP_Curve[kWCP1]),),OFFSET(tbl_CP_Curve[[#Headers],[SCTCP1]],1,,COUNT(tbl_CP_Curve[SCTCP1]),COUNTA(tbl_CP_Curve[[#Headers],[SCTCP1]:[Cap2CP1]])),TRUE,TRUE) -> 
B66: Proposed | C66: Compressor VFD | E66: 0.9 | F66: Refrigeration Peak Load Factor | J66: =SUMPRODUCT(0.746*$C$10:$C$14,$D$10:$D$14,IF($E$10:$E$14="",0,1/$E$10:$E$14)) -> 0 | K66: Condenser Power (kW) | O66: 5 | Q66: 0 | R66: 0 | S66: 0 | T66: Screw | U66: =INDEX(LINEST('Refrigeration Look Up Tables'!$K$4:$K$13,'Refrigeration Look Up Tables'!$J$4:$J$13^{1,2,3}),1,U$64) -> 0.003415292308 | V66: =INDEX(LINEST('Refrigeration Look Up Tables'!$K$4:$K$13,'Refrigeration Look Up Tables'!$J$4:$J$13^{1,2,3}),1,V$64) -> 0.0650775004 | W66: =INDEX(LINEST('Refrigeration Look Up Tables'!$K$4:$K$13,'Refrigeration Look Up Tables'!$J$4:$J$13^{1,2,3}),1,W$64) -> 0.6469478463 | X66: =INDEX(LINEST('Refrigeration Look Up Tables'!$K$4:$K$13,'Refrigeration Look Up Tables'!$J$4:$J$13^{1,2,3}),1,X$64) -> 0.2848102794 | Z66: CP2 | AA66: =LINEST(OFFSET(tbl_CP_Curve[[#Headers],[kWCP2]],1,,COUNT(tbl_CP_Curve[kWCP2]),),OFFSET(tbl_CP_Curve[[#Headers],[SCTCP2]],1,,COUNT(tbl_CP_Curve[SCTCP2]),COUNTA(tbl_CP_Curve[[#Headers],[SCTCP2]:[Cap2CP2]])),TRUE,TRUE) -> 
B67: Proposed | C67: Evaporator VFD | E67: 0.8 | F67: Product Load Factor | J67: =SUMPRODUCT(0.746*$G$10:$G$14,$H$10:$H$14,$I$10:$I$14,IF($J$10:$J$14="",0,1/$J$10:$J$14)) -> 0 | K67: Evaporator Power (kW) | O67: 6 | Q67: 0 | R67: 0 | S67: 0 | T67: Reciprocating | U67: =INDEX(LINEST('Refrigeration Look Up Tables'!$M$4:$M$10,'Refrigeration Look Up Tables'!$L$4:$L$10^{1,2,3}),1,U$64) -> -3.744636221e-16 | V67: =INDEX(LINEST('Refrigeration Look Up Tables'!$M$4:$M$10,'Refrigeration Look Up Tables'!$L$4:$L$10^{1,2,3}),1,V$64) -> 0.02577527185 | W67: =INDEX(LINEST('Refrigeration Look Up Tables'!$M$4:$M$10,'Refrigeration Look Up Tables'!$L$4:$L$10^{1,2,3}),1,W$64) -> 0.8602496979 | X67: =INDEX(LINEST('Refrigeration Look Up Tables'!$M$4:$M$10,'Refrigeration Look Up Tables'!$L$4:$L$10^{1,2,3}),1,X$64) -> 0.1157010529 | Z67: CP3 | AA67: =LINEST(OFFSET(tbl_CP_Curve[[#Headers],[kWCP3]],1,,COUNT(tbl_CP_Curve[kWCP3]),),OFFSET(tbl_CP_Curve[[#Headers],[SCTCP3]],1,,COUNT(tbl_CP_Curve[SCTCP3]),COUNTA(tbl_CP_Curve[[#Headers],[SCTCP3]:[Cap2CP3]])),TRUE,TRUE) -> 
B68: Current Inputes | E68: 0.5 | F68: Weather Load Factor | J68: =IF(AND($B$64="Proposed",$J$32="Enable"),$H$35,$C$35) ->  | K68: Suction Temperature | O68: 7 | Q68: 0 | R68: 0 | S68: 0 | T68: VFD | U68: =INDEX(LINEST('Refrigeration Look Up Tables'!$O$4:$O$27,'Refrigeration Look Up Tables'!$N$4:$N$27^{1,2,3}),1,U$64) -> -0.2549533572 | V68: =INDEX(LINEST('Refrigeration Look Up Tables'!$O$4:$O$27,'Refrigeration Look Up Tables'!$N$4:$N$27^{1,2,3}),1,V$64) -> 0.5380108527 | W68: =INDEX(LINEST('Refrigeration Look Up Tables'!$O$4:$O$27,'Refrigeration Look Up Tables'!$N$4:$N$27^{1,2,3}),1,W$64) -> 0.6001475208 | X68: =INDEX(LINEST('Refrigeration Look Up Tables'!$O$4:$O$27,'Refrigeration Look Up Tables'!$N$4:$N$27^{1,2,3}),1,X$64) -> 0.1110754576 | AF68: SCT | AG68: Intercept
B69: Discharge Setpoint Reset | E69: 0.15 | F69: Min Compressor Load | L69: Lookup Min Discharge Temp Row | M69: Baseline | N69: Proposed | P69: Type | Q69: =IF(OR($J$48="Disable",$B$66="Baseline"),C51,G51) -> 0 | R69: =IF(OR($J$48="Disable",$B$66="Baseline"),D51,H51) -> 0 | S69: =IF(OR($J$48="Disable",$B$66="Baseline"),E51,I51) -> 0 | V69: Power = M Cap | AD69: Detailed Cap Curve | AE69: CP1 | AF69: =LINEST(Condensed_Arry(MAX(tbl_CP_Curve[SVCP1]),tbl_CP_Curve[SVCP1],tbl_CP_Curve[CapCP1]),Condensed_Arry(MAX(tbl_CP_Curve[SVCP1]),tbl_CP_Curve[SVCP1],tbl_CP_Curve[SCTCP1]),TRUE,FALSE) -> 
B70: =IF(OR($J$16 = "Disable",B61="Baseline"),C18,H18) -> 0 | C70: Discharge Setpoint (psig) | L70: Min SCT | M70: =MATCH($C$18,INDEX(TBL_Refrigerant_Pressure_Temperature[#All],0,$J$63),1) ->  | N70: =MATCH($H$18,INDEX(TBL_Refrigerant_Pressure_Temperature[#All],0,$J$63),1) ->  | P70: Ton | Q70: =I5 -> 0 | R70: =I6 -> 0 | S70: =I7 -> 0 | AE70: CP2 | AF70: =LINEST(Condensed_Arry(MAX(tbl_CP_Curve[SVCP2]),tbl_CP_Curve[SVCP2],tbl_CP_Curve[CapCP2]),Condensed_Arry(MAX(tbl_CP_Curve[SVCP2]),tbl_CP_Curve[SVCP2],tbl_CP_Curve[SCTCP2]),TRUE,FALSE) -> 
B71: Condenser Fan Control | E71: Evaporator Fan Control | G71: Peak kW | H71: First Line | I71: =I72-24 -> 4512 | L71: Min FH | M71: =MATCH($C$29,INDEX(TBL_Refrigerant_Pressure_Temperature[#All],0,$J$63),1) ->  | N71: =MATCH($H$29,INDEX(TBL_Refrigerant_Pressure_Temperature[#All],0,$J$63),1) ->  | P71: HP | Q71: =J5 -> 0 | R71: =J6 -> 0 | S71: =J7 -> 0 | AE71: CP3 | AF71: =LINEST(Condensed_Arry(MAX(tbl_CP_Curve[SVCP3]),tbl_CP_Curve[SVCP3],tbl_CP_Curve[CapCP3]),Condensed_Arry(MAX(tbl_CP_Curve[SVCP3]),tbl_CP_Curve[SVCP3],tbl_CP_Curve[SCTCP3]),TRUE,FALSE) -> 
B72: =IF(OR($J$21="Disable",B62="Baseline"),C23,H23) -> 0 | C72: Control | E72: =IF(OR($J$53="Disable",$B$67="Baseline"),C55,H55) -> 0 | F72: Control | H72: Last Line | I72: =('CTZ2'!Q3-DATE(YEAR('CTZ2'!Q3),1,0))*24 -> 4536 | L72: Suction | M72: =MATCH($C$34,INDEX(TBL_Refrigerant_Pressure_Temperature[#All],0,$J$63),1) ->  | N72: =MATCH($H$34,INDEX(TBL_Refrigerant_Pressure_Temperature[#All],0,$J$63),1) ->  | P72: Row | Q72: =MATCH(Q69,$T$66:$T$68,0) ->  | R72: =MATCH(R69,$T$66:$T$68,0) ->  | S72: =MATCH(S69,$T$66:$T$68,0) -> 
B73: Head Pressure | E73: =IF(OR($J$53="Disable",$B$67="Baseline"),C56,H56) -> 0 | F73: % Speed | G73: Suction Set Point Reset
B74: =IF(OR($J$25="Disable",B63="Baseline"),C27,H27) -> 0 | C74: Head pressure | E74: =IF($J$32="Enabled",H35-C35,0) -> 0 | F74: Delta SST | G74: =IF(OR($J$32="Disable",B64="Baseline"),C34,H34) -> 0 | H74: Suction Set Point (psig)
AE75: Calculated kWh | AF75: =SUM(tbl_Refrigeration_Calc_Engine[kW CP]) ->  | AG75: =SUM(tbl_Refrigeration_Calc_Engine[CD kW]) ->  | AH75: =SUM(tbl_Refrigeration_Calc_Engine[EV kW]) -> 
B76: Calculation Engine | F76: Enter Detail Data Here | AE76: kW | AF76: =IFERROR(AVERAGEIFS(tbl_Refrigeration_Calc_Engine[kW CP],tbl_Refrigeration_Calc_Engine[8760 Hour],">="&$I$71,tbl_Refrigeration_Calc_Engine[8760 Hour],"<="&$I$72),0) -> 0 | AG76: =IFERROR(AVERAGEIFS(tbl_Refrigeration_Calc_Engine[CD kW],tbl_Refrigeration_Calc_Engine[Hour],">="&$I$71,tbl_Refrigeration_Calc_Engine[Hour],"<="&$I$72),0) -> 0 | AH76: =IFERROR(AVERAGEIFS(tbl_Refrigeration_Calc_Engine[EV kW],tbl_Refrigeration_Calc_Engine[WBT],">="&$I$71,tbl_Refrigeration_Calc_Engine[WBT],"<="&$I$72),0) -> 0
B77: 8760 Hour | C77: Hour | D77: WBT | E77: DBT | F77: Baseline kW CP1 | G77: Baseline kW CP2 | H77: Baseline kW CP3 | I77: Baseline SST CP1 | J77: Baseline SST CP2 | K77: Baseline SST CP3 | L77: Load SCT Discharge Temp | M77: SCT Discharge Temp | N77: bhp Per Ton | O77: kW/Ton Factor | P77: Cooling Load Ton | Q77: Capacity CP1 | R77: Capacity CP2 | S77: Capacity CP3 | T77: Stage | U77: Load CP1 | V77: Load CP2 | W77: Load CP3 | X77: Capacity % CP1 | Y77: Capacity % CP2 | Z77: Capacity % CP3 | AA77: Power % CP1 | AB77: Power % CP2 | AC77: Power % CP3 | AD77: Condenser Fan | AE77: Calculated Evaporator Fan | AF77: kW CP | AG77: CD kW | AH77: EV kW
B78: 1 | C78: 1 | D78: ='CTZ2'!M2 -> 42 | E78: ='CTZ2'!N2 -> 43 | L78: =MAX($C$19,$E$5+IF($D$6="Evaporative",tbl_Refrigeration_Calc_Engine[[#This Row],[WBT]],tbl_Refrigeration_Calc_Engine[[#This Row],[DBT]])) ->  | M78: =MAX($J$65,$E$5+IF($D$6="Evaporative",tbl_Refrigeration_Calc_Engine[[#This Row],[WBT]],tbl_Refrigeration_Calc_Engine[[#This Row],[DBT]])) ->  | N78: =(0.339-0.00692*$J$64+0.000128*$J$64^2+0.00561*tbl_Refrigeration_Calc_Engine[[#This Row],[SCT Discharge Temp]]+0.0000917*tbl_Refrigeration_Calc_Engine[[#This Row],[SCT Discharge Temp]]^2-0.000235*$J$64*tbl_Refrigeration_Calc_Engine[[#This Row],[SCT Discharge Temp]]) ->  | O78: =1-(MAX(tbl_Refrigeration_Calc_Engine[SCT Discharge Temp])-tbl_Refrigeration_Calc_Engine[[#This Row],[SCT Discharge Temp]])*'Refrigeration Template'!$E$63 ->  | P78: =IF($T$62="Simple",FORECAST(MEDIAN($X$61,$X$62,tbl_Refrigeration_Calc_Engine[[#This Row],[DBT]]),$V$61:$V$62,$X$61:$X$62), SUM( IF(tbl_Refrigeration_Calc_Engine[[#This Row],[Baseline kW CP1]]=0,0,MAX(0,$AG$61+$AF$61*tbl_Refrigeration_Calc_Engine[[#This Row],[Baseline kW CP1]]+$AE$61*tbl_Refrigeration_Calc_Engine[[#This Row],[Baseline kW CP1]]^2+$AD$61*tbl_Refrigeration_Calc_Engine[[#This Row],[Load SCT Discharge Temp]]+$AC$61*tbl_Refrigeration_Calc_Engine[[#This Row],[Load SCT Discharge Temp]]^2+$AB$61*IF($G$6="Detailed", tbl_Refrigeration_Calc_Engine[[#This Row],[Baseline SST CP1]]+$E$74,tbl_Refrigeration_Calc_Engine[[#This Row],[Baseline SST CP1]])+$AA$61*IF($G$6="Detailed", tbl_Refrigeration_Calc_Engine[[#This Row],[Baseline SST CP1]]+$E$74,tbl_Refrigeration_Calc_Engine[[#This Row],[Baseline SST CP1]])^2)), IF(tbl_Refrigeration_Calc_Engine[[#This Row],[Baseline kW CP2]]=0,0,MAX(0,$AG$62+$AF$62*tbl_Refrigeration_Calc_Engine[[#This Row],[Baseline kW CP2]]+$AE$62*tbl_Refrigeration_Calc_Engine[[#This Row],[Baseline kW CP2]]^2+$AD$62*tbl_Refrigeration_Calc_Engine[[#This Row],[Load SCT Discharge Temp]]+$AC$62*tbl_Refrigeration_Calc_Engine[[#This Row],[Load SCT Discharge Temp]]^2+$AB$62*IF($G$6="Detailed", tbl_Refrigeration_Calc_Engine[[#This Row],[Baseline SST CP2]]+$E$74,tbl_Refrigeration_Calc_Engine[[#This Row],[Baseline SST CP2]])+$AA$62*IF($G$6="Detailed", tbl_Refrigeration_Calc_Engine[[#This Row],[Baseline SST CP2]]+$E$74,tbl_Refrigeration_Calc_Engine[[#This Row],[Baseline SST CP2]])^2)), IF(tbl_Refrigeration_Calc_Engine[[#This Row],[Baseline kW CP3]]=0,0,MAX(0,$AG$63+$AF$63*tbl_Refrigeration_Calc_Engine[[#This Row],[Baseline kW CP3]]+$AE$63*tbl_Refrigeration_Calc_Engine[[#This Row],[Baseline kW CP3]]^2+$AD$63*tbl_Refrigeration_Calc_Engine[[#This Row],[Load SCT Discharge Temp]]+$AC$63*tbl_Refrigeration_Calc_Engine[[#This Row],[Load SCT Discharge Temp]]^2+$AB$63*IF($G$6="Detailed", tbl_Refrigeration_Calc_Engine[[#This Row],[Baseline SST CP3]]+$E$74,tbl_Refrigeration_Calc_Engine[[#This Row],[Baseline SST CP3]])+$AA$63*IF($G$6="Detailed", tbl_Refrigeration_Calc_Engine[[#This Row],[Baseline SST CP3]]+$E$74,tbl_Refrigeration_Calc_Engine[[#This Row],[Baseline SST CP3]])^2)))) -> 0 | Q78: =IF($T$62="Simple",IF(tbl_Refrigeration_Calc_Engine[[#This Row],[bhp Per Ton ]]=0,0,1/tbl_Refrigeration_Calc_Engine[[#This Row],[bhp Per Ton ]]*$Q$71),$AG$69+$AF$69*tbl_Refrigeration_Calc_Engine[[#This Row],[SCT Discharge Temp]]) ->  | R78: =IF($T$62="Simple",IF(tbl_Refrigeration_Calc_Engine[[#This Row],[bhp Per Ton ]]=0,0,1/tbl_Refrigeration_Calc_Engine[[#This Row],[bhp Per Ton ]]*$R$71),$AG$70+$AF$70*tbl_Refrigeration_Calc_Engine[[#This Row],[SCT Discharge Temp]]) ->  | S78: =IF($T$62="Simple",IF(tbl_Refrigeration_Calc_Engine[[#This Row],[bhp Per Ton ]]=0,0,1/tbl_Refrigeration_Calc_Engine[[#This Row],[bhp Per Ton ]]*$S$71),$AG$71+$AF$71*tbl_Refrigeration_Calc_Engine[[#This Row],[SCT Discharge Temp]]) ->  | T78: =Stage_Check($P$62:$P$68,$Q$61:$S$61,tbl_Refrigeration_Calc_Engine[[#This Row],[Capacity CP1]:[Capacity CP3]],tbl_Refrigeration_Calc_Engine[[#This Row],[Cooling Load Ton]]) ->  | U78: =IF(tbl_Refrigeration_Calc_Engine[[#This Row],[Cooling Load Ton]]=0,0,Compressor_Load(tbl_Refrigeration_Calc_Engine[[#This Row],[Cooling Load Ton]],tbl_Refrigeration_Calc_Engine[[#This Row],[Capacity CP1]:[Capacity CP3]],INDEX($Q$62:$S$68,tbl_Refrigeration_Calc_Engine[[#This Row],[Stage]],0),tbl_Refrigeration_Calc_Engine[[#Headers],[Load CP1]])) -> 0 | V78: =IF(tbl_Refrigeration_Calc_Engine[[#This Row],[Cooling Load Ton]]=0,0,Compressor_Load(tbl_Refrigeration_Calc_Engine[[#This Row],[Cooling Load Ton]],tbl_Refrigeration_Calc_Engine[[#This Row],[Capacity CP1]:[Capacity CP3]],INDEX($Q$62:$S$68,tbl_Refrigeration_Calc_Engine[[#This Row],[Stage]],0),tbl_Refrigeration_Calc_Engine[[#Headers],[Load CP2]])) -> 0 | W78: =IF(tbl_Refrigeration_Calc_Engine[[#This Row],[Cooling Load Ton]]=0,0,Compressor_Load(tbl_Refrigeration_Calc_Engine[[#This Row],[Cooling Load Ton]],tbl_Refrigeration_Calc_Engine[[#This Row],[Capacity CP1]:[Capacity CP3]],INDEX($Q$62:$S$68,tbl_Refrigeration_Calc_Engine[[#This Row],[Stage]],0),tbl_Refrigeration_Calc_Engine[[#Headers],[Load CP3]])) -> 0 | X78: =IF(OR(tbl_Refrigeration_Calc_Engine[[#This Row],[Capacity CP1]]=0,tbl_Refrigeration_Calc_Engine[[#This Row],[Load CP1]]<tbl_Refrigeration_Calc_Engine[[#This Row],[Capacity CP1]]*$E$69),0,tbl_Refrigeration_Calc_Engine[[#This Row],[Load CP1]]/tbl_Refrigeration_Calc_Engine[[#This Row],[Capacity CP1]]) ->  | Y78: =IF(OR(tbl_Refrigeration_Calc_Engine[[#This Row],[Capacity CP2]]=0,tbl_Refrigeration_Calc_Engine[[#This Row],[Load CP2]]<tbl_Refrigeration_Calc_Engine[[#This Row],[Capacity CP2]]*$E$69),0,tbl_Refrigeration_Calc_Engine[[#This Row],[Load CP2]]/tbl_Refrigeration_Calc_Engine[[#This Row],[Capacity CP2]]) ->  | Z78: =IF(OR(tbl_Refrigeration_Calc_Engine[[#This Row],[Capacity CP3]]=0,tbl_Refrigeration_Calc_Engine[[#This Row],[Load CP3]]<tbl_Refrigeration_Calc_Engine[[#This Row],[Capacity CP3]]*$E$69),0,tbl_Refrigeration_Calc_Engine[[#This Row],[Load CP3]]/tbl_Refrigeration_Calc_Engine[[#This Row],[Capacity CP3]]) ->  | AA78: =IF(tbl_Refrigeration_Calc_Engine[[#This Row],[Capacity % CP1]]=0,0,MAX(0,INDEX($U$66:$X$68,Q$72,1)*tbl_Refrigeration_Calc_Engine[[#This Row],[Capacity % CP1]]^3+INDEX($U$66:$X$68,Q$72,2)*tbl_Refrigeration_Calc_Engine[[#This Row],[Capacity % CP1]]^2+INDEX($U$66:$X$68,Q$72,3)*tbl_Refrigeration_Calc_Engine[[#This Row],[Capacity % CP1]]+INDEX($U$66:$X$68,Q$72,4))) ->  | AB78: =IF(tbl_Refrigeration_Calc_Engine[[#This Row],[Capacity % CP2]]=0,0,MAX(0,INDEX($U$66:$X$68,R$72,1)*tbl_Refrigeration_Calc_Engine[[#This Row],[Capacity % CP2]]^3+INDEX($U$66:$X$68,R$72,2)*tbl_Refrigeration_Calc_Engine[[#This Row],[Capacity % CP2]]^2+INDEX($U$66:$X$68,R$72,3)*tbl_Refrigeration_Calc_Engine[[#This Row],[Capacity % CP2]]+INDEX($U$66:$X$68,R$72,4))) ->  | AC78: =IF(tbl_Refrigeration_Calc_Engine[[#This Row],[Capacity % CP3]]=0,0,MAX(0,INDEX($U$66:$X$68,S$72,1)*tbl_Refrigeration_Calc_Engine[[#This Row],[Capacity % CP3]]^3+INDEX($U$66:$X$68,S$72,2)*tbl_Refrigeration_Calc_Engine[[#This Row],[Capacity % CP3]]^2+INDEX($U$66:$X$68,S$72,3)*tbl_Refrigeration_Calc_Engine[[#This Row],[Capacity % CP3]]+INDEX($U$66:$X$68,S$72,4))) ->  | AD78: =IF($D$6="Evaporative",IF($J$65-tbl_Refrigeration_Calc_Engine[[#This Row],[WBT]]<=$E$5,1,IF($J$65<=tbl_Refrigeration_Calc_Engine[[#This Row],[WBT]],1,$E$5/($J$65-tbl_Refrigeration_Calc_Engine[[#This Row],[WBT]]))),IF($J$65-tbl_Refrigeration_Calc_Engine[[#This Row],[DBT]]<=$E$5,1,IF($J$65<=tbl_Refrigeration_Calc_Engine[[#This Row],[DBT]],1,$E$5/($J$65-tbl_Refrigeration_Calc_Engine[[#This Row],[DBT]])))) ->  | AE78: =tbl_Refrigeration_Calc_Engine[[#This Row],[Cooling Load Ton]]/$V$61 ->  | AF78: =IF($T$62="Simple",SUMPRODUCT(tbl_Refrigeration_Calc_Engine[[#This Row],[Power % CP1]:[Power % CP3]],$Q$70:$S$70*O78*0.746/$E$65), SUM( IF(tbl_Refrigeration_Calc_Engine[[#This Row],[Capacity % CP1]]=0,0,MAX(0,tbl_Refrigeration_Calc_Engine[[#This Row],[Power % CP1]]*($AG$65+$AF$65*tbl_Refrigeration_Calc_Engine[[#This Row],[SCT Discharge Temp]]+$AE$65*tbl_Refrigeration_Calc_Engine[[#This Row],[SCT Discharge Temp]]^2+$AD$65*IF($G$6="Detailed", tbl_Refrigeration_Calc_Engine[[#This Row],[Baseline SST CP1]]+$E$74,$J$68)+$AC$65*IF($G$6="Detailed", tbl_Refrigeration_Calc_Engine[[#This Row],[Baseline SST CP1]]+$E$74,$J$68)^2+$AB$65*tbl_Refrigeration_Calc_Engine[[#This Row],[Load CP1]]+$AA$65*tbl_Refrigeration_Calc_Engine[[#This Row],[Load CP1]]^2))), IF(tbl_Refrigeration_Calc_Engine[[#This Row],[Capacity % CP2]]=0,0,MAX(0,tbl_Refrigeration_Calc_Engine[[#This Row],[Power % CP2]]*($AG$66+$AF$66*tbl_Refrigeration_Calc_Engine[[#This Row],[SCT Discharge Temp]]+$AE$66*tbl_Refrigeration_Calc_Engine[[#This Row],[SCT Discharge Temp]]^2+$AD$66*IF($G$6="Detailed", tbl_Refrigeration_Calc_Engine[[#This Row],[Baseline SST CP2]]+$E$74,$J$68)+$AC$66*IF($G$6="Detailed", tbl_Refrigeration_Calc_Engine[[#This Row],[Baseline SST CP2]]+$E$74,$J$68)^2+$AB$66*tbl_Refrigeration_Calc_Engine[[#This Row],[Load CP2]]+$AA$66*tbl_Refrigeration_Calc_Engine[[#This Row],[Load CP2]]^2))), IF(tbl_Refrigeration_Calc_Engine[[#This Row],[Capacity % CP3]]=0,0,MAX(0,tbl_Refrigeration_Calc_Engine[[#This Row],[Power % CP3]]*($AG$67+$AF$67*tbl_Refrigeration_Calc_Engine[[#This Row],[SCT Discharge Temp]]+$AE$67*tbl_Refrigeration_Calc_Engine[[#This Row],[SCT Discharge Temp]]^2+$AD$67*IF($G$6="Detailed", tbl_Refrigeration_Calc_Engine[[#This Row],[Baseline SST CP3]]+$E$74,$J$68)+$AC$67*IF($G$6="Detailed", tbl_Refrigeration_Calc_Engine[[#This Row],[Baseline SST CP3]]+$E$74,$J$68)^2+$AB$67*tbl_Refrigeration_Calc_Engine[[#This Row],[Load CP3]]+$AA$67*tbl_Refrigeration_Calc_Engine[[#This Row],[Load CP3]]^2))))) ->  | AG78: =IF($B$72="On-Off",$J$66*tbl_Refrigeration_Calc_Engine[[#This Row],[Condenser Fan]],$J$66*tbl_Refrigeration_Calc_Engine[[#This Row],[Condenser Fan]]^3/'Refrigeration Template'!$E$61) ->  | AH78: =IF($E$72="VFD",MAX($E$73,tbl_Refrigeration_Calc_Engine[[#This Row],[Calculated Evaporator Fan]])^3,tbl_Refrigeration_Calc_Engine[[#This Row],[Calculated Evaporator Fan]])*$J$67 -> 
B79: 2 | C79: 2 | D79: ='CTZ2'!M3 -> 41 | E79: ='CTZ2'!N3 -> 42 | L79: =MAX($C$19,$E$5+IF($D$6="Evaporative",tbl_Refrigeration_Calc_Engine[[#This Row],[WBT]],tbl_Refrigeration_Calc_Engine[[#This Row],[DBT]])) ->  | M79: =MAX($J$65,$E$5+IF($D$6="Evaporative",tbl_Refrigeration_Calc_Engine[[#This Row],[WBT]],tbl_Refrigeration_Calc_Engine[[#This Row],[DBT]])) ->  | N79: =(0.339-0.00692*$J$64+0.000128*$J$64^2+0.00561*tbl_Refrigeration_Calc_Engine[[#This Row],[SCT Discharge Temp]]+0.0000917*tbl_Refrigeration_Calc_Engine[[#This Row],[SCT Discharge Temp]]^2-0.000235*$J$64*tbl_Refrigeration_Calc_Engine[[#This Row],[SCT Discharge Temp]]) ->  | O79: =1-(MAX(tbl_Refrigeration_Calc_Engine[SCT Discharge Temp])-tbl_Refrigeration_Calc_Engine[[#This Row],[SCT Discharge Temp]])*'Refrigeration Template'!$E$63 ->  | P79: =IF($T$62="Simple",FORECAST(MEDIAN($X$61,$X$62,tbl_Refrigeration_Calc_Engine[[#This Row],[DBT]]),$V$61:$V$62,$X$61:$X$62), SUM( IF(tbl_Refrigeration_Calc_Engine[[#This Row],[Baseline kW CP1]]=0,0,MAX(0,$AG$61+$AF$61*tbl_Refrigeration_Calc_Engine[[#This Row],[Baseline kW CP1]]+$AE$61*tbl_Refrigeration_Calc_Engine[[#This Row],[Baseline kW CP1]]^2+$AD$61*tbl_Refrigeration_Calc_Engine[[#This Row],[Load SCT Discharge Temp]]+$AC$61*tbl_Refrigeration_Calc_Engine[[#This Row],[Load SCT Discharge Temp]]^2+$AB$61*IF($G$6="Detailed", tbl_Refrigeration_Calc_Engine[[#This Row],[Baseline SST CP1]]+$E$74,tbl_Refrigeration_Calc_Engine[[#This Row],[Baseline SST CP1]])+$AA$61*IF($G$6="Detailed", tbl_Refrigeration_Calc_Engine[[#This Row],[Baseline SST CP1]]+$E$74,tbl_Refrigeration_Calc_Engine[[#This Row],[Baseline SST CP1]])^2)), IF(tbl_Refrigeration_Calc_Engine[[#This Row],[Baseline kW CP2]]=0,0,MAX(0,$AG$62+$AF$62*tbl_Refrigeration_Calc_Engine[[#This Row],[Baseline kW CP2]]+$AE$62*tbl_Refrigeration_Calc_Engine[[#This Row],[Baseline kW CP2]]^2+$AD$62*tbl_Refrigeration_Calc_Engine[[#This Row],[Load SCT Discharge Temp]]+$AC$62*tbl_Refrigeration_Calc_Engine[[#This Row],[Load SCT Discharge Temp]]^2+$AB$62*IF($G$6="Detailed", tbl_Refrigeration_Calc_Engine[[#This Row],[Baseline SST CP2]]+$E$74,tbl_Refrigeration_Calc_Engine[[#This Row],[Baseline SST CP2]])+$AA$62*IF($G$6="Detailed", tbl_Refrigeration_Calc_Engine[[#This Row],[Baseline SST CP2]]+$E$74,tbl_Refrigeration_Calc_Engine[[#This Row],[Baseline SST CP2]])^2)), IF(tbl_Refrigeration_Calc_Engine[[#This Row],[Baseline kW CP3]]=0,0,MAX(0,$AG$63+$AF$63*tbl_Refrigeration_Calc_Engine[[#This Row],[Baseline kW CP3]]+$AE$63*tbl_Refrigeration_Calc_Engine[[#This Row],[Baseline kW CP3]]^2+$AD$63*tbl_Refrigeration_Calc_Engine[[#This Row],[Load SCT Discharge Temp]]+$AC$63*tbl_Refrigeration_Calc_Engine[[#This Row],[Load SCT Discharge Temp]]^2+$AB$63*IF($G$6="Detailed", tbl_Refrigeration_Calc_Engine[[#This Row],[Baseline SST CP3]]+$E$74,tbl_Refrigeration_Calc_Engine[[#This Row],[Baseline SST CP3]])+$AA$63*IF($G$6="Detailed", tbl_Refrigeration_Calc_Engine[[#This Row],[Baseline SST CP3]]+$E$74,tbl_Refrigeration_Calc_Engine[[#This Row],[Baseline SST CP3]])^2)))) -> 0 | Q79: =IF($T$62="Simple",IF(tbl_Refrigeration_Calc_Engine[[#This Row],[bhp Per Ton ]]=0,0,1/tbl_Refrigeration_Calc_Engine[[#This Row],[bhp Per Ton ]]*$Q$71),$AG$69+$AF$69*tbl_Refrigeration_Calc_Engine[[#This Row],[SCT Discharge Temp]]) ->  | R79: =IF($T$62="Simple",IF(tbl_Refrigeration_Calc_Engine[[#This Row],[bhp Per Ton ]]=0,0,1/tbl_Refrigeration_Calc_Engine[[#This Row],[bhp Per Ton ]]*$R$71),$AG$70+$AF$70*tbl_Refrigeration_Calc_Engine[[#This Row],[SCT Discharge Temp]]) ->  | S79: =IF($T$62="Simple",IF(tbl_Refrigeration_Calc_Engine[[#This Row],[bhp Per Ton ]]=0,0,1/tbl_Refrigeration_Calc_Engine[[#This Row],[bhp Per Ton ]]*$S$71),$AG$71+$AF$71*tbl_Refrigeration_Calc_Engine[[#This Row],[SCT Discharge Temp]]) ->  | T79: =Stage_Check($P$62:$P$68,$Q$61:$S$61,tbl_Refrigeration_Calc_Engine[[#This Row],[Capacity CP1]:[Capacity CP3]],tbl_Refrigeration_Calc_Engine[[#This Row],[Cooling Load Ton]]) ->  | U79: =IF(tbl_Refrigeration_Calc_Engine[[#This Row],[Cooling Load Ton]]=0,0,Compressor_Load(tbl_Refrigeration_Calc_Engine[[#This Row],[Cooling Load Ton]],tbl_Refrigeration_Calc_Engine[[#This Row],[Capacity CP1]:[Capacity CP3]],INDEX($Q$62:$S$68,tbl_Refrigeration_Calc_Engine[[#This Row],[Stage]],0),tbl_Refrigeration_Calc_Engine[[#Headers],[Load CP1]])) -> 0 | V79: =IF(tbl_Refrigeration_Calc_Engine[[#This Row],[Cooling Load Ton]]=0,0,Compressor_Load(tbl_Refrigeration_Calc_Engine[[#This Row],[Cooling Load Ton]],tbl_Refrigeration_Calc_Engine[[#This Row],[Capacity CP1]:[Capacity CP3]],INDEX($Q$62:$S$68,tbl_Refrigeration_Calc_Engine[[#This Row],[Stage]],0),tbl_Refrigeration_Calc_Engine[[#Headers],[Load CP2]])) -> 0 | W79: =IF(tbl_Refrigeration_Calc_Engine[[#This Row],[Cooling Load Ton]]=0,0,Compressor_Load(tbl_Refrigeration_Calc_Engine[[#This Row],[Cooling Load Ton]],tbl_Refrigeration_Calc_Engine[[#This Row],[Capacity CP1]:[Capacity CP3]],INDEX($Q$62:$S$68,tbl_Refrigeration_Calc_Engine[[#This Row],[Stage]],0),tbl_Refrigeration_Calc_Engine[[#Headers],[Load CP3]])) -> 0 | X79: =IF(OR(tbl_Refrigeration_Calc_Engine[[#This Row],[Capacity CP1]]=0,tbl_Refrigeration_Calc_Engine[[#This Row],[Load CP1]]<tbl_Refrigeration_Calc_Engine[[#This Row],[Capacity CP1]]*$E$69),0,tbl_Refrigeration_Calc_Engine[[#This Row],[Load CP1]]/tbl_Refrigeration_Calc_Engine[[#This Row],[Capacity CP1]]) ->  | Y79: =IF(OR(tbl_Refrigeration_Calc_Engine[[#This Row],[Capacity CP2]]=0,tbl_Refrigeration_Calc_Engine[[#This Row],[Load CP2]]<tbl_Refrigeration_Calc_Engine[[#This Row],[Capacity CP2]]*$E$69),0,tbl_Refrigeration_Calc_Engine[[#This Row],[Load CP2]]/tbl_Refrigeration_Calc_Engine[[#This Row],[Capacity CP2]]) ->  | Z79: =IF(OR(tbl_Refrigeration_Calc_Engine[[#This Row],[Capacity CP3]]=0,tbl_Refrigeration_Calc_Engine[[#This Row],[Load CP3]]<tbl_Refrigeration_Calc_Engine[[#This Row],[Capacity CP3]]*$E$69),0,tbl_Refrigeration_Calc_Engine[[#This Row],[Load CP3]]/tbl_Refrigeration_Calc_Engine[[#This Row],[Capacity CP3]]) ->  | AA79: =IF(tbl_Refrigeration_Calc_Engine[[#This Row],[Capacity % CP1]]=0,0,MAX(0,INDEX($U$66:$X$68,Q$72,1)*tbl_Refrigeration_Calc_Engine[[#This Row],[Capacity % CP1]]^3+INDEX($U$66:$X$68,Q$72,2)*tbl_Refrigeration_Calc_Engine[[#This Row],[Capacity % CP1]]^2+INDEX($U$66:$X$68,Q$72,3)*tbl_Refrigeration_Calc_Engine[[#This Row],[Capacity % CP1]]+INDEX($U$66:$X$68,Q$72,4))) ->  | AB79: =IF(tbl_Refrigeration_Calc_Engine[[#This Row],[Capacity % CP2]]=0,0,MAX(0,INDEX($U$66:$X$68,R$72,1)*tbl_Refrigeration_Calc_Engine[[#This Row],[Capacity % CP2]]^3+INDEX($U$66:$X$68,R$72,2)*tbl_Refrigeration_Calc_Engine[[#This Row],[Capacity % CP2]]^2+INDEX($U$66:$X$68,R$72,3)*tbl_Refrigeration_Calc_Engine[[#This Row],[Capacity % CP2]]+INDEX($U$66:$X$68,R$72,4))) ->  | AC79: =IF(tbl_Refrigeration_Calc_Engine[[#This Row],[Capacity % CP3]]=0,0,MAX(0,INDEX($U$66:$X$68,S$72,1)*tbl_Refrigeration_Calc_Engine[[#This Row],[Capacity % CP3]]^3+INDEX($U$66:$X$68,S$72,2)*tbl_Refrigeration_Calc_Engine[[#This Row],[Capacity % CP3]]^2+INDEX($U$66:$X$68,S$72,3)*tbl_Refrigeration_Calc_Engine[[#This Row],[Capacity % CP3]]+INDEX($U$66:$X$68,S$72,4))) ->  | AD79: =IF($D$6="Evaporative",IF($J$65-tbl_Refrigeration_Calc_Engine[[#This Row],[WBT]]<=$E$5,1,IF($J$65<=tbl_Refrigeration_Calc_Engine[[#This Row],[WBT]],1,$E$5/($J$65-tbl_Refrigeration_Calc_Engine[[#This Row],[WBT]]))),IF($J$65-tbl_Refrigeration_Calc_Engine[[#This Row],[DBT]]<=$E$5,1,IF($J$65<=tbl_Refrigeration_Calc_Engine[[#This Row],[DBT]],1,$E$5/($J$65-tbl_Refrigeration_Calc_Engine[[#This Row],[DBT]])))) ->  | AE79: =tbl_Refrigeration_Calc_Engine[[#This Row],[Cooling Load Ton]]/$V$61 ->  | AF79: =IF($T$62="Simple",SUMPRODUCT(tbl_Refrigeration_Calc_Engine[[#This Row],[Power % CP1]:[Power % CP3]],$Q$70:$S$70*O79*0.746/$E$65), SUM( IF(tbl_Refrigeration_Calc_Engine[[#This Row],[Capacity % CP1]]=0,0,MAX(0,tbl_Refrigeration_Calc_Engine[[#This Row],[Power % CP1]]*($AG$65+$AF$65*tbl_Refrigeration_Calc_Engine[[#This Row],[SCT Discharge Temp]]+$AE$65*tbl_Refrigeration_Calc_Engine[[#This Row],[SCT Discharge Temp]]^2+$AD$65*IF($G$6="Detailed", tbl_Refrigeration_Calc_Engine[[#This Row],[Baseline SST CP1]]+$E$74,$J$68)+$AC$65*IF($G$6="Detailed", tbl_Refrigeration_Calc_Engine[[#This Row],[Baseline SST CP1]]+$E$74,$J$68)^2+$AB$65*tbl_Refrigeration_Calc_Engine[[#This Row],[Load CP1]]+$AA$65*tbl_Refrigeration_Calc_Engine[[#This Row],[Load CP1]]^2))), IF(tbl_Refrigeration_Calc_Engine[[#This Row],[Capacity % CP2]]=0,0,MAX(0,tbl_Refrigeration_Calc_Engine[[#This Row],[Power % CP2]]*($AG$66+$AF$66*tbl_Refrigeration_Calc_Engine[[#This Row],[SCT Discharge Temp]]+$AE$66*tbl_Refrigeration_Calc_Engine[[#This Row],[SCT Discharge Temp]]^2+$AD$66*IF($G$6="Detailed", tbl_Refrigeration_Calc_Engine[[#This Row],[Baseline SST CP2]]+$E$74,$J$68)+$AC$66*IF($G$6="Detailed", tbl_Refrigeration_Calc_Engine[[#This Row],[Baseline SST CP2]]+$E$74,$J$68)^2+$AB$66*tbl_Refrigeration_Calc_Engine[[#This Row],[Load CP2]]+$AA$66*tbl_Refrigeration_Calc_Engine[[#This Row],[Load CP2]]^2))), IF(tbl_Refrigeration_Calc_Engine[[#This Row],[Capacity % CP3]]=0,0,MAX(0,tbl_Refrigeration_Calc_Engine[[#This Row],[Power % CP3]]*($AG$67+$AF$67*tbl_Refrigeration_Calc_Engine[[#This Row],[SCT Discharge Temp]]+$AE$67*tbl_Refrigeration_Calc_Engine[[#This Row],[SCT Discharge Temp]]^2+$AD$67*IF($G$6="Detailed", tbl_Refrigeration_Calc_Engine[[#This Row],[Baseline SST CP3]]+$E$74,$J$68)+$AC$67*IF($G$6="Detailed", tbl_Refrigeration_Calc_Engine[[#This Row],[Baseline SST CP3]]+$E$74,$J$68)^2+$AB$67*tbl_Refrigeration_Calc_Engine[[#This Row],[Load CP3]]+$AA$67*tbl_Refrigeration_Calc_Engine[[#This Row],[Load CP3]]^2))))) ->  | AG79: =IF($B$72="On-Off",$J$66*tbl_Refrigeration_Calc_Engine[[#This Row],[Condenser Fan]],$J$66*tbl_Refrigeration_Calc_Engine[[#This Row],[Condenser Fan]]^3/'Refrigeration Template'!$E$61) ->  | AH79: =IF($E$72="VFD",MAX($E$73,tbl_Refrigeration_Calc_Engine[[#This Row],[Calculated Evaporator Fan]])^3,tbl_Refrigeration_Calc_Engine[[#This Row],[Calculated Evaporator Fan]])*$J$67 -> 
B80: 3 | C80: 3 | D80: ='CTZ2'!M4 -> 39 | E80: ='CTZ2'!N4 -> 40 | L80: =MAX($C$19,$E$5+IF($D$6="Evaporative",tbl_Refrigeration_Calc_Engine[[#This Row],[WBT]],tbl_Refrigeration_Calc_Engine[[#This Row],[DBT]])) ->  | M80: =MAX($J$65,$E$5+IF($D$6="Evaporative",tbl_Refrigeration_Calc_Engine[[#This Row],[WBT]],tbl_Refrigeration_Calc_Engine[[#This Row],[DBT]])) ->  | N80: =(0.339-0.00692*$J$64+0.000128*$J$64^2+0.00561*tbl_Refrigeration_Calc_Engine[[#This Row],[SCT Discharge Temp]]+0.0000917*tbl_Refrigeration_Calc_Engine[[#This Row],[SCT Discharge Temp]]^2-0.000235*$J$64*tbl_Refrigeration_Calc_Engine[[#This Row],[SCT Discharge Temp]]) ->  | O80: =1-(MAX(tbl_Refrigeration_Calc_Engine[SCT Discharge Temp])-tbl_Refrigeration_Calc_Engine[[#This Row],[SCT Discharge Temp]])*'Refrigeration Template'!$E$63 ->  | P80: =IF($T$62="Simple",FORECAST(MEDIAN($X$61,$X$62,tbl_Refrigeration_Calc_Engine[[#This Row],[DBT]]),$V$61:$V$62,$X$61:$X$62), SUM( IF(tbl_Refrigeration_Calc_Engine[[#This Row],[Baseline kW CP1]]=0,0,MAX(0,$AG$61+$AF$61*tbl_Refrigeration_Calc_Engine[[#This Row],[Baseline kW CP1]]+$AE$61*tbl_Refrigeration_Calc_Engine[[#This Row],[Baseline kW CP1]]^2+$AD$61*tbl_Refrigeration_Calc_Engine[[#This Row],[Load SCT Discharge Temp]]+$AC$61*tbl_Refrigeration_Calc_Engine[[#This Row],[Load SCT Discharge Temp]]^2+$AB$61*IF($G$6="Detailed", tbl_Refrigeration_Calc_Engine[[#This Row],[Baseline SST CP1]]+$E$74,tbl_Refrigeration_Calc_Engine[[#This Row],[Baseline SST CP1]])+$AA$61*IF($G$6="Detailed", tbl_Refrigeration_Calc_Engine[[#This Row],[Baseline SST CP1]]+$E$74,tbl_Refrigeration_Calc_Engine[[#This Row],[Baseline SST CP1]])^2)), IF(tbl_Refrigeration_Calc_Engine[[#This Row],[Baseline kW CP2]]=0,0,MAX(0,$AG$62+$AF$62*tbl_Refrigeration_Calc_Engine[[#This Row],[Baseline kW CP2]]+$AE$62*tbl_Refrigeration_Calc_Engine[[#This Row],[Baseline kW CP2]]^2+$AD$62*tbl_Refrigeration_Calc_Engine[[#This Row],[Load SCT Discharge Temp]]+$AC$62*tbl_Refrigeration_Calc_Engine[[#This Row],[Load SCT Discharge Temp]]^2+$AB$62*IF($G$6="Detailed", tbl_Refrigeration_Calc_Engine[[#This Row],[Baseline SST CP2]]+$E$74,tbl_Refrigeration_Calc_Engine[[#This Row],[Baseline SST CP2]])+$AA$62*IF($G$6="Detailed", tbl_Refrigeration_Calc_Engine[[#This Row],[Baseline SST CP2]]+$E$74,tbl_Refrigeration_Calc_Engine[[#This Row],[Baseline SST CP2]])^2)), IF(tbl_Refrigeration_Calc_Engine[[#This Row],[Baseline kW CP3]]=0,0,MAX(0,$AG$63+$AF$63*tbl_Refrigeration_Calc_Engine[[#This Row],[Baseline kW CP3]]+$AE$63*tbl_Refrigeration_Calc_Engine[[#This Row],[Baseline kW CP3]]^2+$AD$63*tbl_Refrigeration_Calc_Engine[[#This Row],[Load SCT Discharge Temp]]+$AC$63*tbl_Refrigeration_Calc_Engine[[#This Row],[Load SCT Discharge Temp]]^2+$AB$63*IF($G$6="Detailed", tbl_Refrigeration_Calc_Engine[[#This Row],[Baseline SST CP3]]+$E$74,tbl_Refrigeration_Calc_Engine[[#This Row],[Baseline SST CP3]])+$AA$63*IF($G$6="Detailed", tbl_Refrigeration_Calc_Engine[[#This Row],[Baseline SST CP3]]+$E$74,tbl_Refrigeration_Calc_Engine[[#This Row],[Baseline SST CP3]])^2)))) -> 0 | Q80: =IF($T$62="Simple",IF(tbl_Refrigeration_Calc_Engine[[#This Row],[bhp Per Ton ]]=0,0,1/tbl_Refrigeration_Calc_Engine[[#This Row],[bhp Per Ton ]]*$Q$71),$AG$69+$AF$69*tbl_Refrigeration_Calc_Engine[[#This Row],[SCT Discharge Temp]]) ->  | R80: =IF($T$62="Simple",IF(tbl_Refrigeration_Calc_Engine[[#This Row],[bhp Per Ton ]]=0,0,1/tbl_Refrigeration_Calc_Engine[[#This Row],[bhp Per Ton ]]*$R$71),$AG$70+$AF$70*tbl_Refrigeration_Calc_Engine[[#This Row],[SCT Discharge Temp]]) ->  | S80: =IF($T$62="Simple",IF(tbl_Refrigeration_Calc_Engine[[#This Row],[bhp Per Ton ]]=0,0,1/tbl_Refrigeration_Calc_Engine[[#This Row],[bhp Per Ton ]]*$S$71),$AG$71+$AF$71*tbl_Refrigeration_Calc_Engine[[#This Row],[SCT Discharge Temp]]) ->  | T80: =Stage_Check($P$62:$P$68,$Q$61:$S$61,tbl_Refrigeration_Calc_Engine[[#This Row],[Capacity CP1]:[Capacity CP3]],tbl_Refrigeration_Calc_Engine[[#This Row],[Cooling Load Ton]]) ->  | U80: =IF(tbl_Refrigeration_Calc_Engine[[#This Row],[Cooling Load Ton]]=0,0,Compressor_Load(tbl_Refrigeration_Calc_Engine[[#This Row],[Cooling Load Ton]],tbl_Refrigeration_Calc_Engine[[#This Row],[Capacity CP1]:[Capacity CP3]],INDEX($Q$62:$S$68,tbl_Refrigeration_Calc_Engine[[#This Row],[Stage]],0),tbl_Refrigeration_Calc_Engine[[#Headers],[Load CP1]])) -> 0 | V80: =IF(tbl_Refrigeration_Calc_Engine[[#This Row],[Cooling Load Ton]]=0,0,Compressor_Load(tbl_Refrigeration_Calc_Engine[[#This Row],[Cooling Load Ton]],tbl_Refrigeration_Calc_Engine[[#This Row],[Capacity CP1]:[Capacity CP3]],INDEX($Q$62:$S$68,tbl_Refrigeration_Calc_Engine[[#This Row],[Stage]],0),tbl_Refrigeration_Calc_Engine[[#Headers],[Load CP2]])) -> 0 | W80: =IF(tbl_Refrigeration_Calc_Engine[[#This Row],[Cooling Load Ton]]=0,0,Compressor_Load(tbl_Refrigeration_Calc_Engine[[#This Row],[Cooling Load Ton]],tbl_Refrigeration_Calc_Engine[[#This Row],[Capacity CP1]:[Capacity CP3]],INDEX($Q$62:$S$68,tbl_Refrigeration_Calc_Engine[[#This Row],[Stage]],0),tbl_Refrigeration_Calc_Engine[[#Headers],[Load CP3]])) -> 0 | X80: =IF(OR(tbl_Refrigeration_Calc_Engine[[#This Row],[Capacity CP1]]=0,tbl_Refrigeration_Calc_Engine[[#This Row],[Load CP1]]<tbl_Refrigeration_Calc_Engine[[#This Row],[Capacity CP1]]*$E$69),0,tbl_Refrigeration_Calc_Engine[[#This Row],[Load CP1]]/tbl_Refrigeration_Calc_Engine[[#This Row],[Capacity CP1]]) ->  | Y80: =IF(OR(tbl_Refrigeration_Calc_Engine[[#This Row],[Capacity CP2]]=0,tbl_Refrigeration_Calc_Engine[[#This Row],[Load CP2]]<tbl_Refrigeration_Calc_Engine[[#This Row],[Capacity CP2]]*$E$69),0,tbl_Refrigeration_Calc_Engine[[#This Row],[Load CP2]]/tbl_Refrigeration_Calc_Engine[[#This Row],[Capacity CP2]]) ->  | Z80: =IF(OR(tbl_Refrigeration_Calc_Engine[[#This Row],[Capacity CP3]]=0,tbl_Refrigeration_Calc_Engine[[#This Row],[Load CP3]]<tbl_Refrigeration_Calc_Engine[[#This Row],[Capacity CP3]]*$E$69),0,tbl_Refrigeration_Calc_Engine[[#This Row],[Load CP3]]/tbl_Refrigeration_Calc_Engine[[#This Row],[Capacity CP3]]) ->  | AA80: =IF(tbl_Refrigeration_Calc_Engine[[#This Row],[Capacity % CP1]]=0,0,MAX(0,INDEX($U$66:$X$68,Q$72,1)*tbl_Refrigeration_Calc_Engine[[#This Row],[Capacity % CP1]]^3+INDEX($U$66:$X$68,Q$72,2)*tbl_Refrigeration_Calc_Engine[[#This Row],[Capacity % CP1]]^2+INDEX($U$66:$X$68,Q$72,3)*tbl_Refrigeration_Calc_Engine[[#This Row],[Capacity % CP1]]+INDEX($U$66:$X$68,Q$72,4))) ->  | AB80: =IF(tbl_Refrigeration_Calc_Engine[[#This Row],[Capacity % CP2]]=0,0,MAX(0,INDEX($U$66:$X$68,R$72,1)*tbl_Refrigeration_Calc_Engine[[#This Row],[Capacity % CP2]]^3+INDEX($U$66:$X$68,R$72,2)*tbl_Refrigeration_Calc_Engine[[#This Row],[Capacity % CP2]]^2+INDEX($U$66:$X$68,R$72,3)*tbl_Refrigeration_Calc_Engine[[#This Row],[Capacity % CP2]]+INDEX($U$66:$X$68,R$72,4))) ->  | AC80: =IF(tbl_Refrigeration_Calc_Engine[[#This Row],[Capacity % CP3]]=0,0,MAX(0,INDEX($U$66:$X$68,S$72,1)*tbl_Refrigeration_Calc_Engine[[#This Row],[Capacity % CP3]]^3+INDEX($U$66:$X$68,S$72,2)*tbl_Refrigeration_Calc_Engine[[#This Row],[Capacity % CP3]]^2+INDEX($U$66:$X$68,S$72,3)*tbl_Refrigeration_Calc_Engine[[#This Row],[Capacity % CP3]]+INDEX($U$66:$X$68,S$72,4))) ->  | AD80: =IF($D$6="Evaporative",IF($J$65-tbl_Refrigeration_Calc_Engine[[#This Row],[WBT]]<=$E$5,1,IF($J$65<=tbl_Refrigeration_Calc_Engine[[#This Row],[WBT]],1,$E$5/($J$65-tbl_Refrigeration_Calc_Engine[[#This Row],[WBT]]))),IF($J$65-tbl_Refrigeration_Calc_Engine[[#This Row],[DBT]]<=$E$5,1,IF($J$65<=tbl_Refrigeration_Calc_Engine[[#This Row],[DBT]],1,$E$5/($J$65-tbl_Refrigeration_Calc_Engine[[#This Row],[DBT]])))) ->  | AE80: =tbl_Refrigeration_Calc_Engine[[#This Row],[Cooling Load Ton]]/$V$61 ->  | AF80: =IF($T$62="Simple",SUMPRODUCT(tbl_Refrigeration_Calc_Engine[[#This Row],[Power % CP1]:[Power % CP3]],$Q$70:$S$70*O80*0.746/$E$65), SUM( IF(tbl_Refrigeration_Calc_Engine[[#This Row],[Capacity % CP1]]=0,0,MAX(0,tbl_Refrigeration_Calc_Engine[[#This Row],[Power % CP1]]*($AG$65+$AF$65*tbl_Refrigeration_Calc_Engine[[#This Row],[SCT Discharge Temp]]+$AE$65*tbl_Refrigeration_Calc_Engine[[#This Row],[SCT Discharge Temp]]^2+$AD$65*IF($G$6="Detailed", tbl_Refrigeration_Calc_Engine[[#This Row],[Baseline SST CP1]]+$E$74,$J$68)+$AC$65*IF($G$6="Detailed", tbl_Refrigeration_Calc_Engine[[#This Row],[Baseline SST CP1]]+$E$74,$J$68)^2+$AB$65*tbl_Refrigeration_Calc_Engine[[#This Row],[Load CP1]]+$AA$65*tbl_Refrigeration_Calc_Engine[[#This Row],[Load CP1]]^2))), IF(tbl_Refrigeration_Calc_Engine[[#This Row],[Capacity % CP2]]=0,0,MAX(0,tbl_Refrigeration_Calc_Engine[[#This Row],[Power % CP2]]*($AG$66+$AF$66*tbl_Refrigeration_Calc_Engine[[#This Row],[SCT Discharge Temp]]+$AE$66*tbl_Refrigeration_Calc_Engine[[#This Row],[SCT Discharge Temp]]^2+$AD$66*IF($G$6="Detailed", tbl_Refrigeration_Calc_Engine[[#This Row],[Baseline SST CP2]]+$E$74,$J$68)+$AC$66*IF($G$6="Detailed", tbl_Refrigeration_Calc_Engine[[#This Row],[Baseline SST CP2]]+$E$74,$J$68)^2+$AB$66*tbl_Refrigeration_Calc_Engine[[#This Row],[Load CP2]]+$AA$66*tbl_Refrigeration_Calc_Engine[[#This Row],[Load CP2]]^2))), IF(tbl_Refrigeration_Calc_Engine[[#This Row],[Capacity % CP3]]=0,0,MAX(0,tbl_Refrigeration_Calc_Engine[[#This Row],[Power % CP3]]*($AG$67+$AF$67*tbl_Refrigeration_Calc_Engine[[#This Row],[SCT Discharge Temp]]+$AE$67*tbl_Refrigeration_Calc_Engine[[#This Row],[SCT Discharge Temp]]^2+$AD$67*IF($G$6="Detailed", tbl_Refrigeration_Calc_Engine[[#This Row],[Baseline SST CP3]]+$E$74,$J$68)+$AC$67*IF($G$6="Detailed", tbl_Refrigeration_Calc_Engine[[#This Row],[Baseline SST CP3]]+$E$74,$J$68)^2+$AB$67*tbl_Refrigeration_Calc_Engine[[#This Row],[Load CP3]]+$AA$67*tbl_Refrigeration_Calc_Engine[[#This Row],[Load CP3]]^2))))) ->  | AG80: =IF($B$72="On-Off",$J$66*tbl_Refrigeration_Calc_Engine[[#This Row],[Condenser Fan]],$J$66*tbl_Refrigeration_Calc_Engine[[#This Row],[Condenser Fan]]^3/'Refrigeration Template'!$E$61) ->  | AH80: =IF($E$72="VFD",MAX($E$73,tbl_Refrigeration_Calc_Engine[[#This Row],[Calculated Evaporator Fan]])^3,tbl_Refrigeration_Calc_Engine[[#This Row],[Calculated Evaporator Fan]])*$J$67 -> 
B81: 4 | C81: 4 | D81: ='CTZ2'!M5 -> 39 | E81: ='CTZ2'!N5 -> 39 | L81: =MAX($C$19,$E$5+IF($D$6="Evaporative",tbl_Refrigeration_Calc_Engine[[#This Row],[WBT]],tbl_Refrigeration_Calc_Engine[[#This Row],[DBT]])) ->  | M81: =MAX($J$65,$E$5+IF($D$6="Evaporative",tbl_Refrigeration_Calc_Engine[[#This Row],[WBT]],tbl_Refrigeration_Calc_Engine[[#This Row],[DBT]])) ->  | N81: =(0.339-0.00692*$J$64+0.000128*$J$64^2+0.00561*tbl_Refrigeration_Calc_Engine[[#This Row],[SCT Discharge Temp]]+0.0000917*tbl_Refrigeration_Calc_Engine[[#This Row],[SCT Discharge Temp]]^2-0.000235*$J$64*tbl_Refrigeration_Calc_Engine[[#This Row],[SCT Discharge Temp]]) ->  | O81: =1-(MAX(tbl_Refrigeration_Calc_Engine[SCT Discharge Temp])-tbl_Refrigeration_Calc_Engine[[#This Row],[SCT Discharge Temp]])*'Refrigeration Template'!$E$63 ->  | P81: =IF($T$62="Simple",FORECAST(MEDIAN($X$61,$X$62,tbl_Refrigeration_Calc_Engine[[#This Row],[DBT]]),$V$61:$V$62,$X$61:$X$62), SUM( IF(tbl_Refrigeration_Calc_Engine[[#This Row],[Baseline kW CP1]]=0,0,MAX(0,$AG$61+$AF$61*tbl_Refrigeration_Calc_Engine[[#This Row],[Baseline kW CP1]]+$AE$61*tbl_Refrigeration_Calc_Engine[[#This Row],[Baseline kW CP1]]^2+$AD$61*tbl_Refrigeration_Calc_Engine[[#This Row],[Load SCT Discharge Temp]]+$AC$61*tbl_Refrigeration_Calc_Engine[[#This Row],[Load SCT Discharge Temp]]^2+$AB$61*IF($G$6="Detailed", tbl_Refrigeration_Calc_Engine[[#This Row],[Baseline SST CP1]]+$E$74,tbl_Refrigeration_Calc_Engine[[#This Row],[Baseline SST CP1]])+$AA$61*IF($G$6="Detailed", tbl_Refrigeration_Calc_Engine[[#This Row],[Baseline SST CP1]]+$E$74,tbl_Refrigeration_Calc_Engine[[#This Row],[Baseline SST CP1]])^2)), IF(tbl_Refrigeration_Calc_Engine[[#This Row],[Baseline kW CP2]]=0,0,MAX(0,$AG$62+$AF$62*tbl_Refrigeration_Calc_Engine[[#This Row],[Baseline kW CP2]]+$AE$62*tbl_Refrigeration_Calc_Engine[[#This Row],[Baseline kW CP2]]^2+$AD$62*tbl_Refrigeration_Calc_Engine[[#This Row],[Load SCT Discharge Temp]]+$AC$62*tbl_Refrigeration_Calc_Engine[[#This Row],[Load SCT Discharge Temp]]^2+$AB$62*IF($G$6="Detailed", tbl_Refrigeration_Calc_Engine[[#This Row],[Baseline SST CP2]]+$E$74,tbl_Refrigeration_Calc_Engine[[#This Row],[Baseline SST CP2]])+$AA$62*IF($G$6="Detailed", tbl_Refrigeration_Calc_Engine[[#This Row],[Baseline SST CP2]]+$E$74,tbl_Refrigeration_Calc_Engine[[#This Row],[Baseline SST CP2]])^2)), IF(tbl_Refrigeration_Calc_Engine[[#This Row],[Baseline kW CP3]]=0,0,MAX(0,$AG$63+$AF$63*tbl_Refrigeration_Calc_Engine[[#This Row],[Baseline kW CP3]]+$AE$63*tbl_Refrigeration_Calc_Engine[[#This Row],[Baseline kW CP3]]^2+$AD$63*tbl_Refrigeration_Calc_Engine[[#This Row],[Load SCT Discharge Temp]]+$AC$63*tbl_Refrigeration_Calc_Engine[[#This Row],[Load SCT Discharge Temp]]^2+$AB$63*IF($G$6="Detailed", tbl_Refrigeration_Calc_Engine[[#This Row],[Baseline SST CP3]]+$E$74,tbl_Refrigeration_Calc_Engine[[#This Row],[Baseline SST CP3]])+$AA$63*IF($G$6="Detailed", tbl_Refrigeration_Calc_Engine[[#This Row],[Baseline SST CP3]]+$E$74,tbl_Refrigeration_Calc_Engine[[#This Row],[Baseline SST CP3]])^2)))) -> 0 | Q81: =IF($T$62="Simple",IF(tbl_Refrigeration_Calc_Engine[[#This Row],[bhp Per Ton ]]=0,0,1/tbl_Refrigeration_Calc_Engine[[#This Row],[bhp Per Ton ]]*$Q$71),$AG$69+$AF$69*tbl_Refrigeration_Calc_Engine[[#This Row],[SCT Discharge Temp]]) ->  | R81: =IF($T$62="Simple",IF(tbl_Refrigeration_Calc_Engine[[#This Row],[bhp Per Ton ]]=0,0,1/tbl_Refrigeration_Calc_Engine[[#This Row],[bhp Per Ton ]]*$R$71),$AG$70+$AF$70*tbl_Refrigeration_Calc_Engine[[#This Row],[SCT Discharge Temp]]) ->  | S81: =IF($T$62="Simple",IF(tbl_Refrigeration_Calc_Engine[[#This Row],[bhp Per Ton ]]=0,0,1/tbl_Refrigeration_Calc_Engine[[#This Row],[bhp Per Ton ]]*$S$71),$AG$71+$AF$71*tbl_Refrigeration_Calc_Engine[[#This Row],[SCT Discharge Temp]]) ->  | T81: =Stage_Check($P$62:$P$68,$Q$61:$S$61,tbl_Refrigeration_Calc_Engine[[#This Row],[Capacity CP1]:[Capacity CP3]],tbl_Refrigeration_Calc_Engine[[#This Row],[Cooling Load Ton]]) ->  | U81: =IF(tbl_Refrigeration_Calc_Engine[[#This Row],[Cooling Load Ton]]=0,0,Compressor_Load(tbl_Refrigeration_Calc_Engine[[#This Row],[Cooling Load Ton]],tbl_Refrigeration_Calc_Engine[[#This Row],[Capacity CP1]:[Capacity CP3]],INDEX($Q$62:$S$68,tbl_Refrigeration_Calc_Engine[[#This Row],[Stage]],0),tbl_Refrigeration_Calc_Engine[[#Headers],[Load CP1]])) -> 0 | V81: =IF(tbl_Refrigeration_Calc_Engine[[#This Row],[Cooling Load Ton]]=0,0,Compressor_Load(tbl_Refrigeration_Calc_Engine[[#This Row],[Cooling Load Ton]],tbl_Refrigeration_Calc_Engine[[#This Row],[Capacity CP1]:[Capacity CP3]],INDEX($Q$62:$S$68,tbl_Refrigeration_Calc_Engine[[#This Row],[Stage]],0),tbl_Refrigeration_Calc_Engine[[#Headers],[Load CP2]])) -> 0 | W81: =IF(tbl_Refrigeration_Calc_Engine[[#This Row],[Cooling Load Ton]]=0,0,Compressor_Load(tbl_Refrigeration_Calc_Engine[[#This Row],[Cooling Load Ton]],tbl_Refrigeration_Calc_Engine[[#This Row],[Capacity CP1]:[Capacity CP3]],INDEX($Q$62:$S$68,tbl_Refrigeration_Calc_Engine[[#This Row],[Stage]],0),tbl_Refrigeration_Calc_Engine[[#Headers],[Load CP3]])) -> 0 | X81: =IF(OR(tbl_Refrigeration_Calc_Engine[[#This Row],[Capacity CP1]]=0,tbl_Refrigeration_Calc_Engine[[#This Row],[Load CP1]]<tbl_Refrigeration_Calc_Engine[[#This Row],[Capacity CP1]]*$E$69),0,tbl_Refrigeration_Calc_Engine[[#This Row],[Load CP1]]/tbl_Refrigeration_Calc_Engine[[#This Row],[Capacity CP1]]) ->  | Y81: =IF(OR(tbl_Refrigeration_Calc_Engine[[#This Row],[Capacity CP2]]=0,tbl_Refrigeration_Calc_Engine[[#This Row],[Load CP2]]<tbl_Refrigeration_Calc_Engine[[#This Row],[Capacity CP2]]*$E$69),0,tbl_Refrigeration_Calc_Engine[[#This Row],[Load CP2]]/tbl_Refrigeration_Calc_Engine[[#This Row],[Capacity CP2]]) ->  | Z81: =IF(OR(tbl_Refrigeration_Calc_Engine[[#This Row],[Capacity CP3]]=0,tbl_Refrigeration_Calc_Engine[[#This Row],[Load CP3]]<tbl_Refrigeration_Calc_Engine[[#This Row],[Capacity CP3]]*$E$69),0,tbl_Refrigeration_Calc_Engine[[#This Row],[Load CP3]]/tbl_Refrigeration_Calc_Engine[[#This Row],[Capacity CP3]]) ->  | AA81: =IF(tbl_Refrigeration_Calc_Engine[[#This Row],[Capacity % CP1]]=0,0,MAX(0,INDEX($U$66:$X$68,Q$72,1)*tbl_Refrigeration_Calc_Engine[[#This Row],[Capacity % CP1]]^3+INDEX($U$66:$X$68,Q$72,2)*tbl_Refrigeration_Calc_Engine[[#This Row],[Capacity % CP1]]^2+INDEX($U$66:$X$68,Q$72,3)*tbl_Refrigeration_Calc_Engine[[#This Row],[Capacity % CP1]]+INDEX($U$66:$X$68,Q$72,4))) ->  | AB81: =IF(tbl_Refrigeration_Calc_Engine[[#This Row],[Capacity % CP2]]=0,0,MAX(0,INDEX($U$66:$X$68,R$72,1)*tbl_Refrigeration_Calc_Engine[[#This Row],[Capacity % CP2]]^3+INDEX($U$66:$X$68,R$72,2)*tbl_Refrigeration_Calc_Engine[[#This Row],[Capacity % CP2]]^2+INDEX($U$66:$X$68,R$72,3)*tbl_Refrigeration_Calc_Engine[[#This Row],[Capacity % CP2]]+INDEX($U$66:$X$68,R$72,4))) ->  | AC81: =IF(tbl_Refrigeration_Calc_Engine[[#This Row],[Capacity % CP3]]=0,0,MAX(0,INDEX($U$66:$X$68,S$72,1)*tbl_Refrigeration_Calc_Engine[[#This Row],[Capacity % CP3]]^3+INDEX($U$66:$X$68,S$72,2)*tbl_Refrigeration_Calc_Engine[[#This Row],[Capacity % CP3]]^2+INDEX($U$66:$X$68,S$72,3)*tbl_Refrigeration_Calc_Engine[[#This Row],[Capacity % CP3]]+INDEX($U$66:$X$68,S$72,4))) ->  | AD81: =IF($D$6="Evaporative",IF($J$65-tbl_Refrigeration_Calc_Engine[[#This Row],[WBT]]<=$E$5,1,IF($J$65<=tbl_Refrigeration_Calc_Engine[[#This Row],[WBT]],1,$E$5/($J$65-tbl_Refrigeration_Calc_Engine[[#This Row],[WBT]]))),IF($J$65-tbl_Refrigeration_Calc_Engine[[#This Row],[DBT]]<=$E$5,1,IF($J$65<=tbl_Refrigeration_Calc_Engine[[#This Row],[DBT]],1,$E$5/($J$65-tbl_Refrigeration_Calc_Engine[[#This Row],[DBT]])))) ->  | AE81: =tbl_Refrigeration_Calc_Engine[[#This Row],[Cooling Load Ton]]/$V$61 ->  | AF81: =IF($T$62="Simple",SUMPRODUCT(tbl_Refrigeration_Calc_Engine[[#This Row],[Power % CP1]:[Power % CP3]],$Q$70:$S$70*O81*0.746/$E$65), SUM( IF(tbl_Refrigeration_Calc_Engine[[#This Row],[Capacity % CP1]]=0,0,MAX(0,tbl_Refrigeration_Calc_Engine[[#This Row],[Power % CP1]]*($AG$65+$AF$65*tbl_Refrigeration_Calc_Engine[[#This Row],[SCT Discharge Temp]]+$AE$65*tbl_Refrigeration_Calc_Engine[[#This Row],[SCT Discharge Temp]]^2+$AD$65*IF($G$6="Detailed", tbl_Refrigeration_Calc_Engine[[#This Row],[Baseline SST CP1]]+$E$74,$J$68)+$AC$65*IF($G$6="Detailed", tbl_Refrigeration_Calc_Engine[[#This Row],[Baseline SST CP1]]+$E$74,$J$68)^2+$AB$65*tbl_Refrigeration_Calc_Engine[[#This Row],[Load CP1]]+$AA$65*tbl_Refrigeration_Calc_Engine[[#This Row],[Load CP1]]^2))), IF(tbl_Refrigeration_Calc_Engine[[#This Row],[Capacity % CP2]]=0,0,MAX(0,tbl_Refrigeration_Calc_Engine[[#This Row],[Power % CP2]]*($AG$66+$AF$66*tbl_Refrigeration_Calc_Engine[[#This Row],[SCT Discharge Temp]]+$AE$66*tbl_Refrigeration_Calc_Engine[[#This Row],[SCT Discharge Temp]]^2+$AD$66*IF($G$6="Detailed", tbl_Refrigeration_Calc_Engine[[#This Row],[Baseline SST CP2]]+$E$74,$J$68)+$AC$66*IF($G$6="Detailed", tbl_Refrigeration_Calc_Engine[[#This Row],[Baseline SST CP2]]+$E$74,$J$68)^2+$AB$66*tbl_Refrigeration_Calc_Engine[[#This Row],[Load CP2]]+$AA$66*tbl_Refrigeration_Calc_Engine[[#This Row],[Load CP2]]^2))), IF(tbl_Refrigeration_Calc_Engine[[#This Row],[Capacity % CP3]]=0,0,MAX(0,tbl_Refrigeration_Calc_Engine[[#This Row],[Power % CP3]]*($AG$67+$AF$67*tbl_Refrigeration_Calc_Engine[[#This Row],[SCT Discharge Temp]]+$AE$67*tbl_Refrigeration_Calc_Engine[[#This Row],[SCT Discharge Temp]]^2+$AD$67*IF($G$6="Detailed", tbl_Refrigeration_Calc_Engine[[#This Row],[Baseline SST CP3]]+$E$74,$J$68)+$AC$67*IF($G$6="Detailed", tbl_Refrigeration_Calc_Engine[[#This Row],[Baseline SST CP3]]+$E$74,$J$68)^2+$AB$67*tbl_Refrigeration_Calc_Engine[[#This Row],[Load CP3]]+$AA$67*tbl_Refrigeration_Calc_Engine[[#This Row],[Load CP3]]^2))))) ->  | AG81: =IF($B$72="On-Off",$J$66*tbl_Refrigeration_Calc_Engine[[#This Row],[Condenser Fan]],$J$66*tbl_Refrigeration_Calc_Engine[[#This Row],[Condenser Fan]]^3/'Refrigeration Template'!$E$61) ->  | AH81: =IF($E$72="VFD",MAX($E$73,tbl_Refrigeration_Calc_Engine[[#This Row],[Calculated Evaporator Fan]])^3,tbl_Refrigeration_Calc_Engine[[#This Row],[Calculated Evaporator Fan]])*$J$67 -> 
B82: 5 | C82: 5 | D82: ='CTZ2'!M6 -> 38 | E82: ='CTZ2'!N6 -> 40 | L82: =MAX($C$19,$E$5+IF($D$6="Evaporative",tbl_Refrigeration_Calc_Engine[[#This Row],[WBT]],tbl_Refrigeration_Calc_Engine[[#This Row],[DBT]])) ->  | M82: =MAX($J$65,$E$5+IF($D$6="Evaporative",tbl_Refrigeration_Calc_Engine[[#This Row],[WBT]],tbl_Refrigeration_Calc_Engine[[#This Row],[DBT]])) ->  | N82: =(0.339-0.00692*$J$64+0.000128*$J$64^2+0.00561*tbl_Refrigeration_Calc_Engine[[#This Row],[SCT Discharge Temp]]+0.0000917*tbl_Refrigeration_Calc_Engine[[#This Row],[SCT Discharge Temp]]^2-0.000235*$J$64*tbl_Refrigeration_Calc_Engine[[#This Row],[SCT Discharge Temp]]) ->  | O82: =1-(MAX(tbl_Refrigeration_Calc_Engine[SCT Discharge Temp])-tbl_Refrigeration_Calc_Engine[[#This Row],[SCT Discharge Temp]])*'Refrigeration Template'!$E$63 ->  | P82: =IF($T$62="Simple",FORECAST(MEDIAN($X$61,$X$62,tbl_Refrigeration_Calc_Engine[[#This Row],[DBT]]),$V$61:$V$62,$X$61:$X$62), SUM( IF(tbl_Refrigeration_Calc_Engine[[#This Row],[Baseline kW CP1]]=0,0,MAX(0,$AG$61+$AF$61*tbl_Refrigeration_Calc_Engine[[#This Row],[Baseline kW CP1]]+$AE$61*tbl_Refrigeration_Calc_Engine[[#This Row],[Baseline kW CP1]]^2+$AD$61*tbl_Refrigeration_Calc_Engine[[#This Row],[Load SCT Discharge Temp]]+$AC$61*tbl_Refrigeration_Calc_Engine[[#This Row],[Load SCT Discharge Temp]]^2+$AB$61*IF($G$6="Detailed", tbl_Refrigeration_Calc_Engine[[#This Row],[Baseline SST CP1]]+$E$74,tbl_Refrigeration_Calc_Engine[[#This Row],[Baseline SST CP1]])+$AA$61*IF($G$6="Detailed", tbl_Refrigeration_Calc_Engine[[#This Row],[Baseline SST CP1]]+$E$74,tbl_Refrigeration_Calc_Engine[[#This Row],[Baseline SST CP1]])^2)), IF(tbl_Refrigeration_Calc_Engine[[#This Row],[Baseline kW CP2]]=0,0,MAX(0,$AG$62+$AF$62*tbl_Refrigeration_Calc_Engine[[#This Row],[Baseline kW CP2]]+$AE$62*tbl_Refrigeration_Calc_Engine[[#This Row],[Baseline kW CP2]]^2+$AD$62*tbl_Refrigeration_Calc_Engine[[#This Row],[Load SCT Discharge Temp]]+$AC$62*tbl_Refrigeration_Calc_Engine[[#This Row],[Load SCT Discharge Temp]]^2+$AB$62*IF($G$6="Detailed", tbl_Refrigeration_Calc_Engine[[#This Row],[Baseline SST CP2]]+$E$74,tbl_Refrigeration_Calc_Engine[[#This Row],[Baseline SST CP2]])+$AA$62*IF($G$6="Detailed", tbl_Refrigeration_Calc_Engine[[#This Row],[Baseline SST CP2]]+$E$74,tbl_Refrigeration_Calc_Engine[[#This Row],[Baseline SST CP2]])^2)), IF(tbl_Refrigeration_Calc_Engine[[#This Row],[Baseline kW CP3]]=0,0,MAX(0,$AG$63+$AF$63*tbl_Refrigeration_Calc_Engine[[#This Row],[Baseline kW CP3]]+$AE$63*tbl_Refrigeration_Calc_Engine[[#This Row],[Baseline kW CP3]]^2+$AD$63*tbl_Refrigeration_Calc_Engine[[#This Row],[Load SCT Discharge Temp]]+$AC$63*tbl_Refrigeration_Calc_Engine[[#This Row],[Load SCT Discharge Temp]]^2+$AB$63*IF($G$6="Detailed", tbl_Refrigeration_Calc_Engine[[#This Row],[Baseline SST CP3]]+$E$74,tbl_Refrigeration_Calc_Engine[[#This Row],[Baseline SST CP3]])+$AA$63*IF($G$6="Detailed", tbl_Refrigeration_Calc_Engine[[#This Row],[Baseline SST CP3]]+$E$74,tbl_Refrigeration_Calc_Engine[[#This Row],[Baseline SST CP3]])^2)))) -> 0 | Q82: =IF($T$62="Simple",IF(tbl_Refrigeration_Calc_Engine[[#This Row],[bhp Per Ton ]]=0,0,1/tbl_Refrigeration_Calc_Engine[[#This Row],[bhp Per Ton ]]*$Q$71),$AG$69+$AF$69*tbl_Refrigeration_Calc_Engine[[#This Row],[SCT Discharge Temp]]) ->  | R82: =IF($T$62="Simple",IF(tbl_Refrigeration_Calc_Engine[[#This Row],[bhp Per Ton ]]=0,0,1/tbl_Refrigeration_Calc_Engine[[#This Row],[bhp Per Ton ]]*$R$71),$AG$70+$AF$70*tbl_Refrigeration_Calc_Engine[[#This Row],[SCT Discharge Temp]]) ->  | S82: =IF($T$62="Simple",IF(tbl_Refrigeration_Calc_Engine[[#This Row],[bhp Per Ton ]]=0,0,1/tbl_Refrigeration_Calc_Engine[[#This Row],[bhp Per Ton ]]*$S$71),$AG$71+$AF$71*tbl_Refrigeration_Calc_Engine[[#This Row],[SCT Discharge Temp]]) ->  | T82: =Stage_Check($P$62:$P$68,$Q$61:$S$61,tbl_Refrigeration_Calc_Engine[[#This Row],[Capacity CP1]:[Capacity CP3]],tbl_Refrigeration_Calc_Engine[[#This Row],[Cooling Load Ton]]) ->  | U82: =IF(tbl_Refrigeration_Calc_Engine[[#This Row],[Cooling Load Ton]]=0,0,Compressor_Load(tbl_Refrigeration_Calc_Engine[[#This Row],[Cooling Load Ton]],tbl_Refrigeration_Calc_Engine[[#This Row],[Capacity CP1]:[Capacity CP3]],INDEX($Q$62:$S$68,tbl_Refrigeration_Calc_Engine[[#This Row],[Stage]],0),tbl_Refrigeration_Calc_Engine[[#Headers],[Load CP1]])) -> 0 | V82: =IF(tbl_Refrigeration_Calc_Engine[[#This Row],[Cooling Load Ton]]=0,0,Compressor_Load(tbl_Refrigeration_Calc_Engine[[#This Row],[Cooling Load Ton]],tbl_Refrigeration_Calc_Engine[[#This Row],[Capacity CP1]:[Capacity CP3]],INDEX($Q$62:$S$68,tbl_Refrigeration_Calc_Engine[[#This Row],[Stage]],0),tbl_Refrigeration_Calc_Engine[[#Headers],[Load CP2]])) -> 0 | W82: =IF(tbl_Refrigeration_Calc_Engine[[#This Row],[Cooling Load Ton]]=0,0,Compressor_Load(tbl_Refrigeration_Calc_Engine[[#This Row],[Cooling Load Ton]],tbl_Refrigeration_Calc_Engine[[#This Row],[Capacity CP1]:[Capacity CP3]],INDEX($Q$62:$S$68,tbl_Refrigeration_Calc_Engine[[#This Row],[Stage]],0),tbl_Refrigeration_Calc_Engine[[#Headers],[Load CP3]])) -> 0 | X82: =IF(OR(tbl_Refrigeration_Calc_Engine[[#This Row],[Capacity CP1]]=0,tbl_Refrigeration_Calc_Engine[[#This Row],[Load CP1]]<tbl_Refrigeration_Calc_Engine[[#This Row],[Capacity CP1]]*$E$69),0,tbl_Refrigeration_Calc_Engine[[#This Row],[Load CP1]]/tbl_Refrigeration_Calc_Engine[[#This Row],[Capacity CP1]]) ->  | Y82: =IF(OR(tbl_Refrigeration_Calc_Engine[[#This Row],[Capacity CP2]]=0,tbl_Refrigeration_Calc_Engine[[#This Row],[Load CP2]]<tbl_Refrigeration_Calc_Engine[[#This Row],[Capacity CP2]]*$E$69),0,tbl_Refrigeration_Calc_Engine[[#This Row],[Load CP2]]/tbl_Refrigeration_Calc_Engine[[#This Row],[Capacity CP2]]) ->  | Z82: =IF(OR(tbl_Refrigeration_Calc_Engine[[#This Row],[Capacity CP3]]=0,tbl_Refrigeration_Calc_Engine[[#This Row],[Load CP3]]<tbl_Refrigeration_Calc_Engine[[#This Row],[Capacity CP3]]*$E$69),0,tbl_Refrigeration_Calc_Engine[[#This Row],[Load CP3]]/tbl_Refrigeration_Calc_Engine[[#This Row],[Capacity CP3]]) ->  | AA82: =IF(tbl_Refrigeration_Calc_Engine[[#This Row],[Capacity % CP1]]=0,0,MAX(0,INDEX($U$66:$X$68,Q$72,1)*tbl_Refrigeration_Calc_Engine[[#This Row],[Capacity % CP1]]^3+INDEX($U$66:$X$68,Q$72,2)*tbl_Refrigeration_Calc_Engine[[#This Row],[Capacity % CP1]]^2+INDEX($U$66:$X$68,Q$72,3)*tbl_Refrigeration_Calc_Engine[[#This Row],[Capacity % CP1]]+INDEX($U$66:$X$68,Q$72,4))) ->  | AB82: =IF(tbl_Refrigeration_Calc_Engine[[#This Row],[Capacity % CP2]]=0,0,MAX(0,INDEX($U$66:$X$68,R$72,1)*tbl_Refrigeration_Calc_Engine[[#This Row],[Capacity % CP2]]^3+INDEX($U$66:$X$68,R$72,2)*tbl_Refrigeration_Calc_Engine[[#This Row],[Capacity % CP2]]^2+INDEX($U$66:$X$68,R$72,3)*tbl_Refrigeration_Calc_Engine[[#This Row],[Capacity % CP2]]+INDEX($U$66:$X$68,R$72,4))) ->  | AC82: =IF(tbl_Refrigeration_Calc_Engine[[#This Row],[Capacity % CP3]]=0,0,MAX(0,INDEX($U$66:$X$68,S$72,1)*tbl_Refrigeration_Calc_Engine[[#This Row],[Capacity % CP3]]^3+INDEX($U$66:$X$68,S$72,2)*tbl_Refrigeration_Calc_Engine[[#This Row],[Capacity % CP3]]^2+INDEX($U$66:$X$68,S$72,3)*tbl_Refrigeration_Calc_Engine[[#This Row],[Capacity % CP3]]+INDEX($U$66:$X$68,S$72,4))) ->  | AD82: =IF($D$6="Evaporative",IF($J$65-tbl_Refrigeration_Calc_Engine[[#This Row],[WBT]]<=$E$5,1,IF($J$65<=tbl_Refrigeration_Calc_Engine[[#This Row],[WBT]],1,$E$5/($J$65-tbl_Refrigeration_Calc_Engine[[#This Row],[WBT]]))),IF($J$65-tbl_Refrigeration_Calc_Engine[[#This Row],[DBT]]<=$E$5,1,IF($J$65<=tbl_Refrigeration_Calc_Engine[[#This Row],[DBT]],1,$E$5/($J$65-tbl_Refrigeration_Calc_Engine[[#This Row],[DBT]])))) ->  | AE82: =tbl_Refrigeration_Calc_Engine[[#This Row],[Cooling Load Ton]]/$V$61 ->  | AF82: =IF($T$62="Simple",SUMPRODUCT(tbl_Refrigeration_Calc_Engine[[#This Row],[Power % CP1]:[Power % CP3]],$Q$70:$S$70*O82*0.746/$E$65), SUM( IF(tbl_Refrigeration_Calc_Engine[[#This Row],[Capacity % CP1]]=0,0,MAX(0,tbl_Refrigeration_Calc_Engine[[#This Row],[Power % CP1]]*($AG$65+$AF$65*tbl_Refrigeration_Calc_Engine[[#This Row],[SCT Discharge Temp]]+$AE$65*tbl_Refrigeration_Calc_Engine[[#This Row],[SCT Discharge Temp]]^2+$AD$65*IF($G$6="Detailed", tbl_Refrigeration_Calc_Engine[[#This Row],[Baseline SST CP1]]+$E$74,$J$68)+$AC$65*IF($G$6="Detailed", tbl_Refrigeration_Calc_Engine[[#This Row],[Baseline SST CP1]]+$E$74,$J$68)^2+$AB$65*tbl_Refrigeration_Calc_Engine[[#This Row],[Load CP1]]+$AA$65*tbl_Refrigeration_Calc_Engine[[#This Row],[Load CP1]]^2))), IF(tbl_Refrigeration_Calc_Engine[[#This Row],[Capacity % CP2]]=0,0,MAX(0,tbl_Refrigeration_Calc_Engine[[#This Row],[Power % CP2]]*($AG$66+$AF$66*tbl_Refrigeration_Calc_Engine[[#This Row],[SCT Discharge Temp]]+$AE$66*tbl_Refrigeration_Calc_Engine[[#This Row],[SCT Discharge Temp]]^2+$AD$66*IF($G$6="Detailed", tbl_Refrigeration_Calc_Engine[[#This Row],[Baseline SST CP2]]+$E$74,$J$68)+$AC$66*IF($G$6="Detailed", tbl_Refrigeration_Calc_Engine[[#This Row],[Baseline SST CP2]]+$E$74,$J$68)^2+$AB$66*tbl_Refrigeration_Calc_Engine[[#This Row],[Load CP2]]+$AA$66*tbl_Refrigeration_Calc_Engine[[#This Row],[Load CP2]]^2))), IF(tbl_Refrigeration_Calc_Engine[[#This Row],[Capacity % CP3]]=0,0,MAX(0,tbl_Refrigeration_Calc_Engine[[#This Row],[Power % CP3]]*($AG$67+$AF$67*tbl_Refrigeration_Calc_Engine[[#This Row],[SCT Discharge Temp]]+$AE$67*tbl_Refrigeration_Calc_Engine[[#This Row],[SCT Discharge Temp]]^2+$AD$67*IF($G$6="Detailed", tbl_Refrigeration_Calc_Engine[[#This Row],[Baseline SST CP3]]+$E$74,$J$68)+$AC$67*IF($G$6="Detailed", tbl_Refrigeration_Calc_Engine[[#This Row],[Baseline SST CP3]]+$E$74,$J$68)^2+$AB$67*tbl_Refrigeration_Calc_Engine[[#This Row],[Load CP3]]+$AA$67*tbl_Refrigeration_Calc_Engine[[#This Row],[Load CP3]]^2))))) ->  | AG82: =IF($B$72="On-Off",$J$66*tbl_Refrigeration_Calc_Engine[[#This Row],[Condenser Fan]],$J$66*tbl_Refrigeration_Calc_Engine[[#This Row],[Condenser Fan]]^3/'Refrigeration Template'!$E$61) ->  | AH82: =IF($E$72="VFD",MAX($E$73,tbl_Refrigeration_Calc_Engine[[#This Row],[Calculated Evaporator Fan]])^3,tbl_Refrigeration_Calc_Engine[[#This Row],[Calculated Evaporator Fan]])*$J$67 -> 
B83: 6 | C83: 6 | D83: ='CTZ2'!M7 -> 40 | E83: ='CTZ2'!N7 -> 42 | L83: =MAX($C$19,$E$5+IF($D$6="Evaporative",tbl_Refrigeration_Calc_Engine[[#This Row],[WBT]],tbl_Refrigeration_Calc_Engine[[#This Row],[DBT]])) ->  | M83: =MAX($J$65,$E$5+IF($D$6="Evaporative",tbl_Refrigeration_Calc_Engine[[#This Row],[WBT]],tbl_Refrigeration_Calc_Engine[[#This Row],[DBT]])) ->  | N83: =(0.339-0.00692*$J$64+0.000128*$J$64^2+0.00561*tbl_Refrigeration_Calc_Engine[[#This Row],[SCT Discharge Temp]]+0.0000917*tbl_Refrigeration_Calc_Engine[[#This Row],[SCT Discharge Temp]]^2-0.000235*$J$64*tbl_Refrigeration_Calc_Engine[[#This Row],[SCT Discharge Temp]]) ->  | O83: =1-(MAX(tbl_Refrigeration_Calc_Engine[SCT Discharge Temp])-tbl_Refrigeration_Calc_Engine[[#This Row],[SCT Discharge Temp]])*'Refrigeration Template'!$E$63 ->  | P83: =IF($T$62="Simple",FORECAST(MEDIAN($X$61,$X$62,tbl_Refrigeration_Calc_Engine[[#This Row],[DBT]]),$V$61:$V$62,$X$61:$X$62), SUM( IF(tbl_Refrigeration_Calc_Engine[[#This Row],[Baseline kW CP1]]=0,0,MAX(0,$AG$61+$AF$61*tbl_Refrigeration_Calc_Engine[[#This Row],[Baseline kW CP1]]+$AE$61*tbl_Refrigeration_Calc_Engine[[#This Row],[Baseline kW CP1]]^2+$AD$61*tbl_Refrigeration_Calc_Engine[[#This Row],[Load SCT Discharge Temp]]+$AC$61*tbl_Refrigeration_Calc_Engine[[#This Row],[Load SCT Discharge Temp]]^2+$AB$61*IF($G$6="Detailed", tbl_Refrigeration_Calc_Engine[[#This Row],[Baseline SST CP1]]+$E$74,tbl_Refrigeration_Calc_Engine[[#This Row],[Baseline SST CP1]])+$AA$61*IF($G$6="Detailed", tbl_Refrigeration_Calc_Engine[[#This Row],[Baseline SST CP1]]+$E$74,tbl_Refrigeration_Calc_Engine[[#This Row],[Baseline SST CP1]])^2)), IF(tbl_Refrigeration_Calc_Engine[[#This Row],[Baseline kW CP2]]=0,0,MAX(0,$AG$62+$AF$62*tbl_Refrigeration_Calc_Engine[[#This Row],[Baseline kW CP2]]+$AE$62*tbl_Refrigeration_Calc_Engine[[#This Row],[Baseline kW CP2]]^2+$AD$62*tbl_Refrigeration_Calc_Engine[[#This Row],[Load SCT Discharge Temp]]+$AC$62*tbl_Refrigeration_Calc_Engine[[#This Row],[Load SCT Discharge Temp]]^2+$AB$62*IF($G$6="Detailed", tbl_Refrigeration_Calc_Engine[[#This Row],[Baseline SST CP2]]+$E$74,tbl_Refrigeration_Calc_Engine[[#This Row],[Baseline SST CP2]])+$AA$62*IF($G$6="Detailed", tbl_Refrigeration_Calc_Engine[[#This Row],[Baseline SST CP2]]+$E$74,tbl_Refrigeration_Calc_Engine[[#This Row],[Baseline SST CP2]])^2)), IF(tbl_Refrigeration_Calc_Engine[[#This Row],[Baseline kW CP3]]=0,0,MAX(0,$AG$63+$AF$63*tbl_Refrigeration_Calc_Engine[[#This Row],[Baseline kW CP3]]+$AE$63*tbl_Refrigeration_Calc_Engine[[#This Row],[Baseline kW CP3]]^2+$AD$63*tbl_Refrigeration_Calc_Engine[[#This Row],[Load SCT Discharge Temp]]+$AC$63*tbl_Refrigeration_Calc_Engine[[#This Row],[Load SCT Discharge Temp]]^2+$AB$63*IF($G$6="Detailed", tbl_Refrigeration_Calc_Engine[[#This Row],[Baseline SST CP3]]+$E$74,tbl_Refrigeration_Calc_Engine[[#This Row],[Baseline SST CP3]])+$AA$63*IF($G$6="Detailed", tbl_Refrigeration_Calc_Engine[[#This Row],[Baseline SST CP3]]+$E$74,tbl_Refrigeration_Calc_Engine[[#This Row],[Baseline SST CP3]])^2)))) -> 0 | Q83: =IF($T$62="Simple",IF(tbl_Refrigeration_Calc_Engine[[#This Row],[bhp Per Ton ]]=0,0,1/tbl_Refrigeration_Calc_Engine[[#This Row],[bhp Per Ton ]]*$Q$71),$AG$69+$AF$69*tbl_Refrigeration_Calc_Engine[[#This Row],[SCT Discharge Temp]]) ->  | R83: =IF($T$62="Simple",IF(tbl_Refrigeration_Calc_Engine[[#This Row],[bhp Per Ton ]]=0,0,1/tbl_Refrigeration_Calc_Engine[[#This Row],[bhp Per Ton ]]*$R$71),$AG$70+$AF$70*tbl_Refrigeration_Calc_Engine[[#This Row],[SCT Discharge Temp]]) ->  | S83: =IF($T$62="Simple",IF(tbl_Refrigeration_Calc_Engine[[#This Row],[bhp Per Ton ]]=0,0,1/tbl_Refrigeration_Calc_Engine[[#This Row],[bhp Per Ton ]]*$S$71),$AG$71+$AF$71*tbl_Refrigeration_Calc_Engine[[#This Row],[SCT Discharge Temp]]) ->  | T83: =Stage_Check($P$62:$P$68,$Q$61:$S$61,tbl_Refrigeration_Calc_Engine[[#This Row],[Capacity CP1]:[Capacity CP3]],tbl_Refrigeration_Calc_Engine[[#This Row],[Cooling Load Ton]]) ->  | U83: =IF(tbl_Refrigeration_Calc_Engine[[#This Row],[Cooling Load Ton]]=0,0,Compressor_Load(tbl_Refrigeration_Calc_Engine[[#This Row],[Cooling Load Ton]],tbl_Refrigeration_Calc_Engine[[#This Row],[Capacity CP1]:[Capacity CP3]],INDEX($Q$62:$S$68,tbl_Refrigeration_Calc_Engine[[#This Row],[Stage]],0),tbl_Refrigeration_Calc_Engine[[#Headers],[Load CP1]])) -> 0 | V83: =IF(tbl_Refrigeration_Calc_Engine[[#This Row],[Cooling Load Ton]]=0,0,Compressor_Load(tbl_Refrigeration_Calc_Engine[[#This Row],[Cooling Load Ton]],tbl_Refrigeration_Calc_Engine[[#This Row],[Capacity CP1]:[Capacity CP3]],INDEX($Q$62:$S$68,tbl_Refrigeration_Calc_Engine[[#This Row],[Stage]],0),tbl_Refrigeration_Calc_Engine[[#Headers],[Load CP2]])) -> 0 | W83: =IF(tbl_Refrigeration_Calc_Engine[[#This Row],[Cooling Load Ton]]=0,0,Compressor_Load(tbl_Refrigeration_Calc_Engine[[#This Row],[Cooling Load Ton]],tbl_Refrigeration_Calc_Engine[[#This Row],[Capacity CP1]:[Capacity CP3]],INDEX($Q$62:$S$68,tbl_Refrigeration_Calc_Engine[[#This Row],[Stage]],0),tbl_Refrigeration_Calc_Engine[[#Headers],[Load CP3]])) -> 0 | X83: =IF(OR(tbl_Refrigeration_Calc_Engine[[#This Row],[Capacity CP1]]=0,tbl_Refrigeration_Calc_Engine[[#This Row],[Load CP1]]<tbl_Refrigeration_Calc_Engine[[#This Row],[Capacity CP1]]*$E$69),0,tbl_Refrigeration_Calc_Engine[[#This Row],[Load CP1]]/tbl_Refrigeration_Calc_Engine[[#This Row],[Capacity CP1]]) ->  | Y83: =IF(OR(tbl_Refrigeration_Calc_Engine[[#This Row],[Capacity CP2]]=0,tbl_Refrigeration_Calc_Engine[[#This Row],[Load CP2]]<tbl_Refrigeration_Calc_Engine[[#This Row],[Capacity CP2]]*$E$69),0,tbl_Refrigeration_Calc_Engine[[#This Row],[Load CP2]]/tbl_Refrigeration_Calc_Engine[[#This Row],[Capacity CP2]]) ->  | Z83: =IF(OR(tbl_Refrigeration_Calc_Engine[[#This Row],[Capacity CP3]]=0,tbl_Refrigeration_Calc_Engine[[#This Row],[Load CP3]]<tbl_Refrigeration_Calc_Engine[[#This Row],[Capacity CP3]]*$E$69),0,tbl_Refrigeration_Calc_Engine[[#This Row],[Load CP3]]/tbl_Refrigeration_Calc_Engine[[#This Row],[Capacity CP3]]) ->  | AA83: =IF(tbl_Refrigeration_Calc_Engine[[#This Row],[Capacity % CP1]]=0,0,MAX(0,INDEX($U$66:$X$68,Q$72,1)*tbl_Refrigeration_Calc_Engine[[#This Row],[Capacity % CP1]]^3+INDEX($U$66:$X$68,Q$72,2)*tbl_Refrigeration_Calc_Engine[[#This Row],[Capacity % CP1]]^2+INDEX($U$66:$X$68,Q$72,3)*tbl_Refrigeration_Calc_Engine[[#This Row],[Capacity % CP1]]+INDEX($U$66:$X$68,Q$72,4))) ->  | AB83: =IF(tbl_Refrigeration_Calc_Engine[[#This Row],[Capacity % CP2]]=0,0,MAX(0,INDEX($U$66:$X$68,R$72,1)*tbl_Refrigeration_Calc_Engine[[#This Row],[Capacity % CP2]]^3+INDEX($U$66:$X$68,R$72,2)*tbl_Refrigeration_Calc_Engine[[#This Row],[Capacity % CP2]]^2+INDEX($U$66:$X$68,R$72,3)*tbl_Refrigeration_Calc_Engine[[#This Row],[Capacity % CP2]]+INDEX($U$66:$X$68,R$72,4))) ->  | AC83: =IF(tbl_Refrigeration_Calc_Engine[[#This Row],[Capacity % CP3]]=0,0,MAX(0,INDEX($U$66:$X$68,S$72,1)*tbl_Refrigeration_Calc_Engine[[#This Row],[Capacity % CP3]]^3+INDEX($U$66:$X$68,S$72,2)*tbl_Refrigeration_Calc_Engine[[#This Row],[Capacity % CP3]]^2+INDEX($U$66:$X$68,S$72,3)*tbl_Refrigeration_Calc_Engine[[#This Row],[Capacity % CP3]]+INDEX($U$66:$X$68,S$72,4))) ->  | AD83: =IF($D$6="Evaporative",IF($J$65-tbl_Refrigeration_Calc_Engine[[#This Row],[WBT]]<=$E$5,1,IF($J$65<=tbl_Refrigeration_Calc_Engine[[#This Row],[WBT]],1,$E$5/($J$65-tbl_Refrigeration_Calc_Engine[[#This Row],[WBT]]))),IF($J$65-tbl_Refrigeration_Calc_Engine[[#This Row],[DBT]]<=$E$5,1,IF($J$65<=tbl_Refrigeration_Calc_Engine[[#This Row],[DBT]],1,$E$5/($J$65-tbl_Refrigeration_Calc_Engine[[#This Row],[DBT]])))) ->  | AE83: =tbl_Refrigeration_Calc_Engine[[#This Row],[Cooling Load Ton]]/$V$61 ->  | AF83: =IF($T$62="Simple",SUMPRODUCT(tbl_Refrigeration_Calc_Engine[[#This Row],[Power % CP1]:[Power % CP3]],$Q$70:$S$70*O83*0.746/$E$65), SUM( IF(tbl_Refrigeration_Calc_Engine[[#This Row],[Capacity % CP1]]=0,0,MAX(0,tbl_Refrigeration_Calc_Engine[[#This Row],[Power % CP1]]*($AG$65+$AF$65*tbl_Refrigeration_Calc_Engine[[#This Row],[SCT Discharge Temp]]+$AE$65*tbl_Refrigeration_Calc_Engine[[#This Row],[SCT Discharge Temp]]^2+$AD$65*IF($G$6="Detailed", tbl_Refrigeration_Calc_Engine[[#This Row],[Baseline SST CP1]]+$E$74,$J$68)+$AC$65*IF($G$6="Detailed", tbl_Refrigeration_Calc_Engine[[#This Row],[Baseline SST CP1]]+$E$74,$J$68)^2+$AB$65*tbl_Refrigeration_Calc_Engine[[#This Row],[Load CP1]]+$AA$65*tbl_Refrigeration_Calc_Engine[[#This Row],[Load CP1]]^2))), IF(tbl_Refrigeration_Calc_Engine[[#This Row],[Capacity % CP2]]=0,0,MAX(0,tbl_Refrigeration_Calc_Engine[[#This Row],[Power % CP2]]*($AG$66+$AF$66*tbl_Refrigeration_Calc_Engine[[#This Row],[SCT Discharge Temp]]+$AE$66*tbl_Refrigeration_Calc_Engine[[#This Row],[SCT Discharge Temp]]^2+$AD$66*IF($G$6="Detailed", tbl_Refrigeration_Calc_Engine[[#This Row],[Baseline SST CP2]]+$E$74,$J$68)+$AC$66*IF($G$6="Detailed", tbl_Refrigeration_Calc_Engine[[#This Row],[Baseline SST CP2]]+$E$74,$J$68)^2+$AB$66*tbl_Refrigeration_Calc_Engine[[#This Row],[Load CP2]]+$AA$66*tbl_Refrigeration_Calc_Engine[[#This Row],[Load CP2]]^2))), IF(tbl_Refrigeration_Calc_Engine[[#This Row],[Capacity % CP3]]=0,0,MAX(0,tbl_Refrigeration_Calc_Engine[[#This Row],[Power % CP3]]*($AG$67+$AF$67*tbl_Refrigeration_Calc_Engine[[#This Row],[SCT Discharge Temp]]+$AE$67*tbl_Refrigeration_Calc_Engine[[#This Row],[SCT Discharge Temp]]^2+$AD$67*IF($G$6="Detailed", tbl_Refrigeration_Calc_Engine[[#This Row],[Baseline SST CP3]]+$E$74,$J$68)+$AC$67*IF($G$6="Detailed", tbl_Refrigeration_Calc_Engine[[#This Row],[Baseline SST CP3]]+$E$74,$J$68)^2+$AB$67*tbl_Refrigeration_Calc_Engine[[#This Row],[Load CP3]]+$AA$67*tbl_Refrigeration_Calc_Engine[[#This Row],[Load CP3]]^2))))) ->  | AG83: =IF($B$72="On-Off",$J$66*tbl_Refrigeration_Calc_Engine[[#This Row],[Condenser Fan]],$J$66*tbl_Refrigeration_Calc_Engine[[#This Row],[Condenser Fan]]^3/'Refrigeration Template'!$E$61) ->  | AH83: =IF($E$72="VFD",MAX($E$73,tbl_Refrigeration_Calc_Engine[[#This Row],[Calculated Evaporator Fan]])^3,tbl_Refrigeration_Calc_Engine[[#This Row],[Calculated Evaporator Fan]])*$J$67 -> 
B84: 7 | C84: 7 | D84: ='CTZ2'!M8 -> 41 | E84: ='CTZ2'!N8 -> 44 | L84: =MAX($C$19,$E$5+IF($D$6="Evaporative",tbl_Refrigeration_Calc_Engine[[#This Row],[WBT]],tbl_Refrigeration_Calc_Engine[[#This Row],[DBT]])) ->  | M84: =MAX($J$65,$E$5+IF($D$6="Evaporative",tbl_Refrigeration_Calc_Engine[[#This Row],[WBT]],tbl_Refrigeration_Calc_Engine[[#This Row],[DBT]])) ->  | N84: =(0.339-0.00692*$J$64+0.000128*$J$64^2+0.00561*tbl_Refrigeration_Calc_Engine[[#This Row],[SCT Discharge Temp]]+0.0000917*tbl_Refrigeration_Calc_Engine[[#This Row],[SCT Discharge Temp]]^2-0.000235*$J$64*tbl_Refrigeration_Calc_Engine[[#This Row],[SCT Discharge Temp]]) ->  | O84: =1-(MAX(tbl_Refrigeration_Calc_Engine[SCT Discharge Temp])-tbl_Refrigeration_Calc_Engine[[#This Row],[SCT Discharge Temp]])*'Refrigeration Template'!$E$63 ->  | P84: =IF($T$62="Simple",FORECAST(MEDIAN($X$61,$X$62,tbl_Refrigeration_Calc_Engine[[#This Row],[DBT]]),$V$61:$V$62,$X$61:$X$62), SUM( IF(tbl_Refrigeration_Calc_Engine[[#This Row],[Baseline kW CP1]]=0,0,MAX(0,$AG$61+$AF$61*tbl_Refrigeration_Calc_Engine[[#This Row],[Baseline kW CP1]]+$AE$61*tbl_Refrigeration_Calc_Engine[[#This Row],[Baseline kW CP1]]^2+$AD$61*tbl_Refrigeration_Calc_Engine[[#This Row],[Load SCT Discharge Temp]]+$AC$61*tbl_Refrigeration_Calc_Engine[[#This Row],[Load SCT Discharge Temp]]^2+$AB$61*IF($G$6="Detailed", tbl_Refrigeration_Calc_Engine[[#This Row],[Baseline SST CP1]]+$E$74,tbl_Refrigeration_Calc_Engine[[#This Row],[Baseline SST CP1]])+$AA$61*IF($G$6="Detailed", tbl_Refrigeration_Calc_Engine[[#This Row],[Baseline SST CP1]]+$E$74,tbl_Refrigeration_Calc_Engine[[#This Row],[Baseline SST CP1]])^2)), IF(tbl_Refrigeration_Calc_Engine[[#This Row],[Baseline kW CP2]]=0,0,MAX(0,$AG$62+$AF$62*tbl_Refrigeration_Calc_Engine[[#This Row],[Baseline kW CP2]]+$AE$62*tbl_Refrigeration_Calc_Engine[[#This Row],[Baseline kW CP2]]^2+$AD$62*tbl_Refrigeration_Calc_Engine[[#This Row],[Load SCT Discharge Temp]]+$AC$62*tbl_Refrigeration_Calc_Engine[[#This Row],[Load SCT Discharge Temp]]^2+$AB$62*IF($G$6="Detailed", tbl_Refrigeration_Calc_Engine[[#This Row],[Baseline SST CP2]]+$E$74,tbl_Refrigeration_Calc_Engine[[#This Row],[Baseline SST CP2]])+$AA$62*IF($G$6="Detailed", tbl_Refrigeration_Calc_Engine[[#This Row],[Baseline SST CP2]]+$E$74,tbl_Refrigeration_Calc_Engine[[#This Row],[Baseline SST CP2]])^2)), IF(tbl_Refrigeration_Calc_Engine[[#This Row],[Baseline kW CP3]]=0,0,MAX(0,$AG$63+$AF$63*tbl_Refrigeration_Calc_Engine[[#This Row],[Baseline kW CP3]]+$AE$63*tbl_Refrigeration_Calc_Engine[[#This Row],[Baseline kW CP3]]^2+$AD$63*tbl_Refrigeration_Calc_Engine[[#This Row],[Load SCT Discharge Temp]]+$AC$63*tbl_Refrigeration_Calc_Engine[[#This Row],[Load SCT Discharge Temp]]^2+$AB$63*IF($G$6="Detailed", tbl_Refrigeration_Calc_Engine[[#This Row],[Baseline SST CP3]]+$E$74,tbl_Refrigeration_Calc_Engine[[#This Row],[Baseline SST CP3]])+$AA$63*IF($G$6="Detailed", tbl_Refrigeration_Calc_Engine[[#This Row],[Baseline SST CP3]]+$E$74,tbl_Refrigeration_Calc_Engine[[#This Row],[Baseline SST CP3]])^2)))) -> 0 | Q84: =IF($T$62="Simple",IF(tbl_Refrigeration_Calc_Engine[[#This Row],[bhp Per Ton ]]=0,0,1/tbl_Refrigeration_Calc_Engine[[#This Row],[bhp Per Ton ]]*$Q$71),$AG$69+$AF$69*tbl_Refrigeration_Calc_Engine[[#This Row],[SCT Discharge Temp]]) ->  | R84: =IF($T$62="Simple",IF(tbl_Refrigeration_Calc_Engine[[#This Row],[bhp Per Ton ]]=0,0,1/tbl_Refrigeration_Calc_Engine[[#This Row],[bhp Per Ton ]]*$R$71),$AG$70+$AF$70*tbl_Refrigeration_Calc_Engine[[#This Row],[SCT Discharge Temp]]) ->  | S84: =IF($T$62="Simple",IF(tbl_Refrigeration_Calc_Engine[[#This Row],[bhp Per Ton ]]=0,0,1/tbl_Refrigeration_Calc_Engine[[#This Row],[bhp Per Ton ]]*$S$71),$AG$71+$AF$71*tbl_Refrigeration_Calc_Engine[[#This Row],[SCT Discharge Temp]]) ->  | T84: =Stage_Check($P$62:$P$68,$Q$61:$S$61,tbl_Refrigeration_Calc_Engine[[#This Row],[Capacity CP1]:[Capacity CP3]],tbl_Refrigeration_Calc_Engine[[#This Row],[Cooling Load Ton]]) ->  | U84: =IF(tbl_Refrigeration_Calc_Engine[[#This Row],[Cooling Load Ton]]=0,0,Compressor_Load(tbl_Refrigeration_Calc_Engine[[#This Row],[Cooling Load Ton]],tbl_Refrigeration_Calc_Engine[[#This Row],[Capacity CP1]:[Capacity CP3]],INDEX($Q$62:$S$68,tbl_Refrigeration_Calc_Engine[[#This Row],[Stage]],0),tbl_Refrigeration_Calc_Engine[[#Headers],[Load CP1]])) -> 0 | V84: =IF(tbl_Refrigeration_Calc_Engine[[#This Row],[Cooling Load Ton]]=0,0,Compressor_Load(tbl_Refrigeration_Calc_Engine[[#This Row],[Cooling Load Ton]],tbl_Refrigeration_Calc_Engine[[#This Row],[Capacity CP1]:[Capacity CP3]],INDEX($Q$62:$S$68,tbl_Refrigeration_Calc_Engine[[#This Row],[Stage]],0),tbl_Refrigeration_Calc_Engine[[#Headers],[Load CP2]])) -> 0 | W84: =IF(tbl_Refrigeration_Calc_Engine[[#This Row],[Cooling Load Ton]]=0,0,Compressor_Load(tbl_Refrigeration_Calc_Engine[[#This Row],[Cooling Load Ton]],tbl_Refrigeration_Calc_Engine[[#This Row],[Capacity CP1]:[Capacity CP3]],INDEX($Q$62:$S$68,tbl_Refrigeration_Calc_Engine[[#This Row],[Stage]],0),tbl_Refrigeration_Calc_Engine[[#Headers],[Load CP3]])) -> 0 | X84: =IF(OR(tbl_Refrigeration_Calc_Engine[[#This Row],[Capacity CP1]]=0,tbl_Refrigeration_Calc_Engine[[#This Row],[Load CP1]]<tbl_Refrigeration_Calc_Engine[[#This Row],[Capacity CP1]]*$E$69),0,tbl_Refrigeration_Calc_Engine[[#This Row],[Load CP1]]/tbl_Refrigeration_Calc_Engine[[#This Row],[Capacity CP1]]) ->  | Y84: =IF(OR(tbl_Refrigeration_Calc_Engine[[#This Row],[Capacity CP2]]=0,tbl_Refrigeration_Calc_Engine[[#This Row],[Load CP2]]<tbl_Refrigeration_Calc_Engine[[#This Row],[Capacity CP2]]*$E$69),0,tbl_Refrigeration_Calc_Engine[[#This Row],[Load CP2]]/tbl_Refrigeration_Calc_Engine[[#This Row],[Capacity CP2]]) ->  | Z84: =IF(OR(tbl_Refrigeration_Calc_Engine[[#This Row],[Capacity CP3]]=0,tbl_Refrigeration_Calc_Engine[[#This Row],[Load CP3]]<tbl_Refrigeration_Calc_Engine[[#This Row],[Capacity CP3]]*$E$69),0,tbl_Refrigeration_Calc_Engine[[#This Row],[Load CP3]]/tbl_Refrigeration_Calc_Engine[[#This Row],[Capacity CP3]]) ->  | AA84: =IF(tbl_Refrigeration_Calc_Engine[[#This Row],[Capacity % CP1]]=0,0,MAX(0,INDEX($U$66:$X$68,Q$72,1)*tbl_Refrigeration_Calc_Engine[[#This Row],[Capacity % CP1]]^3+INDEX($U$66:$X$68,Q$72,2)*tbl_Refrigeration_Calc_Engine[[#This Row],[Capacity % CP1]]^2+INDEX($U$66:$X$68,Q$72,3)*tbl_Refrigeration_Calc_Engine[[#This Row],[Capacity % CP1]]+INDEX($U$66:$X$68,Q$72,4))) ->  | AB84: =IF(tbl_Refrigeration_Calc_Engine[[#This Row],[Capacity % CP2]]=0,0,MAX(0,INDEX($U$66:$X$68,R$72,1)*tbl_Refrigeration_Calc_Engine[[#This Row],[Capacity % CP2]]^3+INDEX($U$66:$X$68,R$72,2)*tbl_Refrigeration_Calc_Engine[[#This Row],[Capacity % CP2]]^2+INDEX($U$66:$X$68,R$72,3)*tbl_Refrigeration_Calc_Engine[[#This Row],[Capacity % CP2]]+INDEX($U$66:$X$68,R$72,4))) ->  | AC84: =IF(tbl_Refrigeration_Calc_Engine[[#This Row],[Capacity % CP3]]=0,0,MAX(0,INDEX($U$66:$X$68,S$72,1)*tbl_Refrigeration_Calc_Engine[[#This Row],[Capacity % CP3]]^3+INDEX($U$66:$X$68,S$72,2)*tbl_Refrigeration_Calc_Engine[[#This Row],[Capacity % CP3]]^2+INDEX($U$66:$X$68,S$72,3)*tbl_Refrigeration_Calc_Engine[[#This Row],[Capacity % CP3]]+INDEX($U$66:$X$68,S$72,4))) ->  | AD84: =IF($D$6="Evaporative",IF($J$65-tbl_Refrigeration_Calc_Engine[[#This Row],[WBT]]<=$E$5,1,IF($J$65<=tbl_Refrigeration_Calc_Engine[[#This Row],[WBT]],1,$E$5/($J$65-tbl_Refrigeration_Calc_Engine[[#This Row],[WBT]]))),IF($J$65-tbl_Refrigeration_Calc_Engine[[#This Row],[DBT]]<=$E$5,1,IF($J$65<=tbl_Refrigeration_Calc_Engine[[#This Row],[DBT]],1,$E$5/($J$65-tbl_Refrigeration_Calc_Engine[[#This Row],[DBT]])))) ->  | AE84: =tbl_Refrigeration_Calc_Engine[[#This Row],[Cooling Load Ton]]/$V$61 ->  | AF84: =IF($T$62="Simple",SUMPRODUCT(tbl_Refrigeration_Calc_Engine[[#This Row],[Power % CP1]:[Power % CP3]],$Q$70:$S$70*O84*0.746/$E$65), SUM( IF(tbl_Refrigeration_Calc_Engine[[#This Row],[Capacity % CP1]]=0,0,MAX(0,tbl_Refrigeration_Calc_Engine[[#This Row],[Power % CP1]]*($AG$65+$AF$65*tbl_Refrigeration_Calc_Engine[[#This Row],[SCT Discharge Temp]]+$AE$65*tbl_Refrigeration_Calc_Engine[[#This Row],[SCT Discharge Temp]]^2+$AD$65*IF($G$6="Detailed", tbl_Refrigeration_Calc_Engine[[#This Row],[Baseline SST CP1]]+$E$74,$J$68)+$AC$65*IF($G$6="Detailed", tbl_Refrigeration_Calc_Engine[[#This Row],[Baseline SST CP1]]+$E$74,$J$68)^2+$AB$65*tbl_Refrigeration_Calc_Engine[[#This Row],[Load CP1]]+$AA$65*tbl_Refrigeration_Calc_Engine[[#This Row],[Load CP1]]^2))), IF(tbl_Refrigeration_Calc_Engine[[#This Row],[Capacity % CP2]]=0,0,MAX(0,tbl_Refrigeration_Calc_Engine[[#This Row],[Power % CP2]]*($AG$66+$AF$66*tbl_Refrigeration_Calc_Engine[[#This Row],[SCT Discharge Temp]]+$AE$66*tbl_Refrigeration_Calc_Engine[[#This Row],[SCT Discharge Temp]]^2+$AD$66*IF($G$6="Detailed", tbl_Refrigeration_Calc_Engine[[#This Row],[Baseline SST CP2]]+$E$74,$J$68)+$AC$66*IF($G$6="Detailed", tbl_Refrigeration_Calc_Engine[[#This Row],[Baseline SST CP2]]+$E$74,$J$68)^2+$AB$66*tbl_Refrigeration_Calc_Engine[[#This Row],[Load CP2]]+$AA$66*tbl_Refrigeration_Calc_Engine[[#This Row],[Load CP2]]^2))), IF(tbl_Refrigeration_Calc_Engine[[#This Row],[Capacity % CP3]]=0,0,MAX(0,tbl_Refrigeration_Calc_Engine[[#This Row],[Power % CP3]]*($AG$67+$AF$67*tbl_Refrigeration_Calc_Engine[[#This Row],[SCT Discharge Temp]]+$AE$67*tbl_Refrigeration_Calc_Engine[[#This Row],[SCT Discharge Temp]]^2+$AD$67*IF($G$6="Detailed", tbl_Refrigeration_Calc_Engine[[#This Row],[Baseline SST CP3]]+$E$74,$J$68)+$AC$67*IF($G$6="Detailed", tbl_Refrigeration_Calc_Engine[[#This Row],[Baseline SST CP3]]+$E$74,$J$68)^2+$AB$67*tbl_Refrigeration_Calc_Engine[[#This Row],[Load CP3]]+$AA$67*tbl_Refrigeration_Calc_Engine[[#This Row],[Load CP3]]^2))))) ->  | AG84: =IF($B$72="On-Off",$J$66*tbl_Refrigeration_Calc_Engine[[#This Row],[Condenser Fan]],$J$66*tbl_Refrigeration_Calc_Engine[[#This Row],[Condenser Fan]]^3/'Refrigeration Template'!$E$61) ->  | AH84: =IF($E$72="VFD",MAX($E$73,tbl_Refrigeration_Calc_Engine[[#This Row],[Calculated Evaporator Fan]])^3,tbl_Refrigeration_Calc_Engine[[#This Row],[Calculated Evaporator Fan]])*$J$67 -> 
B85: 8 | C85: 8 | D85: ='CTZ2'!M9 -> 41 | E85: ='CTZ2'!N9 -> 45 | L85: =MAX($C$19,$E$5+IF($D$6="Evaporative",tbl_Refrigeration_Calc_Engine[[#This Row],[WBT]],tbl_Refrigeration_Calc_Engine[[#This Row],[DBT]])) ->  | M85: =MAX($J$65,$E$5+IF($D$6="Evaporative",tbl_Refrigeration_Calc_Engine[[#This Row],[WBT]],tbl_Refrigeration_Calc_Engine[[#This Row],[DBT]])) ->  | N85: =(0.339-0.00692*$J$64+0.000128*$J$64^2+0.00561*tbl_Refrigeration_Calc_Engine[[#This Row],[SCT Discharge Temp]]+0.0000917*tbl_Refrigeration_Calc_Engine[[#This Row],[SCT Discharge Temp]]^2-0.000235*$J$64*tbl_Refrigeration_Calc_Engine[[#This Row],[SCT Discharge Temp]]) ->  | O85: =1-(MAX(tbl_Refrigeration_Calc_Engine[SCT Discharge Temp])-tbl_Refrigeration_Calc_Engine[[#This Row],[SCT Discharge Temp]])*'Refrigeration Template'!$E$63 ->  | P85: =IF($T$62="Simple",FORECAST(MEDIAN($X$61,$X$62,tbl_Refrigeration_Calc_Engine[[#This Row],[DBT]]),$V$61:$V$62,$X$61:$X$62), SUM( IF(tbl_Refrigeration_Calc_Engine[[#This Row],[Baseline kW CP1]]=0,0,MAX(0,$AG$61+$AF$61*tbl_Refrigeration_Calc_Engine[[#This Row],[Baseline kW CP1]]+$AE$61*tbl_Refrigeration_Calc_Engine[[#This Row],[Baseline kW CP1]]^2+$AD$61*tbl_Refrigeration_Calc_Engine[[#This Row],[Load SCT Discharge Temp]]+$AC$61*tbl_Refrigeration_Calc_Engine[[#This Row],[Load SCT Discharge Temp]]^2+$AB$61*IF($G$6="Detailed", tbl_Refrigeration_Calc_Engine[[#This Row],[Baseline SST CP1]]+$E$74,tbl_Refrigeration_Calc_Engine[[#This Row],[Baseline SST CP1]])+$AA$61*IF($G$6="Detailed", tbl_Refrigeration_Calc_Engine[[#This Row],[Baseline SST CP1]]+$E$74,tbl_Refrigeration_Calc_Engine[[#This Row],[Baseline SST CP1]])^2)), IF(tbl_Refrigeration_Calc_Engine[[#This Row],[Baseline kW CP2]]=0,0,MAX(0,$AG$62+$AF$62*tbl_Refrigeration_Calc_Engine[[#This Row],[Baseline kW CP2]]+$AE$62*tbl_Refrigeration_Calc_Engine[[#This Row],[Baseline kW CP2]]^2+$AD$62*tbl_Refrigeration_Calc_Engine[[#This Row],[Load SCT Discharge Temp]]+$AC$62*tbl_Refrigeration_Calc_Engine[[#This Row],[Load SCT Discharge Temp]]^2+$AB$62*IF($G$6="Detailed", tbl_Refrigeration_Calc_Engine[[#This Row],[Baseline SST CP2]]+$E$74,tbl_Refrigeration_Calc_Engine[[#This Row],[Baseline SST CP2]])+$AA$62*IF($G$6="Detailed", tbl_Refrigeration_Calc_Engine[[#This Row],[Baseline SST CP2]]+$E$74,tbl_Refrigeration_Calc_Engine[[#This Row],[Baseline SST CP2]])^2)), IF(tbl_Refrigeration_Calc_Engine[[#This Row],[Baseline kW CP3]]=0,0,MAX(0,$AG$63+$AF$63*tbl_Refrigeration_Calc_Engine[[#This Row],[Baseline kW CP3]]+$AE$63*tbl_Refrigeration_Calc_Engine[[#This Row],[Baseline kW CP3]]^2+$AD$63*tbl_Refrigeration_Calc_Engine[[#This Row],[Load SCT Discharge Temp]]+$AC$63*tbl_Refrigeration_Calc_Engine[[#This Row],[Load SCT Discharge Temp]]^2+$AB$63*IF($G$6="Detailed", tbl_Refrigeration_Calc_Engine[[#This Row],[Baseline SST CP3]]+$E$74,tbl_Refrigeration_Calc_Engine[[#This Row],[Baseline SST CP3]])+$AA$63*IF($G$6="Detailed", tbl_Refrigeration_Calc_Engine[[#This Row],[Baseline SST CP3]]+$E$74,tbl_Refrigeration_Calc_Engine[[#This Row],[Baseline SST CP3]])^2)))) -> 0 | Q85: =IF($T$62="Simple",IF(tbl_Refrigeration_Calc_Engine[[#This Row],[bhp Per Ton ]]=0,0,1/tbl_Refrigeration_Calc_Engine[[#This Row],[bhp Per Ton ]]*$Q$71),$AG$69+$AF$69*tbl_Refrigeration_Calc_Engine[[#This Row],[SCT Discharge Temp]]) ->  | R85: =IF($T$62="Simple",IF(tbl_Refrigeration_Calc_Engine[[#This Row],[bhp Per Ton ]]=0,0,1/tbl_Refrigeration_Calc_Engine[[#This Row],[bhp Per Ton ]]*$R$71),$AG$70+$AF$70*tbl_Refrigeration_Calc_Engine[[#This Row],[SCT Discharge Temp]]) ->  | S85: =IF($T$62="Simple",IF(tbl_Refrigeration_Calc_Engine[[#This Row],[bhp Per Ton ]]=0,0,1/tbl_Refrigeration_Calc_Engine[[#This Row],[bhp Per Ton ]]*$S$71),$AG$71+$AF$71*tbl_Refrigeration_Calc_Engine[[#This Row],[SCT Discharge Temp]]) ->  | T85: =Stage_Check($P$62:$P$68,$Q$61:$S$61,tbl_Refrigeration_Calc_Engine[[#This Row],[Capacity CP1]:[Capacity CP3]],tbl_Refrigeration_Calc_Engine[[#This Row],[Cooling Load Ton]]) ->  | U85: =IF(tbl_Refrigeration_Calc_Engine[[#This Row],[Cooling Load Ton]]=0,0,Compressor_Load(tbl_Refrigeration_Calc_Engine[[#This Row],[Cooling Load Ton]],tbl_Refrigeration_Calc_Engine[[#This Row],[Capacity CP1]:[Capacity CP3]],INDEX($Q$62:$S$68,tbl_Refrigeration_Calc_Engine[[#This Row],[Stage]],0),tbl_Refrigeration_Calc_Engine[[#Headers],[Load CP1]])) -> 0 | V85: =IF(tbl_Refrigeration_Calc_Engine[[#This Row],[Cooling Load Ton]]=0,0,Compressor_Load(tbl_Refrigeration_Calc_Engine[[#This Row],[Cooling Load Ton]],tbl_Refrigeration_Calc_Engine[[#This Row],[Capacity CP1]:[Capacity CP3]],INDEX($Q$62:$S$68,tbl_Refrigeration_Calc_Engine[[#This Row],[Stage]],0),tbl_Refrigeration_Calc_Engine[[#Headers],[Load CP2]])) -> 0 | W85: =IF(tbl_Refrigeration_Calc_Engine[[#This Row],[Cooling Load Ton]]=0,0,Compressor_Load(tbl_Refrigeration_Calc_Engine[[#This Row],[Cooling Load Ton]],tbl_Refrigeration_Calc_Engine[[#This Row],[Capacity CP1]:[Capacity CP3]],INDEX($Q$62:$S$68,tbl_Refrigeration_Calc_Engine[[#This Row],[Stage]],0),tbl_Refrigeration_Calc_Engine[[#Headers],[Load CP3]])) -> 0 | X85: =IF(OR(tbl_Refrigeration_Calc_Engine[[#This Row],[Capacity CP1]]=0,tbl_Refrigeration_Calc_Engine[[#This Row],[Load CP1]]<tbl_Refrigeration_Calc_Engine[[#This Row],[Capacity CP1]]*$E$69),0,tbl_Refrigeration_Calc_Engine[[#This Row],[Load CP1]]/tbl_Refrigeration_Calc_Engine[[#This Row],[Capacity CP1]]) ->  | Y85: =IF(OR(tbl_Refrigeration_Calc_Engine[[#This Row],[Capacity CP2]]=0,tbl_Refrigeration_Calc_Engine[[#This Row],[Load CP2]]<tbl_Refrigeration_Calc_Engine[[#This Row],[Capacity CP2]]*$E$69),0,tbl_Refrigeration_Calc_Engine[[#This Row],[Load CP2]]/tbl_Refrigeration_Calc_Engine[[#This Row],[Capacity CP2]]) ->  | Z85: =IF(OR(tbl_Refrigeration_Calc_Engine[[#This Row],[Capacity CP3]]=0,tbl_Refrigeration_Calc_Engine[[#This Row],[Load CP3]]<tbl_Refrigeration_Calc_Engine[[#This Row],[Capacity CP3]]*$E$69),0,tbl_Refrigeration_Calc_Engine[[#This Row],[Load CP3]]/tbl_Refrigeration_Calc_Engine[[#This Row],[Capacity CP3]]) ->  | AA85: =IF(tbl_Refrigeration_Calc_Engine[[#This Row],[Capacity % CP1]]=0,0,MAX(0,INDEX($U$66:$X$68,Q$72,1)*tbl_Refrigeration_Calc_Engine[[#This Row],[Capacity % CP1]]^3+INDEX($U$66:$X$68,Q$72,2)*tbl_Refrigeration_Calc_Engine[[#This Row],[Capacity % CP1]]^2+INDEX($U$66:$X$68,Q$72,3)*tbl_Refrigeration_Calc_Engine[[#This Row],[Capacity % CP1]]+INDEX($U$66:$X$68,Q$72,4))) ->  | AB85: =IF(tbl_Refrigeration_Calc_Engine[[#This Row],[Capacity % CP2]]=0,0,MAX(0,INDEX($U$66:$X$68,R$72,1)*tbl_Refrigeration_Calc_Engine[[#This Row],[Capacity % CP2]]^3+INDEX($U$66:$X$68,R$72,2)*tbl_Refrigeration_Calc_Engine[[#This Row],[Capacity % CP2]]^2+INDEX($U$66:$X$68,R$72,3)*tbl_Refrigeration_Calc_Engine[[#This Row],[Capacity % CP2]]+INDEX($U$66:$X$68,R$72,4))) ->  | AC85: =IF(tbl_Refrigeration_Calc_Engine[[#This Row],[Capacity % CP3]]=0,0,MAX(0,INDEX($U$66:$X$68,S$72,1)*tbl_Refrigeration_Calc_Engine[[#This Row],[Capacity % CP3]]^3+INDEX($U$66:$X$68,S$72,2)*tbl_Refrigeration_Calc_Engine[[#This Row],[Capacity % CP3]]^2+INDEX($U$66:$X$68,S$72,3)*tbl_Refrigeration_Calc_Engine[[#This Row],[Capacity % CP3]]+INDEX($U$66:$X$68,S$72,4))) ->  | AD85: =IF($D$6="Evaporative",IF($J$65-tbl_Refrigeration_Calc_Engine[[#This Row],[WBT]]<=$E$5,1,IF($J$65<=tbl_Refrigeration_Calc_Engine[[#This Row],[WBT]],1,$E$5/($J$65-tbl_Refrigeration_Calc_Engine[[#This Row],[WBT]]))),IF($J$65-tbl_Refrigeration_Calc_Engine[[#This Row],[DBT]]<=$E$5,1,IF($J$65<=tbl_Refrigeration_Calc_Engine[[#This Row],[DBT]],1,$E$5/($J$65-tbl_Refrigeration_Calc_Engine[[#This Row],[DBT]])))) ->  | AE85: =tbl_Refrigeration_Calc_Engine[[#This Row],[Cooling Load Ton]]/$V$61 ->  | AF85: =IF($T$62="Simple",SUMPRODUCT(tbl_Refrigeration_Calc_Engine[[#This Row],[Power % CP1]:[Power % CP3]],$Q$70:$S$70*O85*0.746/$E$65), SUM( IF(tbl_Refrigeration_Calc_Engine[[#This Row],[Capacity % CP1]]=0,0,MAX(0,tbl_Refrigeration_Calc_Engine[[#This Row],[Power % CP1]]*($AG$65+$AF$65*tbl_Refrigeration_Calc_Engine[[#This Row],[SCT Discharge Temp]]+$AE$65*tbl_Refrigeration_Calc_Engine[[#This Row],[SCT Discharge Temp]]^2+$AD$65*IF($G$6="Detailed", tbl_Refrigeration_Calc_Engine[[#This Row],[Baseline SST CP1]]+$E$74,$J$68)+$AC$65*IF($G$6="Detailed", tbl_Refrigeration_Calc_Engine[[#This Row],[Baseline SST CP1]]+$E$74,$J$68)^2+$AB$65*tbl_Refrigeration_Calc_Engine[[#This Row],[Load CP1]]+$AA$65*tbl_Refrigeration_Calc_Engine[[#This Row],[Load CP1]]^2))), IF(tbl_Refrigeration_Calc_Engine[[#This Row],[Capacity % CP2]]=0,0,MAX(0,tbl_Refrigeration_Calc_Engine[[#This Row],[Power % CP2]]*($AG$66+$AF$66*tbl_Refrigeration_Calc_Engine[[#This Row],[SCT Discharge Temp]]+$AE$66*tbl_Refrigeration_Calc_Engine[[#This Row],[SCT Discharge Temp]]^2+$AD$66*IF($G$6="Detailed", tbl_Refrigeration_Calc_Engine[[#This Row],[Baseline SST CP2]]+$E$74,$J$68)+$AC$66*IF($G$6="Detailed", tbl_Refrigeration_Calc_Engine[[#This Row],[Baseline SST CP2]]+$E$74,$J$68)^2+$AB$66*tbl_Refrigeration_Calc_Engine[[#This Row],[Load CP2]]+$AA$66*tbl_Refrigeration_Calc_Engine[[#This Row],[Load CP2]]^2))), IF(tbl_Refrigeration_Calc_Engine[[#This Row],[Capacity % CP3]]=0,0,MAX(0,tbl_Refrigeration_Calc_Engine[[#This Row],[Power % CP3]]*($AG$67+$AF$67*tbl_Refrigeration_Calc_Engine[[#This Row],[SCT Discharge Temp]]+$AE$67*tbl_Refrigeration_Calc_Engine[[#This Row],[SCT Discharge Temp]]^2+$AD$67*IF($G$6="Detailed", tbl_Refrigeration_Calc_Engine[[#This Row],[Baseline SST CP3]]+$E$74,$J$68)+$AC$67*IF($G$6="Detailed", tbl_Refrigeration_Calc_Engine[[#This Row],[Baseline SST CP3]]+$E$74,$J$68)^2+$AB$67*tbl_Refrigeration_Calc_Engine[[#This Row],[Load CP3]]+$AA$67*tbl_Refrigeration_Calc_Engine[[#This Row],[Load CP3]]^2))))) ->  | AG85: =IF($B$72="On-Off",$J$66*tbl_Refrigeration_Calc_Engine[[#This Row],[Condenser Fan]],$J$66*tbl_Refrigeration_Calc_Engine[[#This Row],[Condenser Fan]]^3/'Refrigeration Template'!$E$61) ->  | AH85: =IF($E$72="VFD",MAX($E$73,tbl_Refrigeration_Calc_Engine[[#This Row],[Calculated Evaporator Fan]])^3,tbl_Refrigeration_Calc_Engine[[#This Row],[Calculated Evaporator Fan]])*$J$67 -> 
B86: 9 | C86: 9 | D86: ='CTZ2'!M10 -> 42 | E86: ='CTZ2'!N10 -> 47 | L86: =MAX($C$19,$E$5+IF($D$6="Evaporative",tbl_Refrigeration_Calc_Engine[[#This Row],[WBT]],tbl_Refrigeration_Calc_Engine[[#This Row],[DBT]])) ->  | M86: =MAX($J$65,$E$5+IF($D$6="Evaporative",tbl_Refrigeration_Calc_Engine[[#This Row],[WBT]],tbl_Refrigeration_Calc_Engine[[#This Row],[DBT]])) ->  | N86: =(0.339-0.00692*$J$64+0.000128*$J$64^2+0.00561*tbl_Refrigeration_Calc_Engine[[#This Row],[SCT Discharge Temp]]+0.0000917*tbl_Refrigeration_Calc_Engine[[#This Row],[SCT Discharge Temp]]^2-0.000235*$J$64*tbl_Refrigeration_Calc_Engine[[#This Row],[SCT Discharge Temp]]) ->  | O86: =1-(MAX(tbl_Refrigeration_Calc_Engine[SCT Discharge Temp])-tbl_Refrigeration_Calc_Engine[[#This Row],[SCT Discharge Temp]])*'Refrigeration Template'!$E$63 ->  | P86: =IF($T$62="Simple",FORECAST(MEDIAN($X$61,$X$62,tbl_Refrigeration_Calc_Engine[[#This Row],[DBT]]),$V$61:$V$62,$X$61:$X$62), SUM( IF(tbl_Refrigeration_Calc_Engine[[#This Row],[Baseline kW CP1]]=0,0,MAX(0,$AG$61+$AF$61*tbl_Refrigeration_Calc_Engine[[#This Row],[Baseline kW CP1]]+$AE$61*tbl_Refrigeration_Calc_Engine[[#This Row],[Baseline kW CP1]]^2+$AD$61*tbl_Refrigeration_Calc_Engine[[#This Row],[Load SCT Discharge Temp]]+$AC$61*tbl_Refrigeration_Calc_Engine[[#This Row],[Load SCT Discharge Temp]]^2+$AB$61*IF($G$6="Detailed", tbl_Refrigeration_Calc_Engine[[#This Row],[Baseline SST CP1]]+$E$74,tbl_Refrigeration_Calc_Engine[[#This Row],[Baseline SST CP1]])+$AA$61*IF($G$6="Detailed", tbl_Refrigeration_Calc_Engine[[#This Row],[Baseline SST CP1]]+$E$74,tbl_Refrigeration_Calc_Engine[[#This Row],[Baseline SST CP1]])^2)), IF(tbl_Refrigeration_Calc_Engine[[#This Row],[Baseline kW CP2]]=0,0,MAX(0,$AG$62+$AF$62*tbl_Refrigeration_Calc_Engine[[#This Row],[Baseline kW CP2]]+$AE$62*tbl_Refrigeration_Calc_Engine[[#This Row],[Baseline kW CP2]]^2+$AD$62*tbl_Refrigeration_Calc_Engine[[#This Row],[Load SCT Discharge Temp]]+$AC$62*tbl_Refrigeration_Calc_Engine[[#This Row],[Load SCT Discharge Temp]]^2+$AB$62*IF($G$6="Detailed", tbl_Refrigeration_Calc_Engine[[#This Row],[Baseline SST CP2]]+$E$74,tbl_Refrigeration_Calc_Engine[[#This Row],[Baseline SST CP2]])+$AA$62*IF($G$6="Detailed", tbl_Refrigeration_Calc_Engine[[#This Row],[Baseline SST CP2]]+$E$74,tbl_Refrigeration_Calc_Engine[[#This Row],[Baseline SST CP2]])^2)), IF(tbl_Refrigeration_Calc_Engine[[#This Row],[Baseline kW CP3]]=0,0,MAX(0,$AG$63+$AF$63*tbl_Refrigeration_Calc_Engine[[#This Row],[Baseline kW CP3]]+$AE$63*tbl_Refrigeration_Calc_Engine[[#This Row],[Baseline kW CP3]]^2+$AD$63*tbl_Refrigeration_Calc_Engine[[#This Row],[Load SCT Discharge Temp]]+$AC$63*tbl_Refrigeration_Calc_Engine[[#This Row],[Load SCT Discharge Temp]]^2+$AB$63*IF($G$6="Detailed", tbl_Refrigeration_Calc_Engine[[#This Row],[Baseline SST CP3]]+$E$74,tbl_Refrigeration_Calc_Engine[[#This Row],[Baseline SST CP3]])+$AA$63*IF($G$6="Detailed", tbl_Refrigeration_Calc_Engine[[#This Row],[Baseline SST CP3]]+$E$74,tbl_Refrigeration_Calc_Engine[[#This Row],[Baseline SST CP3]])^2)))) -> 0 | Q86: =IF($T$62="Simple",IF(tbl_Refrigeration_Calc_Engine[[#This Row],[bhp Per Ton ]]=0,0,1/tbl_Refrigeration_Calc_Engine[[#This Row],[bhp Per Ton ]]*$Q$71),$AG$69+$AF$69*tbl_Refrigeration_Calc_Engine[[#This Row],[SCT Discharge Temp]]) ->  | R86: =IF($T$62="Simple",IF(tbl_Refrigeration_Calc_Engine[[#This Row],[bhp Per Ton ]]=0,0,1/tbl_Refrigeration_Calc_Engine[[#This Row],[bhp Per Ton ]]*$R$71),$AG$70+$AF$70*tbl_Refrigeration_Calc_Engine[[#This Row],[SCT Discharge Temp]]) ->  | S86: =IF($T$62="Simple",IF(tbl_Refrigeration_Calc_Engine[[#This Row],[bhp Per Ton ]]=0,0,1/tbl_Refrigeration_Calc_Engine[[#This Row],[bhp Per Ton ]]*$S$71),$AG$71+$AF$71*tbl_Refrigeration_Calc_Engine[[#This Row],[SCT Discharge Temp]]) ->  | T86: =Stage_Check($P$62:$P$68,$Q$61:$S$61,tbl_Refrigeration_Calc_Engine[[#This Row],[Capacity CP1]:[Capacity CP3]],tbl_Refrigeration_Calc_Engine[[#This Row],[Cooling Load Ton]]) ->  | U86: =IF(tbl_Refrigeration_Calc_Engine[[#This Row],[Cooling Load Ton]]=0,0,Compressor_Load(tbl_Refrigeration_Calc_Engine[[#This Row],[Cooling Load Ton]],tbl_Refrigeration_Calc_Engine[[#This Row],[Capacity CP1]:[Capacity CP3]],INDEX($Q$62:$S$68,tbl_Refrigeration_Calc_Engine[[#This Row],[Stage]],0),tbl_Refrigeration_Calc_Engine[[#Headers],[Load CP1]])) -> 0 | V86: =IF(tbl_Refrigeration_Calc_Engine[[#This Row],[Cooling Load Ton]]=0,0,Compressor_Load(tbl_Refrigeration_Calc_Engine[[#This Row],[Cooling Load Ton]],tbl_Refrigeration_Calc_Engine[[#This Row],[Capacity CP1]:[Capacity CP3]],INDEX($Q$62:$S$68,tbl_Refrigeration_Calc_Engine[[#This Row],[Stage]],0),tbl_Refrigeration_Calc_Engine[[#Headers],[Load CP2]])) -> 0 | W86: =IF(tbl_Refrigeration_Calc_Engine[[#This Row],[Cooling Load Ton]]=0,0,Compressor_Load(tbl_Refrigeration_Calc_Engine[[#This Row],[Cooling Load Ton]],tbl_Refrigeration_Calc_Engine[[#This Row],[Capacity CP1]:[Capacity CP3]],INDEX($Q$62:$S$68,tbl_Refrigeration_Calc_Engine[[#This Row],[Stage]],0),tbl_Refrigeration_Calc_Engine[[#Headers],[Load CP3]])) -> 0 | X86: =IF(OR(tbl_Refrigeration_Calc_Engine[[#This Row],[Capacity CP1]]=0,tbl_Refrigeration_Calc_Engine[[#This Row],[Load CP1]]<tbl_Refrigeration_Calc_Engine[[#This Row],[Capacity CP1]]*$E$69),0,tbl_Refrigeration_Calc_Engine[[#This Row],[Load CP1]]/tbl_Refrigeration_Calc_Engine[[#This Row],[Capacity CP1]]) ->  | Y86: =IF(OR(tbl_Refrigeration_Calc_Engine[[#This Row],[Capacity CP2]]=0,tbl_Refrigeration_Calc_Engine[[#This Row],[Load CP2]]<tbl_Refrigeration_Calc_Engine[[#This Row],[Capacity CP2]]*$E$69),0,tbl_Refrigeration_Calc_Engine[[#This Row],[Load CP2]]/tbl_Refrigeration_Calc_Engine[[#This Row],[Capacity CP2]]) ->  | Z86: =IF(OR(tbl_Refrigeration_Calc_Engine[[#This Row],[Capacity CP3]]=0,tbl_Refrigeration_Calc_Engine[[#This Row],[Load CP3]]<tbl_Refrigeration_Calc_Engine[[#This Row],[Capacity CP3]]*$E$69),0,tbl_Refrigeration_Calc_Engine[[#This Row],[Load CP3]]/tbl_Refrigeration_Calc_Engine[[#This Row],[Capacity CP3]]) ->  | AA86: =IF(tbl_Refrigeration_Calc_Engine[[#This Row],[Capacity % CP1]]=0,0,MAX(0,INDEX($U$66:$X$68,Q$72,1)*tbl_Refrigeration_Calc_Engine[[#This Row],[Capacity % CP1]]^3+INDEX($U$66:$X$68,Q$72,2)*tbl_Refrigeration_Calc_Engine[[#This Row],[Capacity % CP1]]^2+INDEX($U$66:$X$68,Q$72,3)*tbl_Refrigeration_Calc_Engine[[#This Row],[Capacity % CP1]]+INDEX($U$66:$X$68,Q$72,4))) ->  | AB86: =IF(tbl_Refrigeration_Calc_Engine[[#This Row],[Capacity % CP2]]=0,0,MAX(0,INDEX($U$66:$X$68,R$72,1)*tbl_Refrigeration_Calc_Engine[[#This Row],[Capacity % CP2]]^3+INDEX($U$66:$X$68,R$72,2)*tbl_Refrigeration_Calc_Engine[[#This Row],[Capacity % CP2]]^2+INDEX($U$66:$X$68,R$72,3)*tbl_Refrigeration_Calc_Engine[[#This Row],[Capacity % CP2]]+INDEX($U$66:$X$68,R$72,4))) ->  | AC86: =IF(tbl_Refrigeration_Calc_Engine[[#This Row],[Capacity % CP3]]=0,0,MAX(0,INDEX($U$66:$X$68,S$72,1)*tbl_Refrigeration_Calc_Engine[[#This Row],[Capacity % CP3]]^3+INDEX($U$66:$X$68,S$72,2)*tbl_Refrigeration_Calc_Engine[[#This Row],[Capacity % CP3]]^2+INDEX($U$66:$X$68,S$72,3)*tbl_Refrigeration_Calc_Engine[[#This Row],[Capacity % CP3]]+INDEX($U$66:$X$68,S$72,4))) ->  | AD86: =IF($D$6="Evaporative",IF($J$65-tbl_Refrigeration_Calc_Engine[[#This Row],[WBT]]<=$E$5,1,IF($J$65<=tbl_Refrigeration_Calc_Engine[[#This Row],[WBT]],1,$E$5/($J$65-tbl_Refrigeration_Calc_Engine[[#This Row],[WBT]]))),IF($J$65-tbl_Refrigeration_Calc_Engine[[#This Row],[DBT]]<=$E$5,1,IF($J$65<=tbl_Refrigeration_Calc_Engine[[#This Row],[DBT]],1,$E$5/($J$65-tbl_Refrigeration_Calc_Engine[[#This Row],[DBT]])))) ->  | AE86: =tbl_Refrigeration_Calc_Engine[[#This Row],[Cooling Load Ton]]/$V$61 ->  | AF86: =IF($T$62="Simple",SUMPRODUCT(tbl_Refrigeration_Calc_Engine[[#This Row],[Power % CP1]:[Power % CP3]],$Q$70:$S$70*O86*0.746/$E$65), SUM( IF(tbl_Refrigeration_Calc_Engine[[#This Row],[Capacity % CP1]]=0,0,MAX(0,tbl_Refrigeration_Calc_Engine[[#This Row],[Power % CP1]]*($AG$65+$AF$65*tbl_Refrigeration_Calc_Engine[[#This Row],[SCT Discharge Temp]]+$AE$65*tbl_Refrigeration_Calc_Engine[[#This Row],[SCT Discharge Temp]]^2+$AD$65*IF($G$6="Detailed", tbl_Refrigeration_Calc_Engine[[#This Row],[Baseline SST CP1]]+$E$74,$J$68)+$AC$65*IF($G$6="Detailed", tbl_Refrigeration_Calc_Engine[[#This Row],[Baseline SST CP1]]+$E$74,$J$68)^2+$AB$65*tbl_Refrigeration_Calc_Engine[[#This Row],[Load CP1]]+$AA$65*tbl_Refrigeration_Calc_Engine[[#This Row],[Load CP1]]^2))), IF(tbl_Refrigeration_Calc_Engine[[#This Row],[Capacity % CP2]]=0,0,MAX(0,tbl_Refrigeration_Calc_Engine[[#This Row],[Power % CP2]]*($AG$66+$AF$66*tbl_Refrigeration_Calc_Engine[[#This Row],[SCT Discharge Temp]]+$AE$66*tbl_Refrigeration_Calc_Engine[[#This Row],[SCT Discharge Temp]]^2+$AD$66*IF($G$6="Detailed", tbl_Refrigeration_Calc_Engine[[#This Row],[Baseline SST CP2]]+$E$74,$J$68)+$AC$66*IF($G$6="Detailed", tbl_Refrigeration_Calc_Engine[[#This Row],[Baseline SST CP2]]+$E$74,$J$68)^2+$AB$66*tbl_Refrigeration_Calc_Engine[[#This Row],[Load CP2]]+$AA$66*tbl_Refrigeration_Calc_Engine[[#This Row],[Load CP2]]^2))), IF(tbl_Refrigeration_Calc_Engine[[#This Row],[Capacity % CP3]]=0,0,MAX(0,tbl_Refrigeration_Calc_Engine[[#This Row],[Power % CP3]]*($AG$67+$AF$67*tbl_Refrigeration_Calc_Engine[[#This Row],[SCT Discharge Temp]]+$AE$67*tbl_Refrigeration_Calc_Engine[[#This Row],[SCT Discharge Temp]]^2+$AD$67*IF($G$6="Detailed", tbl_Refrigeration_Calc_Engine[[#This Row],[Baseline SST CP3]]+$E$74,$J$68)+$AC$67*IF($G$6="Detailed", tbl_Refrigeration_Calc_Engine[[#This Row],[Baseline SST CP3]]+$E$74,$J$68)^2+$AB$67*tbl_Refrigeration_Calc_Engine[[#This Row],[Load CP3]]+$AA$67*tbl_Refrigeration_Calc_Engine[[#This Row],[Load CP3]]^2))))) ->  | AG86: =IF($B$72="On-Off",$J$66*tbl_Refrigeration_Calc_Engine[[#This Row],[Condenser Fan]],$J$66*tbl_Refrigeration_Calc_Engine[[#This Row],[Condenser Fan]]^3/'Refrigeration Template'!$E$61) ->  | AH86: =IF($E$72="VFD",MAX($E$73,tbl_Refrigeration_Calc_Engine[[#This Row],[Calculated Evaporator Fan]])^3,tbl_Refrigeration_Calc_Engine[[#This Row],[Calculated Evaporator Fan]])*$J$67 -> 
B87: 10 | C87: 10 | D87: ='CTZ2'!M11 -> 43 | E87: ='CTZ2'!N11 -> 49 | L87: =MAX($C$19,$E$5+IF($D$6="Evaporative",tbl_Refrigeration_Calc_Engine[[#This Row],[WBT]],tbl_Refrigeration_Calc_Engine[[#This Row],[DBT]])) ->  | M87: =MAX($J$65,$E$5+IF($D$6="Evaporative",tbl_Refrigeration_Calc_Engine[[#This Row],[WBT]],tbl_Refrigeration_Calc_Engine[[#This Row],[DBT]])) ->  | N87: =(0.339-0.00692*$J$64+0.000128*$J$64^2+0.00561*tbl_Refrigeration_Calc_Engine[[#This Row],[SCT Discharge Temp]]+0.0000917*tbl_Refrigeration_Calc_Engine[[#This Row],[SCT Discharge Temp]]^2-0.000235*$J$64*tbl_Refrigeration_Calc_Engine[[#This Row],[SCT Discharge Temp]]) ->  | O87: =1-(MAX(tbl_Refrigeration_Calc_Engine[SCT Discharge Temp])-tbl_Refrigeration_Calc_Engine[[#This Row],[SCT Discharge Temp]])*'Refrigeration Template'!$E$63 ->  | P87: =IF($T$62="Simple",FORECAST(MEDIAN($X$61,$X$62,tbl_Refrigeration_Calc_Engine[[#This Row],[DBT]]),$V$61:$V$62,$X$61:$X$62), SUM( IF(tbl_Refrigeration_Calc_Engine[[#This Row],[Baseline kW CP1]]=0,0,MAX(0,$AG$61+$AF$61*tbl_Refrigeration_Calc_Engine[[#This Row],[Baseline kW CP1]]+$AE$61*tbl_Refrigeration_Calc_Engine[[#This Row],[Baseline kW CP1]]^2+$AD$61*tbl_Refrigeration_Calc_Engine[[#This Row],[Load SCT Discharge Temp]]+$AC$61*tbl_Refrigeration_Calc_Engine[[#This Row],[Load SCT Discharge Temp]]^2+$AB$61*IF($G$6="Detailed", tbl_Refrigeration_Calc_Engine[[#This Row],[Baseline SST CP1]]+$E$74,tbl_Refrigeration_Calc_Engine[[#This Row],[Baseline SST CP1]])+$AA$61*IF($G$6="Detailed", tbl_Refrigeration_Calc_Engine[[#This Row],[Baseline SST CP1]]+$E$74,tbl_Refrigeration_Calc_Engine[[#This Row],[Baseline SST CP1]])^2)), IF(tbl_Refrigeration_Calc_Engine[[#This Row],[Baseline kW CP2]]=0,0,MAX(0,$AG$62+$AF$62*tbl_Refrigeration_Calc_Engine[[#This Row],[Baseline kW CP2]]+$AE$62*tbl_Refrigeration_Calc_Engine[[#This Row],[Baseline kW CP2]]^2+$AD$62*tbl_Refrigeration_Calc_Engine[[#This Row],[Load SCT Discharge Temp]]+$AC$62*tbl_Refrigeration_Calc_Engine[[#This Row],[Load SCT Discharge Temp]]^2+$AB$62*IF($G$6="Detailed", tbl_Refrigeration_Calc_Engine[[#This Row],[Baseline SST CP2]]+$E$74,tbl_Refrigeration_Calc_Engine[[#This Row],[Baseline SST CP2]])+$AA$62*IF($G$6="Detailed", tbl_Refrigeration_Calc_Engine[[#This Row],[Baseline SST CP2]]+$E$74,tbl_Refrigeration_Calc_Engine[[#This Row],[Baseline SST CP2]])^2)), IF(tbl_Refrigeration_Calc_Engine[[#This Row],[Baseline kW CP3]]=0,0,MAX(0,$AG$63+$AF$63*tbl_Refrigeration_Calc_Engine[[#This Row],[Baseline kW CP3]]+$AE$63*tbl_Refrigeration_Calc_Engine[[#This Row],[Baseline kW CP3]]^2+$AD$63*tbl_Refrigeration_Calc_Engine[[#This Row],[Load SCT Discharge Temp]]+$AC$63*tbl_Refrigeration_Calc_Engine[[#This Row],[Load SCT Discharge Temp]]^2+$AB$63*IF($G$6="Detailed", tbl_Refrigeration_Calc_Engine[[#This Row],[Baseline SST CP3]]+$E$74,tbl_Refrigeration_Calc_Engine[[#This Row],[Baseline SST CP3]])+$AA$63*IF($G$6="Detailed", tbl_Refrigeration_Calc_Engine[[#This Row],[Baseline SST CP3]]+$E$74,tbl_Refrigeration_Calc_Engine[[#This Row],[Baseline SST CP3]])^2)))) -> 0 | Q87: =IF($T$62="Simple",IF(tbl_Refrigeration_Calc_Engine[[#This Row],[bhp Per Ton ]]=0,0,1/tbl_Refrigeration_Calc_Engine[[#This Row],[bhp Per Ton ]]*$Q$71),$AG$69+$AF$69*tbl_Refrigeration_Calc_Engine[[#This Row],[SCT Discharge Temp]]) ->  | R87: =IF($T$62="Simple",IF(tbl_Refrigeration_Calc_Engine[[#This Row],[bhp Per Ton ]]=0,0,1/tbl_Refrigeration_Calc_Engine[[#This Row],[bhp Per Ton ]]*$R$71),$AG$70+$AF$70*tbl_Refrigeration_Calc_Engine[[#This Row],[SCT Discharge Temp]]) ->  | S87: =IF($T$62="Simple",IF(tbl_Refrigeration_Calc_Engine[[#This Row],[bhp Per Ton ]]=0,0,1/tbl_Refrigeration_Calc_Engine[[#This Row],[bhp Per Ton ]]*$S$71),$AG$71+$AF$71*tbl_Refrigeration_Calc_Engine[[#This Row],[SCT Discharge Temp]]) ->  | T87: =Stage_Check($P$62:$P$68,$Q$61:$S$61,tbl_Refrigeration_Calc_Engine[[#This Row],[Capacity CP1]:[Capacity CP3]],tbl_Refrigeration_Calc_Engine[[#This Row],[Cooling Load Ton]]) ->  | U87: =IF(tbl_Refrigeration_Calc_Engine[[#This Row],[Cooling Load Ton]]=0,0,Compressor_Load(tbl_Refrigeration_Calc_Engine[[#This Row],[Cooling Load Ton]],tbl_Refrigeration_Calc_Engine[[#This Row],[Capacity CP1]:[Capacity CP3]],INDEX($Q$62:$S$68,tbl_Refrigeration_Calc_Engine[[#This Row],[Stage]],0),tbl_Refrigeration_Calc_Engine[[#Headers],[Load CP1]])) -> 0 | V87: =IF(tbl_Refrigeration_Calc_Engine[[#This Row],[Cooling Load Ton]]=0,0,Compressor_Load(tbl_Refrigeration_Calc_Engine[[#This Row],[Cooling Load Ton]],tbl_Refrigeration_Calc_Engine[[#This Row],[Capacity CP1]:[Capacity CP3]],INDEX($Q$62:$S$68,tbl_Refrigeration_Calc_Engine[[#This Row],[Stage]],0),tbl_Refrigeration_Calc_Engine[[#Headers],[Load CP2]])) -> 0 | W87: =IF(tbl_Refrigeration_Calc_Engine[[#This Row],[Cooling Load Ton]]=0,0,Compressor_Load(tbl_Refrigeration_Calc_Engine[[#This Row],[Cooling Load Ton]],tbl_Refrigeration_Calc_Engine[[#This Row],[Capacity CP1]:[Capacity CP3]],INDEX($Q$62:$S$68,tbl_Refrigeration_Calc_Engine[[#This Row],[Stage]],0),tbl_Refrigeration_Calc_Engine[[#Headers],[Load CP3]])) -> 0 | X87: =IF(OR(tbl_Refrigeration_Calc_Engine[[#This Row],[Capacity CP1]]=0,tbl_Refrigeration_Calc_Engine[[#This Row],[Load CP1]]<tbl_Refrigeration_Calc_Engine[[#This Row],[Capacity CP1]]*$E$69),0,tbl_Refrigeration_Calc_Engine[[#This Row],[Load CP1]]/tbl_Refrigeration_Calc_Engine[[#This Row],[Capacity CP1]]) ->  | Y87: =IF(OR(tbl_Refrigeration_Calc_Engine[[#This Row],[Capacity CP2]]=0,tbl_Refrigeration_Calc_Engine[[#This Row],[Load CP2]]<tbl_Refrigeration_Calc_Engine[[#This Row],[Capacity CP2]]*$E$69),0,tbl_Refrigeration_Calc_Engine[[#This Row],[Load CP2]]/tbl_Refrigeration_Calc_Engine[[#This Row],[Capacity CP2]]) ->  | Z87: =IF(OR(tbl_Refrigeration_Calc_Engine[[#This Row],[Capacity CP3]]=0,tbl_Refrigeration_Calc_Engine[[#This Row],[Load CP3]]<tbl_Refrigeration_Calc_Engine[[#This Row],[Capacity CP3]]*$E$69),0,tbl_Refrigeration_Calc_Engine[[#This Row],[Load CP3]]/tbl_Refrigeration_Calc_Engine[[#This Row],[Capacity CP3]]) ->  | AA87: =IF(tbl_Refrigeration_Calc_Engine[[#This Row],[Capacity % CP1]]=0,0,MAX(0,INDEX($U$66:$X$68,Q$72,1)*tbl_Refrigeration_Calc_Engine[[#This Row],[Capacity % CP1]]^3+INDEX($U$66:$X$68,Q$72,2)*tbl_Refrigeration_Calc_Engine[[#This Row],[Capacity % CP1]]^2+INDEX($U$66:$X$68,Q$72,3)*tbl_Refrigeration_Calc_Engine[[#This Row],[Capacity % CP1]]+INDEX($U$66:$X$68,Q$72,4))) ->  | AB87: =IF(tbl_Refrigeration_Calc_Engine[[#This Row],[Capacity % CP2]]=0,0,MAX(0,INDEX($U$66:$X$68,R$72,1)*tbl_Refrigeration_Calc_Engine[[#This Row],[Capacity % CP2]]^3+INDEX($U$66:$X$68,R$72,2)*tbl_Refrigeration_Calc_Engine[[#This Row],[Capacity % CP2]]^2+INDEX($U$66:$X$68,R$72,3)*tbl_Refrigeration_Calc_Engine[[#This Row],[Capacity % CP2]]+INDEX($U$66:$X$68,R$72,4))) ->  | AC87: =IF(tbl_Refrigeration_Calc_Engine[[#This Row],[Capacity % CP3]]=0,0,MAX(0,INDEX($U$66:$X$68,S$72,1)*tbl_Refrigeration_Calc_Engine[[#This Row],[Capacity % CP3]]^3+INDEX($U$66:$X$68,S$72,2)*tbl_Refrigeration_Calc_Engine[[#This Row],[Capacity % CP3]]^2+INDEX($U$66:$X$68,S$72,3)*tbl_Refrigeration_Calc_Engine[[#This Row],[Capacity % CP3]]+INDEX($U$66:$X$68,S$72,4))) ->  | AD87: =IF($D$6="Evaporative",IF($J$65-tbl_Refrigeration_Calc_Engine[[#This Row],[WBT]]<=$E$5,1,IF($J$65<=tbl_Refrigeration_Calc_Engine[[#This Row],[WBT]],1,$E$5/($J$65-tbl_Refrigeration_Calc_Engine[[#This Row],[WBT]]))),IF($J$65-tbl_Refrigeration_Calc_Engine[[#This Row],[DBT]]<=$E$5,1,IF($J$65<=tbl_Refrigeration_Calc_Engine[[#This Row],[DBT]],1,$E$5/($J$65-tbl_Refrigeration_Calc_Engine[[#This Row],[DBT]])))) ->  | AE87: =tbl_Refrigeration_Calc_Engine[[#This Row],[Cooling Load Ton]]/$V$61 ->  | AF87: =IF($T$62="Simple",SUMPRODUCT(tbl_Refrigeration_Calc_Engine[[#This Row],[Power % CP1]:[Power % CP3]],$Q$70:$S$70*O87*0.746/$E$65), SUM( IF(tbl_Refrigeration_Calc_Engine[[#This Row],[Capacity % CP1]]=0,0,MAX(0,tbl_Refrigeration_Calc_Engine[[#This Row],[Power % CP1]]*($AG$65+$AF$65*tbl_Refrigeration_Calc_Engine[[#This Row],[SCT Discharge Temp]]+$AE$65*tbl_Refrigeration_Calc_Engine[[#This Row],[SCT Discharge Temp]]^2+$AD$65*IF($G$6="Detailed", tbl_Refrigeration_Calc_Engine[[#This Row],[Baseline SST CP1]]+$E$74,$J$68)+$AC$65*IF($G$6="Detailed", tbl_Refrigeration_Calc_Engine[[#This Row],[Baseline SST CP1]]+$E$74,$J$68)^2+$AB$65*tbl_Refrigeration_Calc_Engine[[#This Row],[Load CP1]]+$AA$65*tbl_Refrigeration_Calc_Engine[[#This Row],[Load CP1]]^2))), IF(tbl_Refrigeration_Calc_Engine[[#This Row],[Capacity % CP2]]=0,0,MAX(0,tbl_Refrigeration_Calc_Engine[[#This Row],[Power % CP2]]*($AG$66+$AF$66*tbl_Refrigeration_Calc_Engine[[#This Row],[SCT Discharge Temp]]+$AE$66*tbl_Refrigeration_Calc_Engine[[#This Row],[SCT Discharge Temp]]^2+$AD$66*IF($G$6="Detailed", tbl_Refrigeration_Calc_Engine[[#This Row],[Baseline SST CP2]]+$E$74,$J$68)+$AC$66*IF($G$6="Detailed", tbl_Refrigeration_Calc_Engine[[#This Row],[Baseline SST CP2]]+$E$74,$J$68)^2+$AB$66*tbl_Refrigeration_Calc_Engine[[#This Row],[Load CP2]]+$AA$66*tbl_Refrigeration_Calc_Engine[[#This Row],[Load CP2]]^2))), IF(tbl_Refrigeration_Calc_Engine[[#This Row],[Capacity % CP3]]=0,0,MAX(0,tbl_Refrigeration_Calc_Engine[[#This Row],[Power % CP3]]*($AG$67+$AF$67*tbl_Refrigeration_Calc_Engine[[#This Row],[SCT Discharge Temp]]+$AE$67*tbl_Refrigeration_Calc_Engine[[#This Row],[SCT Discharge Temp]]^2+$AD$67*IF($G$6="Detailed", tbl_Refrigeration_Calc_Engine[[#This Row],[Baseline SST CP3]]+$E$74,$J$68)+$AC$67*IF($G$6="Detailed", tbl_Refrigeration_Calc_Engine[[#This Row],[Baseline SST CP3]]+$E$74,$J$68)^2+$AB$67*tbl_Refrigeration_Calc_Engine[[#This Row],[Load CP3]]+$AA$67*tbl_Refrigeration_Calc_Engine[[#This Row],[Load CP3]]^2))))) ->  | AG87: =IF($B$72="On-Off",$J$66*tbl_Refrigeration_Calc_Engine[[#This Row],[Condenser Fan]],$J$66*tbl_Refrigeration_Calc_Engine[[#This Row],[Condenser Fan]]^3/'Refrigeration Template'!$E$61) ->  | AH87: =IF($E$72="VFD",MAX($E$73,tbl_Refrigeration_Calc_Engine[[#This Row],[Calculated Evaporator Fan]])^3,tbl_Refrigeration_Calc_Engine[[#This Row],[Calculated Evaporator Fan]])*$J$67 -> 
B88: 11 | C88: 11 | D88: ='CTZ2'!M12 -> 44 | E88: ='CTZ2'!N12 -> 52 | L88: =MAX($C$19,$E$5+IF($D$6="Evaporative",tbl_Refrigeration_Calc_Engine[[#This Row],[WBT]],tbl_Refrigeration_Calc_Engine[[#This Row],[DBT]])) ->  | M88: =MAX($J$65,$E$5+IF($D$6="Evaporative",tbl_Refrigeration_Calc_Engine[[#This Row],[WBT]],tbl_Refrigeration_Calc_Engine[[#This Row],[DBT]])) ->  | N88: =(0.339-0.00692*$J$64+0.000128*$J$64^2+0.00561*tbl_Refrigeration_Calc_Engine[[#This Row],[SCT Discharge Temp]]+0.0000917*tbl_Refrigeration_Calc_Engine[[#This Row],[SCT Discharge Temp]]^2-0.000235*$J$64*tbl_Refrigeration_Calc_Engine[[#This Row],[SCT Discharge Temp]]) ->  | O88: =1-(MAX(tbl_Refrigeration_Calc_Engine[SCT Discharge Temp])-tbl_Refrigeration_Calc_Engine[[#This Row],[SCT Discharge Temp]])*'Refrigeration Template'!$E$63 ->  | P88: =IF($T$62="Simple",FORECAST(MEDIAN($X$61,$X$62,tbl_Refrigeration_Calc_Engine[[#This Row],[DBT]]),$V$61:$V$62,$X$61:$X$62), SUM( IF(tbl_Refrigeration_Calc_Engine[[#This Row],[Baseline kW CP1]]=0,0,MAX(0,$AG$61+$AF$61*tbl_Refrigeration_Calc_Engine[[#This Row],[Baseline kW CP1]]+$AE$61*tbl_Refrigeration_Calc_Engine[[#This Row],[Baseline kW CP1]]^2+$AD$61*tbl_Refrigeration_Calc_Engine[[#This Row],[Load SCT Discharge Temp]]+$AC$61*tbl_Refrigeration_Calc_Engine[[#This Row],[Load SCT Discharge Temp]]^2+$AB$61*IF($G$6="Detailed", tbl_Refrigeration_Calc_Engine[[#This Row],[Baseline SST CP1]]+$E$74,tbl_Refrigeration_Calc_Engine[[#This Row],[Baseline SST CP1]])+$AA$61*IF($G$6="Detailed", tbl_Refrigeration_Calc_Engine[[#This Row],[Baseline SST CP1]]+$E$74,tbl_Refrigeration_Calc_Engine[[#This Row],[Baseline SST CP1]])^2)), IF(tbl_Refrigeration_Calc_Engine[[#This Row],[Baseline kW CP2]]=0,0,MAX(0,$AG$62+$AF$62*tbl_Refrigeration_Calc_Engine[[#This Row],[Baseline kW CP2]]+$AE$62*tbl_Refrigeration_Calc_Engine[[#This Row],[Baseline kW CP2]]^2+$AD$62*tbl_Refrigeration_Calc_Engine[[#This Row],[Load SCT Discharge Temp]]+$AC$62*tbl_Refrigeration_Calc_Engine[[#This Row],[Load SCT Discharge Temp]]^2+$AB$62*IF($G$6="Detailed", tbl_Refrigeration_Calc_Engine[[#This Row],[Baseline SST CP2]]+$E$74,tbl_Refrigeration_Calc_Engine[[#This Row],[Baseline SST CP2]])+$AA$62*IF($G$6="Detailed", tbl_Refrigeration_Calc_Engine[[#This Row],[Baseline SST CP2]]+$E$74,tbl_Refrigeration_Calc_Engine[[#This Row],[Baseline SST CP2]])^2)), IF(tbl_Refrigeration_Calc_Engine[[#This Row],[Baseline kW CP3]]=0,0,MAX(0,$AG$63+$AF$63*tbl_Refrigeration_Calc_Engine[[#This Row],[Baseline kW CP3]]+$AE$63*tbl_Refrigeration_Calc_Engine[[#This Row],[Baseline kW CP3]]^2+$AD$63*tbl_Refrigeration_Calc_Engine[[#This Row],[Load SCT Discharge Temp]]+$AC$63*tbl_Refrigeration_Calc_Engine[[#This Row],[Load SCT Discharge Temp]]^2+$AB$63*IF($G$6="Detailed", tbl_Refrigeration_Calc_Engine[[#This Row],[Baseline SST CP3]]+$E$74,tbl_Refrigeration_Calc_Engine[[#This Row],[Baseline SST CP3]])+$AA$63*IF($G$6="Detailed", tbl_Refrigeration_Calc_Engine[[#This Row],[Baseline SST CP3]]+$E$74,tbl_Refrigeration_Calc_Engine[[#This Row],[Baseline SST CP3]])^2)))) -> 0 | Q88: =IF($T$62="Simple",IF(tbl_Refrigeration_Calc_Engine[[#This Row],[bhp Per Ton ]]=0,0,1/tbl_Refrigeration_Calc_Engine[[#This Row],[bhp Per Ton ]]*$Q$71),$AG$69+$AF$69*tbl_Refrigeration_Calc_Engine[[#This Row],[SCT Discharge Temp]]) ->  | R88: =IF($T$62="Simple",IF(tbl_Refrigeration_Calc_Engine[[#This Row],[bhp Per Ton ]]=0,0,1/tbl_Refrigeration_Calc_Engine[[#This Row],[bhp Per Ton ]]*$R$71),$AG$70+$AF$70*tbl_Refrigeration_Calc_Engine[[#This Row],[SCT Discharge Temp]]) ->  | S88: =IF($T$62="Simple",IF(tbl_Refrigeration_Calc_Engine[[#This Row],[bhp Per Ton ]]=0,0,1/tbl_Refrigeration_Calc_Engine[[#This Row],[bhp Per Ton ]]*$S$71),$AG$71+$AF$71*tbl_Refrigeration_Calc_Engine[[#This Row],[SCT Discharge Temp]]) ->  | T88: =Stage_Check($P$62:$P$68,$Q$61:$S$61,tbl_Refrigeration_Calc_Engine[[#This Row],[Capacity CP1]:[Capacity CP3]],tbl_Refrigeration_Calc_Engine[[#This Row],[Cooling Load Ton]]) ->  | U88: =IF(tbl_Refrigeration_Calc_Engine[[#This Row],[Cooling Load Ton]]=0,0,Compressor_Load(tbl_Refrigeration_Calc_Engine[[#This Row],[Cooling Load Ton]],tbl_Refrigeration_Calc_Engine[[#This Row],[Capacity CP1]:[Capacity CP3]],INDEX($Q$62:$S$68,tbl_Refrigeration_Calc_Engine[[#This Row],[Stage]],0),tbl_Refrigeration_Calc_Engine[[#Headers],[Load CP1]])) -> 0 | V88: =IF(tbl_Refrigeration_Calc_Engine[[#This Row],[Cooling Load Ton]]=0,0,Compressor_Load(tbl_Refrigeration_Calc_Engine[[#This Row],[Cooling Load Ton]],tbl_Refrigeration_Calc_Engine[[#This Row],[Capacity CP1]:[Capacity CP3]],INDEX($Q$62:$S$68,tbl_Refrigeration_Calc_Engine[[#This Row],[Stage]],0),tbl_Refrigeration_Calc_Engine[[#Headers],[Load CP2]])) -> 0 | W88: =IF(tbl_Refrigeration_Calc_Engine[[#This Row],[Cooling Load Ton]]=0,0,Compressor_Load(tbl_Refrigeration_Calc_Engine[[#This Row],[Cooling Load Ton]],tbl_Refrigeration_Calc_Engine[[#This Row],[Capacity CP1]:[Capacity CP3]],INDEX($Q$62:$S$68,tbl_Refrigeration_Calc_Engine[[#This Row],[Stage]],0),tbl_Refrigeration_Calc_Engine[[#Headers],[Load CP3]])) -> 0 | X88: =IF(OR(tbl_Refrigeration_Calc_Engine[[#This Row],[Capacity CP1]]=0,tbl_Refrigeration_Calc_Engine[[#This Row],[Load CP1]]<tbl_Refrigeration_Calc_Engine[[#This Row],[Capacity CP1]]*$E$69),0,tbl_Refrigeration_Calc_Engine[[#This Row],[Load CP1]]/tbl_Refrigeration_Calc_Engine[[#This Row],[Capacity CP1]]) ->  | Y88: =IF(OR(tbl_Refrigeration_Calc_Engine[[#This Row],[Capacity CP2]]=0,tbl_Refrigeration_Calc_Engine[[#This Row],[Load CP2]]<tbl_Refrigeration_Calc_Engine[[#This Row],[Capacity CP2]]*$E$69),0,tbl_Refrigeration_Calc_Engine[[#This Row],[Load CP2]]/tbl_Refrigeration_Calc_Engine[[#This Row],[Capacity CP2]]) ->  | Z88: =IF(OR(tbl_Refrigeration_Calc_Engine[[#This Row],[Capacity CP3]]=0,tbl_Refrigeration_Calc_Engine[[#This Row],[Load CP3]]<tbl_Refrigeration_Calc_Engine[[#This Row],[Capacity CP3]]*$E$69),0,tbl_Refrigeration_Calc_Engine[[#This Row],[Load CP3]]/tbl_Refrigeration_Calc_Engine[[#This Row],[Capacity CP3]]) ->  | AA88: =IF(tbl_Refrigeration_Calc_Engine[[#This Row],[Capacity % CP1]]=0,0,MAX(0,INDEX($U$66:$X$68,Q$72,1)*tbl_Refrigeration_Calc_Engine[[#This Row],[Capacity % CP1]]^3+INDEX($U$66:$X$68,Q$72,2)*tbl_Refrigeration_Calc_Engine[[#This Row],[Capacity % CP1]]^2+INDEX($U$66:$X$68,Q$72,3)*tbl_Refrigeration_Calc_Engine[[#This Row],[Capacity % CP1]]+INDEX($U$66:$X$68,Q$72,4))) ->  | AB88: =IF(tbl_Refrigeration_Calc_Engine[[#This Row],[Capacity % CP2]]=0,0,MAX(0,INDEX($U$66:$X$68,R$72,1)*tbl_Refrigeration_Calc_Engine[[#This Row],[Capacity % CP2]]^3+INDEX($U$66:$X$68,R$72,2)*tbl_Refrigeration_Calc_Engine[[#This Row],[Capacity % CP2]]^2+INDEX($U$66:$X$68,R$72,3)*tbl_Refrigeration_Calc_Engine[[#This Row],[Capacity % CP2]]+INDEX($U$66:$X$68,R$72,4))) ->  | AC88: =IF(tbl_Refrigeration_Calc_Engine[[#This Row],[Capacity % CP3]]=0,0,MAX(0,INDEX($U$66:$X$68,S$72,1)*tbl_Refrigeration_Calc_Engine[[#This Row],[Capacity % CP3]]^3+INDEX($U$66:$X$68,S$72,2)*tbl_Refrigeration_Calc_Engine[[#This Row],[Capacity % CP3]]^2+INDEX($U$66:$X$68,S$72,3)*tbl_Refrigeration_Calc_Engine[[#This Row],[Capacity % CP3]]+INDEX($U$66:$X$68,S$72,4))) ->  | AD88: =IF($D$6="Evaporative",IF($J$65-tbl_Refrigeration_Calc_Engine[[#This Row],[WBT]]<=$E$5,1,IF($J$65<=tbl_Refrigeration_Calc_Engine[[#This Row],[WBT]],1,$E$5/($J$65-tbl_Refrigeration_Calc_Engine[[#This Row],[WBT]]))),IF($J$65-tbl_Refrigeration_Calc_Engine[[#This Row],[DBT]]<=$E$5,1,IF($J$65<=tbl_Refrigeration_Calc_Engine[[#This Row],[DBT]],1,$E$5/($J$65-tbl_Refrigeration_Calc_Engine[[#This Row],[DBT]])))) ->  | AE88: =tbl_Refrigeration_Calc_Engine[[#This Row],[Cooling Load Ton]]/$V$61 ->  | AF88: =IF($T$62="Simple",SUMPRODUCT(tbl_Refrigeration_Calc_Engine[[#This Row],[Power % CP1]:[Power % CP3]],$Q$70:$S$70*O88*0.746/$E$65), SUM( IF(tbl_Refrigeration_Calc_Engine[[#This Row],[Capacity % CP1]]=0,0,MAX(0,tbl_Refrigeration_Calc_Engine[[#This Row],[Power % CP1]]*($AG$65+$AF$65*tbl_Refrigeration_Calc_Engine[[#This Row],[SCT Discharge Temp]]+$AE$65*tbl_Refrigeration_Calc_Engine[[#This Row],[SCT Discharge Temp]]^2+$AD$65*IF($G$6="Detailed", tbl_Refrigeration_Calc_Engine[[#This Row],[Baseline SST CP1]]+$E$74,$J$68)+$AC$65*IF($G$6="Detailed", tbl_Refrigeration_Calc_Engine[[#This Row],[Baseline SST CP1]]+$E$74,$J$68)^2+$AB$65*tbl_Refrigeration_Calc_Engine[[#This Row],[Load CP1]]+$AA$65*tbl_Refrigeration_Calc_Engine[[#This Row],[Load CP1]]^2))), IF(tbl_Refrigeration_Calc_Engine[[#This Row],[Capacity % CP2]]=0,0,MAX(0,tbl_Refrigeration_Calc_Engine[[#This Row],[Power % CP2]]*($AG$66+$AF$66*tbl_Refrigeration_Calc_Engine[[#This Row],[SCT Discharge Temp]]+$AE$66*tbl_Refrigeration_Calc_Engine[[#This Row],[SCT Discharge Temp]]^2+$AD$66*IF($G$6="Detailed", tbl_Refrigeration_Calc_Engine[[#This Row],[Baseline SST CP2]]+$E$74,$J$68)+$AC$66*IF($G$6="Detailed", tbl_Refrigeration_Calc_Engine[[#This Row],[Baseline SST CP2]]+$E$74,$J$68)^2+$AB$66*tbl_Refrigeration_Calc_Engine[[#This Row],[Load CP2]]+$AA$66*tbl_Refrigeration_Calc_Engine[[#This Row],[Load CP2]]^2))), IF(tbl_Refrigeration_Calc_Engine[[#This Row],[Capacity % CP3]]=0,0,MAX(0,tbl_Refrigeration_Calc_Engine[[#This Row],[Power % CP3]]*($AG$67+$AF$67*tbl_Refrigeration_Calc_Engine[[#This Row],[SCT Discharge Temp]]+$AE$67*tbl_Refrigeration_Calc_Engine[[#This Row],[SCT Discharge Temp]]^2+$AD$67*IF($G$6="Detailed", tbl_Refrigeration_Calc_Engine[[#This Row],[Baseline SST CP3]]+$E$74,$J$68)+$AC$67*IF($G$6="Detailed", tbl_Refrigeration_Calc_Engine[[#This Row],[Baseline SST CP3]]+$E$74,$J$68)^2+$AB$67*tbl_Refrigeration_Calc_Engine[[#This Row],[Load CP3]]+$AA$67*tbl_Refrigeration_Calc_Engine[[#This Row],[Load CP3]]^2))))) ->  | AG88: =IF($B$72="On-Off",$J$66*tbl_Refrigeration_Calc_Engine[[#This Row],[Condenser Fan]],$J$66*tbl_Refrigeration_Calc_Engine[[#This Row],[Condenser Fan]]^3/'Refrigeration Template'!$E$61) ->  | AH88: =IF($E$72="VFD",MAX($E$73,tbl_Refrigeration_Calc_Engine[[#This Row],[Calculated Evaporator Fan]])^3,tbl_Refrigeration_Calc_Engine[[#This Row],[Calculated Evaporator Fan]])*$J$67 -> 
B89: 12 | C89: 12 | D89: ='CTZ2'!M13 -> 46 | E89: ='CTZ2'!N13 -> 56 | L89: =MAX($C$19,$E$5+IF($D$6="Evaporative",tbl_Refrigeration_Calc_Engine[[#This Row],[WBT]],tbl_Refrigeration_Calc_Engine[[#This Row],[DBT]])) ->  | M89: =MAX($J$65,$E$5+IF($D$6="Evaporative",tbl_Refrigeration_Calc_Engine[[#This Row],[WBT]],tbl_Refrigeration_Calc_Engine[[#This Row],[DBT]])) ->  | N89: =(0.339-0.00692*$J$64+0.000128*$J$64^2+0.00561*tbl_Refrigeration_Calc_Engine[[#This Row],[SCT Discharge Temp]]+0.0000917*tbl_Refrigeration_Calc_Engine[[#This Row],[SCT Discharge Temp]]^2-0.000235*$J$64*tbl_Refrigeration_Calc_Engine[[#This Row],[SCT Discharge Temp]]) ->  | O89: =1-(MAX(tbl_Refrigeration_Calc_Engine[SCT Discharge Temp])-tbl_Refrigeration_Calc_Engine[[#This Row],[SCT Discharge Temp]])*'Refrigeration Template'!$E$63 ->  | P89: =IF($T$62="Simple",FORECAST(MEDIAN($X$61,$X$62,tbl_Refrigeration_Calc_Engine[[#This Row],[DBT]]),$V$61:$V$62,$X$61:$X$62), SUM( IF(tbl_Refrigeration_Calc_Engine[[#This Row],[Baseline kW CP1]]=0,0,MAX(0,$AG$61+$AF$61*tbl_Refrigeration_Calc_Engine[[#This Row],[Baseline kW CP1]]+$AE$61*tbl_Refrigeration_Calc_Engine[[#This Row],[Baseline kW CP1]]^2+$AD$61*tbl_Refrigeration_Calc_Engine[[#This Row],[Load SCT Discharge Temp]]+$AC$61*tbl_Refrigeration_Calc_Engine[[#This Row],[Load SCT Discharge Temp]]^2+$AB$61*IF($G$6="Detailed", tbl_Refrigeration_Calc_Engine[[#This Row],[Baseline SST CP1]]+$E$74,tbl_Refrigeration_Calc_Engine[[#This Row],[Baseline SST CP1]])+$AA$61*IF($G$6="Detailed", tbl_Refrigeration_Calc_Engine[[#This Row],[Baseline SST CP1]]+$E$74,tbl_Refrigeration_Calc_Engine[[#This Row],[Baseline SST CP1]])^2)), IF(tbl_Refrigeration_Calc_Engine[[#This Row],[Baseline kW CP2]]=0,0,MAX(0,$AG$62+$AF$62*tbl_Refrigeration_Calc_Engine[[#This Row],[Baseline kW CP2]]+$AE$62*tbl_Refrigeration_Calc_Engine[[#This Row],[Baseline kW CP2]]^2+$AD$62*tbl_Refrigeration_Calc_Engine[[#This Row],[Load SCT Discharge Temp]]+$AC$62*tbl_Refrigeration_Calc_Engine[[#This Row],[Load SCT Discharge Temp]]^2+$AB$62*IF($G$6="Detailed", tbl_Refrigeration_Calc_Engine[[#This Row],[Baseline SST CP2]]+$E$74,tbl_Refrigeration_Calc_Engine[[#This Row],[Baseline SST CP2]])+$AA$62*IF($G$6="Detailed", tbl_Refrigeration_Calc_Engine[[#This Row],[Baseline SST CP2]]+$E$74,tbl_Refrigeration_Calc_Engine[[#This Row],[Baseline SST CP2]])^2)), IF(tbl_Refrigeration_Calc_Engine[[#This Row],[Baseline kW CP3]]=0,0,MAX(0,$AG$63+$AF$63*tbl_Refrigeration_Calc_Engine[[#This Row],[Baseline kW CP3]]+$AE$63*tbl_Refrigeration_Calc_Engine[[#This Row],[Baseline kW CP3]]^2+$AD$63*tbl_Refrigeration_Calc_Engine[[#This Row],[Load SCT Discharge Temp]]+$AC$63*tbl_Refrigeration_Calc_Engine[[#This Row],[Load SCT Discharge Temp]]^2+$AB$63*IF($G$6="Detailed", tbl_Refrigeration_Calc_Engine[[#This Row],[Baseline SST CP3]]+$E$74,tbl_Refrigeration_Calc_Engine[[#This Row],[Baseline SST CP3]])+$AA$63*IF($G$6="Detailed", tbl_Refrigeration_Calc_Engine[[#This Row],[Baseline SST CP3]]+$E$74,tbl_Refrigeration_Calc_Engine[[#This Row],[Baseline SST CP3]])^2)))) -> 0 | Q89: =IF($T$62="Simple",IF(tbl_Refrigeration_Calc_Engine[[#This Row],[bhp Per Ton ]]=0,0,1/tbl_Refrigeration_Calc_Engine[[#This Row],[bhp Per Ton ]]*$Q$71),$AG$69+$AF$69*tbl_Refrigeration_Calc_Engine[[#This Row],[SCT Discharge Temp]]) ->  | R89: =IF($T$62="Simple",IF(tbl_Refrigeration_Calc_Engine[[#This Row],[bhp Per Ton ]]=0,0,1/tbl_Refrigeration_Calc_Engine[[#This Row],[bhp Per Ton ]]*$R$71),$AG$70+$AF$70*tbl_Refrigeration_Calc_Engine[[#This Row],[SCT Discharge Temp]]) ->  | S89: =IF($T$62="Simple",IF(tbl_Refrigeration_Calc_Engine[[#This Row],[bhp Per Ton ]]=0,0,1/tbl_Refrigeration_Calc_Engine[[#This Row],[bhp Per Ton ]]*$S$71),$AG$71+$AF$71*tbl_Refrigeration_Calc_Engine[[#This Row],[SCT Discharge Temp]]) ->  | T89: =Stage_Check($P$62:$P$68,$Q$61:$S$61,tbl_Refrigeration_Calc_Engine[[#This Row],[Capacity CP1]:[Capacity CP3]],tbl_Refrigeration_Calc_Engine[[#This Row],[Cooling Load Ton]]) ->  | U89: =IF(tbl_Refrigeration_Calc_Engine[[#This Row],[Cooling Load Ton]]=0,0,Compressor_Load(tbl_Refrigeration_Calc_Engine[[#This Row],[Cooling Load Ton]],tbl_Refrigeration_Calc_Engine[[#This Row],[Capacity CP1]:[Capacity CP3]],INDEX($Q$62:$S$68,tbl_Refrigeration_Calc_Engine[[#This Row],[Stage]],0),tbl_Refrigeration_Calc_Engine[[#Headers],[Load CP1]])) -> 0 | V89: =IF(tbl_Refrigeration_Calc_Engine[[#This Row],[Cooling Load Ton]]=0,0,Compressor_Load(tbl_Refrigeration_Calc_Engine[[#This Row],[Cooling Load Ton]],tbl_Refrigeration_Calc_Engine[[#This Row],[Capacity CP1]:[Capacity CP3]],INDEX($Q$62:$S$68,tbl_Refrigeration_Calc_Engine[[#This Row],[Stage]],0),tbl_Refrigeration_Calc_Engine[[#Headers],[Load CP2]])) -> 0 | W89: =IF(tbl_Refrigeration_Calc_Engine[[#This Row],[Cooling Load Ton]]=0,0,Compressor_Load(tbl_Refrigeration_Calc_Engine[[#This Row],[Cooling Load Ton]],tbl_Refrigeration_Calc_Engine[[#This Row],[Capacity CP1]:[Capacity CP3]],INDEX($Q$62:$S$68,tbl_Refrigeration_Calc_Engine[[#This Row],[Stage]],0),tbl_Refrigeration_Calc_Engine[[#Headers],[Load CP3]])) -> 0 | X89: =IF(OR(tbl_Refrigeration_Calc_Engine[[#This Row],[Capacity CP1]]=0,tbl_Refrigeration_Calc_Engine[[#This Row],[Load CP1]]<tbl_Refrigeration_Calc_Engine[[#This Row],[Capacity CP1]]*$E$69),0,tbl_Refrigeration_Calc_Engine[[#This Row],[Load CP1]]/tbl_Refrigeration_Calc_Engine[[#This Row],[Capacity CP1]]) ->  | Y89: =IF(OR(tbl_Refrigeration_Calc_Engine[[#This Row],[Capacity CP2]]=0,tbl_Refrigeration_Calc_Engine[[#This Row],[Load CP2]]<tbl_Refrigeration_Calc_Engine[[#This Row],[Capacity CP2]]*$E$69),0,tbl_Refrigeration_Calc_Engine[[#This Row],[Load CP2]]/tbl_Refrigeration_Calc_Engine[[#This Row],[Capacity CP2]]) ->  | Z89: =IF(OR(tbl_Refrigeration_Calc_Engine[[#This Row],[Capacity CP3]]=0,tbl_Refrigeration_Calc_Engine[[#This Row],[Load CP3]]<tbl_Refrigeration_Calc_Engine[[#This Row],[Capacity CP3]]*$E$69),0,tbl_Refrigeration_Calc_Engine[[#This Row],[Load CP3]]/tbl_Refrigeration_Calc_Engine[[#This Row],[Capacity CP3]]) ->  | AA89: =IF(tbl_Refrigeration_Calc_Engine[[#This Row],[Capacity % CP1]]=0,0,MAX(0,INDEX($U$66:$X$68,Q$72,1)*tbl_Refrigeration_Calc_Engine[[#This Row],[Capacity % CP1]]^3+INDEX($U$66:$X$68,Q$72,2)*tbl_Refrigeration_Calc_Engine[[#This Row],[Capacity % CP1]]^2+INDEX($U$66:$X$68,Q$72,3)*tbl_Refrigeration_Calc_Engine[[#This Row],[Capacity % CP1]]+INDEX($U$66:$X$68,Q$72,4))) ->  | AB89: =IF(tbl_Refrigeration_Calc_Engine[[#This Row],[Capacity % CP2]]=0,0,MAX(0,INDEX($U$66:$X$68,R$72,1)*tbl_Refrigeration_Calc_Engine[[#This Row],[Capacity % CP2]]^3+INDEX($U$66:$X$68,R$72,2)*tbl_Refrigeration_Calc_Engine[[#This Row],[Capacity % CP2]]^2+INDEX($U$66:$X$68,R$72,3)*tbl_Refrigeration_Calc_Engine[[#This Row],[Capacity % CP2]]+INDEX($U$66:$X$68,R$72,4))) ->  | AC89: =IF(tbl_Refrigeration_Calc_Engine[[#This Row],[Capacity % CP3]]=0,0,MAX(0,INDEX($U$66:$X$68,S$72,1)*tbl_Refrigeration_Calc_Engine[[#This Row],[Capacity % CP3]]^3+INDEX($U$66:$X$68,S$72,2)*tbl_Refrigeration_Calc_Engine[[#This Row],[Capacity % CP3]]^2+INDEX($U$66:$X$68,S$72,3)*tbl_Refrigeration_Calc_Engine[[#This Row],[Capacity % CP3]]+INDEX($U$66:$X$68,S$72,4))) ->  | AD89: =IF($D$6="Evaporative",IF($J$65-tbl_Refrigeration_Calc_Engine[[#This Row],[WBT]]<=$E$5,1,IF($J$65<=tbl_Refrigeration_Calc_Engine[[#This Row],[WBT]],1,$E$5/($J$65-tbl_Refrigeration_Calc_Engine[[#This Row],[WBT]]))),IF($J$65-tbl_Refrigeration_Calc_Engine[[#This Row],[DBT]]<=$E$5,1,IF($J$65<=tbl_Refrigeration_Calc_Engine[[#This Row],[DBT]],1,$E$5/($J$65-tbl_Refrigeration_Calc_Engine[[#This Row],[DBT]])))) ->  | AE89: =tbl_Refrigeration_Calc_Engine[[#This Row],[Cooling Load Ton]]/$V$61 ->  | AF89: =IF($T$62="Simple",SUMPRODUCT(tbl_Refrigeration_Calc_Engine[[#This Row],[Power % CP1]:[Power % CP3]],$Q$70:$S$70*O89*0.746/$E$65), SUM( IF(tbl_Refrigeration_Calc_Engine[[#This Row],[Capacity % CP1]]=0,0,MAX(0,tbl_Refrigeration_Calc_Engine[[#This Row],[Power % CP1]]*($AG$65+$AF$65*tbl_Refrigeration_Calc_Engine[[#This Row],[SCT Discharge Temp]]+$AE$65*tbl_Refrigeration_Calc_Engine[[#This Row],[SCT Discharge Temp]]^2+$AD$65*IF($G$6="Detailed", tbl_Refrigeration_Calc_Engine[[#This Row],[Baseline SST CP1]]+$E$74,$J$68)+$AC$65*IF($G$6="Detailed", tbl_Refrigeration_Calc_Engine[[#This Row],[Baseline SST CP1]]+$E$74,$J$68)^2+$AB$65*tbl_Refrigeration_Calc_Engine[[#This Row],[Load CP1]]+$AA$65*tbl_Refrigeration_Calc_Engine[[#This Row],[Load CP1]]^2))), IF(tbl_Refrigeration_Calc_Engine[[#This Row],[Capacity % CP2]]=0,0,MAX(0,tbl_Refrigeration_Calc_Engine[[#This Row],[Power % CP2]]*($AG$66+$AF$66*tbl_Refrigeration_Calc_Engine[[#This Row],[SCT Discharge Temp]]+$AE$66*tbl_Refrigeration_Calc_Engine[[#This Row],[SCT Discharge Temp]]^2+$AD$66*IF($G$6="Detailed", tbl_Refrigeration_Calc_Engine[[#This Row],[Baseline SST CP2]]+$E$74,$J$68)+$AC$66*IF($G$6="Detailed", tbl_Refrigeration_Calc_Engine[[#This Row],[Baseline SST CP2]]+$E$74,$J$68)^2+$AB$66*tbl_Refrigeration_Calc_Engine[[#This Row],[Load CP2]]+$AA$66*tbl_Refrigeration_Calc_Engine[[#This Row],[Load CP2]]^2))), IF(tbl_Refrigeration_Calc_Engine[[#This Row],[Capacity % CP3]]=0,0,MAX(0,tbl_Refrigeration_Calc_Engine[[#This Row],[Power % CP3]]*($AG$67+$AF$67*tbl_Refrigeration_Calc_Engine[[#This Row],[SCT Discharge Temp]]+$AE$67*tbl_Refrigeration_Calc_Engine[[#This Row],[SCT Discharge Temp]]^2+$AD$67*IF($G$6="Detailed", tbl_Refrigeration_Calc_Engine[[#This Row],[Baseline SST CP3]]+$E$74,$J$68)+$AC$67*IF($G$6="Detailed", tbl_Refrigeration_Calc_Engine[[#This Row],[Baseline SST CP3]]+$E$74,$J$68)^2+$AB$67*tbl_Refrigeration_Calc_Engine[[#This Row],[Load CP3]]+$AA$67*tbl_Refrigeration_Calc_Engine[[#This Row],[Load CP3]]^2))))) ->  | AG89: =IF($B$72="On-Off",$J$66*tbl_Refrigeration_Calc_Engine[[#This Row],[Condenser Fan]],$J$66*tbl_Refrigeration_Calc_Engine[[#This Row],[Condenser Fan]]^3/'Refrigeration Template'!$E$61) ->  | AH89: =IF($E$72="VFD",MAX($E$73,tbl_Refrigeration_Calc_Engine[[#This Row],[Calculated Evaporator Fan]])^3,tbl_Refrigeration_Calc_Engine[[#This Row],[Calculated Evaporator Fan]])*$J$67 -> 
B90: 13 | C90: 13 | D90: ='CTZ2'!M14 -> 47 | E90: ='CTZ2'!N14 -> 59 | L90: =MAX($C$19,$E$5+IF($D$6="Evaporative",tbl_Refrigeration_Calc_Engine[[#This Row],[WBT]],tbl_Refrigeration_Calc_Engine[[#This Row],[DBT]])) ->  | M90: =MAX($J$65,$E$5+IF($D$6="Evaporative",tbl_Refrigeration_Calc_Engine[[#This Row],[WBT]],tbl_Refrigeration_Calc_Engine[[#This Row],[DBT]])) ->  | N90: =(0.339-0.00692*$J$64+0.000128*$J$64^2+0.00561*tbl_Refrigeration_Calc_Engine[[#This Row],[SCT Discharge Temp]]+0.0000917*tbl_Refrigeration_Calc_Engine[[#This Row],[SCT Discharge Temp]]^2-0.000235*$J$64*tbl_Refrigeration_Calc_Engine[[#This Row],[SCT Discharge Temp]]) ->  | O90: =1-(MAX(tbl_Refrigeration_Calc_Engine[SCT Discharge Temp])-tbl_Refrigeration_Calc_Engine[[#This Row],[SCT Discharge Temp]])*'Refrigeration Template'!$E$63 ->  | P90: =IF($T$62="Simple",FORECAST(MEDIAN($X$61,$X$62,tbl_Refrigeration_Calc_Engine[[#This Row],[DBT]]),$V$61:$V$62,$X$61:$X$62), SUM( IF(tbl_Refrigeration_Calc_Engine[[#This Row],[Baseline kW CP1]]=0,0,MAX(0,$AG$61+$AF$61*tbl_Refrigeration_Calc_Engine[[#This Row],[Baseline kW CP1]]+$AE$61*tbl_Refrigeration_Calc_Engine[[#This Row],[Baseline kW CP1]]^2+$AD$61*tbl_Refrigeration_Calc_Engine[[#This Row],[Load SCT Discharge Temp]]+$AC$61*tbl_Refrigeration_Calc_Engine[[#This Row],[Load SCT Discharge Temp]]^2+$AB$61*IF($G$6="Detailed", tbl_Refrigeration_Calc_Engine[[#This Row],[Baseline SST CP1]]+$E$74,tbl_Refrigeration_Calc_Engine[[#This Row],[Baseline SST CP1]])+$AA$61*IF($G$6="Detailed", tbl_Refrigeration_Calc_Engine[[#This Row],[Baseline SST CP1]]+$E$74,tbl_Refrigeration_Calc_Engine[[#This Row],[Baseline SST CP1]])^2)), IF(tbl_Refrigeration_Calc_Engine[[#This Row],[Baseline kW CP2]]=0,0,MAX(0,$AG$62+$AF$62*tbl_Refrigeration_Calc_Engine[[#This Row],[Baseline kW CP2]]+$AE$62*tbl_Refrigeration_Calc_Engine[[#This Row],[Baseline kW CP2]]^2+$AD$62*tbl_Refrigeration_Calc_Engine[[#This Row],[Load SCT Discharge Temp]]+$AC$62*tbl_Refrigeration_Calc_Engine[[#This Row],[Load SCT Discharge Temp]]^2+$AB$62*IF($G$6="Detailed", tbl_Refrigeration_Calc_Engine[[#This Row],[Baseline SST CP2]]+$E$74,tbl_Refrigeration_Calc_Engine[[#This Row],[Baseline SST CP2]])+$AA$62*IF($G$6="Detailed", tbl_Refrigeration_Calc_Engine[[#This Row],[Baseline SST CP2]]+$E$74,tbl_Refrigeration_Calc_Engine[[#This Row],[Baseline SST CP2]])^2)), IF(tbl_Refrigeration_Calc_Engine[[#This Row],[Baseline kW CP3]]=0,0,MAX(0,$AG$63+$AF$63*tbl_Refrigeration_Calc_Engine[[#This Row],[Baseline kW CP3]]+$AE$63*tbl_Refrigeration_Calc_Engine[[#This Row],[Baseline kW CP3]]^2+$AD$63*tbl_Refrigeration_Calc_Engine[[#This Row],[Load SCT Discharge Temp]]+$AC$63*tbl_Refrigeration_Calc_Engine[[#This Row],[Load SCT Discharge Temp]]^2+$AB$63*IF($G$6="Detailed", tbl_Refrigeration_Calc_Engine[[#This Row],[Baseline SST CP3]]+$E$74,tbl_Refrigeration_Calc_Engine[[#This Row],[Baseline SST CP3]])+$AA$63*IF($G$6="Detailed", tbl_Refrigeration_Calc_Engine[[#This Row],[Baseline SST CP3]]+$E$74,tbl_Refrigeration_Calc_Engine[[#This Row],[Baseline SST CP3]])^2)))) -> 0 | Q90: =IF($T$62="Simple",IF(tbl_Refrigeration_Calc_Engine[[#This Row],[bhp Per Ton ]]=0,0,1/tbl_Refrigeration_Calc_Engine[[#This Row],[bhp Per Ton ]]*$Q$71),$AG$69+$AF$69*tbl_Refrigeration_Calc_Engine[[#This Row],[SCT Discharge Temp]]) ->  | R90: =IF($T$62="Simple",IF(tbl_Refrigeration_Calc_Engine[[#This Row],[bhp Per Ton ]]=0,0,1/tbl_Refrigeration_Calc_Engine[[#This Row],[bhp Per Ton ]]*$R$71),$AG$70+$AF$70*tbl_Refrigeration_Calc_Engine[[#This Row],[SCT Discharge Temp]]) ->  | S90: =IF($T$62="Simple",IF(tbl_Refrigeration_Calc_Engine[[#This Row],[bhp Per Ton ]]=0,0,1/tbl_Refrigeration_Calc_Engine[[#This Row],[bhp Per Ton ]]*$S$71),$AG$71+$AF$71*tbl_Refrigeration_Calc_Engine[[#This Row],[SCT Discharge Temp]]) ->  | T90: =Stage_Check($P$62:$P$68,$Q$61:$S$61,tbl_Refrigeration_Calc_Engine[[#This Row],[Capacity CP1]:[Capacity CP3]],tbl_Refrigeration_Calc_Engine[[#This Row],[Cooling Load Ton]]) ->  | U90: =IF(tbl_Refrigeration_Calc_Engine[[#This Row],[Cooling Load Ton]]=0,0,Compressor_Load(tbl_Refrigeration_Calc_Engine[[#This Row],[Cooling Load Ton]],tbl_Refrigeration_Calc_Engine[[#This Row],[Capacity CP1]:[Capacity CP3]],INDEX($Q$62:$S$68,tbl_Refrigeration_Calc_Engine[[#This Row],[Stage]],0),tbl_Refrigeration_Calc_Engine[[#Headers],[Load CP1]])) -> 0 | V90: =IF(tbl_Refrigeration_Calc_Engine[[#This Row],[Cooling Load Ton]]=0,0,Compressor_Load(tbl_Refrigeration_Calc_Engine[[#This Row],[Cooling Load Ton]],tbl_Refrigeration_Calc_Engine[[#This Row],[Capacity CP1]:[Capacity CP3]],INDEX($Q$62:$S$68,tbl_Refrigeration_Calc_Engine[[#This Row],[Stage]],0),tbl_Refrigeration_Calc_Engine[[#Headers],[Load CP2]])) -> 0 | W90: =IF(tbl_Refrigeration_Calc_Engine[[#This Row],[Cooling Load Ton]]=0,0,Compressor_Load(tbl_Refrigeration_Calc_Engine[[#This Row],[Cooling Load Ton]],tbl_Refrigeration_Calc_Engine[[#This Row],[Capacity CP1]:[Capacity CP3]],INDEX($Q$62:$S$68,tbl_Refrigeration_Calc_Engine[[#This Row],[Stage]],0),tbl_Refrigeration_Calc_Engine[[#Headers],[Load CP3]])) -> 0 | X90: =IF(OR(tbl_Refrigeration_Calc_Engine[[#This Row],[Capacity CP1]]=0,tbl_Refrigeration_Calc_Engine[[#This Row],[Load CP1]]<tbl_Refrigeration_Calc_Engine[[#This Row],[Capacity CP1]]*$E$69),0,tbl_Refrigeration_Calc_Engine[[#This Row],[Load CP1]]/tbl_Refrigeration_Calc_Engine[[#This Row],[Capacity CP1]]) ->  | Y90: =IF(OR(tbl_Refrigeration_Calc_Engine[[#This Row],[Capacity CP2]]=0,tbl_Refrigeration_Calc_Engine[[#This Row],[Load CP2]]<tbl_Refrigeration_Calc_Engine[[#This Row],[Capacity CP2]]*$E$69),0,tbl_Refrigeration_Calc_Engine[[#This Row],[Load CP2]]/tbl_Refrigeration_Calc_Engine[[#This Row],[Capacity CP2]]) ->  | Z90: =IF(OR(tbl_Refrigeration_Calc_Engine[[#This Row],[Capacity CP3]]=0,tbl_Refrigeration_Calc_Engine[[#This Row],[Load CP3]]<tbl_Refrigeration_Calc_Engine[[#This Row],[Capacity CP3]]*$E$69),0,tbl_Refrigeration_Calc_Engine[[#This Row],[Load CP3]]/tbl_Refrigeration_Calc_Engine[[#This Row],[Capacity CP3]]) ->  | AA90: =IF(tbl_Refrigeration_Calc_Engine[[#This Row],[Capacity % CP1]]=0,0,MAX(0,INDEX($U$66:$X$68,Q$72,1)*tbl_Refrigeration_Calc_Engine[[#This Row],[Capacity % CP1]]^3+INDEX($U$66:$X$68,Q$72,2)*tbl_Refrigeration_Calc_Engine[[#This Row],[Capacity % CP1]]^2+INDEX($U$66:$X$68,Q$72,3)*tbl_Refrigeration_Calc_Engine[[#This Row],[Capacity % CP1]]+INDEX($U$66:$X$68,Q$72,4))) ->  | AB90: =IF(tbl_Refrigeration_Calc_Engine[[#This Row],[Capacity % CP2]]=0,0,MAX(0,INDEX($U$66:$X$68,R$72,1)*tbl_Refrigeration_Calc_Engine[[#This Row],[Capacity % CP2]]^3+INDEX($U$66:$X$68,R$72,2)*tbl_Refrigeration_Calc_Engine[[#This Row],[Capacity % CP2]]^2+INDEX($U$66:$X$68,R$72,3)*tbl_Refrigeration_Calc_Engine[[#This Row],[Capacity % CP2]]+INDEX($U$66:$X$68,R$72,4))) ->  | AC90: =IF(tbl_Refrigeration_Calc_Engine[[#This Row],[Capacity % CP3]]=0,0,MAX(0,INDEX($U$66:$X$68,S$72,1)*tbl_Refrigeration_Calc_Engine[[#This Row],[Capacity % CP3]]^3+INDEX($U$66:$X$68,S$72,2)*tbl_Refrigeration_Calc_Engine[[#This Row],[Capacity % CP3]]^2+INDEX($U$66:$X$68,S$72,3)*tbl_Refrigeration_Calc_Engine[[#This Row],[Capacity % CP3]]+INDEX($U$66:$X$68,S$72,4))) ->  | AD90: =IF($D$6="Evaporative",IF($J$65-tbl_Refrigeration_Calc_Engine[[#This Row],[WBT]]<=$E$5,1,IF($J$65<=tbl_Refrigeration_Calc_Engine[[#This Row],[WBT]],1,$E$5/($J$65-tbl_Refrigeration_Calc_Engine[[#This Row],[WBT]]))),IF($J$65-tbl_Refrigeration_Calc_Engine[[#This Row],[DBT]]<=$E$5,1,IF($J$65<=tbl_Refrigeration_Calc_Engine[[#This Row],[DBT]],1,$E$5/($J$65-tbl_Refrigeration_Calc_Engine[[#This Row],[DBT]])))) ->  | AE90: =tbl_Refrigeration_Calc_Engine[[#This Row],[Cooling Load Ton]]/$V$61 ->  | AF90: =IF($T$62="Simple",SUMPRODUCT(tbl_Refrigeration_Calc_Engine[[#This Row],[Power % CP1]:[Power % CP3]],$Q$70:$S$70*O90*0.746/$E$65), SUM( IF(tbl_Refrigeration_Calc_Engine[[#This Row],[Capacity % CP1]]=0,0,MAX(0,tbl_Refrigeration_Calc_Engine[[#This Row],[Power % CP1]]*($AG$65+$AF$65*tbl_Refrigeration_Calc_Engine[[#This Row],[SCT Discharge Temp]]+$AE$65*tbl_Refrigeration_Calc_Engine[[#This Row],[SCT Discharge Temp]]^2+$AD$65*IF($G$6="Detailed", tbl_Refrigeration_Calc_Engine[[#This Row],[Baseline SST CP1]]+$E$74,$J$68)+$AC$65*IF($G$6="Detailed", tbl_Refrigeration_Calc_Engine[[#This Row],[Baseline SST CP1]]+$E$74,$J$68)^2+$AB$65*tbl_Refrigeration_Calc_Engine[[#This Row],[Load CP1]]+$AA$65*tbl_Refrigeration_Calc_Engine[[#This Row],[Load CP1]]^2))), IF(tbl_Refrigeration_Calc_Engine[[#This Row],[Capacity % CP2]]=0,0,MAX(0,tbl_Refrigeration_Calc_Engine[[#This Row],[Power % CP2]]*($AG$66+$AF$66*tbl_Refrigeration_Calc_Engine[[#This Row],[SCT Discharge Temp]]+$AE$66*tbl_Refrigeration_Calc_Engine[[#This Row],[SCT Discharge Temp]]^2+$AD$66*IF($G$6="Detailed", tbl_Refrigeration_Calc_Engine[[#This Row],[Baseline SST CP2]]+$E$74,$J$68)+$AC$66*IF($G$6="Detailed", tbl_Refrigeration_Calc_Engine[[#This Row],[Baseline SST CP2]]+$E$74,$J$68)^2+$AB$66*tbl_Refrigeration_Calc_Engine[[#This Row],[Load CP2]]+$AA$66*tbl_Refrigeration_Calc_Engine[[#This Row],[Load CP2]]^2))), IF(tbl_Refrigeration_Calc_Engine[[#This Row],[Capacity % CP3]]=0,0,MAX(0,tbl_Refrigeration_Calc_Engine[[#This Row],[Power % CP3]]*($AG$67+$AF$67*tbl_Refrigeration_Calc_Engine[[#This Row],[SCT Discharge Temp]]+$AE$67*tbl_Refrigeration_Calc_Engine[[#This Row],[SCT Discharge Temp]]^2+$AD$67*IF($G$6="Detailed", tbl_Refrigeration_Calc_Engine[[#This Row],[Baseline SST CP3]]+$E$74,$J$68)+$AC$67*IF($G$6="Detailed", tbl_Refrigeration_Calc_Engine[[#This Row],[Baseline SST CP3]]+$E$74,$J$68)^2+$AB$67*tbl_Refrigeration_Calc_Engine[[#This Row],[Load CP3]]+$AA$67*tbl_Refrigeration_Calc_Engine[[#This Row],[Load CP3]]^2))))) ->  | AG90: =IF($B$72="On-Off",$J$66*tbl_Refrigeration_Calc_Engine[[#This Row],[Condenser Fan]],$J$66*tbl_Refrigeration_Calc_Engine[[#This Row],[Condenser Fan]]^3/'Refrigeration Template'!$E$61) ->  | AH90: =IF($E$72="VFD",MAX($E$73,tbl_Refrigeration_Calc_Engine[[#This Row],[Calculated Evaporator Fan]])^3,tbl_Refrigeration_Calc_Engine[[#This Row],[Calculated Evaporator Fan]])*$J$67 -> 
B91: 14 | C91: 14 | D91: ='CTZ2'!M15 -> 46 | E91: ='CTZ2'!N15 -> 58 | L91: =MAX($C$19,$E$5+IF($D$6="Evaporative",tbl_Refrigeration_Calc_Engine[[#This Row],[WBT]],tbl_Refrigeration_Calc_Engine[[#This Row],[DBT]])) ->  | M91: =MAX($J$65,$E$5+IF($D$6="Evaporative",tbl_Refrigeration_Calc_Engine[[#This Row],[WBT]],tbl_Refrigeration_Calc_Engine[[#This Row],[DBT]])) ->  | N91: =(0.339-0.00692*$J$64+0.000128*$J$64^2+0.00561*tbl_Refrigeration_Calc_Engine[[#This Row],[SCT Discharge Temp]]+0.0000917*tbl_Refrigeration_Calc_Engine[[#This Row],[SCT Discharge Temp]]^2-0.000235*$J$64*tbl_Refrigeration_Calc_Engine[[#This Row],[SCT Discharge Temp]]) ->  | O91: =1-(MAX(tbl_Refrigeration_Calc_Engine[SCT Discharge Temp])-tbl_Refrigeration_Calc_Engine[[#This Row],[SCT Discharge Temp]])*'Refrigeration Template'!$E$63 ->  | P91: =IF($T$62="Simple",FORECAST(MEDIAN($X$61,$X$62,tbl_Refrigeration_Calc_Engine[[#This Row],[DBT]]),$V$61:$V$62,$X$61:$X$62), SUM( IF(tbl_Refrigeration_Calc_Engine[[#This Row],[Baseline kW CP1]]=0,0,MAX(0,$AG$61+$AF$61*tbl_Refrigeration_Calc_Engine[[#This Row],[Baseline kW CP1]]+$AE$61*tbl_Refrigeration_Calc_Engine[[#This Row],[Baseline kW CP1]]^2+$AD$61*tbl_Refrigeration_Calc_Engine[[#This Row],[Load SCT Discharge Temp]]+$AC$61*tbl_Refrigeration_Calc_Engine[[#This Row],[Load SCT Discharge Temp]]^2+$AB$61*IF($G$6="Detailed", tbl_Refrigeration_Calc_Engine[[#This Row],[Baseline SST CP1]]+$E$74,tbl_Refrigeration_Calc_Engine[[#This Row],[Baseline SST CP1]])+$AA$61*IF($G$6="Detailed", tbl_Refrigeration_Calc_Engine[[#This Row],[Baseline SST CP1]]+$E$74,tbl_Refrigeration_Calc_Engine[[#This Row],[Baseline SST CP1]])^2)), IF(tbl_Refrigeration_Calc_Engine[[#This Row],[Baseline kW CP2]]=0,0,MAX(0,$AG$62+$AF$62*tbl_Refrigeration_Calc_Engine[[#This Row],[Baseline kW CP2]]+$AE$62*tbl_Refrigeration_Calc_Engine[[#This Row],[Baseline kW CP2]]^2+$AD$62*tbl_Refrigeration_Calc_Engine[[#This Row],[Load SCT Discharge Temp]]+$AC$62*tbl_Refrigeration_Calc_Engine[[#This Row],[Load SCT Discharge Temp]]^2+$AB$62*IF($G$6="Detailed", tbl_Refrigeration_Calc_Engine[[#This Row],[Baseline SST CP2]]+$E$74,tbl_Refrigeration_Calc_Engine[[#This Row],[Baseline SST CP2]])+$AA$62*IF($G$6="Detailed", tbl_Refrigeration_Calc_Engine[[#This Row],[Baseline SST CP2]]+$E$74,tbl_Refrigeration_Calc_Engine[[#This Row],[Baseline SST CP2]])^2)), IF(tbl_Refrigeration_Calc_Engine[[#This Row],[Baseline kW CP3]]=0,0,MAX(0,$AG$63+$AF$63*tbl_Refrigeration_Calc_Engine[[#This Row],[Baseline kW CP3]]+$AE$63*tbl_Refrigeration_Calc_Engine[[#This Row],[Baseline kW CP3]]^2+$AD$63*tbl_Refrigeration_Calc_Engine[[#This Row],[Load SCT Discharge Temp]]+$AC$63*tbl_Refrigeration_Calc_Engine[[#This Row],[Load SCT Discharge Temp]]^2+$AB$63*IF($G$6="Detailed", tbl_Refrigeration_Calc_Engine[[#This Row],[Baseline SST CP3]]+$E$74,tbl_Refrigeration_Calc_Engine[[#This Row],[Baseline SST CP3]])+$AA$63*IF($G$6="Detailed", tbl_Refrigeration_Calc_Engine[[#This Row],[Baseline SST CP3]]+$E$74,tbl_Refrigeration_Calc_Engine[[#This Row],[Baseline SST CP3]])^2)))) -> 0 | Q91: =IF($T$62="Simple",IF(tbl_Refrigeration_Calc_Engine[[#This Row],[bhp Per Ton ]]=0,0,1/tbl_Refrigeration_Calc_Engine[[#This Row],[bhp Per Ton ]]*$Q$71),$AG$69+$AF$69*tbl_Refrigeration_Calc_Engine[[#This Row],[SCT Discharge Temp]]) ->  | R91: =IF($T$62="Simple",IF(tbl_Refrigeration_Calc_Engine[[#This Row],[bhp Per Ton ]]=0,0,1/tbl_Refrigeration_Calc_Engine[[#This Row],[bhp Per Ton ]]*$R$71),$AG$70+$AF$70*tbl_Refrigeration_Calc_Engine[[#This Row],[SCT Discharge Temp]]) ->  | S91: =IF($T$62="Simple",IF(tbl_Refrigeration_Calc_Engine[[#This Row],[bhp Per Ton ]]=0,0,1/tbl_Refrigeration_Calc_Engine[[#This Row],[bhp Per Ton ]]*$S$71),$AG$71+$AF$71*tbl_Refrigeration_Calc_Engine[[#This Row],[SCT Discharge Temp]]) ->  | T91: =Stage_Check($P$62:$P$68,$Q$61:$S$61,tbl_Refrigeration_Calc_Engine[[#This Row],[Capacity CP1]:[Capacity CP3]],tbl_Refrigeration_Calc_Engine[[#This Row],[Cooling Load Ton]]) ->  | U91: =IF(tbl_Refrigeration_Calc_Engine[[#This Row],[Cooling Load Ton]]=0,0,Compressor_Load(tbl_Refrigeration_Calc_Engine[[#This Row],[Cooling Load Ton]],tbl_Refrigeration_Calc_Engine[[#This Row],[Capacity CP1]:[Capacity CP3]],INDEX($Q$62:$S$68,tbl_Refrigeration_Calc_Engine[[#This Row],[Stage]],0),tbl_Refrigeration_Calc_Engine[[#Headers],[Load CP1]])) -> 0 | V91: =IF(tbl_Refrigeration_Calc_Engine[[#This Row],[Cooling Load Ton]]=0,0,Compressor_Load(tbl_Refrigeration_Calc_Engine[[#This Row],[Cooling Load Ton]],tbl_Refrigeration_Calc_Engine[[#This Row],[Capacity CP1]:[Capacity CP3]],INDEX($Q$62:$S$68,tbl_Refrigeration_Calc_Engine[[#This Row],[Stage]],0),tbl_Refrigeration_Calc_Engine[[#Headers],[Load CP2]])) -> 0 | W91: =IF(tbl_Refrigeration_Calc_Engine[[#This Row],[Cooling Load Ton]]=0,0,Compressor_Load(tbl_Refrigeration_Calc_Engine[[#This Row],[Cooling Load Ton]],tbl_Refrigeration_Calc_Engine[[#This Row],[Capacity CP1]:[Capacity CP3]],INDEX($Q$62:$S$68,tbl_Refrigeration_Calc_Engine[[#This Row],[Stage]],0),tbl_Refrigeration_Calc_Engine[[#Headers],[Load CP3]])) -> 0 | X91: =IF(OR(tbl_Refrigeration_Calc_Engine[[#This Row],[Capacity CP1]]=0,tbl_Refrigeration_Calc_Engine[[#This Row],[Load CP1]]<tbl_Refrigeration_Calc_Engine[[#This Row],[Capacity CP1]]*$E$69),0,tbl_Refrigeration_Calc_Engine[[#This Row],[Load CP1]]/tbl_Refrigeration_Calc_Engine[[#This Row],[Capacity CP1]]) ->  | Y91: =IF(OR(tbl_Refrigeration_Calc_Engine[[#This Row],[Capacity CP2]]=0,tbl_Refrigeration_Calc_Engine[[#This Row],[Load CP2]]<tbl_Refrigeration_Calc_Engine[[#This Row],[Capacity CP2]]*$E$69),0,tbl_Refrigeration_Calc_Engine[[#This Row],[Load CP2]]/tbl_Refrigeration_Calc_Engine[[#This Row],[Capacity CP2]]) ->  | Z91: =IF(OR(tbl_Refrigeration_Calc_Engine[[#This Row],[Capacity CP3]]=0,tbl_Refrigeration_Calc_Engine[[#This Row],[Load CP3]]<tbl_Refrigeration_Calc_Engine[[#This Row],[Capacity CP3]]*$E$69),0,tbl_Refrigeration_Calc_Engine[[#This Row],[Load CP3]]/tbl_Refrigeration_Calc_Engine[[#This Row],[Capacity CP3]]) ->  | AA91: =IF(tbl_Refrigeration_Calc_Engine[[#This Row],[Capacity % CP1]]=0,0,MAX(0,INDEX($U$66:$X$68,Q$72,1)*tbl_Refrigeration_Calc_Engine[[#This Row],[Capacity % CP1]]^3+INDEX($U$66:$X$68,Q$72,2)*tbl_Refrigeration_Calc_Engine[[#This Row],[Capacity % CP1]]^2+INDEX($U$66:$X$68,Q$72,3)*tbl_Refrigeration_Calc_Engine[[#This Row],[Capacity % CP1]]+INDEX($U$66:$X$68,Q$72,4))) ->  | AB91: =IF(tbl_Refrigeration_Calc_Engine[[#This Row],[Capacity % CP2]]=0,0,MAX(0,INDEX($U$66:$X$68,R$72,1)*tbl_Refrigeration_Calc_Engine[[#This Row],[Capacity % CP2]]^3+INDEX($U$66:$X$68,R$72,2)*tbl_Refrigeration_Calc_Engine[[#This Row],[Capacity % CP2]]^2+INDEX($U$66:$X$68,R$72,3)*tbl_Refrigeration_Calc_Engine[[#This Row],[Capacity % CP2]]+INDEX($U$66:$X$68,R$72,4))) ->  | AC91: =IF(tbl_Refrigeration_Calc_Engine[[#This Row],[Capacity % CP3]]=0,0,MAX(0,INDEX($U$66:$X$68,S$72,1)*tbl_Refrigeration_Calc_Engine[[#This Row],[Capacity % CP3]]^3+INDEX($U$66:$X$68,S$72,2)*tbl_Refrigeration_Calc_Engine[[#This Row],[Capacity % CP3]]^2+INDEX($U$66:$X$68,S$72,3)*tbl_Refrigeration_Calc_Engine[[#This Row],[Capacity % CP3]]+INDEX($U$66:$X$68,S$72,4))) ->  | AD91: =IF($D$6="Evaporative",IF($J$65-tbl_Refrigeration_Calc_Engine[[#This Row],[WBT]]<=$E$5,1,IF($J$65<=tbl_Refrigeration_Calc_Engine[[#This Row],[WBT]],1,$E$5/($J$65-tbl_Refrigeration_Calc_Engine[[#This Row],[WBT]]))),IF($J$65-tbl_Refrigeration_Calc_Engine[[#This Row],[DBT]]<=$E$5,1,IF($J$65<=tbl_Refrigeration_Calc_Engine[[#This Row],[DBT]],1,$E$5/($J$65-tbl_Refrigeration_Calc_Engine[[#This Row],[DBT]])))) ->  | AE91: =tbl_Refrigeration_Calc_Engine[[#This Row],[Cooling Load Ton]]/$V$61 ->  | AF91: =IF($T$62="Simple",SUMPRODUCT(tbl_Refrigeration_Calc_Engine[[#This Row],[Power % CP1]:[Power % CP3]],$Q$70:$S$70*O91*0.746/$E$65), SUM( IF(tbl_Refrigeration_Calc_Engine[[#This Row],[Capacity % CP1]]=0,0,MAX(0,tbl_Refrigeration_Calc_Engine[[#This Row],[Power % CP1]]*($AG$65+$AF$65*tbl_Refrigeration_Calc_Engine[[#This Row],[SCT Discharge Temp]]+$AE$65*tbl_Refrigeration_Calc_Engine[[#This Row],[SCT Discharge Temp]]^2+$AD$65*IF($G$6="Detailed", tbl_Refrigeration_Calc_Engine[[#This Row],[Baseline SST CP1]]+$E$74,$J$68)+$AC$65*IF($G$6="Detailed", tbl_Refrigeration_Calc_Engine[[#This Row],[Baseline SST CP1]]+$E$74,$J$68)^2+$AB$65*tbl_Refrigeration_Calc_Engine[[#This Row],[Load CP1]]+$AA$65*tbl_Refrigeration_Calc_Engine[[#This Row],[Load CP1]]^2))), IF(tbl_Refrigeration_Calc_Engine[[#This Row],[Capacity % CP2]]=0,0,MAX(0,tbl_Refrigeration_Calc_Engine[[#This Row],[Power % CP2]]*($AG$66+$AF$66*tbl_Refrigeration_Calc_Engine[[#This Row],[SCT Discharge Temp]]+$AE$66*tbl_Refrigeration_Calc_Engine[[#This Row],[SCT Discharge Temp]]^2+$AD$66*IF($G$6="Detailed", tbl_Refrigeration_Calc_Engine[[#This Row],[Baseline SST CP2]]+$E$74,$J$68)+$AC$66*IF($G$6="Detailed", tbl_Refrigeration_Calc_Engine[[#This Row],[Baseline SST CP2]]+$E$74,$J$68)^2+$AB$66*tbl_Refrigeration_Calc_Engine[[#This Row],[Load CP2]]+$AA$66*tbl_Refrigeration_Calc_Engine[[#This Row],[Load CP2]]^2))), IF(tbl_Refrigeration_Calc_Engine[[#This Row],[Capacity % CP3]]=0,0,MAX(0,tbl_Refrigeration_Calc_Engine[[#This Row],[Power % CP3]]*($AG$67+$AF$67*tbl_Refrigeration_Calc_Engine[[#This Row],[SCT Discharge Temp]]+$AE$67*tbl_Refrigeration_Calc_Engine[[#This Row],[SCT Discharge Temp]]^2+$AD$67*IF($G$6="Detailed", tbl_Refrigeration_Calc_Engine[[#This Row],[Baseline SST CP3]]+$E$74,$J$68)+$AC$67*IF($G$6="Detailed", tbl_Refrigeration_Calc_Engine[[#This Row],[Baseline SST CP3]]+$E$74,$J$68)^2+$AB$67*tbl_Refrigeration_Calc_Engine[[#This Row],[Load CP3]]+$AA$67*tbl_Refrigeration_Calc_Engine[[#This Row],[Load CP3]]^2))))) ->  | AG91: =IF($B$72="On-Off",$J$66*tbl_Refrigeration_Calc_Engine[[#This Row],[Condenser Fan]],$J$66*tbl_Refrigeration_Calc_Engine[[#This Row],[Condenser Fan]]^3/'Refrigeration Template'!$E$61) ->  | AH91: =IF($E$72="VFD",MAX($E$73,tbl_Refrigeration_Calc_Engine[[#This Row],[Calculated Evaporator Fan]])^3,tbl_Refrigeration_Calc_Engine[[#This Row],[Calculated Evaporator Fan]])*$J$67 -> 
B92: 15 | C92: 15 | D92: ='CTZ2'!M16 -> 45 | E92: ='CTZ2'!N16 -> 56 | L92: =MAX($C$19,$E$5+IF($D$6="Evaporative",tbl_Refrigeration_Calc_Engine[[#This Row],[WBT]],tbl_Refrigeration_Calc_Engine[[#This Row],[DBT]])) ->  | M92: =MAX($J$65,$E$5+IF($D$6="Evaporative",tbl_Refrigeration_Calc_Engine[[#This Row],[WBT]],tbl_Refrigeration_Calc_Engine[[#This Row],[DBT]])) ->  | N92: =(0.339-0.00692*$J$64+0.000128*$J$64^2+0.00561*tbl_Refrigeration_Calc_Engine[[#This Row],[SCT Discharge Temp]]+0.0000917*tbl_Refrigeration_Calc_Engine[[#This Row],[SCT Discharge Temp]]^2-0.000235*$J$64*tbl_Refrigeration_Calc_Engine[[#This Row],[SCT Discharge Temp]]) ->  | O92: =1-(MAX(tbl_Refrigeration_Calc_Engine[SCT Discharge Temp])-tbl_Refrigeration_Calc_Engine[[#This Row],[SCT Discharge Temp]])*'Refrigeration Template'!$E$63 ->  | P92: =IF($T$62="Simple",FORECAST(MEDIAN($X$61,$X$62,tbl_Refrigeration_Calc_Engine[[#This Row],[DBT]]),$V$61:$V$62,$X$61:$X$62), SUM( IF(tbl_Refrigeration_Calc_Engine[[#This Row],[Baseline kW CP1]]=0,0,MAX(0,$AG$61+$AF$61*tbl_Refrigeration_Calc_Engine[[#This Row],[Baseline kW CP1]]+$AE$61*tbl_Refrigeration_Calc_Engine[[#This Row],[Baseline kW CP1]]^2+$AD$61*tbl_Refrigeration_Calc_Engine[[#This Row],[Load SCT Discharge Temp]]+$AC$61*tbl_Refrigeration_Calc_Engine[[#This Row],[Load SCT Discharge Temp]]^2+$AB$61*IF($G$6="Detailed", tbl_Refrigeration_Calc_Engine[[#This Row],[Baseline SST CP1]]+$E$74,tbl_Refrigeration_Calc_Engine[[#This Row],[Baseline SST CP1]])+$AA$61*IF($G$6="Detailed", tbl_Refrigeration_Calc_Engine[[#This Row],[Baseline SST CP1]]+$E$74,tbl_Refrigeration_Calc_Engine[[#This Row],[Baseline SST CP1]])^2)), IF(tbl_Refrigeration_Calc_Engine[[#This Row],[Baseline kW CP2]]=0,0,MAX(0,$AG$62+$AF$62*tbl_Refrigeration_Calc_Engine[[#This Row],[Baseline kW CP2]]+$AE$62*tbl_Refrigeration_Calc_Engine[[#This Row],[Baseline kW CP2]]^2+$AD$62*tbl_Refrigeration_Calc_Engine[[#This Row],[Load SCT Discharge Temp]]+$AC$62*tbl_Refrigeration_Calc_Engine[[#This Row],[Load SCT Discharge Temp]]^2+$AB$62*IF($G$6="Detailed", tbl_Refrigeration_Calc_Engine[[#This Row],[Baseline SST CP2]]+$E$74,tbl_Refrigeration_Calc_Engine[[#This Row],[Baseline SST CP2]])+$AA$62*IF($G$6="Detailed", tbl_Refrigeration_Calc_Engine[[#This Row],[Baseline SST CP2]]+$E$74,tbl_Refrigeration_Calc_Engine[[#This Row],[Baseline SST CP2]])^2)), IF(tbl_Refrigeration_Calc_Engine[[#This Row],[Baseline kW CP3]]=0,0,MAX(0,$AG$63+$AF$63*tbl_Refrigeration_Calc_Engine[[#This Row],[Baseline kW CP3]]+$AE$63*tbl_Refrigeration_Calc_Engine[[#This Row],[Baseline kW CP3]]^2+$AD$63*tbl_Refrigeration_Calc_Engine[[#This Row],[Load SCT Discharge Temp]]+$AC$63*tbl_Refrigeration_Calc_Engine[[#This Row],[Load SCT Discharge Temp]]^2+$AB$63*IF($G$6="Detailed", tbl_Refrigeration_Calc_Engine[[#This Row],[Baseline SST CP3]]+$E$74,tbl_Refrigeration_Calc_Engine[[#This Row],[Baseline SST CP3]])+$AA$63*IF($G$6="Detailed", tbl_Refrigeration_Calc_Engine[[#This Row],[Baseline SST CP3]]+$E$74,tbl_Refrigeration_Calc_Engine[[#This Row],[Baseline SST CP3]])^2)))) -> 0 | Q92: =IF($T$62="Simple",IF(tbl_Refrigeration_Calc_Engine[[#This Row],[bhp Per Ton ]]=0,0,1/tbl_Refrigeration_Calc_Engine[[#This Row],[bhp Per Ton ]]*$Q$71),$AG$69+$AF$69*tbl_Refrigeration_Calc_Engine[[#This Row],[SCT Discharge Temp]]) ->  | R92: =IF($T$62="Simple",IF(tbl_Refrigeration_Calc_Engine[[#This Row],[bhp Per Ton ]]=0,0,1/tbl_Refrigeration_Calc_Engine[[#This Row],[bhp Per Ton ]]*$R$71),$AG$70+$AF$70*tbl_Refrigeration_Calc_Engine[[#This Row],[SCT Discharge Temp]]) ->  | S92: =IF($T$62="Simple",IF(tbl_Refrigeration_Calc_Engine[[#This Row],[bhp Per Ton ]]=0,0,1/tbl_Refrigeration_Calc_Engine[[#This Row],[bhp Per Ton ]]*$S$71),$AG$71+$AF$71*tbl_Refrigeration_Calc_Engine[[#This Row],[SCT Discharge Temp]]) ->  | T92: =Stage_Check($P$62:$P$68,$Q$61:$S$61,tbl_Refrigeration_Calc_Engine[[#This Row],[Capacity CP1]:[Capacity CP3]],tbl_Refrigeration_Calc_Engine[[#This Row],[Cooling Load Ton]]) ->  | U92: =IF(tbl_Refrigeration_Calc_Engine[[#This Row],[Cooling Load Ton]]=0,0,Compressor_Load(tbl_Refrigeration_Calc_Engine[[#This Row],[Cooling Load Ton]],tbl_Refrigeration_Calc_Engine[[#This Row],[Capacity CP1]:[Capacity CP3]],INDEX($Q$62:$S$68,tbl_Refrigeration_Calc_Engine[[#This Row],[Stage]],0),tbl_Refrigeration_Calc_Engine[[#Headers],[Load CP1]])) -> 0 | V92: =IF(tbl_Refrigeration_Calc_Engine[[#This Row],[Cooling Load Ton]]=0,0,Compressor_Load(tbl_Refrigeration_Calc_Engine[[#This Row],[Cooling Load Ton]],tbl_Refrigeration_Calc_Engine[[#This Row],[Capacity CP1]:[Capacity CP3]],INDEX($Q$62:$S$68,tbl_Refrigeration_Calc_Engine[[#This Row],[Stage]],0),tbl_Refrigeration_Calc_Engine[[#Headers],[Load CP2]])) -> 0 | W92: =IF(tbl_Refrigeration_Calc_Engine[[#This Row],[Cooling Load Ton]]=0,0,Compressor_Load(tbl_Refrigeration_Calc_Engine[[#This Row],[Cooling Load Ton]],tbl_Refrigeration_Calc_Engine[[#This Row],[Capacity CP1]:[Capacity CP3]],INDEX($Q$62:$S$68,tbl_Refrigeration_Calc_Engine[[#This Row],[Stage]],0),tbl_Refrigeration_Calc_Engine[[#Headers],[Load CP3]])) -> 0 | X92: =IF(OR(tbl_Refrigeration_Calc_Engine[[#This Row],[Capacity CP1]]=0,tbl_Refrigeration_Calc_Engine[[#This Row],[Load CP1]]<tbl_Refrigeration_Calc_Engine[[#This Row],[Capacity CP1]]*$E$69),0,tbl_Refrigeration_Calc_Engine[[#This Row],[Load CP1]]/tbl_Refrigeration_Calc_Engine[[#This Row],[Capacity CP1]]) ->  | Y92: =IF(OR(tbl_Refrigeration_Calc_Engine[[#This Row],[Capacity CP2]]=0,tbl_Refrigeration_Calc_Engine[[#This Row],[Load CP2]]<tbl_Refrigeration_Calc_Engine[[#This Row],[Capacity CP2]]*$E$69),0,tbl_Refrigeration_Calc_Engine[[#This Row],[Load CP2]]/tbl_Refrigeration_Calc_Engine[[#This Row],[Capacity CP2]]) ->  | Z92: =IF(OR(tbl_Refrigeration_Calc_Engine[[#This Row],[Capacity CP3]]=0,tbl_Refrigeration_Calc_Engine[[#This Row],[Load CP3]]<tbl_Refrigeration_Calc_Engine[[#This Row],[Capacity CP3]]*$E$69),0,tbl_Refrigeration_Calc_Engine[[#This Row],[Load CP3]]/tbl_Refrigeration_Calc_Engine[[#This Row],[Capacity CP3]]) ->  | AA92: =IF(tbl_Refrigeration_Calc_Engine[[#This Row],[Capacity % CP1]]=0,0,MAX(0,INDEX($U$66:$X$68,Q$72,1)*tbl_Refrigeration_Calc_Engine[[#This Row],[Capacity % CP1]]^3+INDEX($U$66:$X$68,Q$72,2)*tbl_Refrigeration_Calc_Engine[[#This Row],[Capacity % CP1]]^2+INDEX($U$66:$X$68,Q$72,3)*tbl_Refrigeration_Calc_Engine[[#This Row],[Capacity % CP1]]+INDEX($U$66:$X$68,Q$72,4))) ->  | AB92: =IF(tbl_Refrigeration_Calc_Engine[[#This Row],[Capacity % CP2]]=0,0,MAX(0,INDEX($U$66:$X$68,R$72,1)*tbl_Refrigeration_Calc_Engine[[#This Row],[Capacity % CP2]]^3+INDEX($U$66:$X$68,R$72,2)*tbl_Refrigeration_Calc_Engine[[#This Row],[Capacity % CP2]]^2+INDEX($U$66:$X$68,R$72,3)*tbl_Refrigeration_Calc_Engine[[#This Row],[Capacity % CP2]]+INDEX($U$66:$X$68,R$72,4))) ->  | AC92: =IF(tbl_Refrigeration_Calc_Engine[[#This Row],[Capacity % CP3]]=0,0,MAX(0,INDEX($U$66:$X$68,S$72,1)*tbl_Refrigeration_Calc_Engine[[#This Row],[Capacity % CP3]]^3+INDEX($U$66:$X$68,S$72,2)*tbl_Refrigeration_Calc_Engine[[#This Row],[Capacity % CP3]]^2+INDEX($U$66:$X$68,S$72,3)*tbl_Refrigeration_Calc_Engine[[#This Row],[Capacity % CP3]]+INDEX($U$66:$X$68,S$72,4))) ->  | AD92: =IF($D$6="Evaporative",IF($J$65-tbl_Refrigeration_Calc_Engine[[#This Row],[WBT]]<=$E$5,1,IF($J$65<=tbl_Refrigeration_Calc_Engine[[#This Row],[WBT]],1,$E$5/($J$65-tbl_Refrigeration_Calc_Engine[[#This Row],[WBT]]))),IF($J$65-tbl_Refrigeration_Calc_Engine[[#This Row],[DBT]]<=$E$5,1,IF($J$65<=tbl_Refrigeration_Calc_Engine[[#This Row],[DBT]],1,$E$5/($J$65-tbl_Refrigeration_Calc_Engine[[#This Row],[DBT]])))) ->  | AE92: =tbl_Refrigeration_Calc_Engine[[#This Row],[Cooling Load Ton]]/$V$61 ->  | AF92: =IF($T$62="Simple",SUMPRODUCT(tbl_Refrigeration_Calc_Engine[[#This Row],[Power % CP1]:[Power % CP3]],$Q$70:$S$70*O92*0.746/$E$65), SUM( IF(tbl_Refrigeration_Calc_Engine[[#This Row],[Capacity % CP1]]=0,0,MAX(0,tbl_Refrigeration_Calc_Engine[[#This Row],[Power % CP1]]*($AG$65+$AF$65*tbl_Refrigeration_Calc_Engine[[#This Row],[SCT Discharge Temp]]+$AE$65*tbl_Refrigeration_Calc_Engine[[#This Row],[SCT Discharge Temp]]^2+$AD$65*IF($G$6="Detailed", tbl_Refrigeration_Calc_Engine[[#This Row],[Baseline SST CP1]]+$E$74,$J$68)+$AC$65*IF($G$6="Detailed", tbl_Refrigeration_Calc_Engine[[#This Row],[Baseline SST CP1]]+$E$74,$J$68)^2+$AB$65*tbl_Refrigeration_Calc_Engine[[#This Row],[Load CP1]]+$AA$65*tbl_Refrigeration_Calc_Engine[[#This Row],[Load CP1]]^2))), IF(tbl_Refrigeration_Calc_Engine[[#This Row],[Capacity % CP2]]=0,0,MAX(0,tbl_Refrigeration_Calc_Engine[[#This Row],[Power % CP2]]*($AG$66+$AF$66*tbl_Refrigeration_Calc_Engine[[#This Row],[SCT Discharge Temp]]+$AE$66*tbl_Refrigeration_Calc_Engine[[#This Row],[SCT Discharge Temp]]^2+$AD$66*IF($G$6="Detailed", tbl_Refrigeration_Calc_Engine[[#This Row],[Baseline SST CP2]]+$E$74,$J$68)+$AC$66*IF($G$6="Detailed", tbl_Refrigeration_Calc_Engine[[#This Row],[Baseline SST CP2]]+$E$74,$J$68)^2+$AB$66*tbl_Refrigeration_Calc_Engine[[#This Row],[Load CP2]]+$AA$66*tbl_Refrigeration_Calc_Engine[[#This Row],[Load CP2]]^2))), IF(tbl_Refrigeration_Calc_Engine[[#This Row],[Capacity % CP3]]=0,0,MAX(0,tbl_Refrigeration_Calc_Engine[[#This Row],[Power % CP3]]*($AG$67+$AF$67*tbl_Refrigeration_Calc_Engine[[#This Row],[SCT Discharge Temp]]+$AE$67*tbl_Refrigeration_Calc_Engine[[#This Row],[SCT Discharge Temp]]^2+$AD$67*IF($G$6="Detailed", tbl_Refrigeration_Calc_Engine[[#This Row],[Baseline SST CP3]]+$E$74,$J$68)+$AC$67*IF($G$6="Detailed", tbl_Refrigeration_Calc_Engine[[#This Row],[Baseline SST CP3]]+$E$74,$J$68)^2+$AB$67*tbl_Refrigeration_Calc_Engine[[#This Row],[Load CP3]]+$AA$67*tbl_Refrigeration_Calc_Engine[[#This Row],[Load CP3]]^2))))) ->  | AG92: =IF($B$72="On-Off",$J$66*tbl_Refrigeration_Calc_Engine[[#This Row],[Condenser Fan]],$J$66*tbl_Refrigeration_Calc_Engine[[#This Row],[Condenser Fan]]^3/'Refrigeration Template'!$E$61) ->  | AH92: =IF($E$72="VFD",MAX($E$73,tbl_Refrigeration_Calc_Engine[[#This Row],[Calculated Evaporator Fan]])^3,tbl_Refrigeration_Calc_Engine[[#This Row],[Calculated Evaporator Fan]])*$J$67 -> 
B93: 16 | C93: 16 | D93: ='CTZ2'!M17 -> 44 | E93: ='CTZ2'!N17 -> 55 | L93: =MAX($C$19,$E$5+IF($D$6="Evaporative",tbl_Refrigeration_Calc_Engine[[#This Row],[WBT]],tbl_Refrigeration_Calc_Engine[[#This Row],[DBT]])) ->  | M93: =MAX($J$65,$E$5+IF($D$6="Evaporative",tbl_Refrigeration_Calc_Engine[[#This Row],[WBT]],tbl_Refrigeration_Calc_Engine[[#This Row],[DBT]])) ->  | N93: =(0.339-0.00692*$J$64+0.000128*$J$64^2+0.00561*tbl_Refrigeration_Calc_Engine[[#This Row],[SCT Discharge Temp]]+0.0000917*tbl_Refrigeration_Calc_Engine[[#This Row],[SCT Discharge Temp]]^2-0.000235*$J$64*tbl_Refrigeration_Calc_Engine[[#This Row],[SCT Discharge Temp]]) ->  | O93: =1-(MAX(tbl_Refrigeration_Calc_Engine[SCT Discharge Temp])-tbl_Refrigeration_Calc_Engine[[#This Row],[SCT Discharge Temp]])*'Refrigeration Template'!$E$63 ->  | P93: =IF($T$62="Simple",FORECAST(MEDIAN($X$61,$X$62,tbl_Refrigeration_Calc_Engine[[#This Row],[DBT]]),$V$61:$V$62,$X$61:$X$62), SUM( IF(tbl_Refrigeration_Calc_Engine[[#This Row],[Baseline kW CP1]]=0,0,MAX(0,$AG$61+$AF$61*tbl_Refrigeration_Calc_Engine[[#This Row],[Baseline kW CP1]]+$AE$61*tbl_Refrigeration_Calc_Engine[[#This Row],[Baseline kW CP1]]^2+$AD$61*tbl_Refrigeration_Calc_Engine[[#This Row],[Load SCT Discharge Temp]]+$AC$61*tbl_Refrigeration_Calc_Engine[[#This Row],[Load SCT Discharge Temp]]^2+$AB$61*IF($G$6="Detailed", tbl_Refrigeration_Calc_Engine[[#This Row],[Baseline SST CP1]]+$E$74,tbl_Refrigeration_Calc_Engine[[#This Row],[Baseline SST CP1]])+$AA$61*IF($G$6="Detailed", tbl_Refrigeration_Calc_Engine[[#This Row],[Baseline SST CP1]]+$E$74,tbl_Refrigeration_Calc_Engine[[#This Row],[Baseline SST CP1]])^2)), IF(tbl_Refrigeration_Calc_Engine[[#This Row],[Baseline kW CP2]]=0,0,MAX(0,$AG$62+$AF$62*tbl_Refrigeration_Calc_Engine[[#This Row],[Baseline kW CP2]]+$AE$62*tbl_Refrigeration_Calc_Engine[[#This Row],[Baseline kW CP2]]^2+$AD$62*tbl_Refrigeration_Calc_Engine[[#This Row],[Load SCT Discharge Temp]]+$AC$62*tbl_Refrigeration_Calc_Engine[[#This Row],[Load SCT Discharge Temp]]^2+$AB$62*IF($G$6="Detailed", tbl_Refrigeration_Calc_Engine[[#This Row],[Baseline SST CP2]]+$E$74,tbl_Refrigeration_Calc_Engine[[#This Row],[Baseline SST CP2]])+$AA$62*IF($G$6="Detailed", tbl_Refrigeration_Calc_Engine[[#This Row],[Baseline SST CP2]]+$E$74,tbl_Refrigeration_Calc_Engine[[#This Row],[Baseline SST CP2]])^2)), IF(tbl_Refrigeration_Calc_Engine[[#This Row],[Baseline kW CP3]]=0,0,MAX(0,$AG$63+$AF$63*tbl_Refrigeration_Calc_Engine[[#This Row],[Baseline kW CP3]]+$AE$63*tbl_Refrigeration_Calc_Engine[[#This Row],[Baseline kW CP3]]^2+$AD$63*tbl_Refrigeration_Calc_Engine[[#This Row],[Load SCT Discharge Temp]]+$AC$63*tbl_Refrigeration_Calc_Engine[[#This Row],[Load SCT Discharge Temp]]^2+$AB$63*IF($G$6="Detailed", tbl_Refrigeration_Calc_Engine[[#This Row],[Baseline SST CP3]]+$E$74,tbl_Refrigeration_Calc_Engine[[#This Row],[Baseline SST CP3]])+$AA$63*IF($G$6="Detailed", tbl_Refrigeration_Calc_Engine[[#This Row],[Baseline SST CP3]]+$E$74,tbl_Refrigeration_Calc_Engine[[#This Row],[Baseline SST CP3]])^2)))) -> 0 | Q93: =IF($T$62="Simple",IF(tbl_Refrigeration_Calc_Engine[[#This Row],[bhp Per Ton ]]=0,0,1/tbl_Refrigeration_Calc_Engine[[#This Row],[bhp Per Ton ]]*$Q$71),$AG$69+$AF$69*tbl_Refrigeration_Calc_Engine[[#This Row],[SCT Discharge Temp]]) ->  | R93: =IF($T$62="Simple",IF(tbl_Refrigeration_Calc_Engine[[#This Row],[bhp Per Ton ]]=0,0,1/tbl_Refrigeration_Calc_Engine[[#This Row],[bhp Per Ton ]]*$R$71),$AG$70+$AF$70*tbl_Refrigeration_Calc_Engine[[#This Row],[SCT Discharge Temp]]) ->  | S93: =IF($T$62="Simple",IF(tbl_Refrigeration_Calc_Engine[[#This Row],[bhp Per Ton ]]=0,0,1/tbl_Refrigeration_Calc_Engine[[#This Row],[bhp Per Ton ]]*$S$71),$AG$71+$AF$71*tbl_Refrigeration_Calc_Engine[[#This Row],[SCT Discharge Temp]]) ->  | T93: =Stage_Check($P$62:$P$68,$Q$61:$S$61,tbl_Refrigeration_Calc_Engine[[#This Row],[Capacity CP1]:[Capacity CP3]],tbl_Refrigeration_Calc_Engine[[#This Row],[Cooling Load Ton]]) ->  | U93: =IF(tbl_Refrigeration_Calc_Engine[[#This Row],[Cooling Load Ton]]=0,0,Compressor_Load(tbl_Refrigeration_Calc_Engine[[#This Row],[Cooling Load Ton]],tbl_Refrigeration_Calc_Engine[[#This Row],[Capacity CP1]:[Capacity CP3]],INDEX($Q$62:$S$68,tbl_Refrigeration_Calc_Engine[[#This Row],[Stage]],0),tbl_Refrigeration_Calc_Engine[[#Headers],[Load CP1]])) -> 0 | V93: =IF(tbl_Refrigeration_Calc_Engine[[#This Row],[Cooling Load Ton]]=0,0,Compressor_Load(tbl_Refrigeration_Calc_Engine[[#This Row],[Cooling Load Ton]],tbl_Refrigeration_Calc_Engine[[#This Row],[Capacity CP1]:[Capacity CP3]],INDEX($Q$62:$S$68,tbl_Refrigeration_Calc_Engine[[#This Row],[Stage]],0),tbl_Refrigeration_Calc_Engine[[#Headers],[Load CP2]])) -> 0 | W93: =IF(tbl_Refrigeration_Calc_Engine[[#This Row],[Cooling Load Ton]]=0,0,Compressor_Load(tbl_Refrigeration_Calc_Engine[[#This Row],[Cooling Load Ton]],tbl_Refrigeration_Calc_Engine[[#This Row],[Capacity CP1]:[Capacity CP3]],INDEX($Q$62:$S$68,tbl_Refrigeration_Calc_Engine[[#This Row],[Stage]],0),tbl_Refrigeration_Calc_Engine[[#Headers],[Load CP3]])) -> 0 | X93: =IF(OR(tbl_Refrigeration_Calc_Engine[[#This Row],[Capacity CP1]]=0,tbl_Refrigeration_Calc_Engine[[#This Row],[Load CP1]]<tbl_Refrigeration_Calc_Engine[[#This Row],[Capacity CP1]]*$E$69),0,tbl_Refrigeration_Calc_Engine[[#This Row],[Load CP1]]/tbl_Refrigeration_Calc_Engine[[#This Row],[Capacity CP1]]) ->  | Y93: =IF(OR(tbl_Refrigeration_Calc_Engine[[#This Row],[Capacity CP2]]=0,tbl_Refrigeration_Calc_Engine[[#This Row],[Load CP2]]<tbl_Refrigeration_Calc_Engine[[#This Row],[Capacity CP2]]*$E$69),0,tbl_Refrigeration_Calc_Engine[[#This Row],[Load CP2]]/tbl_Refrigeration_Calc_Engine[[#This Row],[Capacity CP2]]) ->  | Z93: =IF(OR(tbl_Refrigeration_Calc_Engine[[#This Row],[Capacity CP3]]=0,tbl_Refrigeration_Calc_Engine[[#This Row],[Load CP3]]<tbl_Refrigeration_Calc_Engine[[#This Row],[Capacity CP3]]*$E$69),0,tbl_Refrigeration_Calc_Engine[[#This Row],[Load CP3]]/tbl_Refrigeration_Calc_Engine[[#This Row],[Capacity CP3]]) ->  | AA93: =IF(tbl_Refrigeration_Calc_Engine[[#This Row],[Capacity % CP1]]=0,0,MAX(0,INDEX($U$66:$X$68,Q$72,1)*tbl_Refrigeration_Calc_Engine[[#This Row],[Capacity % CP1]]^3+INDEX($U$66:$X$68,Q$72,2)*tbl_Refrigeration_Calc_Engine[[#This Row],[Capacity % CP1]]^2+INDEX($U$66:$X$68,Q$72,3)*tbl_Refrigeration_Calc_Engine[[#This Row],[Capacity % CP1]]+INDEX($U$66:$X$68,Q$72,4))) ->  | AB93: =IF(tbl_Refrigeration_Calc_Engine[[#This Row],[Capacity % CP2]]=0,0,MAX(0,INDEX($U$66:$X$68,R$72,1)*tbl_Refrigeration_Calc_Engine[[#This Row],[Capacity % CP2]]^3+INDEX($U$66:$X$68,R$72,2)*tbl_Refrigeration_Calc_Engine[[#This Row],[Capacity % CP2]]^2+INDEX($U$66:$X$68,R$72,3)*tbl_Refrigeration_Calc_Engine[[#This Row],[Capacity % CP2]]+INDEX($U$66:$X$68,R$72,4))) ->  | AC93: =IF(tbl_Refrigeration_Calc_Engine[[#This Row],[Capacity % CP3]]=0,0,MAX(0,INDEX($U$66:$X$68,S$72,1)*tbl_Refrigeration_Calc_Engine[[#This Row],[Capacity % CP3]]^3+INDEX($U$66:$X$68,S$72,2)*tbl_Refrigeration_Calc_Engine[[#This Row],[Capacity % CP3]]^2+INDEX($U$66:$X$68,S$72,3)*tbl_Refrigeration_Calc_Engine[[#This Row],[Capacity % CP3]]+INDEX($U$66:$X$68,S$72,4))) ->  | AD93: =IF($D$6="Evaporative",IF($J$65-tbl_Refrigeration_Calc_Engine[[#This Row],[WBT]]<=$E$5,1,IF($J$65<=tbl_Refrigeration_Calc_Engine[[#This Row],[WBT]],1,$E$5/($J$65-tbl_Refrigeration_Calc_Engine[[#This Row],[WBT]]))),IF($J$65-tbl_Refrigeration_Calc_Engine[[#This Row],[DBT]]<=$E$5,1,IF($J$65<=tbl_Refrigeration_Calc_Engine[[#This Row],[DBT]],1,$E$5/($J$65-tbl_Refrigeration_Calc_Engine[[#This Row],[DBT]])))) ->  | AE93: =tbl_Refrigeration_Calc_Engine[[#This Row],[Cooling Load Ton]]/$V$61 ->  | AF93: =IF($T$62="Simple",SUMPRODUCT(tbl_Refrigeration_Calc_Engine[[#This Row],[Power % CP1]:[Power % CP3]],$Q$70:$S$70*O93*0.746/$E$65), SUM( IF(tbl_Refrigeration_Calc_Engine[[#This Row],[Capacity % CP1]]=0,0,MAX(0,tbl_Refrigeration_Calc_Engine[[#This Row],[Power % CP1]]*($AG$65+$AF$65*tbl_Refrigeration_Calc_Engine[[#This Row],[SCT Discharge Temp]]+$AE$65*tbl_Refrigeration_Calc_Engine[[#This Row],[SCT Discharge Temp]]^2+$AD$65*IF($G$6="Detailed", tbl_Refrigeration_Calc_Engine[[#This Row],[Baseline SST CP1]]+$E$74,$J$68)+$AC$65*IF($G$6="Detailed", tbl_Refrigeration_Calc_Engine[[#This Row],[Baseline SST CP1]]+$E$74,$J$68)^2+$AB$65*tbl_Refrigeration_Calc_Engine[[#This Row],[Load CP1]]+$AA$65*tbl_Refrigeration_Calc_Engine[[#This Row],[Load CP1]]^2))), IF(tbl_Refrigeration_Calc_Engine[[#This Row],[Capacity % CP2]]=0,0,MAX(0,tbl_Refrigeration_Calc_Engine[[#This Row],[Power % CP2]]*($AG$66+$AF$66*tbl_Refrigeration_Calc_Engine[[#This Row],[SCT Discharge Temp]]+$AE$66*tbl_Refrigeration_Calc_Engine[[#This Row],[SCT Discharge Temp]]^2+$AD$66*IF($G$6="Detailed", tbl_Refrigeration_Calc_Engine[[#This Row],[Baseline SST CP2]]+$E$74,$J$68)+$AC$66*IF($G$6="Detailed", tbl_Refrigeration_Calc_Engine[[#This Row],[Baseline SST CP2]]+$E$74,$J$68)^2+$AB$66*tbl_Refrigeration_Calc_Engine[[#This Row],[Load CP2]]+$AA$66*tbl_Refrigeration_Calc_Engine[[#This Row],[Load CP2]]^2))), IF(tbl_Refrigeration_Calc_Engine[[#This Row],[Capacity % CP3]]=0,0,MAX(0,tbl_Refrigeration_Calc_Engine[[#This Row],[Power % CP3]]*($AG$67+$AF$67*tbl_Refrigeration_Calc_Engine[[#This Row],[SCT Discharge Temp]]+$AE$67*tbl_Refrigeration_Calc_Engine[[#This Row],[SCT Discharge Temp]]^2+$AD$67*IF($G$6="Detailed", tbl_Refrigeration_Calc_Engine[[#This Row],[Baseline SST CP3]]+$E$74,$J$68)+$AC$67*IF($G$6="Detailed", tbl_Refrigeration_Calc_Engine[[#This Row],[Baseline SST CP3]]+$E$74,$J$68)^2+$AB$67*tbl_Refrigeration_Calc_Engine[[#This Row],[Load CP3]]+$AA$67*tbl_Refrigeration_Calc_Engine[[#This Row],[Load CP3]]^2))))) ->  | AG93: =IF($B$72="On-Off",$J$66*tbl_Refrigeration_Calc_Engine[[#This Row],[Condenser Fan]],$J$66*tbl_Refrigeration_Calc_Engine[[#This Row],[Condenser Fan]]^3/'Refrigeration Template'!$E$61) ->  | AH93: =IF($E$72="VFD",MAX($E$73,tbl_Refrigeration_Calc_Engine[[#This Row],[Calculated Evaporator Fan]])^3,tbl_Refrigeration_Calc_Engine[[#This Row],[Calculated Evaporator Fan]])*$J$67 -> 
B94: 17 | C94: 17 | D94: ='CTZ2'!M18 -> 42 | E94: ='CTZ2'!N18 -> 53 | L94: =MAX($C$19,$E$5+IF($D$6="Evaporative",tbl_Refrigeration_Calc_Engine[[#This Row],[WBT]],tbl_Refrigeration_Calc_Engine[[#This Row],[DBT]])) ->  | M94: =MAX($J$65,$E$5+IF($D$6="Evaporative",tbl_Refrigeration_Calc_Engine[[#This Row],[WBT]],tbl_Refrigeration_Calc_Engine[[#This Row],[DBT]])) ->  | N94: =(0.339-0.00692*$J$64+0.000128*$J$64^2+0.00561*tbl_Refrigeration_Calc_Engine[[#This Row],[SCT Discharge Temp]]+0.0000917*tbl_Refrigeration_Calc_Engine[[#This Row],[SCT Discharge Temp]]^2-0.000235*$J$64*tbl_Refrigeration_Calc_Engine[[#This Row],[SCT Discharge Temp]]) ->  | O94: =1-(MAX(tbl_Refrigeration_Calc_Engine[SCT Discharge Temp])-tbl_Refrigeration_Calc_Engine[[#This Row],[SCT Discharge Temp]])*'Refrigeration Template'!$E$63 ->  | P94: =IF($T$62="Simple",FORECAST(MEDIAN($X$61,$X$62,tbl_Refrigeration_Calc_Engine[[#This Row],[DBT]]),$V$61:$V$62,$X$61:$X$62), SUM( IF(tbl_Refrigeration_Calc_Engine[[#This Row],[Baseline kW CP1]]=0,0,MAX(0,$AG$61+$AF$61*tbl_Refrigeration_Calc_Engine[[#This Row],[Baseline kW CP1]]+$AE$61*tbl_Refrigeration_Calc_Engine[[#This Row],[Baseline kW CP1]]^2+$AD$61*tbl_Refrigeration_Calc_Engine[[#This Row],[Load SCT Discharge Temp]]+$AC$61*tbl_Refrigeration_Calc_Engine[[#This Row],[Load SCT Discharge Temp]]^2+$AB$61*IF($G$6="Detailed", tbl_Refrigeration_Calc_Engine[[#This Row],[Baseline SST CP1]]+$E$74,tbl_Refrigeration_Calc_Engine[[#This Row],[Baseline SST CP1]])+$AA$61*IF($G$6="Detailed", tbl_Refrigeration_Calc_Engine[[#This Row],[Baseline SST CP1]]+$E$74,tbl_Refrigeration_Calc_Engine[[#This Row],[Baseline SST CP1]])^2)), IF(tbl_Refrigeration_Calc_Engine[[#This Row],[Baseline kW CP2]]=0,0,MAX(0,$AG$62+$AF$62*tbl_Refrigeration_Calc_Engine[[#This Row],[Baseline kW CP2]]+$AE$62*tbl_Refrigeration_Calc_Engine[[#This Row],[Baseline kW CP2]]^2+$AD$62*tbl_Refrigeration_Calc_Engine[[#This Row],[Load SCT Discharge Temp]]+$AC$62*tbl_Refrigeration_Calc_Engine[[#This Row],[Load SCT Discharge Temp]]^2+$AB$62*IF($G$6="Detailed", tbl_Refrigeration_Calc_Engine[[#This Row],[Baseline SST CP2]]+$E$74,tbl_Refrigeration_Calc_Engine[[#This Row],[Baseline SST CP2]])+$AA$62*IF($G$6="Detailed", tbl_Refrigeration_Calc_Engine[[#This Row],[Baseline SST CP2]]+$E$74,tbl_Refrigeration_Calc_Engine[[#This Row],[Baseline SST CP2]])^2)), IF(tbl_Refrigeration_Calc_Engine[[#This Row],[Baseline kW CP3]]=0,0,MAX(0,$AG$63+$AF$63*tbl_Refrigeration_Calc_Engine[[#This Row],[Baseline kW CP3]]+$AE$63*tbl_Refrigeration_Calc_Engine[[#This Row],[Baseline kW CP3]]^2+$AD$63*tbl_Refrigeration_Calc_Engine[[#This Row],[Load SCT Discharge Temp]]+$AC$63*tbl_Refrigeration_Calc_Engine[[#This Row],[Load SCT Discharge Temp]]^2+$AB$63*IF($G$6="Detailed", tbl_Refrigeration_Calc_Engine[[#This Row],[Baseline SST CP3]]+$E$74,tbl_Refrigeration_Calc_Engine[[#This Row],[Baseline SST CP3]])+$AA$63*IF($G$6="Detailed", tbl_Refrigeration_Calc_Engine[[#This Row],[Baseline SST CP3]]+$E$74,tbl_Refrigeration_Calc_Engine[[#This Row],[Baseline SST CP3]])^2)))) -> 0 | Q94: =IF($T$62="Simple",IF(tbl_Refrigeration_Calc_Engine[[#This Row],[bhp Per Ton ]]=0,0,1/tbl_Refrigeration_Calc_Engine[[#This Row],[bhp Per Ton ]]*$Q$71),$AG$69+$AF$69*tbl_Refrigeration_Calc_Engine[[#This Row],[SCT Discharge Temp]]) ->  | R94: =IF($T$62="Simple",IF(tbl_Refrigeration_Calc_Engine[[#This Row],[bhp Per Ton ]]=0,0,1/tbl_Refrigeration_Calc_Engine[[#This Row],[bhp Per Ton ]]*$R$71),$AG$70+$AF$70*tbl_Refrigeration_Calc_Engine[[#This Row],[SCT Discharge Temp]]) ->  | S94: =IF($T$62="Simple",IF(tbl_Refrigeration_Calc_Engine[[#This Row],[bhp Per Ton ]]=0,0,1/tbl_Refrigeration_Calc_Engine[[#This Row],[bhp Per Ton ]]*$S$71),$AG$71+$AF$71*tbl_Refrigeration_Calc_Engine[[#This Row],[SCT Discharge Temp]]) ->  | T94: =Stage_Check($P$62:$P$68,$Q$61:$S$61,tbl_Refrigeration_Calc_Engine[[#This Row],[Capacity CP1]:[Capacity CP3]],tbl_Refrigeration_Calc_Engine[[#This Row],[Cooling Load Ton]]) ->  | U94: =IF(tbl_Refrigeration_Calc_Engine[[#This Row],[Cooling Load Ton]]=0,0,Compressor_Load(tbl_Refrigeration_Calc_Engine[[#This Row],[Cooling Load Ton]],tbl_Refrigeration_Calc_Engine[[#This Row],[Capacity CP1]:[Capacity CP3]],INDEX($Q$62:$S$68,tbl_Refrigeration_Calc_Engine[[#This Row],[Stage]],0),tbl_Refrigeration_Calc_Engine[[#Headers],[Load CP1]])) -> 0 | V94: =IF(tbl_Refrigeration_Calc_Engine[[#This Row],[Cooling Load Ton]]=0,0,Compressor_Load(tbl_Refrigeration_Calc_Engine[[#This Row],[Cooling Load Ton]],tbl_Refrigeration_Calc_Engine[[#This Row],[Capacity CP1]:[Capacity CP3]],INDEX($Q$62:$S$68,tbl_Refrigeration_Calc_Engine[[#This Row],[Stage]],0),tbl_Refrigeration_Calc_Engine[[#Headers],[Load CP2]])) -> 0 | W94: =IF(tbl_Refrigeration_Calc_Engine[[#This Row],[Cooling Load Ton]]=0,0,Compressor_Load(tbl_Refrigeration_Calc_Engine[[#This Row],[Cooling Load Ton]],tbl_Refrigeration_Calc_Engine[[#This Row],[Capacity CP1]:[Capacity CP3]],INDEX($Q$62:$S$68,tbl_Refrigeration_Calc_Engine[[#This Row],[Stage]],0),tbl_Refrigeration_Calc_Engine[[#Headers],[Load CP3]])) -> 0 | X94: =IF(OR(tbl_Refrigeration_Calc_Engine[[#This Row],[Capacity CP1]]=0,tbl_Refrigeration_Calc_Engine[[#This Row],[Load CP1]]<tbl_Refrigeration_Calc_Engine[[#This Row],[Capacity CP1]]*$E$69),0,tbl_Refrigeration_Calc_Engine[[#This Row],[Load CP1]]/tbl_Refrigeration_Calc_Engine[[#This Row],[Capacity CP1]]) ->  | Y94: =IF(OR(tbl_Refrigeration_Calc_Engine[[#This Row],[Capacity CP2]]=0,tbl_Refrigeration_Calc_Engine[[#This Row],[Load CP2]]<tbl_Refrigeration_Calc_Engine[[#This Row],[Capacity CP2]]*$E$69),0,tbl_Refrigeration_Calc_Engine[[#This Row],[Load CP2]]/tbl_Refrigeration_Calc_Engine[[#This Row],[Capacity CP2]]) ->  | Z94: =IF(OR(tbl_Refrigeration_Calc_Engine[[#This Row],[Capacity CP3]]=0,tbl_Refrigeration_Calc_Engine[[#This Row],[Load CP3]]<tbl_Refrigeration_Calc_Engine[[#This Row],[Capacity CP3]]*$E$69),0,tbl_Refrigeration_Calc_Engine[[#This Row],[Load CP3]]/tbl_Refrigeration_Calc_Engine[[#This Row],[Capacity CP3]]) ->  | AA94: =IF(tbl_Refrigeration_Calc_Engine[[#This Row],[Capacity % CP1]]=0,0,MAX(0,INDEX($U$66:$X$68,Q$72,1)*tbl_Refrigeration_Calc_Engine[[#This Row],[Capacity % CP1]]^3+INDEX($U$66:$X$68,Q$72,2)*tbl_Refrigeration_Calc_Engine[[#This Row],[Capacity % CP1]]^2+INDEX($U$66:$X$68,Q$72,3)*tbl_Refrigeration_Calc_Engine[[#This Row],[Capacity % CP1]]+INDEX($U$66:$X$68,Q$72,4))) ->  | AB94: =IF(tbl_Refrigeration_Calc_Engine[[#This Row],[Capacity % CP2]]=0,0,MAX(0,INDEX($U$66:$X$68,R$72,1)*tbl_Refrigeration_Calc_Engine[[#This Row],[Capacity % CP2]]^3+INDEX($U$66:$X$68,R$72,2)*tbl_Refrigeration_Calc_Engine[[#This Row],[Capacity % CP2]]^2+INDEX($U$66:$X$68,R$72,3)*tbl_Refrigeration_Calc_Engine[[#This Row],[Capacity % CP2]]+INDEX($U$66:$X$68,R$72,4))) ->  | AC94: =IF(tbl_Refrigeration_Calc_Engine[[#This Row],[Capacity % CP3]]=0,0,MAX(0,INDEX($U$66:$X$68,S$72,1)*tbl_Refrigeration_Calc_Engine[[#This Row],[Capacity % CP3]]^3+INDEX($U$66:$X$68,S$72,2)*tbl_Refrigeration_Calc_Engine[[#This Row],[Capacity % CP3]]^2+INDEX($U$66:$X$68,S$72,3)*tbl_Refrigeration_Calc_Engine[[#This Row],[Capacity % CP3]]+INDEX($U$66:$X$68,S$72,4))) ->  | AD94: =IF($D$6="Evaporative",IF($J$65-tbl_Refrigeration_Calc_Engine[[#This Row],[WBT]]<=$E$5,1,IF($J$65<=tbl_Refrigeration_Calc_Engine[[#This Row],[WBT]],1,$E$5/($J$65-tbl_Refrigeration_Calc_Engine[[#This Row],[WBT]]))),IF($J$65-tbl_Refrigeration_Calc_Engine[[#This Row],[DBT]]<=$E$5,1,IF($J$65<=tbl_Refrigeration_Calc_Engine[[#This Row],[DBT]],1,$E$5/($J$65-tbl_Refrigeration_Calc_Engine[[#This Row],[DBT]])))) ->  | AE94: =tbl_Refrigeration_Calc_Engine[[#This Row],[Cooling Load Ton]]/$V$61 ->  | AF94: =IF($T$62="Simple",SUMPRODUCT(tbl_Refrigeration_Calc_Engine[[#This Row],[Power % CP1]:[Power % CP3]],$Q$70:$S$70*O94*0.746/$E$65), SUM( IF(tbl_Refrigeration_Calc_Engine[[#This Row],[Capacity % CP1]]=0,0,MAX(0,tbl_Refrigeration_Calc_Engine[[#This Row],[Power % CP1]]*($AG$65+$AF$65*tbl_Refrigeration_Calc_Engine[[#This Row],[SCT Discharge Temp]]+$AE$65*tbl_Refrigeration_Calc_Engine[[#This Row],[SCT Discharge Temp]]^2+$AD$65*IF($G$6="Detailed", tbl_Refrigeration_Calc_Engine[[#This Row],[Baseline SST CP1]]+$E$74,$J$68)+$AC$65*IF($G$6="Detailed", tbl_Refrigeration_Calc_Engine[[#This Row],[Baseline SST CP1]]+$E$74,$J$68)^2+$AB$65*tbl_Refrigeration_Calc_Engine[[#This Row],[Load CP1]]+$AA$65*tbl_Refrigeration_Calc_Engine[[#This Row],[Load CP1]]^2))), IF(tbl_Refrigeration_Calc_Engine[[#This Row],[Capacity % CP2]]=0,0,MAX(0,tbl_Refrigeration_Calc_Engine[[#This Row],[Power % CP2]]*($AG$66+$AF$66*tbl_Refrigeration_Calc_Engine[[#This Row],[SCT Discharge Temp]]+$AE$66*tbl_Refrigeration_Calc_Engine[[#This Row],[SCT Discharge Temp]]^2+$AD$66*IF($G$6="Detailed", tbl_Refrigeration_Calc_Engine[[#This Row],[Baseline SST CP2]]+$E$74,$J$68)+$AC$66*IF($G$6="Detailed", tbl_Refrigeration_Calc_Engine[[#This Row],[Baseline SST CP2]]+$E$74,$J$68)^2+$AB$66*tbl_Refrigeration_Calc_Engine[[#This Row],[Load CP2]]+$AA$66*tbl_Refrigeration_Calc_Engine[[#This Row],[Load CP2]]^2))), IF(tbl_Refrigeration_Calc_Engine[[#This Row],[Capacity % CP3]]=0,0,MAX(0,tbl_Refrigeration_Calc_Engine[[#This Row],[Power % CP3]]*($AG$67+$AF$67*tbl_Refrigeration_Calc_Engine[[#This Row],[SCT Discharge Temp]]+$AE$67*tbl_Refrigeration_Calc_Engine[[#This Row],[SCT Discharge Temp]]^2+$AD$67*IF($G$6="Detailed", tbl_Refrigeration_Calc_Engine[[#This Row],[Baseline SST CP3]]+$E$74,$J$68)+$AC$67*IF($G$6="Detailed", tbl_Refrigeration_Calc_Engine[[#This Row],[Baseline SST CP3]]+$E$74,$J$68)^2+$AB$67*tbl_Refrigeration_Calc_Engine[[#This Row],[Load CP3]]+$AA$67*tbl_Refrigeration_Calc_Engine[[#This Row],[Load CP3]]^2))))) ->  | AG94: =IF($B$72="On-Off",$J$66*tbl_Refrigeration_Calc_Engine[[#This Row],[Condenser Fan]],$J$66*tbl_Refrigeration_Calc_Engine[[#This Row],[Condenser Fan]]^3/'Refrigeration Template'!$E$61) ->  | AH94: =IF($E$72="VFD",MAX($E$73,tbl_Refrigeration_Calc_Engine[[#This Row],[Calculated Evaporator Fan]])^3,tbl_Refrigeration_Calc_Engine[[#This Row],[Calculated Evaporator Fan]])*$J$67 -> 
B95: 18 | C95: 18 | D95: ='CTZ2'!M19 -> 40 | E95: ='CTZ2'!N19 -> 51 | L95: =MAX($C$19,$E$5+IF($D$6="Evaporative",tbl_Refrigeration_Calc_Engine[[#This Row],[WBT]],tbl_Refrigeration_Calc_Engine[[#This Row],[DBT]])) ->  | M95: =MAX($J$65,$E$5+IF($D$6="Evaporative",tbl_Refrigeration_Calc_Engine[[#This Row],[WBT]],tbl_Refrigeration_Calc_Engine[[#This Row],[DBT]])) ->  | N95: =(0.339-0.00692*$J$64+0.000128*$J$64^2+0.00561*tbl_Refrigeration_Calc_Engine[[#This Row],[SCT Discharge Temp]]+0.0000917*tbl_Refrigeration_Calc_Engine[[#This Row],[SCT Discharge Temp]]^2-0.000235*$J$64*tbl_Refrigeration_Calc_Engine[[#This Row],[SCT Discharge Temp]]) ->  | O95: =1-(MAX(tbl_Refrigeration_Calc_Engine[SCT Discharge Temp])-tbl_Refrigeration_Calc_Engine[[#This Row],[SCT Discharge Temp]])*'Refrigeration Template'!$E$63 ->  | P95: =IF($T$62="Simple",FORECAST(MEDIAN($X$61,$X$62,tbl_Refrigeration_Calc_Engine[[#This Row],[DBT]]),$V$61:$V$62,$X$61:$X$62), SUM( IF(tbl_Refrigeration_Calc_Engine[[#This Row],[Baseline kW CP1]]=0,0,MAX(0,$AG$61+$AF$61*tbl_Refrigeration_Calc_Engine[[#This Row],[Baseline kW CP1]]+$AE$61*tbl_Refrigeration_Calc_Engine[[#This Row],[Baseline kW CP1]]^2+$AD$61*tbl_Refrigeration_Calc_Engine[[#This Row],[Load SCT Discharge Temp]]+$AC$61*tbl_Refrigeration_Calc_Engine[[#This Row],[Load SCT Discharge Temp]]^2+$AB$61*IF($G$6="Detailed", tbl_Refrigeration_Calc_Engine[[#This Row],[Baseline SST CP1]]+$E$74,tbl_Refrigeration_Calc_Engine[[#This Row],[Baseline SST CP1]])+$AA$61*IF($G$6="Detailed", tbl_Refrigeration_Calc_Engine[[#This Row],[Baseline SST CP1]]+$E$74,tbl_Refrigeration_Calc_Engine[[#This Row],[Baseline SST CP1]])^2)), IF(tbl_Refrigeration_Calc_Engine[[#This Row],[Baseline kW CP2]]=0,0,MAX(0,$AG$62+$AF$62*tbl_Refrigeration_Calc_Engine[[#This Row],[Baseline kW CP2]]+$AE$62*tbl_Refrigeration_Calc_Engine[[#This Row],[Baseline kW CP2]]^2+$AD$62*tbl_Refrigeration_Calc_Engine[[#This Row],[Load SCT Discharge Temp]]+$AC$62*tbl_Refrigeration_Calc_Engine[[#This Row],[Load SCT Discharge Temp]]^2+$AB$62*IF($G$6="Detailed", tbl_Refrigeration_Calc_Engine[[#This Row],[Baseline SST CP2]]+$E$74,tbl_Refrigeration_Calc_Engine[[#This Row],[Baseline SST CP2]])+$AA$62*IF($G$6="Detailed", tbl_Refrigeration_Calc_Engine[[#This Row],[Baseline SST CP2]]+$E$74,tbl_Refrigeration_Calc_Engine[[#This Row],[Baseline SST CP2]])^2)), IF(tbl_Refrigeration_Calc_Engine[[#This Row],[Baseline kW CP3]]=0,0,MAX(0,$AG$63+$AF$63*tbl_Refrigeration_Calc_Engine[[#This Row],[Baseline kW CP3]]+$AE$63*tbl_Refrigeration_Calc_Engine[[#This Row],[Baseline kW CP3]]^2+$AD$63*tbl_Refrigeration_Calc_Engine[[#This Row],[Load SCT Discharge Temp]]+$AC$63*tbl_Refrigeration_Calc_Engine[[#This Row],[Load SCT Discharge Temp]]^2+$AB$63*IF($G$6="Detailed", tbl_Refrigeration_Calc_Engine[[#This Row],[Baseline SST CP3]]+$E$74,tbl_Refrigeration_Calc_Engine[[#This Row],[Baseline SST CP3]])+$AA$63*IF($G$6="Detailed", tbl_Refrigeration_Calc_Engine[[#This Row],[Baseline SST CP3]]+$E$74,tbl_Refrigeration_Calc_Engine[[#This Row],[Baseline SST CP3]])^2)))) -> 0 | Q95: =IF($T$62="Simple",IF(tbl_Refrigeration_Calc_Engine[[#This Row],[bhp Per Ton ]]=0,0,1/tbl_Refrigeration_Calc_Engine[[#This Row],[bhp Per Ton ]]*$Q$71),$AG$69+$AF$69*tbl_Refrigeration_Calc_Engine[[#This Row],[SCT Discharge Temp]]) ->  | R95: =IF($T$62="Simple",IF(tbl_Refrigeration_Calc_Engine[[#This Row],[bhp Per Ton ]]=0,0,1/tbl_Refrigeration_Calc_Engine[[#This Row],[bhp Per Ton ]]*$R$71),$AG$70+$AF$70*tbl_Refrigeration_Calc_Engine[[#This Row],[SCT Discharge Temp]]) ->  | S95: =IF($T$62="Simple",IF(tbl_Refrigeration_Calc_Engine[[#This Row],[bhp Per Ton ]]=0,0,1/tbl_Refrigeration_Calc_Engine[[#This Row],[bhp Per Ton ]]*$S$71),$AG$71+$AF$71*tbl_Refrigeration_Calc_Engine[[#This Row],[SCT Discharge Temp]]) ->  | T95: =Stage_Check($P$62:$P$68,$Q$61:$S$61,tbl_Refrigeration_Calc_Engine[[#This Row],[Capacity CP1]:[Capacity CP3]],tbl_Refrigeration_Calc_Engine[[#This Row],[Cooling Load Ton]]) ->  | U95: =IF(tbl_Refrigeration_Calc_Engine[[#This Row],[Cooling Load Ton]]=0,0,Compressor_Load(tbl_Refrigeration_Calc_Engine[[#This Row],[Cooling Load Ton]],tbl_Refrigeration_Calc_Engine[[#This Row],[Capacity CP1]:[Capacity CP3]],INDEX($Q$62:$S$68,tbl_Refrigeration_Calc_Engine[[#This Row],[Stage]],0),tbl_Refrigeration_Calc_Engine[[#Headers],[Load CP1]])) -> 0 | V95: =IF(tbl_Refrigeration_Calc_Engine[[#This Row],[Cooling Load Ton]]=0,0,Compressor_Load(tbl_Refrigeration_Calc_Engine[[#This Row],[Cooling Load Ton]],tbl_Refrigeration_Calc_Engine[[#This Row],[Capacity CP1]:[Capacity CP3]],INDEX($Q$62:$S$68,tbl_Refrigeration_Calc_Engine[[#This Row],[Stage]],0),tbl_Refrigeration_Calc_Engine[[#Headers],[Load CP2]])) -> 0 | W95: =IF(tbl_Refrigeration_Calc_Engine[[#This Row],[Cooling Load Ton]]=0,0,Compressor_Load(tbl_Refrigeration_Calc_Engine[[#This Row],[Cooling Load Ton]],tbl_Refrigeration_Calc_Engine[[#This Row],[Capacity CP1]:[Capacity CP3]],INDEX($Q$62:$S$68,tbl_Refrigeration_Calc_Engine[[#This Row],[Stage]],0),tbl_Refrigeration_Calc_Engine[[#Headers],[Load CP3]])) -> 0 | X95: =IF(OR(tbl_Refrigeration_Calc_Engine[[#This Row],[Capacity CP1]]=0,tbl_Refrigeration_Calc_Engine[[#This Row],[Load CP1]]<tbl_Refrigeration_Calc_Engine[[#This Row],[Capacity CP1]]*$E$69),0,tbl_Refrigeration_Calc_Engine[[#This Row],[Load CP1]]/tbl_Refrigeration_Calc_Engine[[#This Row],[Capacity CP1]]) ->  | Y95: =IF(OR(tbl_Refrigeration_Calc_Engine[[#This Row],[Capacity CP2]]=0,tbl_Refrigeration_Calc_Engine[[#This Row],[Load CP2]]<tbl_Refrigeration_Calc_Engine[[#This Row],[Capacity CP2]]*$E$69),0,tbl_Refrigeration_Calc_Engine[[#This Row],[Load CP2]]/tbl_Refrigeration_Calc_Engine[[#This Row],[Capacity CP2]]) ->  | Z95: =IF(OR(tbl_Refrigeration_Calc_Engine[[#This Row],[Capacity CP3]]=0,tbl_Refrigeration_Calc_Engine[[#This Row],[Load CP3]]<tbl_Refrigeration_Calc_Engine[[#This Row],[Capacity CP3]]*$E$69),0,tbl_Refrigeration_Calc_Engine[[#This Row],[Load CP3]]/tbl_Refrigeration_Calc_Engine[[#This Row],[Capacity CP3]]) ->  | AA95: =IF(tbl_Refrigeration_Calc_Engine[[#This Row],[Capacity % CP1]]=0,0,MAX(0,INDEX($U$66:$X$68,Q$72,1)*tbl_Refrigeration_Calc_Engine[[#This Row],[Capacity % CP1]]^3+INDEX($U$66:$X$68,Q$72,2)*tbl_Refrigeration_Calc_Engine[[#This Row],[Capacity % CP1]]^2+INDEX($U$66:$X$68,Q$72,3)*tbl_Refrigeration_Calc_Engine[[#This Row],[Capacity % CP1]]+INDEX($U$66:$X$68,Q$72,4))) ->  | AB95: =IF(tbl_Refrigeration_Calc_Engine[[#This Row],[Capacity % CP2]]=0,0,MAX(0,INDEX($U$66:$X$68,R$72,1)*tbl_Refrigeration_Calc_Engine[[#This Row],[Capacity % CP2]]^3+INDEX($U$66:$X$68,R$72,2)*tbl_Refrigeration_Calc_Engine[[#This Row],[Capacity % CP2]]^2+INDEX($U$66:$X$68,R$72,3)*tbl_Refrigeration_Calc_Engine[[#This Row],[Capacity % CP2]]+INDEX($U$66:$X$68,R$72,4))) ->  | AC95: =IF(tbl_Refrigeration_Calc_Engine[[#This Row],[Capacity % CP3]]=0,0,MAX(0,INDEX($U$66:$X$68,S$72,1)*tbl_Refrigeration_Calc_Engine[[#This Row],[Capacity % CP3]]^3+INDEX($U$66:$X$68,S$72,2)*tbl_Refrigeration_Calc_Engine[[#This Row],[Capacity % CP3]]^2+INDEX($U$66:$X$68,S$72,3)*tbl_Refrigeration_Calc_Engine[[#This Row],[Capacity % CP3]]+INDEX($U$66:$X$68,S$72,4))) ->  | AD95: =IF($D$6="Evaporative",IF($J$65-tbl_Refrigeration_Calc_Engine[[#This Row],[WBT]]<=$E$5,1,IF($J$65<=tbl_Refrigeration_Calc_Engine[[#This Row],[WBT]],1,$E$5/($J$65-tbl_Refrigeration_Calc_Engine[[#This Row],[WBT]]))),IF($J$65-tbl_Refrigeration_Calc_Engine[[#This Row],[DBT]]<=$E$5,1,IF($J$65<=tbl_Refrigeration_Calc_Engine[[#This Row],[DBT]],1,$E$5/($J$65-tbl_Refrigeration_Calc_Engine[[#This Row],[DBT]])))) ->  | AE95: =tbl_Refrigeration_Calc_Engine[[#This Row],[Cooling Load Ton]]/$V$61 ->  | AF95: =IF($T$62="Simple",SUMPRODUCT(tbl_Refrigeration_Calc_Engine[[#This Row],[Power % CP1]:[Power % CP3]],$Q$70:$S$70*O95*0.746/$E$65), SUM( IF(tbl_Refrigeration_Calc_Engine[[#This Row],[Capacity % CP1]]=0,0,MAX(0,tbl_Refrigeration_Calc_Engine[[#This Row],[Power % CP1]]*($AG$65+$AF$65*tbl_Refrigeration_Calc_Engine[[#This Row],[SCT Discharge Temp]]+$AE$65*tbl_Refrigeration_Calc_Engine[[#This Row],[SCT Discharge Temp]]^2+$AD$65*IF($G$6="Detailed", tbl_Refrigeration_Calc_Engine[[#This Row],[Baseline SST CP1]]+$E$74,$J$68)+$AC$65*IF($G$6="Detailed", tbl_Refrigeration_Calc_Engine[[#This Row],[Baseline SST CP1]]+$E$74,$J$68)^2+$AB$65*tbl_Refrigeration_Calc_Engine[[#This Row],[Load CP1]]+$AA$65*tbl_Refrigeration_Calc_Engine[[#This Row],[Load CP1]]^2))), IF(tbl_Refrigeration_Calc_Engine[[#This Row],[Capacity % CP2]]=0,0,MAX(0,tbl_Refrigeration_Calc_Engine[[#This Row],[Power % CP2]]*($AG$66+$AF$66*tbl_Refrigeration_Calc_Engine[[#This Row],[SCT Discharge Temp]]+$AE$66*tbl_Refrigeration_Calc_Engine[[#This Row],[SCT Discharge Temp]]^2+$AD$66*IF($G$6="Detailed", tbl_Refrigeration_Calc_Engine[[#This Row],[Baseline SST CP2]]+$E$74,$J$68)+$AC$66*IF($G$6="Detailed", tbl_Refrigeration_Calc_Engine[[#This Row],[Baseline SST CP2]]+$E$74,$J$68)^2+$AB$66*tbl_Refrigeration_Calc_Engine[[#This Row],[Load CP2]]+$AA$66*tbl_Refrigeration_Calc_Engine[[#This Row],[Load CP2]]^2))), IF(tbl_Refrigeration_Calc_Engine[[#This Row],[Capacity % CP3]]=0,0,MAX(0,tbl_Refrigeration_Calc_Engine[[#This Row],[Power % CP3]]*($AG$67+$AF$67*tbl_Refrigeration_Calc_Engine[[#This Row],[SCT Discharge Temp]]+$AE$67*tbl_Refrigeration_Calc_Engine[[#This Row],[SCT Discharge Temp]]^2+$AD$67*IF($G$6="Detailed", tbl_Refrigeration_Calc_Engine[[#This Row],[Baseline SST CP3]]+$E$74,$J$68)+$AC$67*IF($G$6="Detailed", tbl_Refrigeration_Calc_Engine[[#This Row],[Baseline SST CP3]]+$E$74,$J$68)^2+$AB$67*tbl_Refrigeration_Calc_Engine[[#This Row],[Load CP3]]+$AA$67*tbl_Refrigeration_Calc_Engine[[#This Row],[Load CP3]]^2))))) ->  | AG95: =IF($B$72="On-Off",$J$66*tbl_Refrigeration_Calc_Engine[[#This Row],[Condenser Fan]],$J$66*tbl_Refrigeration_Calc_Engine[[#This Row],[Condenser Fan]]^3/'Refrigeration Template'!$E$61) ->  | AH95: =IF($E$72="VFD",MAX($E$73,tbl_Refrigeration_Calc_Engine[[#This Row],[Calculated Evaporator Fan]])^3,tbl_Refrigeration_Calc_Engine[[#This Row],[Calculated Evaporator Fan]])*$J$67 -> 
B96: 19 | C96: 19 | D96: ='CTZ2'!M20 -> 38 | E96: ='CTZ2'!N20 -> 49 | L96: =MAX($C$19,$E$5+IF($D$6="Evaporative",tbl_Refrigeration_Calc_Engine[[#This Row],[WBT]],tbl_Refrigeration_Calc_Engine[[#This Row],[DBT]])) ->  | M96: =MAX($J$65,$E$5+IF($D$6="Evaporative",tbl_Refrigeration_Calc_Engine[[#This Row],[WBT]],tbl_Refrigeration_Calc_Engine[[#This Row],[DBT]])) ->  | N96: =(0.339-0.00692*$J$64+0.000128*$J$64^2+0.00561*tbl_Refrigeration_Calc_Engine[[#This Row],[SCT Discharge Temp]]+0.0000917*tbl_Refrigeration_Calc_Engine[[#This Row],[SCT Discharge Temp]]^2-0.000235*$J$64*tbl_Refrigeration_Calc_Engine[[#This Row],[SCT Discharge Temp]]) ->  | O96: =1-(MAX(tbl_Refrigeration_Calc_Engine[SCT Discharge Temp])-tbl_Refrigeration_Calc_Engine[[#This Row],[SCT Discharge Temp]])*'Refrigeration Template'!$E$63 ->  | P96: =IF($T$62="Simple",FORECAST(MEDIAN($X$61,$X$62,tbl_Refrigeration_Calc_Engine[[#This Row],[DBT]]),$V$61:$V$62,$X$61:$X$62), SUM( IF(tbl_Refrigeration_Calc_Engine[[#This Row],[Baseline kW CP1]]=0,0,MAX(0,$AG$61+$AF$61*tbl_Refrigeration_Calc_Engine[[#This Row],[Baseline kW CP1]]+$AE$61*tbl_Refrigeration_Calc_Engine[[#This Row],[Baseline kW CP1]]^2+$AD$61*tbl_Refrigeration_Calc_Engine[[#This Row],[Load SCT Discharge Temp]]+$AC$61*tbl_Refrigeration_Calc_Engine[[#This Row],[Load SCT Discharge Temp]]^2+$AB$61*IF($G$6="Detailed", tbl_Refrigeration_Calc_Engine[[#This Row],[Baseline SST CP1]]+$E$74,tbl_Refrigeration_Calc_Engine[[#This Row],[Baseline SST CP1]])+$AA$61*IF($G$6="Detailed", tbl_Refrigeration_Calc_Engine[[#This Row],[Baseline SST CP1]]+$E$74,tbl_Refrigeration_Calc_Engine[[#This Row],[Baseline SST CP1]])^2)), IF(tbl_Refrigeration_Calc_Engine[[#This Row],[Baseline kW CP2]]=0,0,MAX(0,$AG$62+$AF$62*tbl_Refrigeration_Calc_Engine[[#This Row],[Baseline kW CP2]]+$AE$62*tbl_Refrigeration_Calc_Engine[[#This Row],[Baseline kW CP2]]^2+$AD$62*tbl_Refrigeration_Calc_Engine[[#This Row],[Load SCT Discharge Temp]]+$AC$62*tbl_Refrigeration_Calc_Engine[[#This Row],[Load SCT Discharge Temp]]^2+$AB$62*IF($G$6="Detailed", tbl_Refrigeration_Calc_Engine[[#This Row],[Baseline SST CP2]]+$E$74,tbl_Refrigeration_Calc_Engine[[#This Row],[Baseline SST CP2]])+$AA$62*IF($G$6="Detailed", tbl_Refrigeration_Calc_Engine[[#This Row],[Baseline SST CP2]]+$E$74,tbl_Refrigeration_Calc_Engine[[#This Row],[Baseline SST CP2]])^2)), IF(tbl_Refrigeration_Calc_Engine[[#This Row],[Baseline kW CP3]]=0,0,MAX(0,$AG$63+$AF$63*tbl_Refrigeration_Calc_Engine[[#This Row],[Baseline kW CP3]]+$AE$63*tbl_Refrigeration_Calc_Engine[[#This Row],[Baseline kW CP3]]^2+$AD$63*tbl_Refrigeration_Calc_Engine[[#This Row],[Load SCT Discharge Temp]]+$AC$63*tbl_Refrigeration_Calc_Engine[[#This Row],[Load SCT Discharge Temp]]^2+$AB$63*IF($G$6="Detailed", tbl_Refrigeration_Calc_Engine[[#This Row],[Baseline SST CP3]]+$E$74,tbl_Refrigeration_Calc_Engine[[#This Row],[Baseline SST CP3]])+$AA$63*IF($G$6="Detailed", tbl_Refrigeration_Calc_Engine[[#This Row],[Baseline SST CP3]]+$E$74,tbl_Refrigeration_Calc_Engine[[#This Row],[Baseline SST CP3]])^2)))) -> 0 | Q96: =IF($T$62="Simple",IF(tbl_Refrigeration_Calc_Engine[[#This Row],[bhp Per Ton ]]=0,0,1/tbl_Refrigeration_Calc_Engine[[#This Row],[bhp Per Ton ]]*$Q$71),$AG$69+$AF$69*tbl_Refrigeration_Calc_Engine[[#This Row],[SCT Discharge Temp]]) ->  | R96: =IF($T$62="Simple",IF(tbl_Refrigeration_Calc_Engine[[#This Row],[bhp Per Ton ]]=0,0,1/tbl_Refrigeration_Calc_Engine[[#This Row],[bhp Per Ton ]]*$R$71),$AG$70+$AF$70*tbl_Refrigeration_Calc_Engine[[#This Row],[SCT Discharge Temp]]) ->  | S96: =IF($T$62="Simple",IF(tbl_Refrigeration_Calc_Engine[[#This Row],[bhp Per Ton ]]=0,0,1/tbl_Refrigeration_Calc_Engine[[#This Row],[bhp Per Ton ]]*$S$71),$AG$71+$AF$71*tbl_Refrigeration_Calc_Engine[[#This Row],[SCT Discharge Temp]]) ->  | T96: =Stage_Check($P$62:$P$68,$Q$61:$S$61,tbl_Refrigeration_Calc_Engine[[#This Row],[Capacity CP1]:[Capacity CP3]],tbl_Refrigeration_Calc_Engine[[#This Row],[Cooling Load Ton]]) ->  | U96: =IF(tbl_Refrigeration_Calc_Engine[[#This Row],[Cooling Load Ton]]=0,0,Compressor_Load(tbl_Refrigeration_Calc_Engine[[#This Row],[Cooling Load Ton]],tbl_Refrigeration_Calc_Engine[[#This Row],[Capacity CP1]:[Capacity CP3]],INDEX($Q$62:$S$68,tbl_Refrigeration_Calc_Engine[[#This Row],[Stage]],0),tbl_Refrigeration_Calc_Engine[[#Headers],[Load CP1]])) -> 0 | V96: =IF(tbl_Refrigeration_Calc_Engine[[#This Row],[Cooling Load Ton]]=0,0,Compressor_Load(tbl_Refrigeration_Calc_Engine[[#This Row],[Cooling Load Ton]],tbl_Refrigeration_Calc_Engine[[#This Row],[Capacity CP1]:[Capacity CP3]],INDEX($Q$62:$S$68,tbl_Refrigeration_Calc_Engine[[#This Row],[Stage]],0),tbl_Refrigeration_Calc_Engine[[#Headers],[Load CP2]])) -> 0 | W96: =IF(tbl_Refrigeration_Calc_Engine[[#This Row],[Cooling Load Ton]]=0,0,Compressor_Load(tbl_Refrigeration_Calc_Engine[[#This Row],[Cooling Load Ton]],tbl_Refrigeration_Calc_Engine[[#This Row],[Capacity CP1]:[Capacity CP3]],INDEX($Q$62:$S$68,tbl_Refrigeration_Calc_Engine[[#This Row],[Stage]],0),tbl_Refrigeration_Calc_Engine[[#Headers],[Load CP3]])) -> 0 | X96: =IF(OR(tbl_Refrigeration_Calc_Engine[[#This Row],[Capacity CP1]]=0,tbl_Refrigeration_Calc_Engine[[#This Row],[Load CP1]]<tbl_Refrigeration_Calc_Engine[[#This Row],[Capacity CP1]]*$E$69),0,tbl_Refrigeration_Calc_Engine[[#This Row],[Load CP1]]/tbl_Refrigeration_Calc_Engine[[#This Row],[Capacity CP1]]) ->  | Y96: =IF(OR(tbl_Refrigeration_Calc_Engine[[#This Row],[Capacity CP2]]=0,tbl_Refrigeration_Calc_Engine[[#This Row],[Load CP2]]<tbl_Refrigeration_Calc_Engine[[#This Row],[Capacity CP2]]*$E$69),0,tbl_Refrigeration_Calc_Engine[[#This Row],[Load CP2]]/tbl_Refrigeration_Calc_Engine[[#This Row],[Capacity CP2]]) ->  | Z96: =IF(OR(tbl_Refrigeration_Calc_Engine[[#This Row],[Capacity CP3]]=0,tbl_Refrigeration_Calc_Engine[[#This Row],[Load CP3]]<tbl_Refrigeration_Calc_Engine[[#This Row],[Capacity CP3]]*$E$69),0,tbl_Refrigeration_Calc_Engine[[#This Row],[Load CP3]]/tbl_Refrigeration_Calc_Engine[[#This Row],[Capacity CP3]]) ->  | AA96: =IF(tbl_Refrigeration_Calc_Engine[[#This Row],[Capacity % CP1]]=0,0,MAX(0,INDEX($U$66:$X$68,Q$72,1)*tbl_Refrigeration_Calc_Engine[[#This Row],[Capacity % CP1]]^3+INDEX($U$66:$X$68,Q$72,2)*tbl_Refrigeration_Calc_Engine[[#This Row],[Capacity % CP1]]^2+INDEX($U$66:$X$68,Q$72,3)*tbl_Refrigeration_Calc_Engine[[#This Row],[Capacity % CP1]]+INDEX($U$66:$X$68,Q$72,4))) ->  | AB96: =IF(tbl_Refrigeration_Calc_Engine[[#This Row],[Capacity % CP2]]=0,0,MAX(0,INDEX($U$66:$X$68,R$72,1)*tbl_Refrigeration_Calc_Engine[[#This Row],[Capacity % CP2]]^3+INDEX($U$66:$X$68,R$72,2)*tbl_Refrigeration_Calc_Engine[[#This Row],[Capacity % CP2]]^2+INDEX($U$66:$X$68,R$72,3)*tbl_Refrigeration_Calc_Engine[[#This Row],[Capacity % CP2]]+INDEX($U$66:$X$68,R$72,4))) ->  | AC96: =IF(tbl_Refrigeration_Calc_Engine[[#This Row],[Capacity % CP3]]=0,0,MAX(0,INDEX($U$66:$X$68,S$72,1)*tbl_Refrigeration_Calc_Engine[[#This Row],[Capacity % CP3]]^3+INDEX($U$66:$X$68,S$72,2)*tbl_Refrigeration_Calc_Engine[[#This Row],[Capacity % CP3]]^2+INDEX($U$66:$X$68,S$72,3)*tbl_Refrigeration_Calc_Engine[[#This Row],[Capacity % CP3]]+INDEX($U$66:$X$68,S$72,4))) ->  | AD96: =IF($D$6="Evaporative",IF($J$65-tbl_Refrigeration_Calc_Engine[[#This Row],[WBT]]<=$E$5,1,IF($J$65<=tbl_Refrigeration_Calc_Engine[[#This Row],[WBT]],1,$E$5/($J$65-tbl_Refrigeration_Calc_Engine[[#This Row],[WBT]]))),IF($J$65-tbl_Refrigeration_Calc_Engine[[#This Row],[DBT]]<=$E$5,1,IF($J$65<=tbl_Refrigeration_Calc_Engine[[#This Row],[DBT]],1,$E$5/($J$65-tbl_Refrigeration_Calc_Engine[[#This Row],[DBT]])))) ->  | AE96: =tbl_Refrigeration_Calc_Engine[[#This Row],[Cooling Load Ton]]/$V$61 ->  | AF96: =IF($T$62="Simple",SUMPRODUCT(tbl_Refrigeration_Calc_Engine[[#This Row],[Power % CP1]:[Power % CP3]],$Q$70:$S$70*O96*0.746/$E$65), SUM( IF(tbl_Refrigeration_Calc_Engine[[#This Row],[Capacity % CP1]]=0,0,MAX(0,tbl_Refrigeration_Calc_Engine[[#This Row],[Power % CP1]]*($AG$65+$AF$65*tbl_Refrigeration_Calc_Engine[[#This Row],[SCT Discharge Temp]]+$AE$65*tbl_Refrigeration_Calc_Engine[[#This Row],[SCT Discharge Temp]]^2+$AD$65*IF($G$6="Detailed", tbl_Refrigeration_Calc_Engine[[#This Row],[Baseline SST CP1]]+$E$74,$J$68)+$AC$65*IF($G$6="Detailed", tbl_Refrigeration_Calc_Engine[[#This Row],[Baseline SST CP1]]+$E$74,$J$68)^2+$AB$65*tbl_Refrigeration_Calc_Engine[[#This Row],[Load CP1]]+$AA$65*tbl_Refrigeration_Calc_Engine[[#This Row],[Load CP1]]^2))), IF(tbl_Refrigeration_Calc_Engine[[#This Row],[Capacity % CP2]]=0,0,MAX(0,tbl_Refrigeration_Calc_Engine[[#This Row],[Power % CP2]]*($AG$66+$AF$66*tbl_Refrigeration_Calc_Engine[[#This Row],[SCT Discharge Temp]]+$AE$66*tbl_Refrigeration_Calc_Engine[[#This Row],[SCT Discharge Temp]]^2+$AD$66*IF($G$6="Detailed", tbl_Refrigeration_Calc_Engine[[#This Row],[Baseline SST CP2]]+$E$74,$J$68)+$AC$66*IF($G$6="Detailed", tbl_Refrigeration_Calc_Engine[[#This Row],[Baseline SST CP2]]+$E$74,$J$68)^2+$AB$66*tbl_Refrigeration_Calc_Engine[[#This Row],[Load CP2]]+$AA$66*tbl_Refrigeration_Calc_Engine[[#This Row],[Load CP2]]^2))), IF(tbl_Refrigeration_Calc_Engine[[#This Row],[Capacity % CP3]]=0,0,MAX(0,tbl_Refrigeration_Calc_Engine[[#This Row],[Power % CP3]]*($AG$67+$AF$67*tbl_Refrigeration_Calc_Engine[[#This Row],[SCT Discharge Temp]]+$AE$67*tbl_Refrigeration_Calc_Engine[[#This Row],[SCT Discharge Temp]]^2+$AD$67*IF($G$6="Detailed", tbl_Refrigeration_Calc_Engine[[#This Row],[Baseline SST CP3]]+$E$74,$J$68)+$AC$67*IF($G$6="Detailed", tbl_Refrigeration_Calc_Engine[[#This Row],[Baseline SST CP3]]+$E$74,$J$68)^2+$AB$67*tbl_Refrigeration_Calc_Engine[[#This Row],[Load CP3]]+$AA$67*tbl_Refrigeration_Calc_Engine[[#This Row],[Load CP3]]^2))))) ->  | AG96: =IF($B$72="On-Off",$J$66*tbl_Refrigeration_Calc_Engine[[#This Row],[Condenser Fan]],$J$66*tbl_Refrigeration_Calc_Engine[[#This Row],[Condenser Fan]]^3/'Refrigeration Template'!$E$61) ->  | AH96: =IF($E$72="VFD",MAX($E$73,tbl_Refrigeration_Calc_Engine[[#This Row],[Calculated Evaporator Fan]])^3,tbl_Refrigeration_Calc_Engine[[#This Row],[Calculated Evaporator Fan]])*$J$67 -> 
B97: 20 | C97: 20 | D97: ='CTZ2'!M21 -> 37 | E97: ='CTZ2'!N21 -> 47 | L97: =MAX($C$19,$E$5+IF($D$6="Evaporative",tbl_Refrigeration_Calc_Engine[[#This Row],[WBT]],tbl_Refrigeration_Calc_Engine[[#This Row],[DBT]])) ->  | M97: =MAX($J$65,$E$5+IF($D$6="Evaporative",tbl_Refrigeration_Calc_Engine[[#This Row],[WBT]],tbl_Refrigeration_Calc_Engine[[#This Row],[DBT]])) ->  | N97: =(0.339-0.00692*$J$64+0.000128*$J$64^2+0.00561*tbl_Refrigeration_Calc_Engine[[#This Row],[SCT Discharge Temp]]+0.0000917*tbl_Refrigeration_Calc_Engine[[#This Row],[SCT Discharge Temp]]^2-0.000235*$J$64*tbl_Refrigeration_Calc_Engine[[#This Row],[SCT Discharge Temp]]) ->  | O97: =1-(MAX(tbl_Refrigeration_Calc_Engine[SCT Discharge Temp])-tbl_Refrigeration_Calc_Engine[[#This Row],[SCT Discharge Temp]])*'Refrigeration Template'!$E$63 ->  | P97: =IF($T$62="Simple",FORECAST(MEDIAN($X$61,$X$62,tbl_Refrigeration_Calc_Engine[[#This Row],[DBT]]),$V$61:$V$62,$X$61:$X$62), SUM( IF(tbl_Refrigeration_Calc_Engine[[#This Row],[Baseline kW CP1]]=0,0,MAX(0,$AG$61+$AF$61*tbl_Refrigeration_Calc_Engine[[#This Row],[Baseline kW CP1]]+$AE$61*tbl_Refrigeration_Calc_Engine[[#This Row],[Baseline kW CP1]]^2+$AD$61*tbl_Refrigeration_Calc_Engine[[#This Row],[Load SCT Discharge Temp]]+$AC$61*tbl_Refrigeration_Calc_Engine[[#This Row],[Load SCT Discharge Temp]]^2+$AB$61*IF($G$6="Detailed", tbl_Refrigeration_Calc_Engine[[#This Row],[Baseline SST CP1]]+$E$74,tbl_Refrigeration_Calc_Engine[[#This Row],[Baseline SST CP1]])+$AA$61*IF($G$6="Detailed", tbl_Refrigeration_Calc_Engine[[#This Row],[Baseline SST CP1]]+$E$74,tbl_Refrigeration_Calc_Engine[[#This Row],[Baseline SST CP1]])^2)), IF(tbl_Refrigeration_Calc_Engine[[#This Row],[Baseline kW CP2]]=0,0,MAX(0,$AG$62+$AF$62*tbl_Refrigeration_Calc_Engine[[#This Row],[Baseline kW CP2]]+$AE$62*tbl_Refrigeration_Calc_Engine[[#This Row],[Baseline kW CP2]]^2+$AD$62*tbl_Refrigeration_Calc_Engine[[#This Row],[Load SCT Discharge Temp]]+$AC$62*tbl_Refrigeration_Calc_Engine[[#This Row],[Load SCT Discharge Temp]]^2+$AB$62*IF($G$6="Detailed", tbl_Refrigeration_Calc_Engine[[#This Row],[Baseline SST CP2]]+$E$74,tbl_Refrigeration_Calc_Engine[[#This Row],[Baseline SST CP2]])+$AA$62*IF($G$6="Detailed", tbl_Refrigeration_Calc_Engine[[#This Row],[Baseline SST CP2]]+$E$74,tbl_Refrigeration_Calc_Engine[[#This Row],[Baseline SST CP2]])^2)), IF(tbl_Refrigeration_Calc_Engine[[#This Row],[Baseline kW CP3]]=0,0,MAX(0,$AG$63+$AF$63*tbl_Refrigeration_Calc_Engine[[#This Row],[Baseline kW CP3]]+$AE$63*tbl_Refrigeration_Calc_Engine[[#This Row],[Baseline kW CP3]]^2+$AD$63*tbl_Refrigeration_Calc_Engine[[#This Row],[Load SCT Discharge Temp]]+$AC$63*tbl_Refrigeration_Calc_Engine[[#This Row],[Load SCT Discharge Temp]]^2+$AB$63*IF($G$6="Detailed", tbl_Refrigeration_Calc_Engine[[#This Row],[Baseline SST CP3]]+$E$74,tbl_Refrigeration_Calc_Engine[[#This Row],[Baseline SST CP3]])+$AA$63*IF($G$6="Detailed", tbl_Refrigeration_Calc_Engine[[#This Row],[Baseline SST CP3]]+$E$74,tbl_Refrigeration_Calc_Engine[[#This Row],[Baseline SST CP3]])^2)))) -> 0 | Q97: =IF($T$62="Simple",IF(tbl_Refrigeration_Calc_Engine[[#This Row],[bhp Per Ton ]]=0,0,1/tbl_Refrigeration_Calc_Engine[[#This Row],[bhp Per Ton ]]*$Q$71),$AG$69+$AF$69*tbl_Refrigeration_Calc_Engine[[#This Row],[SCT Discharge Temp]]) ->  | R97: =IF($T$62="Simple",IF(tbl_Refrigeration_Calc_Engine[[#This Row],[bhp Per Ton ]]=0,0,1/tbl_Refrigeration_Calc_Engine[[#This Row],[bhp Per Ton ]]*$R$71),$AG$70+$AF$70*tbl_Refrigeration_Calc_Engine[[#This Row],[SCT Discharge Temp]]) ->  | S97: =IF($T$62="Simple",IF(tbl_Refrigeration_Calc_Engine[[#This Row],[bhp Per Ton ]]=0,0,1/tbl_Refrigeration_Calc_Engine[[#This Row],[bhp Per Ton ]]*$S$71),$AG$71+$AF$71*tbl_Refrigeration_Calc_Engine[[#This Row],[SCT Discharge Temp]]) ->  | T97: =Stage_Check($P$62:$P$68,$Q$61:$S$61,tbl_Refrigeration_Calc_Engine[[#This Row],[Capacity CP1]:[Capacity CP3]],tbl_Refrigeration_Calc_Engine[[#This Row],[Cooling Load Ton]]) ->  | U97: =IF(tbl_Refrigeration_Calc_Engine[[#This Row],[Cooling Load Ton]]=0,0,Compressor_Load(tbl_Refrigeration_Calc_Engine[[#This Row],[Cooling Load Ton]],tbl_Refrigeration_Calc_Engine[[#This Row],[Capacity CP1]:[Capacity CP3]],INDEX($Q$62:$S$68,tbl_Refrigeration_Calc_Engine[[#This Row],[Stage]],0),tbl_Refrigeration_Calc_Engine[[#Headers],[Load CP1]])) -> 0 | V97: =IF(tbl_Refrigeration_Calc_Engine[[#This Row],[Cooling Load Ton]]=0,0,Compressor_Load(tbl_Refrigeration_Calc_Engine[[#This Row],[Cooling Load Ton]],tbl_Refrigeration_Calc_Engine[[#This Row],[Capacity CP1]:[Capacity CP3]],INDEX($Q$62:$S$68,tbl_Refrigeration_Calc_Engine[[#This Row],[Stage]],0),tbl_Refrigeration_Calc_Engine[[#Headers],[Load CP2]])) -> 0 | W97: =IF(tbl_Refrigeration_Calc_Engine[[#This Row],[Cooling Load Ton]]=0,0,Compressor_Load(tbl_Refrigeration_Calc_Engine[[#This Row],[Cooling Load Ton]],tbl_Refrigeration_Calc_Engine[[#This Row],[Capacity CP1]:[Capacity CP3]],INDEX($Q$62:$S$68,tbl_Refrigeration_Calc_Engine[[#This Row],[Stage]],0),tbl_Refrigeration_Calc_Engine[[#Headers],[Load CP3]])) -> 0 | X97: =IF(OR(tbl_Refrigeration_Calc_Engine[[#This Row],[Capacity CP1]]=0,tbl_Refrigeration_Calc_Engine[[#This Row],[Load CP1]]<tbl_Refrigeration_Calc_Engine[[#This Row],[Capacity CP1]]*$E$69),0,tbl_Refrigeration_Calc_Engine[[#This Row],[Load CP1]]/tbl_Refrigeration_Calc_Engine[[#This Row],[Capacity CP1]]) ->  | Y97: =IF(OR(tbl_Refrigeration_Calc_Engine[[#This Row],[Capacity CP2]]=0,tbl_Refrigeration_Calc_Engine[[#This Row],[Load CP2]]<tbl_Refrigeration_Calc_Engine[[#This Row],[Capacity CP2]]*$E$69),0,tbl_Refrigeration_Calc_Engine[[#This Row],[Load CP2]]/tbl_Refrigeration_Calc_Engine[[#This Row],[Capacity CP2]]) ->  | Z97: =IF(OR(tbl_Refrigeration_Calc_Engine[[#This Row],[Capacity CP3]]=0,tbl_Refrigeration_Calc_Engine[[#This Row],[Load CP3]]<tbl_Refrigeration_Calc_Engine[[#This Row],[Capacity CP3]]*$E$69),0,tbl_Refrigeration_Calc_Engine[[#This Row],[Load CP3]]/tbl_Refrigeration_Calc_Engine[[#This Row],[Capacity CP3]]) ->  | AA97: =IF(tbl_Refrigeration_Calc_Engine[[#This Row],[Capacity % CP1]]=0,0,MAX(0,INDEX($U$66:$X$68,Q$72,1)*tbl_Refrigeration_Calc_Engine[[#This Row],[Capacity % CP1]]^3+INDEX($U$66:$X$68,Q$72,2)*tbl_Refrigeration_Calc_Engine[[#This Row],[Capacity % CP1]]^2+INDEX($U$66:$X$68,Q$72,3)*tbl_Refrigeration_Calc_Engine[[#This Row],[Capacity % CP1]]+INDEX($U$66:$X$68,Q$72,4))) ->  | AB97: =IF(tbl_Refrigeration_Calc_Engine[[#This Row],[Capacity % CP2]]=0,0,MAX(0,INDEX($U$66:$X$68,R$72,1)*tbl_Refrigeration_Calc_Engine[[#This Row],[Capacity % CP2]]^3+INDEX($U$66:$X$68,R$72,2)*tbl_Refrigeration_Calc_Engine[[#This Row],[Capacity % CP2]]^2+INDEX($U$66:$X$68,R$72,3)*tbl_Refrigeration_Calc_Engine[[#This Row],[Capacity % CP2]]+INDEX($U$66:$X$68,R$72,4))) ->  | AC97: =IF(tbl_Refrigeration_Calc_Engine[[#This Row],[Capacity % CP3]]=0,0,MAX(0,INDEX($U$66:$X$68,S$72,1)*tbl_Refrigeration_Calc_Engine[[#This Row],[Capacity % CP3]]^3+INDEX($U$66:$X$68,S$72,2)*tbl_Refrigeration_Calc_Engine[[#This Row],[Capacity % CP3]]^2+INDEX($U$66:$X$68,S$72,3)*tbl_Refrigeration_Calc_Engine[[#This Row],[Capacity % CP3]]+INDEX($U$66:$X$68,S$72,4))) ->  | AD97: =IF($D$6="Evaporative",IF($J$65-tbl_Refrigeration_Calc_Engine[[#This Row],[WBT]]<=$E$5,1,IF($J$65<=tbl_Refrigeration_Calc_Engine[[#This Row],[WBT]],1,$E$5/($J$65-tbl_Refrigeration_Calc_Engine[[#This Row],[WBT]]))),IF($J$65-tbl_Refrigeration_Calc_Engine[[#This Row],[DBT]]<=$E$5,1,IF($J$65<=tbl_Refrigeration_Calc_Engine[[#This Row],[DBT]],1,$E$5/($J$65-tbl_Refrigeration_Calc_Engine[[#This Row],[DBT]])))) ->  | AE97: =tbl_Refrigeration_Calc_Engine[[#This Row],[Cooling Load Ton]]/$V$61 ->  | AF97: =IF($T$62="Simple",SUMPRODUCT(tbl_Refrigeration_Calc_Engine[[#This Row],[Power % CP1]:[Power % CP3]],$Q$70:$S$70*O97*0.746/$E$65), SUM( IF(tbl_Refrigeration_Calc_Engine[[#This Row],[Capacity % CP1]]=0,0,MAX(0,tbl_Refrigeration_Calc_Engine[[#This Row],[Power % CP1]]*($AG$65+$AF$65*tbl_Refrigeration_Calc_Engine[[#This Row],[SCT Discharge Temp]]+$AE$65*tbl_Refrigeration_Calc_Engine[[#This Row],[SCT Discharge Temp]]^2+$AD$65*IF($G$6="Detailed", tbl_Refrigeration_Calc_Engine[[#This Row],[Baseline SST CP1]]+$E$74,$J$68)+$AC$65*IF($G$6="Detailed", tbl_Refrigeration_Calc_Engine[[#This Row],[Baseline SST CP1]]+$E$74,$J$68)^2+$AB$65*tbl_Refrigeration_Calc_Engine[[#This Row],[Load CP1]]+$AA$65*tbl_Refrigeration_Calc_Engine[[#This Row],[Load CP1]]^2))), IF(tbl_Refrigeration_Calc_Engine[[#This Row],[Capacity % CP2]]=0,0,MAX(0,tbl_Refrigeration_Calc_Engine[[#This Row],[Power % CP2]]*($AG$66+$AF$66*tbl_Refrigeration_Calc_Engine[[#This Row],[SCT Discharge Temp]]+$AE$66*tbl_Refrigeration_Calc_Engine[[#This Row],[SCT Discharge Temp]]^2+$AD$66*IF($G$6="Detailed", tbl_Refrigeration_Calc_Engine[[#This Row],[Baseline SST CP2]]+$E$74,$J$68)+$AC$66*IF($G$6="Detailed", tbl_Refrigeration_Calc_Engine[[#This Row],[Baseline SST CP2]]+$E$74,$J$68)^2+$AB$66*tbl_Refrigeration_Calc_Engine[[#This Row],[Load CP2]]+$AA$66*tbl_Refrigeration_Calc_Engine[[#This Row],[Load CP2]]^2))), IF(tbl_Refrigeration_Calc_Engine[[#This Row],[Capacity % CP3]]=0,0,MAX(0,tbl_Refrigeration_Calc_Engine[[#This Row],[Power % CP3]]*($AG$67+$AF$67*tbl_Refrigeration_Calc_Engine[[#This Row],[SCT Discharge Temp]]+$AE$67*tbl_Refrigeration_Calc_Engine[[#This Row],[SCT Discharge Temp]]^2+$AD$67*IF($G$6="Detailed", tbl_Refrigeration_Calc_Engine[[#This Row],[Baseline SST CP3]]+$E$74,$J$68)+$AC$67*IF($G$6="Detailed", tbl_Refrigeration_Calc_Engine[[#This Row],[Baseline SST CP3]]+$E$74,$J$68)^2+$AB$67*tbl_Refrigeration_Calc_Engine[[#This Row],[Load CP3]]+$AA$67*tbl_Refrigeration_Calc_Engine[[#This Row],[Load CP3]]^2))))) ->  | AG97: =IF($B$72="On-Off",$J$66*tbl_Refrigeration_Calc_Engine[[#This Row],[Condenser Fan]],$J$66*tbl_Refrigeration_Calc_Engine[[#This Row],[Condenser Fan]]^3/'Refrigeration Template'!$E$61) ->  | AH97: =IF($E$72="VFD",MAX($E$73,tbl_Refrigeration_Calc_Engine[[#This Row],[Calculated Evaporator Fan]])^3,tbl_Refrigeration_Calc_Engine[[#This Row],[Calculated Evaporator Fan]])*$J$67 -> 
B98: 21 | C98: 21 | D98: ='CTZ2'!M22 -> 36 | E98: ='CTZ2'!N22 -> 46 | L98: =MAX($C$19,$E$5+IF($D$6="Evaporative",tbl_Refrigeration_Calc_Engine[[#This Row],[WBT]],tbl_Refrigeration_Calc_Engine[[#This Row],[DBT]])) ->  | M98: =MAX($J$65,$E$5+IF($D$6="Evaporative",tbl_Refrigeration_Calc_Engine[[#This Row],[WBT]],tbl_Refrigeration_Calc_Engine[[#This Row],[DBT]])) ->  | N98: =(0.339-0.00692*$J$64+0.000128*$J$64^2+0.00561*tbl_Refrigeration_Calc_Engine[[#This Row],[SCT Discharge Temp]]+0.0000917*tbl_Refrigeration_Calc_Engine[[#This Row],[SCT Discharge Temp]]^2-0.000235*$J$64*tbl_Refrigeration_Calc_Engine[[#This Row],[SCT Discharge Temp]]) ->  | O98: =1-(MAX(tbl_Refrigeration_Calc_Engine[SCT Discharge Temp])-tbl_Refrigeration_Calc_Engine[[#This Row],[SCT Discharge Temp]])*'Refrigeration Template'!$E$63 ->  | P98: =IF($T$62="Simple",FORECAST(MEDIAN($X$61,$X$62,tbl_Refrigeration_Calc_Engine[[#This Row],[DBT]]),$V$61:$V$62,$X$61:$X$62), SUM( IF(tbl_Refrigeration_Calc_Engine[[#This Row],[Baseline kW CP1]]=0,0,MAX(0,$AG$61+$AF$61*tbl_Refrigeration_Calc_Engine[[#This Row],[Baseline kW CP1]]+$AE$61*tbl_Refrigeration_Calc_Engine[[#This Row],[Baseline kW CP1]]^2+$AD$61*tbl_Refrigeration_Calc_Engine[[#This Row],[Load SCT Discharge Temp]]+$AC$61*tbl_Refrigeration_Calc_Engine[[#This Row],[Load SCT Discharge Temp]]^2+$AB$61*IF($G$6="Detailed", tbl_Refrigeration_Calc_Engine[[#This Row],[Baseline SST CP1]]+$E$74,tbl_Refrigeration_Calc_Engine[[#This Row],[Baseline SST CP1]])+$AA$61*IF($G$6="Detailed", tbl_Refrigeration_Calc_Engine[[#This Row],[Baseline SST CP1]]+$E$74,tbl_Refrigeration_Calc_Engine[[#This Row],[Baseline SST CP1]])^2)), IF(tbl_Refrigeration_Calc_Engine[[#This Row],[Baseline kW CP2]]=0,0,MAX(0,$AG$62+$AF$62*tbl_Refrigeration_Calc_Engine[[#This Row],[Baseline kW CP2]]+$AE$62*tbl_Refrigeration_Calc_Engine[[#This Row],[Baseline kW CP2]]^2+$AD$62*tbl_Refrigeration_Calc_Engine[[#This Row],[Load SCT Discharge Temp]]+$AC$62*tbl_Refrigeration_Calc_Engine[[#This Row],[Load SCT Discharge Temp]]^2+$AB$62*IF($G$6="Detailed", tbl_Refrigeration_Calc_Engine[[#This Row],[Baseline SST CP2]]+$E$74,tbl_Refrigeration_Calc_Engine[[#This Row],[Baseline SST CP2]])+$AA$62*IF($G$6="Detailed", tbl_Refrigeration_Calc_Engine[[#This Row],[Baseline SST CP2]]+$E$74,tbl_Refrigeration_Calc_Engine[[#This Row],[Baseline SST CP2]])^2)), IF(tbl_Refrigeration_Calc_Engine[[#This Row],[Baseline kW CP3]]=0,0,MAX(0,$AG$63+$AF$63*tbl_Refrigeration_Calc_Engine[[#This Row],[Baseline kW CP3]]+$AE$63*tbl_Refrigeration_Calc_Engine[[#This Row],[Baseline kW CP3]]^2+$AD$63*tbl_Refrigeration_Calc_Engine[[#This Row],[Load SCT Discharge Temp]]+$AC$63*tbl_Refrigeration_Calc_Engine[[#This Row],[Load SCT Discharge Temp]]^2+$AB$63*IF($G$6="Detailed", tbl_Refrigeration_Calc_Engine[[#This Row],[Baseline SST CP3]]+$E$74,tbl_Refrigeration_Calc_Engine[[#This Row],[Baseline SST CP3]])+$AA$63*IF($G$6="Detailed", tbl_Refrigeration_Calc_Engine[[#This Row],[Baseline SST CP3]]+$E$74,tbl_Refrigeration_Calc_Engine[[#This Row],[Baseline SST CP3]])^2)))) -> 0 | Q98: =IF($T$62="Simple",IF(tbl_Refrigeration_Calc_Engine[[#This Row],[bhp Per Ton ]]=0,0,1/tbl_Refrigeration_Calc_Engine[[#This Row],[bhp Per Ton ]]*$Q$71),$AG$69+$AF$69*tbl_Refrigeration_Calc_Engine[[#This Row],[SCT Discharge Temp]]) ->  | R98: =IF($T$62="Simple",IF(tbl_Refrigeration_Calc_Engine[[#This Row],[bhp Per Ton ]]=0,0,1/tbl_Refrigeration_Calc_Engine[[#This Row],[bhp Per Ton ]]*$R$71),$AG$70+$AF$70*tbl_Refrigeration_Calc_Engine[[#This Row],[SCT Discharge Temp]]) ->  | S98: =IF($T$62="Simple",IF(tbl_Refrigeration_Calc_Engine[[#This Row],[bhp Per Ton ]]=0,0,1/tbl_Refrigeration_Calc_Engine[[#This Row],[bhp Per Ton ]]*$S$71),$AG$71+$AF$71*tbl_Refrigeration_Calc_Engine[[#This Row],[SCT Discharge Temp]]) ->  | T98: =Stage_Check($P$62:$P$68,$Q$61:$S$61,tbl_Refrigeration_Calc_Engine[[#This Row],[Capacity CP1]:[Capacity CP3]],tbl_Refrigeration_Calc_Engine[[#This Row],[Cooling Load Ton]]) ->  | U98: =IF(tbl_Refrigeration_Calc_Engine[[#This Row],[Cooling Load Ton]]=0,0,Compressor_Load(tbl_Refrigeration_Calc_Engine[[#This Row],[Cooling Load Ton]],tbl_Refrigeration_Calc_Engine[[#This Row],[Capacity CP1]:[Capacity CP3]],INDEX($Q$62:$S$68,tbl_Refrigeration_Calc_Engine[[#This Row],[Stage]],0),tbl_Refrigeration_Calc_Engine[[#Headers],[Load CP1]])) -> 0 | V98: =IF(tbl_Refrigeration_Calc_Engine[[#This Row],[Cooling Load Ton]]=0,0,Compressor_Load(tbl_Refrigeration_Calc_Engine[[#This Row],[Cooling Load Ton]],tbl_Refrigeration_Calc_Engine[[#This Row],[Capacity CP1]:[Capacity CP3]],INDEX($Q$62:$S$68,tbl_Refrigeration_Calc_Engine[[#This Row],[Stage]],0),tbl_Refrigeration_Calc_Engine[[#Headers],[Load CP2]])) -> 0 | W98: =IF(tbl_Refrigeration_Calc_Engine[[#This Row],[Cooling Load Ton]]=0,0,Compressor_Load(tbl_Refrigeration_Calc_Engine[[#This Row],[Cooling Load Ton]],tbl_Refrigeration_Calc_Engine[[#This Row],[Capacity CP1]:[Capacity CP3]],INDEX($Q$62:$S$68,tbl_Refrigeration_Calc_Engine[[#This Row],[Stage]],0),tbl_Refrigeration_Calc_Engine[[#Headers],[Load CP3]])) -> 0 | X98: =IF(OR(tbl_Refrigeration_Calc_Engine[[#This Row],[Capacity CP1]]=0,tbl_Refrigeration_Calc_Engine[[#This Row],[Load CP1]]<tbl_Refrigeration_Calc_Engine[[#This Row],[Capacity CP1]]*$E$69),0,tbl_Refrigeration_Calc_Engine[[#This Row],[Load CP1]]/tbl_Refrigeration_Calc_Engine[[#This Row],[Capacity CP1]]) ->  | Y98: =IF(OR(tbl_Refrigeration_Calc_Engine[[#This Row],[Capacity CP2]]=0,tbl_Refrigeration_Calc_Engine[[#This Row],[Load CP2]]<tbl_Refrigeration_Calc_Engine[[#This Row],[Capacity CP2]]*$E$69),0,tbl_Refrigeration_Calc_Engine[[#This Row],[Load CP2]]/tbl_Refrigeration_Calc_Engine[[#This Row],[Capacity CP2]]) ->  | Z98: =IF(OR(tbl_Refrigeration_Calc_Engine[[#This Row],[Capacity CP3]]=0,tbl_Refrigeration_Calc_Engine[[#This Row],[Load CP3]]<tbl_Refrigeration_Calc_Engine[[#This Row],[Capacity CP3]]*$E$69),0,tbl_Refrigeration_Calc_Engine[[#This Row],[Load CP3]]/tbl_Refrigeration_Calc_Engine[[#This Row],[Capacity CP3]]) ->  | AA98: =IF(tbl_Refrigeration_Calc_Engine[[#This Row],[Capacity % CP1]]=0,0,MAX(0,INDEX($U$66:$X$68,Q$72,1)*tbl_Refrigeration_Calc_Engine[[#This Row],[Capacity % CP1]]^3+INDEX($U$66:$X$68,Q$72,2)*tbl_Refrigeration_Calc_Engine[[#This Row],[Capacity % CP1]]^2+INDEX($U$66:$X$68,Q$72,3)*tbl_Refrigeration_Calc_Engine[[#This Row],[Capacity % CP1]]+INDEX($U$66:$X$68,Q$72,4))) ->  | AB98: =IF(tbl_Refrigeration_Calc_Engine[[#This Row],[Capacity % CP2]]=0,0,MAX(0,INDEX($U$66:$X$68,R$72,1)*tbl_Refrigeration_Calc_Engine[[#This Row],[Capacity % CP2]]^3+INDEX($U$66:$X$68,R$72,2)*tbl_Refrigeration_Calc_Engine[[#This Row],[Capacity % CP2]]^2+INDEX($U$66:$X$68,R$72,3)*tbl_Refrigeration_Calc_Engine[[#This Row],[Capacity % CP2]]+INDEX($U$66:$X$68,R$72,4))) ->  | AC98: =IF(tbl_Refrigeration_Calc_Engine[[#This Row],[Capacity % CP3]]=0,0,MAX(0,INDEX($U$66:$X$68,S$72,1)*tbl_Refrigeration_Calc_Engine[[#This Row],[Capacity % CP3]]^3+INDEX($U$66:$X$68,S$72,2)*tbl_Refrigeration_Calc_Engine[[#This Row],[Capacity % CP3]]^2+INDEX($U$66:$X$68,S$72,3)*tbl_Refrigeration_Calc_Engine[[#This Row],[Capacity % CP3]]+INDEX($U$66:$X$68,S$72,4))) ->  | AD98: =IF($D$6="Evaporative",IF($J$65-tbl_Refrigeration_Calc_Engine[[#This Row],[WBT]]<=$E$5,1,IF($J$65<=tbl_Refrigeration_Calc_Engine[[#This Row],[WBT]],1,$E$5/($J$65-tbl_Refrigeration_Calc_Engine[[#This Row],[WBT]]))),IF($J$65-tbl_Refrigeration_Calc_Engine[[#This Row],[DBT]]<=$E$5,1,IF($J$65<=tbl_Refrigeration_Calc_Engine[[#This Row],[DBT]],1,$E$5/($J$65-tbl_Refrigeration_Calc_Engine[[#This Row],[DBT]])))) ->  | AE98: =tbl_Refrigeration_Calc_Engine[[#This Row],[Cooling Load Ton]]/$V$61 ->  | AF98: =IF($T$62="Simple",SUMPRODUCT(tbl_Refrigeration_Calc_Engine[[#This Row],[Power % CP1]:[Power % CP3]],$Q$70:$S$70*O98*0.746/$E$65), SUM( IF(tbl_Refrigeration_Calc_Engine[[#This Row],[Capacity % CP1]]=0,0,MAX(0,tbl_Refrigeration_Calc_Engine[[#This Row],[Power % CP1]]*($AG$65+$AF$65*tbl_Refrigeration_Calc_Engine[[#This Row],[SCT Discharge Temp]]+$AE$65*tbl_Refrigeration_Calc_Engine[[#This Row],[SCT Discharge Temp]]^2+$AD$65*IF($G$6="Detailed", tbl_Refrigeration_Calc_Engine[[#This Row],[Baseline SST CP1]]+$E$74,$J$68)+$AC$65*IF($G$6="Detailed", tbl_Refrigeration_Calc_Engine[[#This Row],[Baseline SST CP1]]+$E$74,$J$68)^2+$AB$65*tbl_Refrigeration_Calc_Engine[[#This Row],[Load CP1]]+$AA$65*tbl_Refrigeration_Calc_Engine[[#This Row],[Load CP1]]^2))), IF(tbl_Refrigeration_Calc_Engine[[#This Row],[Capacity % CP2]]=0,0,MAX(0,tbl_Refrigeration_Calc_Engine[[#This Row],[Power % CP2]]*($AG$66+$AF$66*tbl_Refrigeration_Calc_Engine[[#This Row],[SCT Discharge Temp]]+$AE$66*tbl_Refrigeration_Calc_Engine[[#This Row],[SCT Discharge Temp]]^2+$AD$66*IF($G$6="Detailed", tbl_Refrigeration_Calc_Engine[[#This Row],[Baseline SST CP2]]+$E$74,$J$68)+$AC$66*IF($G$6="Detailed", tbl_Refrigeration_Calc_Engine[[#This Row],[Baseline SST CP2]]+$E$74,$J$68)^2+$AB$66*tbl_Refrigeration_Calc_Engine[[#This Row],[Load CP2]]+$AA$66*tbl_Refrigeration_Calc_Engine[[#This Row],[Load CP2]]^2))), IF(tbl_Refrigeration_Calc_Engine[[#This Row],[Capacity % CP3]]=0,0,MAX(0,tbl_Refrigeration_Calc_Engine[[#This Row],[Power % CP3]]*($AG$67+$AF$67*tbl_Refrigeration_Calc_Engine[[#This Row],[SCT Discharge Temp]]+$AE$67*tbl_Refrigeration_Calc_Engine[[#This Row],[SCT Discharge Temp]]^2+$AD$67*IF($G$6="Detailed", tbl_Refrigeration_Calc_Engine[[#This Row],[Baseline SST CP3]]+$E$74,$J$68)+$AC$67*IF($G$6="Detailed", tbl_Refrigeration_Calc_Engine[[#This Row],[Baseline SST CP3]]+$E$74,$J$68)^2+$AB$67*tbl_Refrigeration_Calc_Engine[[#This Row],[Load CP3]]+$AA$67*tbl_Refrigeration_Calc_Engine[[#This Row],[Load CP3]]^2))))) ->  | AG98: =IF($B$72="On-Off",$J$66*tbl_Refrigeration_Calc_Engine[[#This Row],[Condenser Fan]],$J$66*tbl_Refrigeration_Calc_Engine[[#This Row],[Condenser Fan]]^3/'Refrigeration Template'!$E$61) ->  | AH98: =IF($E$72="VFD",MAX($E$73,tbl_Refrigeration_Calc_Engine[[#This Row],[Calculated Evaporator Fan]])^3,tbl_Refrigeration_Calc_Engine[[#This Row],[Calculated Evaporator Fan]])*$J$67 -> 
B99: 22 | C99: 22 | D99: ='CTZ2'!M23 -> 35 | E99: ='CTZ2'!N23 -> 45 | L99: =MAX($C$19,$E$5+IF($D$6="Evaporative",tbl_Refrigeration_Calc_Engine[[#This Row],[WBT]],tbl_Refrigeration_Calc_Engine[[#This Row],[DBT]])) ->  | M99: =MAX($J$65,$E$5+IF($D$6="Evaporative",tbl_Refrigeration_Calc_Engine[[#This Row],[WBT]],tbl_Refrigeration_Calc_Engine[[#This Row],[DBT]])) ->  | N99: =(0.339-0.00692*$J$64+0.000128*$J$64^2+0.00561*tbl_Refrigeration_Calc_Engine[[#This Row],[SCT Discharge Temp]]+0.0000917*tbl_Refrigeration_Calc_Engine[[#This Row],[SCT Discharge Temp]]^2-0.000235*$J$64*tbl_Refrigeration_Calc_Engine[[#This Row],[SCT Discharge Temp]]) ->  | O99: =1-(MAX(tbl_Refrigeration_Calc_Engine[SCT Discharge Temp])-tbl_Refrigeration_Calc_Engine[[#This Row],[SCT Discharge Temp]])*'Refrigeration Template'!$E$63 ->  | P99: =IF($T$62="Simple",FORECAST(MEDIAN($X$61,$X$62,tbl_Refrigeration_Calc_Engine[[#This Row],[DBT]]),$V$61:$V$62,$X$61:$X$62), SUM( IF(tbl_Refrigeration_Calc_Engine[[#This Row],[Baseline kW CP1]]=0,0,MAX(0,$AG$61+$AF$61*tbl_Refrigeration_Calc_Engine[[#This Row],[Baseline kW CP1]]+$AE$61*tbl_Refrigeration_Calc_Engine[[#This Row],[Baseline kW CP1]]^2+$AD$61*tbl_Refrigeration_Calc_Engine[[#This Row],[Load SCT Discharge Temp]]+$AC$61*tbl_Refrigeration_Calc_Engine[[#This Row],[Load SCT Discharge Temp]]^2+$AB$61*IF($G$6="Detailed", tbl_Refrigeration_Calc_Engine[[#This Row],[Baseline SST CP1]]+$E$74,tbl_Refrigeration_Calc_Engine[[#This Row],[Baseline SST CP1]])+$AA$61*IF($G$6="Detailed", tbl_Refrigeration_Calc_Engine[[#This Row],[Baseline SST CP1]]+$E$74,tbl_Refrigeration_Calc_Engine[[#This Row],[Baseline SST CP1]])^2)), IF(tbl_Refrigeration_Calc_Engine[[#This Row],[Baseline kW CP2]]=0,0,MAX(0,$AG$62+$AF$62*tbl_Refrigeration_Calc_Engine[[#This Row],[Baseline kW CP2]]+$AE$62*tbl_Refrigeration_Calc_Engine[[#This Row],[Baseline kW CP2]]^2+$AD$62*tbl_Refrigeration_Calc_Engine[[#This Row],[Load SCT Discharge Temp]]+$AC$62*tbl_Refrigeration_Calc_Engine[[#This Row],[Load SCT Discharge Temp]]^2+$AB$62*IF($G$6="Detailed", tbl_Refrigeration_Calc_Engine[[#This Row],[Baseline SST CP2]]+$E$74,tbl_Refrigeration_Calc_Engine[[#This Row],[Baseline SST CP2]])+$AA$62*IF($G$6="Detailed", tbl_Refrigeration_Calc_Engine[[#This Row],[Baseline SST CP2]]+$E$74,tbl_Refrigeration_Calc_Engine[[#This Row],[Baseline SST CP2]])^2)), IF(tbl_Refrigeration_Calc_Engine[[#This Row],[Baseline kW CP3]]=0,0,MAX(0,$AG$63+$AF$63*tbl_Refrigeration_Calc_Engine[[#This Row],[Baseline kW CP3]]+$AE$63*tbl_Refrigeration_Calc_Engine[[#This Row],[Baseline kW CP3]]^2+$AD$63*tbl_Refrigeration_Calc_Engine[[#This Row],[Load SCT Discharge Temp]]+$AC$63*tbl_Refrigeration_Calc_Engine[[#This Row],[Load SCT Discharge Temp]]^2+$AB$63*IF($G$6="Detailed", tbl_Refrigeration_Calc_Engine[[#This Row],[Baseline SST CP3]]+$E$74,tbl_Refrigeration_Calc_Engine[[#This Row],[Baseline SST CP3]])+$AA$63*IF($G$6="Detailed", tbl_Refrigeration_Calc_Engine[[#This Row],[Baseline SST CP3]]+$E$74,tbl_Refrigeration_Calc_Engine[[#This Row],[Baseline SST CP3]])^2)))) -> 0 | Q99: =IF($T$62="Simple",IF(tbl_Refrigeration_Calc_Engine[[#This Row],[bhp Per Ton ]]=0,0,1/tbl_Refrigeration_Calc_Engine[[#This Row],[bhp Per Ton ]]*$Q$71),$AG$69+$AF$69*tbl_Refrigeration_Calc_Engine[[#This Row],[SCT Discharge Temp]]) ->  | R99: =IF($T$62="Simple",IF(tbl_Refrigeration_Calc_Engine[[#This Row],[bhp Per Ton ]]=0,0,1/tbl_Refrigeration_Calc_Engine[[#This Row],[bhp Per Ton ]]*$R$71),$AG$70+$AF$70*tbl_Refrigeration_Calc_Engine[[#This Row],[SCT Discharge Temp]]) ->  | S99: =IF($T$62="Simple",IF(tbl_Refrigeration_Calc_Engine[[#This Row],[bhp Per Ton ]]=0,0,1/tbl_Refrigeration_Calc_Engine[[#This Row],[bhp Per Ton ]]*$S$71),$AG$71+$AF$71*tbl_Refrigeration_Calc_Engine[[#This Row],[SCT Discharge Temp]]) ->  | T99: =Stage_Check($P$62:$P$68,$Q$61:$S$61,tbl_Refrigeration_Calc_Engine[[#This Row],[Capacity CP1]:[Capacity CP3]],tbl_Refrigeration_Calc_Engine[[#This Row],[Cooling Load Ton]]) ->  | U99: =IF(tbl_Refrigeration_Calc_Engine[[#This Row],[Cooling Load Ton]]=0,0,Compressor_Load(tbl_Refrigeration_Calc_Engine[[#This Row],[Cooling Load Ton]],tbl_Refrigeration_Calc_Engine[[#This Row],[Capacity CP1]:[Capacity CP3]],INDEX($Q$62:$S$68,tbl_Refrigeration_Calc_Engine[[#This Row],[Stage]],0),tbl_Refrigeration_Calc_Engine[[#Headers],[Load CP1]])) -> 0 | V99: =IF(tbl_Refrigeration_Calc_Engine[[#This Row],[Cooling Load Ton]]=0,0,Compressor_Load(tbl_Refrigeration_Calc_Engine[[#This Row],[Cooling Load Ton]],tbl_Refrigeration_Calc_Engine[[#This Row],[Capacity CP1]:[Capacity CP3]],INDEX($Q$62:$S$68,tbl_Refrigeration_Calc_Engine[[#This Row],[Stage]],0),tbl_Refrigeration_Calc_Engine[[#Headers],[Load CP2]])) -> 0 | W99: =IF(tbl_Refrigeration_Calc_Engine[[#This Row],[Cooling Load Ton]]=0,0,Compressor_Load(tbl_Refrigeration_Calc_Engine[[#This Row],[Cooling Load Ton]],tbl_Refrigeration_Calc_Engine[[#This Row],[Capacity CP1]:[Capacity CP3]],INDEX($Q$62:$S$68,tbl_Refrigeration_Calc_Engine[[#This Row],[Stage]],0),tbl_Refrigeration_Calc_Engine[[#Headers],[Load CP3]])) -> 0 | X99: =IF(OR(tbl_Refrigeration_Calc_Engine[[#This Row],[Capacity CP1]]=0,tbl_Refrigeration_Calc_Engine[[#This Row],[Load CP1]]<tbl_Refrigeration_Calc_Engine[[#This Row],[Capacity CP1]]*$E$69),0,tbl_Refrigeration_Calc_Engine[[#This Row],[Load CP1]]/tbl_Refrigeration_Calc_Engine[[#This Row],[Capacity CP1]]) ->  | Y99: =IF(OR(tbl_Refrigeration_Calc_Engine[[#This Row],[Capacity CP2]]=0,tbl_Refrigeration_Calc_Engine[[#This Row],[Load CP2]]<tbl_Refrigeration_Calc_Engine[[#This Row],[Capacity CP2]]*$E$69),0,tbl_Refrigeration_Calc_Engine[[#This Row],[Load CP2]]/tbl_Refrigeration_Calc_Engine[[#This Row],[Capacity CP2]]) ->  | Z99: =IF(OR(tbl_Refrigeration_Calc_Engine[[#This Row],[Capacity CP3]]=0,tbl_Refrigeration_Calc_Engine[[#This Row],[Load CP3]]<tbl_Refrigeration_Calc_Engine[[#This Row],[Capacity CP3]]*$E$69),0,tbl_Refrigeration_Calc_Engine[[#This Row],[Load CP3]]/tbl_Refrigeration_Calc_Engine[[#This Row],[Capacity CP3]]) ->  | AA99: =IF(tbl_Refrigeration_Calc_Engine[[#This Row],[Capacity % CP1]]=0,0,MAX(0,INDEX($U$66:$X$68,Q$72,1)*tbl_Refrigeration_Calc_Engine[[#This Row],[Capacity % CP1]]^3+INDEX($U$66:$X$68,Q$72,2)*tbl_Refrigeration_Calc_Engine[[#This Row],[Capacity % CP1]]^2+INDEX($U$66:$X$68,Q$72,3)*tbl_Refrigeration_Calc_Engine[[#This Row],[Capacity % CP1]]+INDEX($U$66:$X$68,Q$72,4))) ->  | AB99: =IF(tbl_Refrigeration_Calc_Engine[[#This Row],[Capacity % CP2]]=0,0,MAX(0,INDEX($U$66:$X$68,R$72,1)*tbl_Refrigeration_Calc_Engine[[#This Row],[Capacity % CP2]]^3+INDEX($U$66:$X$68,R$72,2)*tbl_Refrigeration_Calc_Engine[[#This Row],[Capacity % CP2]]^2+INDEX($U$66:$X$68,R$72,3)*tbl_Refrigeration_Calc_Engine[[#This Row],[Capacity % CP2]]+INDEX($U$66:$X$68,R$72,4))) ->  | AC99: =IF(tbl_Refrigeration_Calc_Engine[[#This Row],[Capacity % CP3]]=0,0,MAX(0,INDEX($U$66:$X$68,S$72,1)*tbl_Refrigeration_Calc_Engine[[#This Row],[Capacity % CP3]]^3+INDEX($U$66:$X$68,S$72,2)*tbl_Refrigeration_Calc_Engine[[#This Row],[Capacity % CP3]]^2+INDEX($U$66:$X$68,S$72,3)*tbl_Refrigeration_Calc_Engine[[#This Row],[Capacity % CP3]]+INDEX($U$66:$X$68,S$72,4))) ->  | AD99: =IF($D$6="Evaporative",IF($J$65-tbl_Refrigeration_Calc_Engine[[#This Row],[WBT]]<=$E$5,1,IF($J$65<=tbl_Refrigeration_Calc_Engine[[#This Row],[WBT]],1,$E$5/($J$65-tbl_Refrigeration_Calc_Engine[[#This Row],[WBT]]))),IF($J$65-tbl_Refrigeration_Calc_Engine[[#This Row],[DBT]]<=$E$5,1,IF($J$65<=tbl_Refrigeration_Calc_Engine[[#This Row],[DBT]],1,$E$5/($J$65-tbl_Refrigeration_Calc_Engine[[#This Row],[DBT]])))) ->  | AE99: =tbl_Refrigeration_Calc_Engine[[#This Row],[Cooling Load Ton]]/$V$61 ->  | AF99: =IF($T$62="Simple",SUMPRODUCT(tbl_Refrigeration_Calc_Engine[[#This Row],[Power % CP1]:[Power % CP3]],$Q$70:$S$70*O99*0.746/$E$65), SUM( IF(tbl_Refrigeration_Calc_Engine[[#This Row],[Capacity % CP1]]=0,0,MAX(0,tbl_Refrigeration_Calc_Engine[[#This Row],[Power % CP1]]*($AG$65+$AF$65*tbl_Refrigeration_Calc_Engine[[#This Row],[SCT Discharge Temp]]+$AE$65*tbl_Refrigeration_Calc_Engine[[#This Row],[SCT Discharge Temp]]^2+$AD$65*IF($G$6="Detailed", tbl_Refrigeration_Calc_Engine[[#This Row],[Baseline SST CP1]]+$E$74,$J$68)+$AC$65*IF($G$6="Detailed", tbl_Refrigeration_Calc_Engine[[#This Row],[Baseline SST CP1]]+$E$74,$J$68)^2+$AB$65*tbl_Refrigeration_Calc_Engine[[#This Row],[Load CP1]]+$AA$65*tbl_Refrigeration_Calc_Engine[[#This Row],[Load CP1]]^2))), IF(tbl_Refrigeration_Calc_Engine[[#This Row],[Capacity % CP2]]=0,0,MAX(0,tbl_Refrigeration_Calc_Engine[[#This Row],[Power % CP2]]*($AG$66+$AF$66*tbl_Refrigeration_Calc_Engine[[#This Row],[SCT Discharge Temp]]+$AE$66*tbl_Refrigeration_Calc_Engine[[#This Row],[SCT Discharge Temp]]^2+$AD$66*IF($G$6="Detailed", tbl_Refrigeration_Calc_Engine[[#This Row],[Baseline SST CP2]]+$E$74,$J$68)+$AC$66*IF($G$6="Detailed", tbl_Refrigeration_Calc_Engine[[#This Row],[Baseline SST CP2]]+$E$74,$J$68)^2+$AB$66*tbl_Refrigeration_Calc_Engine[[#This Row],[Load CP2]]+$AA$66*tbl_Refrigeration_Calc_Engine[[#This Row],[Load CP2]]^2))), IF(tbl_Refrigeration_Calc_Engine[[#This Row],[Capacity % CP3]]=0,0,MAX(0,tbl_Refrigeration_Calc_Engine[[#This Row],[Power % CP3]]*($AG$67+$AF$67*tbl_Refrigeration_Calc_Engine[[#This Row],[SCT Discharge Temp]]+$AE$67*tbl_Refrigeration_Calc_Engine[[#This Row],[SCT Discharge Temp]]^2+$AD$67*IF($G$6="Detailed", tbl_Refrigeration_Calc_Engine[[#This Row],[Baseline SST CP3]]+$E$74,$J$68)+$AC$67*IF($G$6="Detailed", tbl_Refrigeration_Calc_Engine[[#This Row],[Baseline SST CP3]]+$E$74,$J$68)^2+$AB$67*tbl_Refrigeration_Calc_Engine[[#This Row],[Load CP3]]+$AA$67*tbl_Refrigeration_Calc_Engine[[#This Row],[Load CP3]]^2))))) ->  | AG99: =IF($B$72="On-Off",$J$66*tbl_Refrigeration_Calc_Engine[[#This Row],[Condenser Fan]],$J$66*tbl_Refrigeration_Calc_Engine[[#This Row],[Condenser Fan]]^3/'Refrigeration Template'!$E$61) ->  | AH99: =IF($E$72="VFD",MAX($E$73,tbl_Refrigeration_Calc_Engine[[#This Row],[Calculated Evaporator Fan]])^3,tbl_Refrigeration_Calc_Engine[[#This Row],[Calculated Evaporator Fan]])*$J$67 -> 
B100: 23 | C100: 23 | D100: ='CTZ2'!M24 -> 35 | E100: ='CTZ2'!N24 -> 44 | L100: =MAX($C$19,$E$5+IF($D$6="Evaporative",tbl_Refrigeration_Calc_Engine[[#This Row],[WBT]],tbl_Refrigeration_Calc_Engine[[#This Row],[DBT]])) ->  | M100: =MAX($J$65,$E$5+IF($D$6="Evaporative",tbl_Refrigeration_Calc_Engine[[#This Row],[WBT]],tbl_Refrigeration_Calc_Engine[[#This Row],[DBT]])) ->  | N100: =(0.339-0.00692*$J$64+0.000128*$J$64^2+0.00561*tbl_Refrigeration_Calc_Engine[[#This Row],[SCT Discharge Temp]]+0.0000917*tbl_Refrigeration_Calc_Engine[[#This Row],[SCT Discharge Temp]]^2-0.000235*$J$64*tbl_Refrigeration_Calc_Engine[[#This Row],[SCT Discharge Temp]]) ->  | O100: =1-(MAX(tbl_Refrigeration_Calc_Engine[SCT Discharge Temp])-tbl_Refrigeration_Calc_Engine[[#This Row],[SCT Discharge Temp]])*'Refrigeration Template'!$E$63 ->  | P100: =IF($T$62="Simple",FORECAST(MEDIAN($X$61,$X$62,tbl_Refrigeration_Calc_Engine[[#This Row],[DBT]]),$V$61:$V$62,$X$61:$X$62), SUM( IF(tbl_Refrigeration_Calc_Engine[[#This Row],[Baseline kW CP1]]=0,0,MAX(0,$AG$61+$AF$61*tbl_Refrigeration_Calc_Engine[[#This Row],[Baseline kW CP1]]+$AE$61*tbl_Refrigeration_Calc_Engine[[#This Row],[Baseline kW CP1]]^2+$AD$61*tbl_Refrigeration_Calc_Engine[[#This Row],[Load SCT Discharge Temp]]+$AC$61*tbl_Refrigeration_Calc_Engine[[#This Row],[Load SCT Discharge Temp]]^2+$AB$61*IF($G$6="Detailed", tbl_Refrigeration_Calc_Engine[[#This Row],[Baseline SST CP1]]+$E$74,tbl_Refrigeration_Calc_Engine[[#This Row],[Baseline SST CP1]])+$AA$61*IF($G$6="Detailed", tbl_Refrigeration_Calc_Engine[[#This Row],[Baseline SST CP1]]+$E$74,tbl_Refrigeration_Calc_Engine[[#This Row],[Baseline SST CP1]])^2)), IF(tbl_Refrigeration_Calc_Engine[[#This Row],[Baseline kW CP2]]=0,0,MAX(0,$AG$62+$AF$62*tbl_Refrigeration_Calc_Engine[[#This Row],[Baseline kW CP2]]+$AE$62*tbl_Refrigeration_Calc_Engine[[#This Row],[Baseline kW CP2]]^2+$AD$62*tbl_Refrigeration_Calc_Engine[[#This Row],[Load SCT Discharge Temp]]+$AC$62*tbl_Refrigeration_Calc_Engine[[#This Row],[Load SCT Discharge Temp]]^2+$AB$62*IF($G$6="Detailed", tbl_Refrigeration_Calc_Engine[[#This Row],[Baseline SST CP2]]+$E$74,tbl_Refrigeration_Calc_Engine[[#This Row],[Baseline SST CP2]])+$AA$62*IF($G$6="Detailed", tbl_Refrigeration_Calc_Engine[[#This Row],[Baseline SST CP2]]+$E$74,tbl_Refrigeration_Calc_Engine[[#This Row],[Baseline SST CP2]])^2)), IF(tbl_Refrigeration_Calc_Engine[[#This Row],[Baseline kW CP3]]=0,0,MAX(0,$AG$63+$AF$63*tbl_Refrigeration_Calc_Engine[[#This Row],[Baseline kW CP3]]+$AE$63*tbl_Refrigeration_Calc_Engine[[#This Row],[Baseline kW CP3]]^2+$AD$63*tbl_Refrigeration_Calc_Engine[[#This Row],[Load SCT Discharge Temp]]+$AC$63*tbl_Refrigeration_Calc_Engine[[#This Row],[Load SCT Discharge Temp]]^2+$AB$63*IF($G$6="Detailed", tbl_Refrigeration_Calc_Engine[[#This Row],[Baseline SST CP3]]+$E$74,tbl_Refrigeration_Calc_Engine[[#This Row],[Baseline SST CP3]])+$AA$63*IF($G$6="Detailed", tbl_Refrigeration_Calc_Engine[[#This Row],[Baseline SST CP3]]+$E$74,tbl_Refrigeration_Calc_Engine[[#This Row],[Baseline SST CP3]])^2)))) -> 0 | Q100: =IF($T$62="Simple",IF(tbl_Refrigeration_Calc_Engine[[#This Row],[bhp Per Ton ]]=0,0,1/tbl_Refrigeration_Calc_Engine[[#This Row],[bhp Per Ton ]]*$Q$71),$AG$69+$AF$69*tbl_Refrigeration_Calc_Engine[[#This Row],[SCT Discharge Temp]]) ->  | R100: =IF($T$62="Simple",IF(tbl_Refrigeration_Calc_Engine[[#This Row],[bhp Per Ton ]]=0,0,1/tbl_Refrigeration_Calc_Engine[[#This Row],[bhp Per Ton ]]*$R$71),$AG$70+$AF$70*tbl_Refrigeration_Calc_Engine[[#This Row],[SCT Discharge Temp]]) ->  | S100: =IF($T$62="Simple",IF(tbl_Refrigeration_Calc_Engine[[#This Row],[bhp Per Ton ]]=0,0,1/tbl_Refrigeration_Calc_Engine[[#This Row],[bhp Per Ton ]]*$S$71),$AG$71+$AF$71*tbl_Refrigeration_Calc_Engine[[#This Row],[SCT Discharge Temp]]) ->  | T100: =Stage_Check($P$62:$P$68,$Q$61:$S$61,tbl_Refrigeration_Calc_Engine[[#This Row],[Capacity CP1]:[Capacity CP3]],tbl_Refrigeration_Calc_Engine[[#This Row],[Cooling Load Ton]]) ->  | U100: =IF(tbl_Refrigeration_Calc_Engine[[#This Row],[Cooling Load Ton]]=0,0,Compressor_Load(tbl_Refrigeration_Calc_Engine[[#This Row],[Cooling Load Ton]],tbl_Refrigeration_Calc_Engine[[#This Row],[Capacity CP1]:[Capacity CP3]],INDEX($Q$62:$S$68,tbl_Refrigeration_Calc_Engine[[#This Row],[Stage]],0),tbl_Refrigeration_Calc_Engine[[#Headers],[Load CP1]])) -> 0 | V100: =IF(tbl_Refrigeration_Calc_Engine[[#This Row],[Cooling Load Ton]]=0,0,Compressor_Load(tbl_Refrigeration_Calc_Engine[[#This Row],[Cooling Load Ton]],tbl_Refrigeration_Calc_Engine[[#This Row],[Capacity CP1]:[Capacity CP3]],INDEX($Q$62:$S$68,tbl_Refrigeration_Calc_Engine[[#This Row],[Stage]],0),tbl_Refrigeration_Calc_Engine[[#Headers],[Load CP2]])) -> 0 | W100: =IF(tbl_Refrigeration_Calc_Engine[[#This Row],[Cooling Load Ton]]=0,0,Compressor_Load(tbl_Refrigeration_Calc_Engine[[#This Row],[Cooling Load Ton]],tbl_Refrigeration_Calc_Engine[[#This Row],[Capacity CP1]:[Capacity CP3]],INDEX($Q$62:$S$68,tbl_Refrigeration_Calc_Engine[[#This Row],[Stage]],0),tbl_Refrigeration_Calc_Engine[[#Headers],[Load CP3]])) -> 0 | X100: =IF(OR(tbl_Refrigeration_Calc_Engine[[#This Row],[Capacity CP1]]=0,tbl_Refrigeration_Calc_Engine[[#This Row],[Load CP1]]<tbl_Refrigeration_Calc_Engine[[#This Row],[Capacity CP1]]*$E$69),0,tbl_Refrigeration_Calc_Engine[[#This Row],[Load CP1]]/tbl_Refrigeration_Calc_Engine[[#This Row],[Capacity CP1]]) ->  | Y100: =IF(OR(tbl_Refrigeration_Calc_Engine[[#This Row],[Capacity CP2]]=0,tbl_Refrigeration_Calc_Engine[[#This Row],[Load CP2]]<tbl_Refrigeration_Calc_Engine[[#This Row],[Capacity CP2]]*$E$69),0,tbl_Refrigeration_Calc_Engine[[#This Row],[Load CP2]]/tbl_Refrigeration_Calc_Engine[[#This Row],[Capacity CP2]]) ->  | Z100: =IF(OR(tbl_Refrigeration_Calc_Engine[[#This Row],[Capacity CP3]]=0,tbl_Refrigeration_Calc_Engine[[#This Row],[Load CP3]]<tbl_Refrigeration_Calc_Engine[[#This Row],[Capacity CP3]]*$E$69),0,tbl_Refrigeration_Calc_Engine[[#This Row],[Load CP3]]/tbl_Refrigeration_Calc_Engine[[#This Row],[Capacity CP3]]) ->  | AA100: =IF(tbl_Refrigeration_Calc_Engine[[#This Row],[Capacity % CP1]]=0,0,MAX(0,INDEX($U$66:$X$68,Q$72,1)*tbl_Refrigeration_Calc_Engine[[#This Row],[Capacity % CP1]]^3+INDEX($U$66:$X$68,Q$72,2)*tbl_Refrigeration_Calc_Engine[[#This Row],[Capacity % CP1]]^2+INDEX($U$66:$X$68,Q$72,3)*tbl_Refrigeration_Calc_Engine[[#This Row],[Capacity % CP1]]+INDEX($U$66:$X$68,Q$72,4))) ->  | AB100: =IF(tbl_Refrigeration_Calc_Engine[[#This Row],[Capacity % CP2]]=0,0,MAX(0,INDEX($U$66:$X$68,R$72,1)*tbl_Refrigeration_Calc_Engine[[#This Row],[Capacity % CP2]]^3+INDEX($U$66:$X$68,R$72,2)*tbl_Refrigeration_Calc_Engine[[#This Row],[Capacity % CP2]]^2+INDEX($U$66:$X$68,R$72,3)*tbl_Refrigeration_Calc_Engine[[#This Row],[Capacity % CP2]]+INDEX($U$66:$X$68,R$72,4))) ->  | AC100: =IF(tbl_Refrigeration_Calc_Engine[[#This Row],[Capacity % CP3]]=0,0,MAX(0,INDEX($U$66:$X$68,S$72,1)*tbl_Refrigeration_Calc_Engine[[#This Row],[Capacity % CP3]]^3+INDEX($U$66:$X$68,S$72,2)*tbl_Refrigeration_Calc_Engine[[#This Row],[Capacity % CP3]]^2+INDEX($U$66:$X$68,S$72,3)*tbl_Refrigeration_Calc_Engine[[#This Row],[Capacity % CP3]]+INDEX($U$66:$X$68,S$72,4))) ->  | AD100: =IF($D$6="Evaporative",IF($J$65-tbl_Refrigeration_Calc_Engine[[#This Row],[WBT]]<=$E$5,1,IF($J$65<=tbl_Refrigeration_Calc_Engine[[#This Row],[WBT]],1,$E$5/($J$65-tbl_Refrigeration_Calc_Engine[[#This Row],[WBT]]))),IF($J$65-tbl_Refrigeration_Calc_Engine[[#This Row],[DBT]]<=$E$5,1,IF($J$65<=tbl_Refrigeration_Calc_Engine[[#This Row],[DBT]],1,$E$5/($J$65-tbl_Refrigeration_Calc_Engine[[#This Row],[DBT]])))) ->  | AE100: =tbl_Refrigeration_Calc_Engine[[#This Row],[Cooling Load Ton]]/$V$61 ->  | AF100: =IF($T$62="Simple",SUMPRODUCT(tbl_Refrigeration_Calc_Engine[[#This Row],[Power % CP1]:[Power % CP3]],$Q$70:$S$70*O100*0.746/$E$65), SUM( IF(tbl_Refrigeration_Calc_Engine[[#This Row],[Capacity % CP1]]=0,0,MAX(0,tbl_Refrigeration_Calc_Engine[[#This Row],[Power % CP1]]*($AG$65+$AF$65*tbl_Refrigeration_Calc_Engine[[#This Row],[SCT Discharge Temp]]+$AE$65*tbl_Refrigeration_Calc_Engine[[#This Row],[SCT Discharge Temp]]^2+$AD$65*IF($G$6="Detailed", tbl_Refrigeration_Calc_Engine[[#This Row],[Baseline SST CP1]]+$E$74,$J$68)+$AC$65*IF($G$6="Detailed", tbl_Refrigeration_Calc_Engine[[#This Row],[Baseline SST CP1]]+$E$74,$J$68)^2+$AB$65*tbl_Refrigeration_Calc_Engine[[#This Row],[Load CP1]]+$AA$65*tbl_Refrigeration_Calc_Engine[[#This Row],[Load CP1]]^2))), IF(tbl_Refrigeration_Calc_Engine[[#This Row],[Capacity % CP2]]=0,0,MAX(0,tbl_Refrigeration_Calc_Engine[[#This Row],[Power % CP2]]*($AG$66+$AF$66*tbl_Refrigeration_Calc_Engine[[#This Row],[SCT Discharge Temp]]+$AE$66*tbl_Refrigeration_Calc_Engine[[#This Row],[SCT Discharge Temp]]^2+$AD$66*IF($G$6="Detailed", tbl_Refrigeration_Calc_Engine[[#This Row],[Baseline SST CP2]]+$E$74,$J$68)+$AC$66*IF($G$6="Detailed", tbl_Refrigeration_Calc_Engine[[#This Row],[Baseline SST CP2]]+$E$74,$J$68)^2+$AB$66*tbl_Refrigeration_Calc_Engine[[#This Row],[Load CP2]]+$AA$66*tbl_Refrigeration_Calc_Engine[[#This Row],[Load CP2]]^2))), IF(tbl_Refrigeration_Calc_Engine[[#This Row],[Capacity % CP3]]=0,0,MAX(0,tbl_Refrigeration_Calc_Engine[[#This Row],[Power % CP3]]*($AG$67+$AF$67*tbl_Refrigeration_Calc_Engine[[#This Row],[SCT Discharge Temp]]+$AE$67*tbl_Refrigeration_Calc_Engine[[#This Row],[SCT Discharge Temp]]^2+$AD$67*IF($G$6="Detailed", tbl_Refrigeration_Calc_Engine[[#This Row],[Baseline SST CP3]]+$E$74,$J$68)+$AC$67*IF($G$6="Detailed", tbl_Refrigeration_Calc_Engine[[#This Row],[Baseline SST CP3]]+$E$74,$J$68)^2+$AB$67*tbl_Refrigeration_Calc_Engine[[#This Row],[Load CP3]]+$AA$67*tbl_Refrigeration_Calc_Engine[[#This Row],[Load CP3]]^2))))) ->  | AG100: =IF($B$72="On-Off",$J$66*tbl_Refrigeration_Calc_Engine[[#This Row],[Condenser Fan]],$J$66*tbl_Refrigeration_Calc_Engine[[#This Row],[Condenser Fan]]^3/'Refrigeration Template'!$E$61) ->  | AH100: =IF($E$72="VFD",MAX($E$73,tbl_Refrigeration_Calc_Engine[[#This Row],[Calculated Evaporator Fan]])^3,tbl_Refrigeration_Calc_Engine[[#This Row],[Calculated Evaporator Fan]])*$J$67 -> 
B101: 24 | C101: 24 | D101: ='CTZ2'!M25 -> 35 | E101: ='CTZ2'!N25 -> 44 | L101: =MAX($C$19,$E$5+IF($D$6="Evaporative",tbl_Refrigeration_Calc_Engine[[#This Row],[WBT]],tbl_Refrigeration_Calc_Engine[[#This Row],[DBT]])) ->  | M101: =MAX($J$65,$E$5+IF($D$6="Evaporative",tbl_Refrigeration_Calc_Engine[[#This Row],[WBT]],tbl_Refrigeration_Calc_Engine[[#This Row],[DBT]])) ->  | N101: =(0.339-0.00692*$J$64+0.000128*$J$64^2+0.00561*tbl_Refrigeration_Calc_Engine[[#This Row],[SCT Discharge Temp]]+0.0000917*tbl_Refrigeration_Calc_Engine[[#This Row],[SCT Discharge Temp]]^2-0.000235*$J$64*tbl_Refrigeration_Calc_Engine[[#This Row],[SCT Discharge Temp]]) ->  | O101: =1-(MAX(tbl_Refrigeration_Calc_Engine[SCT Discharge Temp])-tbl_Refrigeration_Calc_Engine[[#This Row],[SCT Discharge Temp]])*'Refrigeration Template'!$E$63 ->  | P101: =IF($T$62="Simple",FORECAST(MEDIAN($X$61,$X$62,tbl_Refrigeration_Calc_Engine[[#This Row],[DBT]]),$V$61:$V$62,$X$61:$X$62), SUM( IF(tbl_Refrigeration_Calc_Engine[[#This Row],[Baseline kW CP1]]=0,0,MAX(0,$AG$61+$AF$61*tbl_Refrigeration_Calc_Engine[[#This Row],[Baseline kW CP1]]+$AE$61*tbl_Refrigeration_Calc_Engine[[#This Row],[Baseline kW CP1]]^2+$AD$61*tbl_Refrigeration_Calc_Engine[[#This Row],[Load SCT Discharge Temp]]+$AC$61*tbl_Refrigeration_Calc_Engine[[#This Row],[Load SCT Discharge Temp]]^2+$AB$61*IF($G$6="Detailed", tbl_Refrigeration_Calc_Engine[[#This Row],[Baseline SST CP1]]+$E$74,tbl_Refrigeration_Calc_Engine[[#This Row],[Baseline SST CP1]])+$AA$61*IF($G$6="Detailed", tbl_Refrigeration_Calc_Engine[[#This Row],[Baseline SST CP1]]+$E$74,tbl_Refrigeration_Calc_Engine[[#This Row],[Baseline SST CP1]])^2)), IF(tbl_Refrigeration_Calc_Engine[[#This Row],[Baseline kW CP2]]=0,0,MAX(0,$AG$62+$AF$62*tbl_Refrigeration_Calc_Engine[[#This Row],[Baseline kW CP2]]+$AE$62*tbl_Refrigeration_Calc_Engine[[#This Row],[Baseline kW CP2]]^2+$AD$62*tbl_Refrigeration_Calc_Engine[[#This Row],[Load SCT Discharge Temp]]+$AC$62*tbl_Refrigeration_Calc_Engine[[#This Row],[Load SCT Discharge Temp]]^2+$AB$62*IF($G$6="Detailed", tbl_Refrigeration_Calc_Engine[[#This Row],[Baseline SST CP2]]+$E$74,tbl_Refrigeration_Calc_Engine[[#This Row],[Baseline SST CP2]])+$AA$62*IF($G$6="Detailed", tbl_Refrigeration_Calc_Engine[[#This Row],[Baseline SST CP2]]+$E$74,tbl_Refrigeration_Calc_Engine[[#This Row],[Baseline SST CP2]])^2)), IF(tbl_Refrigeration_Calc_Engine[[#This Row],[Baseline kW CP3]]=0,0,MAX(0,$AG$63+$AF$63*tbl_Refrigeration_Calc_Engine[[#This Row],[Baseline kW CP3]]+$AE$63*tbl_Refrigeration_Calc_Engine[[#This Row],[Baseline kW CP3]]^2+$AD$63*tbl_Refrigeration_Calc_Engine[[#This Row],[Load SCT Discharge Temp]]+$AC$63*tbl_Refrigeration_Calc_Engine[[#This Row],[Load SCT Discharge Temp]]^2+$AB$63*IF($G$6="Detailed", tbl_Refrigeration_Calc_Engine[[#This Row],[Baseline SST CP3]]+$E$74,tbl_Refrigeration_Calc_Engine[[#This Row],[Baseline SST CP3]])+$AA$63*IF($G$6="Detailed", tbl_Refrigeration_Calc_Engine[[#This Row],[Baseline SST CP3]]+$E$74,tbl_Refrigeration_Calc_Engine[[#This Row],[Baseline SST CP3]])^2)))) -> 0 | Q101: =IF($T$62="Simple",IF(tbl_Refrigeration_Calc_Engine[[#This Row],[bhp Per Ton ]]=0,0,1/tbl_Refrigeration_Calc_Engine[[#This Row],[bhp Per Ton ]]*$Q$71),$AG$69+$AF$69*tbl_Refrigeration_Calc_Engine[[#This Row],[SCT Discharge Temp]]) ->  | R101: =IF($T$62="Simple",IF(tbl_Refrigeration_Calc_Engine[[#This Row],[bhp Per Ton ]]=0,0,1/tbl_Refrigeration_Calc_Engine[[#This Row],[bhp Per Ton ]]*$R$71),$AG$70+$AF$70*tbl_Refrigeration_Calc_Engine[[#This Row],[SCT Discharge Temp]]) ->  | S101: =IF($T$62="Simple",IF(tbl_Refrigeration_Calc_Engine[[#This Row],[bhp Per Ton ]]=0,0,1/tbl_Refrigeration_Calc_Engine[[#This Row],[bhp Per Ton ]]*$S$71),$AG$71+$AF$71*tbl_Refrigeration_Calc_Engine[[#This Row],[SCT Discharge Temp]]) ->  | T101: =Stage_Check($P$62:$P$68,$Q$61:$S$61,tbl_Refrigeration_Calc_Engine[[#This Row],[Capacity CP1]:[Capacity CP3]],tbl_Refrigeration_Calc_Engine[[#This Row],[Cooling Load Ton]]) ->  | U101: =IF(tbl_Refrigeration_Calc_Engine[[#This Row],[Cooling Load Ton]]=0,0,Compressor_Load(tbl_Refrigeration_Calc_Engine[[#This Row],[Cooling Load Ton]],tbl_Refrigeration_Calc_Engine[[#This Row],[Capacity CP1]:[Capacity CP3]],INDEX($Q$62:$S$68,tbl_Refrigeration_Calc_Engine[[#This Row],[Stage]],0),tbl_Refrigeration_Calc_Engine[[#Headers],[Load CP1]])) -> 0 | V101: =IF(tbl_Refrigeration_Calc_Engine[[#This Row],[Cooling Load Ton]]=0,0,Compressor_Load(tbl_Refrigeration_Calc_Engine[[#This Row],[Cooling Load Ton]],tbl_Refrigeration_Calc_Engine[[#This Row],[Capacity CP1]:[Capacity CP3]],INDEX($Q$62:$S$68,tbl_Refrigeration_Calc_Engine[[#This Row],[Stage]],0),tbl_Refrigeration_Calc_Engine[[#Headers],[Load CP2]])) -> 0 | W101: =IF(tbl_Refrigeration_Calc_Engine[[#This Row],[Cooling Load Ton]]=0,0,Compressor_Load(tbl_Refrigeration_Calc_Engine[[#This Row],[Cooling Load Ton]],tbl_Refrigeration_Calc_Engine[[#This Row],[Capacity CP1]:[Capacity CP3]],INDEX($Q$62:$S$68,tbl_Refrigeration_Calc_Engine[[#This Row],[Stage]],0),tbl_Refrigeration_Calc_Engine[[#Headers],[Load CP3]])) -> 0 | X101: =IF(OR(tbl_Refrigeration_Calc_Engine[[#This Row],[Capacity CP1]]=0,tbl_Refrigeration_Calc_Engine[[#This Row],[Load CP1]]<tbl_Refrigeration_Calc_Engine[[#This Row],[Capacity CP1]]*$E$69),0,tbl_Refrigeration_Calc_Engine[[#This Row],[Load CP1]]/tbl_Refrigeration_Calc_Engine[[#This Row],[Capacity CP1]]) ->  | Y101: =IF(OR(tbl_Refrigeration_Calc_Engine[[#This Row],[Capacity CP2]]=0,tbl_Refrigeration_Calc_Engine[[#This Row],[Load CP2]]<tbl_Refrigeration_Calc_Engine[[#This Row],[Capacity CP2]]*$E$69),0,tbl_Refrigeration_Calc_Engine[[#This Row],[Load CP2]]/tbl_Refrigeration_Calc_Engine[[#This Row],[Capacity CP2]]) ->  | Z101: =IF(OR(tbl_Refrigeration_Calc_Engine[[#This Row],[Capacity CP3]]=0,tbl_Refrigeration_Calc_Engine[[#This Row],[Load CP3]]<tbl_Refrigeration_Calc_Engine[[#This Row],[Capacity CP3]]*$E$69),0,tbl_Refrigeration_Calc_Engine[[#This Row],[Load CP3]]/tbl_Refrigeration_Calc_Engine[[#This Row],[Capacity CP3]]) ->  | AA101: =IF(tbl_Refrigeration_Calc_Engine[[#This Row],[Capacity % CP1]]=0,0,MAX(0,INDEX($U$66:$X$68,Q$72,1)*tbl_Refrigeration_Calc_Engine[[#This Row],[Capacity % CP1]]^3+INDEX($U$66:$X$68,Q$72,2)*tbl_Refrigeration_Calc_Engine[[#This Row],[Capacity % CP1]]^2+INDEX($U$66:$X$68,Q$72,3)*tbl_Refrigeration_Calc_Engine[[#This Row],[Capacity % CP1]]+INDEX($U$66:$X$68,Q$72,4))) ->  | AB101: =IF(tbl_Refrigeration_Calc_Engine[[#This Row],[Capacity % CP2]]=0,0,MAX(0,INDEX($U$66:$X$68,R$72,1)*tbl_Refrigeration_Calc_Engine[[#This Row],[Capacity % CP2]]^3+INDEX($U$66:$X$68,R$72,2)*tbl_Refrigeration_Calc_Engine[[#This Row],[Capacity % CP2]]^2+INDEX($U$66:$X$68,R$72,3)*tbl_Refrigeration_Calc_Engine[[#This Row],[Capacity % CP2]]+INDEX($U$66:$X$68,R$72,4))) ->  | AC101: =IF(tbl_Refrigeration_Calc_Engine[[#This Row],[Capacity % CP3]]=0,0,MAX(0,INDEX($U$66:$X$68,S$72,1)*tbl_Refrigeration_Calc_Engine[[#This Row],[Capacity % CP3]]^3+INDEX($U$66:$X$68,S$72,2)*tbl_Refrigeration_Calc_Engine[[#This Row],[Capacity % CP3]]^2+INDEX($U$66:$X$68,S$72,3)*tbl_Refrigeration_Calc_Engine[[#This Row],[Capacity % CP3]]+INDEX($U$66:$X$68,S$72,4))) ->  | AD101: =IF($D$6="Evaporative",IF($J$65-tbl_Refrigeration_Calc_Engine[[#This Row],[WBT]]<=$E$5,1,IF($J$65<=tbl_Refrigeration_Calc_Engine[[#This Row],[WBT]],1,$E$5/($J$65-tbl_Refrigeration_Calc_Engine[[#This Row],[WBT]]))),IF($J$65-tbl_Refrigeration_Calc_Engine[[#This Row],[DBT]]<=$E$5,1,IF($J$65<=tbl_Refrigeration_Calc_Engine[[#This Row],[DBT]],1,$E$5/($J$65-tbl_Refrigeration_Calc_Engine[[#This Row],[DBT]])))) ->  | AE101: =tbl_Refrigeration_Calc_Engine[[#This Row],[Cooling Load Ton]]/$V$61 ->  | AF101: =IF($T$62="Simple",SUMPRODUCT(tbl_Refrigeration_Calc_Engine[[#This Row],[Power % CP1]:[Power % CP3]],$Q$70:$S$70*O101*0.746/$E$65), SUM( IF(tbl_Refrigeration_Calc_Engine[[#This Row],[Capacity % CP1]]=0,0,MAX(0,tbl_Refrigeration_Calc_Engine[[#This Row],[Power % CP1]]*($AG$65+$AF$65*tbl_Refrigeration_Calc_Engine[[#This Row],[SCT Discharge Temp]]+$AE$65*tbl_Refrigeration_Calc_Engine[[#This Row],[SCT Discharge Temp]]^2+$AD$65*IF($G$6="Detailed", tbl_Refrigeration_Calc_Engine[[#This Row],[Baseline SST CP1]]+$E$74,$J$68)+$AC$65*IF($G$6="Detailed", tbl_Refrigeration_Calc_Engine[[#This Row],[Baseline SST CP1]]+$E$74,$J$68)^2+$AB$65*tbl_Refrigeration_Calc_Engine[[#This Row],[Load CP1]]+$AA$65*tbl_Refrigeration_Calc_Engine[[#This Row],[Load CP1]]^2))), IF(tbl_Refrigeration_Calc_Engine[[#This Row],[Capacity % CP2]]=0,0,MAX(0,tbl_Refrigeration_Calc_Engine[[#This Row],[Power % CP2]]*($AG$66+$AF$66*tbl_Refrigeration_Calc_Engine[[#This Row],[SCT Discharge Temp]]+$AE$66*tbl_Refrigeration_Calc_Engine[[#This Row],[SCT Discharge Temp]]^2+$AD$66*IF($G$6="Detailed", tbl_Refrigeration_Calc_Engine[[#This Row],[Baseline SST CP2]]+$E$74,$J$68)+$AC$66*IF($G$6="Detailed", tbl_Refrigeration_Calc_Engine[[#This Row],[Baseline SST CP2]]+$E$74,$J$68)^2+$AB$66*tbl_Refrigeration_Calc_Engine[[#This Row],[Load CP2]]+$AA$66*tbl_Refrigeration_Calc_Engine[[#This Row],[Load CP2]]^2))), IF(tbl_Refrigeration_Calc_Engine[[#This Row],[Capacity % CP3]]=0,0,MAX(0,tbl_Refrigeration_Calc_Engine[[#This Row],[Power % CP3]]*($AG$67+$AF$67*tbl_Refrigeration_Calc_Engine[[#This Row],[SCT Discharge Temp]]+$AE$67*tbl_Refrigeration_Calc_Engine[[#This Row],[SCT Discharge Temp]]^2+$AD$67*IF($G$6="Detailed", tbl_Refrigeration_Calc_Engine[[#This Row],[Baseline SST CP3]]+$E$74,$J$68)+$AC$67*IF($G$6="Detailed", tbl_Refrigeration_Calc_Engine[[#This Row],[Baseline SST CP3]]+$E$74,$J$68)^2+$AB$67*tbl_Refrigeration_Calc_Engine[[#This Row],[Load CP3]]+$AA$67*tbl_Refrigeration_Calc_Engine[[#This Row],[Load CP3]]^2))))) ->  | AG101: =IF($B$72="On-Off",$J$66*tbl_Refrigeration_Calc_Engine[[#This Row],[Condenser Fan]],$J$66*tbl_Refrigeration_Calc_Engine[[#This Row],[Condenser Fan]]^3/'Refrigeration Template'!$E$61) ->  | AH101: =IF($E$72="VFD",MAX($E$73,tbl_Refrigeration_Calc_Engine[[#This Row],[Calculated Evaporator Fan]])^3,tbl_Refrigeration_Calc_Engine[[#This Row],[Calculated Evaporator Fan]])*$J$67 -> 
B102: 25 | C102: 1 | D102: ='CTZ2'!M26 -> 35 | E102: ='CTZ2'!N26 -> 44 | L102: =MAX($C$19,$E$5+IF($D$6="Evaporative",tbl_Refrigeration_Calc_Engine[[#This Row],[WBT]],tbl_Refrigeration_Calc_Engine[[#This Row],[DBT]])) ->  | M102: =MAX($J$65,$E$5+IF($D$6="Evaporative",tbl_Refrigeration_Calc_Engine[[#This Row],[WBT]],tbl_Refrigeration_Calc_Engine[[#This Row],[DBT]])) ->  | N102: =(0.339-0.00692*$J$64+0.000128*$J$64^2+0.00561*tbl_Refrigeration_Calc_Engine[[#This Row],[SCT Discharge Temp]]+0.0000917*tbl_Refrigeration_Calc_Engine[[#This Row],[SCT Discharge Temp]]^2-0.000235*$J$64*tbl_Refrigeration_Calc_Engine[[#This Row],[SCT Discharge Temp]]) ->  | O102: =1-(MAX(tbl_Refrigeration_Calc_Engine[SCT Discharge Temp])-tbl_Refrigeration_Calc_Engine[[#This Row],[SCT Discharge Temp]])*'Refrigeration Template'!$E$63 ->  | P102: =IF($T$62="Simple",FORECAST(MEDIAN($X$61,$X$62,tbl_Refrigeration_Calc_Engine[[#This Row],[DBT]]),$V$61:$V$62,$X$61:$X$62), SUM( IF(tbl_Refrigeration_Calc_Engine[[#This Row],[Baseline kW CP1]]=0,0,MAX(0,$AG$61+$AF$61*tbl_Refrigeration_Calc_Engine[[#This Row],[Baseline kW CP1]]+$AE$61*tbl_Refrigeration_Calc_Engine[[#This Row],[Baseline kW CP1]]^2+$AD$61*tbl_Refrigeration_Calc_Engine[[#This Row],[Load SCT Discharge Temp]]+$AC$61*tbl_Refrigeration_Calc_Engine[[#This Row],[Load SCT Discharge Temp]]^2+$AB$61*IF($G$6="Detailed", tbl_Refrigeration_Calc_Engine[[#This Row],[Baseline SST CP1]]+$E$74,tbl_Refrigeration_Calc_Engine[[#This Row],[Baseline SST CP1]])+$AA$61*IF($G$6="Detailed", tbl_Refrigeration_Calc_Engine[[#This Row],[Baseline SST CP1]]+$E$74,tbl_Refrigeration_Calc_Engine[[#This Row],[Baseline SST CP1]])^2)), IF(tbl_Refrigeration_Calc_Engine[[#This Row],[Baseline kW CP2]]=0,0,MAX(0,$AG$62+$AF$62*tbl_Refrigeration_Calc_Engine[[#This Row],[Baseline kW CP2]]+$AE$62*tbl_Refrigeration_Calc_Engine[[#This Row],[Baseline kW CP2]]^2+$AD$62*tbl_Refrigeration_Calc_Engine[[#This Row],[Load SCT Discharge Temp]]+$AC$62*tbl_Refrigeration_Calc_Engine[[#This Row],[Load SCT Discharge Temp]]^2+$AB$62*IF($G$6="Detailed", tbl_Refrigeration_Calc_Engine[[#This Row],[Baseline SST CP2]]+$E$74,tbl_Refrigeration_Calc_Engine[[#This Row],[Baseline SST CP2]])+$AA$62*IF($G$6="Detailed", tbl_Refrigeration_Calc_Engine[[#This Row],[Baseline SST CP2]]+$E$74,tbl_Refrigeration_Calc_Engine[[#This Row],[Baseline SST CP2]])^2)), IF(tbl_Refrigeration_Calc_Engine[[#This Row],[Baseline kW CP3]]=0,0,MAX(0,$AG$63+$AF$63*tbl_Refrigeration_Calc_Engine[[#This Row],[Baseline kW CP3]]+$AE$63*tbl_Refrigeration_Calc_Engine[[#This Row],[Baseline kW CP3]]^2+$AD$63*tbl_Refrigeration_Calc_Engine[[#This Row],[Load SCT Discharge Temp]]+$AC$63*tbl_Refrigeration_Calc_Engine[[#This Row],[Load SCT Discharge Temp]]^2+$AB$63*IF($G$6="Detailed", tbl_Refrigeration_Calc_Engine[[#This Row],[Baseline SST CP3]]+$E$74,tbl_Refrigeration_Calc_Engine[[#This Row],[Baseline SST CP3]])+$AA$63*IF($G$6="Detailed", tbl_Refrigeration_Calc_Engine[[#This Row],[Baseline SST CP3]]+$E$74,tbl_Refrigeration_Calc_Engine[[#This Row],[Baseline SST CP3]])^2)))) -> 0 | Q102: =IF($T$62="Simple",IF(tbl_Refrigeration_Calc_Engine[[#This Row],[bhp Per Ton ]]=0,0,1/tbl_Refrigeration_Calc_Engine[[#This Row],[bhp Per Ton ]]*$Q$71),$AG$69+$AF$69*tbl_Refrigeration_Calc_Engine[[#This Row],[SCT Discharge Temp]]) ->  | R102: =IF($T$62="Simple",IF(tbl_Refrigeration_Calc_Engine[[#This Row],[bhp Per Ton ]]=0,0,1/tbl_Refrigeration_Calc_Engine[[#This Row],[bhp Per Ton ]]*$R$71),$AG$70+$AF$70*tbl_Refrigeration_Calc_Engine[[#This Row],[SCT Discharge Temp]]) ->  | S102: =IF($T$62="Simple",IF(tbl_Refrigeration_Calc_Engine[[#This Row],[bhp Per Ton ]]=0,0,1/tbl_Refrigeration_Calc_Engine[[#This Row],[bhp Per Ton ]]*$S$71),$AG$71+$AF$71*tbl_Refrigeration_Calc_Engine[[#This Row],[SCT Discharge Temp]]) ->  | T102: =Stage_Check($P$62:$P$68,$Q$61:$S$61,tbl_Refrigeration_Calc_Engine[[#This Row],[Capacity CP1]:[Capacity CP3]],tbl_Refrigeration_Calc_Engine[[#This Row],[Cooling Load Ton]]) ->  | U102: =IF(tbl_Refrigeration_Calc_Engine[[#This Row],[Cooling Load Ton]]=0,0,Compressor_Load(tbl_Refrigeration_Calc_Engine[[#This Row],[Cooling Load Ton]],tbl_Refrigeration_Calc_Engine[[#This Row],[Capacity CP1]:[Capacity CP3]],INDEX($Q$62:$S$68,tbl_Refrigeration_Calc_Engine[[#This Row],[Stage]],0),tbl_Refrigeration_Calc_Engine[[#Headers],[Load CP1]])) -> 0 | V102: =IF(tbl_Refrigeration_Calc_Engine[[#This Row],[Cooling Load Ton]]=0,0,Compressor_Load(tbl_Refrigeration_Calc_Engine[[#This Row],[Cooling Load Ton]],tbl_Refrigeration_Calc_Engine[[#This Row],[Capacity CP1]:[Capacity CP3]],INDEX($Q$62:$S$68,tbl_Refrigeration_Calc_Engine[[#This Row],[Stage]],0),tbl_Refrigeration_Calc_Engine[[#Headers],[Load CP2]])) -> 0 | W102: =IF(tbl_Refrigeration_Calc_Engine[[#This Row],[Cooling Load Ton]]=0,0,Compressor_Load(tbl_Refrigeration_Calc_Engine[[#This Row],[Cooling Load Ton]],tbl_Refrigeration_Calc_Engine[[#This Row],[Capacity CP1]:[Capacity CP3]],INDEX($Q$62:$S$68,tbl_Refrigeration_Calc_Engine[[#This Row],[Stage]],0),tbl_Refrigeration_Calc_Engine[[#Headers],[Load CP3]])) -> 0 | X102: =IF(OR(tbl_Refrigeration_Calc_Engine[[#This Row],[Capacity CP1]]=0,tbl_Refrigeration_Calc_Engine[[#This Row],[Load CP1]]<tbl_Refrigeration_Calc_Engine[[#This Row],[Capacity CP1]]*$E$69),0,tbl_Refrigeration_Calc_Engine[[#This Row],[Load CP1]]/tbl_Refrigeration_Calc_Engine[[#This Row],[Capacity CP1]]) ->  | Y102: =IF(OR(tbl_Refrigeration_Calc_Engine[[#This Row],[Capacity CP2]]=0,tbl_Refrigeration_Calc_Engine[[#This Row],[Load CP2]]<tbl_Refrigeration_Calc_Engine[[#This Row],[Capacity CP2]]*$E$69),0,tbl_Refrigeration_Calc_Engine[[#This Row],[Load CP2]]/tbl_Refrigeration_Calc_Engine[[#This Row],[Capacity CP2]]) ->  | Z102: =IF(OR(tbl_Refrigeration_Calc_Engine[[#This Row],[Capacity CP3]]=0,tbl_Refrigeration_Calc_Engine[[#This Row],[Load CP3]]<tbl_Refrigeration_Calc_Engine[[#This Row],[Capacity CP3]]*$E$69),0,tbl_Refrigeration_Calc_Engine[[#This Row],[Load CP3]]/tbl_Refrigeration_Calc_Engine[[#This Row],[Capacity CP3]]) ->  | AA102: =IF(tbl_Refrigeration_Calc_Engine[[#This Row],[Capacity % CP1]]=0,0,MAX(0,INDEX($U$66:$X$68,Q$72,1)*tbl_Refrigeration_Calc_Engine[[#This Row],[Capacity % CP1]]^3+INDEX($U$66:$X$68,Q$72,2)*tbl_Refrigeration_Calc_Engine[[#This Row],[Capacity % CP1]]^2+INDEX($U$66:$X$68,Q$72,3)*tbl_Refrigeration_Calc_Engine[[#This Row],[Capacity % CP1]]+INDEX($U$66:$X$68,Q$72,4))) ->  | AB102: =IF(tbl_Refrigeration_Calc_Engine[[#This Row],[Capacity % CP2]]=0,0,MAX(0,INDEX($U$66:$X$68,R$72,1)*tbl_Refrigeration_Calc_Engine[[#This Row],[Capacity % CP2]]^3+INDEX($U$66:$X$68,R$72,2)*tbl_Refrigeration_Calc_Engine[[#This Row],[Capacity % CP2]]^2+INDEX($U$66:$X$68,R$72,3)*tbl_Refrigeration_Calc_Engine[[#This Row],[Capacity % CP2]]+INDEX($U$66:$X$68,R$72,4))) ->  | AC102: =IF(tbl_Refrigeration_Calc_Engine[[#This Row],[Capacity % CP3]]=0,0,MAX(0,INDEX($U$66:$X$68,S$72,1)*tbl_Refrigeration_Calc_Engine[[#This Row],[Capacity % CP3]]^3+INDEX($U$66:$X$68,S$72,2)*tbl_Refrigeration_Calc_Engine[[#This Row],[Capacity % CP3]]^2+INDEX($U$66:$X$68,S$72,3)*tbl_Refrigeration_Calc_Engine[[#This Row],[Capacity % CP3]]+INDEX($U$66:$X$68,S$72,4))) ->  | AD102: =IF($D$6="Evaporative",IF($J$65-tbl_Refrigeration_Calc_Engine[[#This Row],[WBT]]<=$E$5,1,IF($J$65<=tbl_Refrigeration_Calc_Engine[[#This Row],[WBT]],1,$E$5/($J$65-tbl_Refrigeration_Calc_Engine[[#This Row],[WBT]]))),IF($J$65-tbl_Refrigeration_Calc_Engine[[#This Row],[DBT]]<=$E$5,1,IF($J$65<=tbl_Refrigeration_Calc_Engine[[#This Row],[DBT]],1,$E$5/($J$65-tbl_Refrigeration_Calc_Engine[[#This Row],[DBT]])))) ->  | AE102: =tbl_Refrigeration_Calc_Engine[[#This Row],[Cooling Load Ton]]/$V$61 ->  | AF102: =IF($T$62="Simple",SUMPRODUCT(tbl_Refrigeration_Calc_Engine[[#This Row],[Power % CP1]:[Power % CP3]],$Q$70:$S$70*O102*0.746/$E$65), SUM( IF(tbl_Refrigeration_Calc_Engine[[#This Row],[Capacity % CP1]]=0,0,MAX(0,tbl_Refrigeration_Calc_Engine[[#This Row],[Power % CP1]]*($AG$65+$AF$65*tbl_Refrigeration_Calc_Engine[[#This Row],[SCT Discharge Temp]]+$AE$65*tbl_Refrigeration_Calc_Engine[[#This Row],[SCT Discharge Temp]]^2+$AD$65*IF($G$6="Detailed", tbl_Refrigeration_Calc_Engine[[#This Row],[Baseline SST CP1]]+$E$74,$J$68)+$AC$65*IF($G$6="Detailed", tbl_Refrigeration_Calc_Engine[[#This Row],[Baseline SST CP1]]+$E$74,$J$68)^2+$AB$65*tbl_Refrigeration_Calc_Engine[[#This Row],[Load CP1]]+$AA$65*tbl_Refrigeration_Calc_Engine[[#This Row],[Load CP1]]^2))), IF(tbl_Refrigeration_Calc_Engine[[#This Row],[Capacity % CP2]]=0,0,MAX(0,tbl_Refrigeration_Calc_Engine[[#This Row],[Power % CP2]]*($AG$66+$AF$66*tbl_Refrigeration_Calc_Engine[[#This Row],[SCT Discharge Temp]]+$AE$66*tbl_Refrigeration_Calc_Engine[[#This Row],[SCT Discharge Temp]]^2+$AD$66*IF($G$6="Detailed", tbl_Refrigeration_Calc_Engine[[#This Row],[Baseline SST CP2]]+$E$74,$J$68)+$AC$66*IF($G$6="Detailed", tbl_Refrigeration_Calc_Engine[[#This Row],[Baseline SST CP2]]+$E$74,$J$68)^2+$AB$66*tbl_Refrigeration_Calc_Engine[[#This Row],[Load CP2]]+$AA$66*tbl_Refrigeration_Calc_Engine[[#This Row],[Load CP2]]^2))), IF(tbl_Refrigeration_Calc_Engine[[#This Row],[Capacity % CP3]]=0,0,MAX(0,tbl_Refrigeration_Calc_Engine[[#This Row],[Power % CP3]]*($AG$67+$AF$67*tbl_Refrigeration_Calc_Engine[[#This Row],[SCT Discharge Temp]]+$AE$67*tbl_Refrigeration_Calc_Engine[[#This Row],[SCT Discharge Temp]]^2+$AD$67*IF($G$6="Detailed", tbl_Refrigeration_Calc_Engine[[#This Row],[Baseline SST CP3]]+$E$74,$J$68)+$AC$67*IF($G$6="Detailed", tbl_Refrigeration_Calc_Engine[[#This Row],[Baseline SST CP3]]+$E$74,$J$68)^2+$AB$67*tbl_Refrigeration_Calc_Engine[[#This Row],[Load CP3]]+$AA$67*tbl_Refrigeration_Calc_Engine[[#This Row],[Load CP3]]^2))))) ->  | AG102: =IF($B$72="On-Off",$J$66*tbl_Refrigeration_Calc_Engine[[#This Row],[Condenser Fan]],$J$66*tbl_Refrigeration_Calc_Engine[[#This Row],[Condenser Fan]]^3/'Refrigeration Template'!$E$61) ->  | AH102: =IF($E$72="VFD",MAX($E$73,tbl_Refrigeration_Calc_Engine[[#This Row],[Calculated Evaporator Fan]])^3,tbl_Refrigeration_Calc_Engine[[#This Row],[Calculated Evaporator Fan]])*$J$67 -> 
B103: 26 | C103: 2 | D103: ='CTZ2'!M27 -> 35 | E103: ='CTZ2'!N27 -> 44 | L103: =MAX($C$19,$E$5+IF($D$6="Evaporative",tbl_Refrigeration_Calc_Engine[[#This Row],[WBT]],tbl_Refrigeration_Calc_Engine[[#This Row],[DBT]])) ->  | M103: =MAX($J$65,$E$5+IF($D$6="Evaporative",tbl_Refrigeration_Calc_Engine[[#This Row],[WBT]],tbl_Refrigeration_Calc_Engine[[#This Row],[DBT]])) ->  | N103: =(0.339-0.00692*$J$64+0.000128*$J$64^2+0.00561*tbl_Refrigeration_Calc_Engine[[#This Row],[SCT Discharge Temp]]+0.0000917*tbl_Refrigeration_Calc_Engine[[#This Row],[SCT Discharge Temp]]^2-0.000235*$J$64*tbl_Refrigeration_Calc_Engine[[#This Row],[SCT Discharge Temp]]) ->  | O103: =1-(MAX(tbl_Refrigeration_Calc_Engine[SCT Discharge Temp])-tbl_Refrigeration_Calc_Engine[[#This Row],[SCT Discharge Temp]])*'Refrigeration Template'!$E$63 ->  | P103: =IF($T$62="Simple",FORECAST(MEDIAN($X$61,$X$62,tbl_Refrigeration_Calc_Engine[[#This Row],[DBT]]),$V$61:$V$62,$X$61:$X$62), SUM( IF(tbl_Refrigeration_Calc_Engine[[#This Row],[Baseline kW CP1]]=0,0,MAX(0,$AG$61+$AF$61*tbl_Refrigeration_Calc_Engine[[#This Row],[Baseline kW CP1]]+$AE$61*tbl_Refrigeration_Calc_Engine[[#This Row],[Baseline kW CP1]]^2+$AD$61*tbl_Refrigeration_Calc_Engine[[#This Row],[Load SCT Discharge Temp]]+$AC$61*tbl_Refrigeration_Calc_Engine[[#This Row],[Load SCT Discharge Temp]]^2+$AB$61*IF($G$6="Detailed", tbl_Refrigeration_Calc_Engine[[#This Row],[Baseline SST CP1]]+$E$74,tbl_Refrigeration_Calc_Engine[[#This Row],[Baseline SST CP1]])+$AA$61*IF($G$6="Detailed", tbl_Refrigeration_Calc_Engine[[#This Row],[Baseline SST CP1]]+$E$74,tbl_Refrigeration_Calc_Engine[[#This Row],[Baseline SST CP1]])^2)), IF(tbl_Refrigeration_Calc_Engine[[#This Row],[Baseline kW CP2]]=0,0,MAX(0,$AG$62+$AF$62*tbl_Refrigeration_Calc_Engine[[#This Row],[Baseline kW CP2]]+$AE$62*tbl_Refrigeration_Calc_Engine[[#This Row],[Baseline kW CP2]]^2+$AD$62*tbl_Refrigeration_Calc_Engine[[#This Row],[Load SCT Discharge Temp]]+$AC$62*tbl_Refrigeration_Calc_Engine[[#This Row],[Load SCT Discharge Temp]]^2+$AB$62*IF($G$6="Detailed", tbl_Refrigeration_Calc_Engine[[#This Row],[Baseline SST CP2]]+$E$74,tbl_Refrigeration_Calc_Engine[[#This Row],[Baseline SST CP2]])+$AA$62*IF($G$6="Detailed", tbl_Refrigeration_Calc_Engine[[#This Row],[Baseline SST CP2]]+$E$74,tbl_Refrigeration_Calc_Engine[[#This Row],[Baseline SST CP2]])^2)), IF(tbl_Refrigeration_Calc_Engine[[#This Row],[Baseline kW CP3]]=0,0,MAX(0,$AG$63+$AF$63*tbl_Refrigeration_Calc_Engine[[#This Row],[Baseline kW CP3]]+$AE$63*tbl_Refrigeration_Calc_Engine[[#This Row],[Baseline kW CP3]]^2+$AD$63*tbl_Refrigeration_Calc_Engine[[#This Row],[Load SCT Discharge Temp]]+$AC$63*tbl_Refrigeration_Calc_Engine[[#This Row],[Load SCT Discharge Temp]]^2+$AB$63*IF($G$6="Detailed", tbl_Refrigeration_Calc_Engine[[#This Row],[Baseline SST CP3]]+$E$74,tbl_Refrigeration_Calc_Engine[[#This Row],[Baseline SST CP3]])+$AA$63*IF($G$6="Detailed", tbl_Refrigeration_Calc_Engine[[#This Row],[Baseline SST CP3]]+$E$74,tbl_Refrigeration_Calc_Engine[[#This Row],[Baseline SST CP3]])^2)))) -> 0 | Q103: =IF($T$62="Simple",IF(tbl_Refrigeration_Calc_Engine[[#This Row],[bhp Per Ton ]]=0,0,1/tbl_Refrigeration_Calc_Engine[[#This Row],[bhp Per Ton ]]*$Q$71),$AG$69+$AF$69*tbl_Refrigeration_Calc_Engine[[#This Row],[SCT Discharge Temp]]) ->  | R103: =IF($T$62="Simple",IF(tbl_Refrigeration_Calc_Engine[[#This Row],[bhp Per Ton ]]=0,0,1/tbl_Refrigeration_Calc_Engine[[#This Row],[bhp Per Ton ]]*$R$71),$AG$70+$AF$70*tbl_Refrigeration_Calc_Engine[[#This Row],[SCT Discharge Temp]]) ->  | S103: =IF($T$62="Simple",IF(tbl_Refrigeration_Calc_Engine[[#This Row],[bhp Per Ton ]]=0,0,1/tbl_Refrigeration_Calc_Engine[[#This Row],[bhp Per Ton ]]*$S$71),$AG$71+$AF$71*tbl_Refrigeration_Calc_Engine[[#This Row],[SCT Discharge Temp]]) ->  | T103: =Stage_Check($P$62:$P$68,$Q$61:$S$61,tbl_Refrigeration_Calc_Engine[[#This Row],[Capacity CP1]:[Capacity CP3]],tbl_Refrigeration_Calc_Engine[[#This Row],[Cooling Load Ton]]) ->  | U103: =IF(tbl_Refrigeration_Calc_Engine[[#This Row],[Cooling Load Ton]]=0,0,Compressor_Load(tbl_Refrigeration_Calc_Engine[[#This Row],[Cooling Load Ton]],tbl_Refrigeration_Calc_Engine[[#This Row],[Capacity CP1]:[Capacity CP3]],INDEX($Q$62:$S$68,tbl_Refrigeration_Calc_Engine[[#This Row],[Stage]],0),tbl_Refrigeration_Calc_Engine[[#Headers],[Load CP1]])) -> 0 | V103: =IF(tbl_Refrigeration_Calc_Engine[[#This Row],[Cooling Load Ton]]=0,0,Compressor_Load(tbl_Refrigeration_Calc_Engine[[#This Row],[Cooling Load Ton]],tbl_Refrigeration_Calc_Engine[[#This Row],[Capacity CP1]:[Capacity CP3]],INDEX($Q$62:$S$68,tbl_Refrigeration_Calc_Engine[[#This Row],[Stage]],0),tbl_Refrigeration_Calc_Engine[[#Headers],[Load CP2]])) -> 0 | W103: =IF(tbl_Refrigeration_Calc_Engine[[#This Row],[Cooling Load Ton]]=0,0,Compressor_Load(tbl_Refrigeration_Calc_Engine[[#This Row],[Cooling Load Ton]],tbl_Refrigeration_Calc_Engine[[#This Row],[Capacity CP1]:[Capacity CP3]],INDEX($Q$62:$S$68,tbl_Refrigeration_Calc_Engine[[#This Row],[Stage]],0),tbl_Refrigeration_Calc_Engine[[#Headers],[Load CP3]])) -> 0 | X103: =IF(OR(tbl_Refrigeration_Calc_Engine[[#This Row],[Capacity CP1]]=0,tbl_Refrigeration_Calc_Engine[[#This Row],[Load CP1]]<tbl_Refrigeration_Calc_Engine[[#This Row],[Capacity CP1]]*$E$69),0,tbl_Refrigeration_Calc_Engine[[#This Row],[Load CP1]]/tbl_Refrigeration_Calc_Engine[[#This Row],[Capacity CP1]]) ->  | Y103: =IF(OR(tbl_Refrigeration_Calc_Engine[[#This Row],[Capacity CP2]]=0,tbl_Refrigeration_Calc_Engine[[#This Row],[Load CP2]]<tbl_Refrigeration_Calc_Engine[[#This Row],[Capacity CP2]]*$E$69),0,tbl_Refrigeration_Calc_Engine[[#This Row],[Load CP2]]/tbl_Refrigeration_Calc_Engine[[#This Row],[Capacity CP2]]) ->  | Z103: =IF(OR(tbl_Refrigeration_Calc_Engine[[#This Row],[Capacity CP3]]=0,tbl_Refrigeration_Calc_Engine[[#This Row],[Load CP3]]<tbl_Refrigeration_Calc_Engine[[#This Row],[Capacity CP3]]*$E$69),0,tbl_Refrigeration_Calc_Engine[[#This Row],[Load CP3]]/tbl_Refrigeration_Calc_Engine[[#This Row],[Capacity CP3]]) ->  | AA103: =IF(tbl_Refrigeration_Calc_Engine[[#This Row],[Capacity % CP1]]=0,0,MAX(0,INDEX($U$66:$X$68,Q$72,1)*tbl_Refrigeration_Calc_Engine[[#This Row],[Capacity % CP1]]^3+INDEX($U$66:$X$68,Q$72,2)*tbl_Refrigeration_Calc_Engine[[#This Row],[Capacity % CP1]]^2+INDEX($U$66:$X$68,Q$72,3)*tbl_Refrigeration_Calc_Engine[[#This Row],[Capacity % CP1]]+INDEX($U$66:$X$68,Q$72,4))) ->  | AB103: =IF(tbl_Refrigeration_Calc_Engine[[#This Row],[Capacity % CP2]]=0,0,MAX(0,INDEX($U$66:$X$68,R$72,1)*tbl_Refrigeration_Calc_Engine[[#This Row],[Capacity % CP2]]^3+INDEX($U$66:$X$68,R$72,2)*tbl_Refrigeration_Calc_Engine[[#This Row],[Capacity % CP2]]^2+INDEX($U$66:$X$68,R$72,3)*tbl_Refrigeration_Calc_Engine[[#This Row],[Capacity % CP2]]+INDEX($U$66:$X$68,R$72,4))) ->  | AC103: =IF(tbl_Refrigeration_Calc_Engine[[#This Row],[Capacity % CP3]]=0,0,MAX(0,INDEX($U$66:$X$68,S$72,1)*tbl_Refrigeration_Calc_Engine[[#This Row],[Capacity % CP3]]^3+INDEX($U$66:$X$68,S$72,2)*tbl_Refrigeration_Calc_Engine[[#This Row],[Capacity % CP3]]^2+INDEX($U$66:$X$68,S$72,3)*tbl_Refrigeration_Calc_Engine[[#This Row],[Capacity % CP3]]+INDEX($U$66:$X$68,S$72,4))) ->  | AD103: =IF($D$6="Evaporative",IF($J$65-tbl_Refrigeration_Calc_Engine[[#This Row],[WBT]]<=$E$5,1,IF($J$65<=tbl_Refrigeration_Calc_Engine[[#This Row],[WBT]],1,$E$5/($J$65-tbl_Refrigeration_Calc_Engine[[#This Row],[WBT]]))),IF($J$65-tbl_Refrigeration_Calc_Engine[[#This Row],[DBT]]<=$E$5,1,IF($J$65<=tbl_Refrigeration_Calc_Engine[[#This Row],[DBT]],1,$E$5/($J$65-tbl_Refrigeration_Calc_Engine[[#This Row],[DBT]])))) ->  | AE103: =tbl_Refrigeration_Calc_Engine[[#This Row],[Cooling Load Ton]]/$V$61 ->  | AF103: =IF($T$62="Simple",SUMPRODUCT(tbl_Refrigeration_Calc_Engine[[#This Row],[Power % CP1]:[Power % CP3]],$Q$70:$S$70*O103*0.746/$E$65), SUM( IF(tbl_Refrigeration_Calc_Engine[[#This Row],[Capacity % CP1]]=0,0,MAX(0,tbl_Refrigeration_Calc_Engine[[#This Row],[Power % CP1]]*($AG$65+$AF$65*tbl_Refrigeration_Calc_Engine[[#This Row],[SCT Discharge Temp]]+$AE$65*tbl_Refrigeration_Calc_Engine[[#This Row],[SCT Discharge Temp]]^2+$AD$65*IF($G$6="Detailed", tbl_Refrigeration_Calc_Engine[[#This Row],[Baseline SST CP1]]+$E$74,$J$68)+$AC$65*IF($G$6="Detailed", tbl_Refrigeration_Calc_Engine[[#This Row],[Baseline SST CP1]]+$E$74,$J$68)^2+$AB$65*tbl_Refrigeration_Calc_Engine[[#This Row],[Load CP1]]+$AA$65*tbl_Refrigeration_Calc_Engine[[#This Row],[Load CP1]]^2))), IF(tbl_Refrigeration_Calc_Engine[[#This Row],[Capacity % CP2]]=0,0,MAX(0,tbl_Refrigeration_Calc_Engine[[#This Row],[Power % CP2]]*($AG$66+$AF$66*tbl_Refrigeration_Calc_Engine[[#This Row],[SCT Discharge Temp]]+$AE$66*tbl_Refrigeration_Calc_Engine[[#This Row],[SCT Discharge Temp]]^2+$AD$66*IF($G$6="Detailed", tbl_Refrigeration_Calc_Engine[[#This Row],[Baseline SST CP2]]+$E$74,$J$68)+$AC$66*IF($G$6="Detailed", tbl_Refrigeration_Calc_Engine[[#This Row],[Baseline SST CP2]]+$E$74,$J$68)^2+$AB$66*tbl_Refrigeration_Calc_Engine[[#This Row],[Load CP2]]+$AA$66*tbl_Refrigeration_Calc_Engine[[#This Row],[Load CP2]]^2))), IF(tbl_Refrigeration_Calc_Engine[[#This Row],[Capacity % CP3]]=0,0,MAX(0,tbl_Refrigeration_Calc_Engine[[#This Row],[Power % CP3]]*($AG$67+$AF$67*tbl_Refrigeration_Calc_Engine[[#This Row],[SCT Discharge Temp]]+$AE$67*tbl_Refrigeration_Calc_Engine[[#This Row],[SCT Discharge Temp]]^2+$AD$67*IF($G$6="Detailed", tbl_Refrigeration_Calc_Engine[[#This Row],[Baseline SST CP3]]+$E$74,$J$68)+$AC$67*IF($G$6="Detailed", tbl_Refrigeration_Calc_Engine[[#This Row],[Baseline SST CP3]]+$E$74,$J$68)^2+$AB$67*tbl_Refrigeration_Calc_Engine[[#This Row],[Load CP3]]+$AA$67*tbl_Refrigeration_Calc_Engine[[#This Row],[Load CP3]]^2))))) ->  | AG103: =IF($B$72="On-Off",$J$66*tbl_Refrigeration_Calc_Engine[[#This Row],[Condenser Fan]],$J$66*tbl_Refrigeration_Calc_Engine[[#This Row],[Condenser Fan]]^3/'Refrigeration Template'!$E$61) ->  | AH103: =IF($E$72="VFD",MAX($E$73,tbl_Refrigeration_Calc_Engine[[#This Row],[Calculated Evaporator Fan]])^3,tbl_Refrigeration_Calc_Engine[[#This Row],[Calculated Evaporator Fan]])*$J$67 -> 
B104: 27 | C104: 3 | D104: ='CTZ2'!M28 -> 34 | E104: ='CTZ2'!N28 -> 44 | L104: =MAX($C$19,$E$5+IF($D$6="Evaporative",tbl_Refrigeration_Calc_Engine[[#This Row],[WBT]],tbl_Refrigeration_Calc_Engine[[#This Row],[DBT]])) ->  | M104: =MAX($J$65,$E$5+IF($D$6="Evaporative",tbl_Refrigeration_Calc_Engine[[#This Row],[WBT]],tbl_Refrigeration_Calc_Engine[[#This Row],[DBT]])) ->  | N104: =(0.339-0.00692*$J$64+0.000128*$J$64^2+0.00561*tbl_Refrigeration_Calc_Engine[[#This Row],[SCT Discharge Temp]]+0.0000917*tbl_Refrigeration_Calc_Engine[[#This Row],[SCT Discharge Temp]]^2-0.000235*$J$64*tbl_Refrigeration_Calc_Engine[[#This Row],[SCT Discharge Temp]]) ->  | O104: =1-(MAX(tbl_Refrigeration_Calc_Engine[SCT Discharge Temp])-tbl_Refrigeration_Calc_Engine[[#This Row],[SCT Discharge Temp]])*'Refrigeration Template'!$E$63 ->  | P104: =IF($T$62="Simple",FORECAST(MEDIAN($X$61,$X$62,tbl_Refrigeration_Calc_Engine[[#This Row],[DBT]]),$V$61:$V$62,$X$61:$X$62), SUM( IF(tbl_Refrigeration_Calc_Engine[[#This Row],[Baseline kW CP1]]=0,0,MAX(0,$AG$61+$AF$61*tbl_Refrigeration_Calc_Engine[[#This Row],[Baseline kW CP1]]+$AE$61*tbl_Refrigeration_Calc_Engine[[#This Row],[Baseline kW CP1]]^2+$AD$61*tbl_Refrigeration_Calc_Engine[[#This Row],[Load SCT Discharge Temp]]+$AC$61*tbl_Refrigeration_Calc_Engine[[#This Row],[Load SCT Discharge Temp]]^2+$AB$61*IF($G$6="Detailed", tbl_Refrigeration_Calc_Engine[[#This Row],[Baseline SST CP1]]+$E$74,tbl_Refrigeration_Calc_Engine[[#This Row],[Baseline SST CP1]])+$AA$61*IF($G$6="Detailed", tbl_Refrigeration_Calc_Engine[[#This Row],[Baseline SST CP1]]+$E$74,tbl_Refrigeration_Calc_Engine[[#This Row],[Baseline SST CP1]])^2)), IF(tbl_Refrigeration_Calc_Engine[[#This Row],[Baseline kW CP2]]=0,0,MAX(0,$AG$62+$AF$62*tbl_Refrigeration_Calc_Engine[[#This Row],[Baseline kW CP2]]+$AE$62*tbl_Refrigeration_Calc_Engine[[#This Row],[Baseline kW CP2]]^2+$AD$62*tbl_Refrigeration_Calc_Engine[[#This Row],[Load SCT Discharge Temp]]+$AC$62*tbl_Refrigeration_Calc_Engine[[#This Row],[Load SCT Discharge Temp]]^2+$AB$62*IF($G$6="Detailed", tbl_Refrigeration_Calc_Engine[[#This Row],[Baseline SST CP2]]+$E$74,tbl_Refrigeration_Calc_Engine[[#This Row],[Baseline SST CP2]])+$AA$62*IF($G$6="Detailed", tbl_Refrigeration_Calc_Engine[[#This Row],[Baseline SST CP2]]+$E$74,tbl_Refrigeration_Calc_Engine[[#This Row],[Baseline SST CP2]])^2)), IF(tbl_Refrigeration_Calc_Engine[[#This Row],[Baseline kW CP3]]=0,0,MAX(0,$AG$63+$AF$63*tbl_Refrigeration_Calc_Engine[[#This Row],[Baseline kW CP3]]+$AE$63*tbl_Refrigeration_Calc_Engine[[#This Row],[Baseline kW CP3]]^2+$AD$63*tbl_Refrigeration_Calc_Engine[[#This Row],[Load SCT Discharge Temp]]+$AC$63*tbl_Refrigeration_Calc_Engine[[#This Row],[Load SCT Discharge Temp]]^2+$AB$63*IF($G$6="Detailed", tbl_Refrigeration_Calc_Engine[[#This Row],[Baseline SST CP3]]+$E$74,tbl_Refrigeration_Calc_Engine[[#This Row],[Baseline SST CP3]])+$AA$63*IF($G$6="Detailed", tbl_Refrigeration_Calc_Engine[[#This Row],[Baseline SST CP3]]+$E$74,tbl_Refrigeration_Calc_Engine[[#This Row],[Baseline SST CP3]])^2)))) -> 0 | Q104: =IF($T$62="Simple",IF(tbl_Refrigeration_Calc_Engine[[#This Row],[bhp Per Ton ]]=0,0,1/tbl_Refrigeration_Calc_Engine[[#This Row],[bhp Per Ton ]]*$Q$71),$AG$69+$AF$69*tbl_Refrigeration_Calc_Engine[[#This Row],[SCT Discharge Temp]]) ->  | R104: =IF($T$62="Simple",IF(tbl_Refrigeration_Calc_Engine[[#This Row],[bhp Per Ton ]]=0,0,1/tbl_Refrigeration_Calc_Engine[[#This Row],[bhp Per Ton ]]*$R$71),$AG$70+$AF$70*tbl_Refrigeration_Calc_Engine[[#This Row],[SCT Discharge Temp]]) ->  | S104: =IF($T$62="Simple",IF(tbl_Refrigeration_Calc_Engine[[#This Row],[bhp Per Ton ]]=0,0,1/tbl_Refrigeration_Calc_Engine[[#This Row],[bhp Per Ton ]]*$S$71),$AG$71+$AF$71*tbl_Refrigeration_Calc_Engine[[#This Row],[SCT Discharge Temp]]) ->  | T104: =Stage_Check($P$62:$P$68,$Q$61:$S$61,tbl_Refrigeration_Calc_Engine[[#This Row],[Capacity CP1]:[Capacity CP3]],tbl_Refrigeration_Calc_Engine[[#This Row],[Cooling Load Ton]]) ->  | U104: =IF(tbl_Refrigeration_Calc_Engine[[#This Row],[Cooling Load Ton]]=0,0,Compressor_Load(tbl_Refrigeration_Calc_Engine[[#This Row],[Cooling Load Ton]],tbl_Refrigeration_Calc_Engine[[#This Row],[Capacity CP1]:[Capacity CP3]],INDEX($Q$62:$S$68,tbl_Refrigeration_Calc_Engine[[#This Row],[Stage]],0),tbl_Refrigeration_Calc_Engine[[#Headers],[Load CP1]])) -> 0 | V104: =IF(tbl_Refrigeration_Calc_Engine[[#This Row],[Cooling Load Ton]]=0,0,Compressor_Load(tbl_Refrigeration_Calc_Engine[[#This Row],[Cooling Load Ton]],tbl_Refrigeration_Calc_Engine[[#This Row],[Capacity CP1]:[Capacity CP3]],INDEX($Q$62:$S$68,tbl_Refrigeration_Calc_Engine[[#This Row],[Stage]],0),tbl_Refrigeration_Calc_Engine[[#Headers],[Load CP2]])) -> 0 | W104: =IF(tbl_Refrigeration_Calc_Engine[[#This Row],[Cooling Load Ton]]=0,0,Compressor_Load(tbl_Refrigeration_Calc_Engine[[#This Row],[Cooling Load Ton]],tbl_Refrigeration_Calc_Engine[[#This Row],[Capacity CP1]:[Capacity CP3]],INDEX($Q$62:$S$68,tbl_Refrigeration_Calc_Engine[[#This Row],[Stage]],0),tbl_Refrigeration_Calc_Engine[[#Headers],[Load CP3]])) -> 0 | X104: =IF(OR(tbl_Refrigeration_Calc_Engine[[#This Row],[Capacity CP1]]=0,tbl_Refrigeration_Calc_Engine[[#This Row],[Load CP1]]<tbl_Refrigeration_Calc_Engine[[#This Row],[Capacity CP1]]*$E$69),0,tbl_Refrigeration_Calc_Engine[[#This Row],[Load CP1]]/tbl_Refrigeration_Calc_Engine[[#This Row],[Capacity CP1]]) ->  | Y104: =IF(OR(tbl_Refrigeration_Calc_Engine[[#This Row],[Capacity CP2]]=0,tbl_Refrigeration_Calc_Engine[[#This Row],[Load CP2]]<tbl_Refrigeration_Calc_Engine[[#This Row],[Capacity CP2]]*$E$69),0,tbl_Refrigeration_Calc_Engine[[#This Row],[Load CP2]]/tbl_Refrigeration_Calc_Engine[[#This Row],[Capacity CP2]]) ->  | Z104: =IF(OR(tbl_Refrigeration_Calc_Engine[[#This Row],[Capacity CP3]]=0,tbl_Refrigeration_Calc_Engine[[#This Row],[Load CP3]]<tbl_Refrigeration_Calc_Engine[[#This Row],[Capacity CP3]]*$E$69),0,tbl_Refrigeration_Calc_Engine[[#This Row],[Load CP3]]/tbl_Refrigeration_Calc_Engine[[#This Row],[Capacity CP3]]) ->  | AA104: =IF(tbl_Refrigeration_Calc_Engine[[#This Row],[Capacity % CP1]]=0,0,MAX(0,INDEX($U$66:$X$68,Q$72,1)*tbl_Refrigeration_Calc_Engine[[#This Row],[Capacity % CP1]]^3+INDEX($U$66:$X$68,Q$72,2)*tbl_Refrigeration_Calc_Engine[[#This Row],[Capacity % CP1]]^2+INDEX($U$66:$X$68,Q$72,3)*tbl_Refrigeration_Calc_Engine[[#This Row],[Capacity % CP1]]+INDEX($U$66:$X$68,Q$72,4))) ->  | AB104: =IF(tbl_Refrigeration_Calc_Engine[[#This Row],[Capacity % CP2]]=0,0,MAX(0,INDEX($U$66:$X$68,R$72,1)*tbl_Refrigeration_Calc_Engine[[#This Row],[Capacity % CP2]]^3+INDEX($U$66:$X$68,R$72,2)*tbl_Refrigeration_Calc_Engine[[#This Row],[Capacity % CP2]]^2+INDEX($U$66:$X$68,R$72,3)*tbl_Refrigeration_Calc_Engine[[#This Row],[Capacity % CP2]]+INDEX($U$66:$X$68,R$72,4))) ->  | AC104: =IF(tbl_Refrigeration_Calc_Engine[[#This Row],[Capacity % CP3]]=0,0,MAX(0,INDEX($U$66:$X$68,S$72,1)*tbl_Refrigeration_Calc_Engine[[#This Row],[Capacity % CP3]]^3+INDEX($U$66:$X$68,S$72,2)*tbl_Refrigeration_Calc_Engine[[#This Row],[Capacity % CP3]]^2+INDEX($U$66:$X$68,S$72,3)*tbl_Refrigeration_Calc_Engine[[#This Row],[Capacity % CP3]]+INDEX($U$66:$X$68,S$72,4))) ->  | AD104: =IF($D$6="Evaporative",IF($J$65-tbl_Refrigeration_Calc_Engine[[#This Row],[WBT]]<=$E$5,1,IF($J$65<=tbl_Refrigeration_Calc_Engine[[#This Row],[WBT]],1,$E$5/($J$65-tbl_Refrigeration_Calc_Engine[[#This Row],[WBT]]))),IF($J$65-tbl_Refrigeration_Calc_Engine[[#This Row],[DBT]]<=$E$5,1,IF($J$65<=tbl_Refrigeration_Calc_Engine[[#This Row],[DBT]],1,$E$5/($J$65-tbl_Refrigeration_Calc_Engine[[#This Row],[DBT]])))) ->  | AE104: =tbl_Refrigeration_Calc_Engine[[#This Row],[Cooling Load Ton]]/$V$61 ->  | AF104: =IF($T$62="Simple",SUMPRODUCT(tbl_Refrigeration_Calc_Engine[[#This Row],[Power % CP1]:[Power % CP3]],$Q$70:$S$70*O104*0.746/$E$65), SUM( IF(tbl_Refrigeration_Calc_Engine[[#This Row],[Capacity % CP1]]=0,0,MAX(0,tbl_Refrigeration_Calc_Engine[[#This Row],[Power % CP1]]*($AG$65+$AF$65*tbl_Refrigeration_Calc_Engine[[#This Row],[SCT Discharge Temp]]+$AE$65*tbl_Refrigeration_Calc_Engine[[#This Row],[SCT Discharge Temp]]^2+$AD$65*IF($G$6="Detailed", tbl_Refrigeration_Calc_Engine[[#This Row],[Baseline SST CP1]]+$E$74,$J$68)+$AC$65*IF($G$6="Detailed", tbl_Refrigeration_Calc_Engine[[#This Row],[Baseline SST CP1]]+$E$74,$J$68)^2+$AB$65*tbl_Refrigeration_Calc_Engine[[#This Row],[Load CP1]]+$AA$65*tbl_Refrigeration_Calc_Engine[[#This Row],[Load CP1]]^2))), IF(tbl_Refrigeration_Calc_Engine[[#This Row],[Capacity % CP2]]=0,0,MAX(0,tbl_Refrigeration_Calc_Engine[[#This Row],[Power % CP2]]*($AG$66+$AF$66*tbl_Refrigeration_Calc_Engine[[#This Row],[SCT Discharge Temp]]+$AE$66*tbl_Refrigeration_Calc_Engine[[#This Row],[SCT Discharge Temp]]^2+$AD$66*IF($G$6="Detailed", tbl_Refrigeration_Calc_Engine[[#This Row],[Baseline SST CP2]]+$E$74,$J$68)+$AC$66*IF($G$6="Detailed", tbl_Refrigeration_Calc_Engine[[#This Row],[Baseline SST CP2]]+$E$74,$J$68)^2+$AB$66*tbl_Refrigeration_Calc_Engine[[#This Row],[Load CP2]]+$AA$66*tbl_Refrigeration_Calc_Engine[[#This Row],[Load CP2]]^2))), IF(tbl_Refrigeration_Calc_Engine[[#This Row],[Capacity % CP3]]=0,0,MAX(0,tbl_Refrigeration_Calc_Engine[[#This Row],[Power % CP3]]*($AG$67+$AF$67*tbl_Refrigeration_Calc_Engine[[#This Row],[SCT Discharge Temp]]+$AE$67*tbl_Refrigeration_Calc_Engine[[#This Row],[SCT Discharge Temp]]^2+$AD$67*IF($G$6="Detailed", tbl_Refrigeration_Calc_Engine[[#This Row],[Baseline SST CP3]]+$E$74,$J$68)+$AC$67*IF($G$6="Detailed", tbl_Refrigeration_Calc_Engine[[#This Row],[Baseline SST CP3]]+$E$74,$J$68)^2+$AB$67*tbl_Refrigeration_Calc_Engine[[#This Row],[Load CP3]]+$AA$67*tbl_Refrigeration_Calc_Engine[[#This Row],[Load CP3]]^2))))) ->  | AG104: =IF($B$72="On-Off",$J$66*tbl_Refrigeration_Calc_Engine[[#This Row],[Condenser Fan]],$J$66*tbl_Refrigeration_Calc_Engine[[#This Row],[Condenser Fan]]^3/'Refrigeration Template'!$E$61) ->  | AH104: =IF($E$72="VFD",MAX($E$73,tbl_Refrigeration_Calc_Engine[[#This Row],[Calculated Evaporator Fan]])^3,tbl_Refrigeration_Calc_Engine[[#This Row],[Calculated Evaporator Fan]])*$J$67 -> 
B105: 28 | C105: 4 | D105: ='CTZ2'!M29 -> 34 | E105: ='CTZ2'!N29 -> 44 | L105: =MAX($C$19,$E$5+IF($D$6="Evaporative",tbl_Refrigeration_Calc_Engine[[#This Row],[WBT]],tbl_Refrigeration_Calc_Engine[[#This Row],[DBT]])) ->  | M105: =MAX($J$65,$E$5+IF($D$6="Evaporative",tbl_Refrigeration_Calc_Engine[[#This Row],[WBT]],tbl_Refrigeration_Calc_Engine[[#This Row],[DBT]])) ->  | N105: =(0.339-0.00692*$J$64+0.000128*$J$64^2+0.00561*tbl_Refrigeration_Calc_Engine[[#This Row],[SCT Discharge Temp]]+0.0000917*tbl_Refrigeration_Calc_Engine[[#This Row],[SCT Discharge Temp]]^2-0.000235*$J$64*tbl_Refrigeration_Calc_Engine[[#This Row],[SCT Discharge Temp]]) ->  | O105: =1-(MAX(tbl_Refrigeration_Calc_Engine[SCT Discharge Temp])-tbl_Refrigeration_Calc_Engine[[#This Row],[SCT Discharge Temp]])*'Refrigeration Template'!$E$63 ->  | P105: =IF($T$62="Simple",FORECAST(MEDIAN($X$61,$X$62,tbl_Refrigeration_Calc_Engine[[#This Row],[DBT]]),$V$61:$V$62,$X$61:$X$62), SUM( IF(tbl_Refrigeration_Calc_Engine[[#This Row],[Baseline kW CP1]]=0,0,MAX(0,$AG$61+$AF$61*tbl_Refrigeration_Calc_Engine[[#This Row],[Baseline kW CP1]]+$AE$61*tbl_Refrigeration_Calc_Engine[[#This Row],[Baseline kW CP1]]^2+$AD$61*tbl_Refrigeration_Calc_Engine[[#This Row],[Load SCT Discharge Temp]]+$AC$61*tbl_Refrigeration_Calc_Engine[[#This Row],[Load SCT Discharge Temp]]^2+$AB$61*IF($G$6="Detailed", tbl_Refrigeration_Calc_Engine[[#This Row],[Baseline SST CP1]]+$E$74,tbl_Refrigeration_Calc_Engine[[#This Row],[Baseline SST CP1]])+$AA$61*IF($G$6="Detailed", tbl_Refrigeration_Calc_Engine[[#This Row],[Baseline SST CP1]]+$E$74,tbl_Refrigeration_Calc_Engine[[#This Row],[Baseline SST CP1]])^2)), IF(tbl_Refrigeration_Calc_Engine[[#This Row],[Baseline kW CP2]]=0,0,MAX(0,$AG$62+$AF$62*tbl_Refrigeration_Calc_Engine[[#This Row],[Baseline kW CP2]]+$AE$62*tbl_Refrigeration_Calc_Engine[[#This Row],[Baseline kW CP2]]^2+$AD$62*tbl_Refrigeration_Calc_Engine[[#This Row],[Load SCT Discharge Temp]]+$AC$62*tbl_Refrigeration_Calc_Engine[[#This Row],[Load SCT Discharge Temp]]^2+$AB$62*IF($G$6="Detailed", tbl_Refrigeration_Calc_Engine[[#This Row],[Baseline SST CP2]]+$E$74,tbl_Refrigeration_Calc_Engine[[#This Row],[Baseline SST CP2]])+$AA$62*IF($G$6="Detailed", tbl_Refrigeration_Calc_Engine[[#This Row],[Baseline SST CP2]]+$E$74,tbl_Refrigeration_Calc_Engine[[#This Row],[Baseline SST CP2]])^2)), IF(tbl_Refrigeration_Calc_Engine[[#This Row],[Baseline kW CP3]]=0,0,MAX(0,$AG$63+$AF$63*tbl_Refrigeration_Calc_Engine[[#This Row],[Baseline kW CP3]]+$AE$63*tbl_Refrigeration_Calc_Engine[[#This Row],[Baseline kW CP3]]^2+$AD$63*tbl_Refrigeration_Calc_Engine[[#This Row],[Load SCT Discharge Temp]]+$AC$63*tbl_Refrigeration_Calc_Engine[[#This Row],[Load SCT Discharge Temp]]^2+$AB$63*IF($G$6="Detailed", tbl_Refrigeration_Calc_Engine[[#This Row],[Baseline SST CP3]]+$E$74,tbl_Refrigeration_Calc_Engine[[#This Row],[Baseline SST CP3]])+$AA$63*IF($G$6="Detailed", tbl_Refrigeration_Calc_Engine[[#This Row],[Baseline SST CP3]]+$E$74,tbl_Refrigeration_Calc_Engine[[#This Row],[Baseline SST CP3]])^2)))) -> 0 | Q105: =IF($T$62="Simple",IF(tbl_Refrigeration_Calc_Engine[[#This Row],[bhp Per Ton ]]=0,0,1/tbl_Refrigeration_Calc_Engine[[#This Row],[bhp Per Ton ]]*$Q$71),$AG$69+$AF$69*tbl_Refrigeration_Calc_Engine[[#This Row],[SCT Discharge Temp]]) ->  | R105: =IF($T$62="Simple",IF(tbl_Refrigeration_Calc_Engine[[#This Row],[bhp Per Ton ]]=0,0,1/tbl_Refrigeration_Calc_Engine[[#This Row],[bhp Per Ton ]]*$R$71),$AG$70+$AF$70*tbl_Refrigeration_Calc_Engine[[#This Row],[SCT Discharge Temp]]) ->  | S105: =IF($T$62="Simple",IF(tbl_Refrigeration_Calc_Engine[[#This Row],[bhp Per Ton ]]=0,0,1/tbl_Refrigeration_Calc_Engine[[#This Row],[bhp Per Ton ]]*$S$71),$AG$71+$AF$71*tbl_Refrigeration_Calc_Engine[[#This Row],[SCT Discharge Temp]]) ->  | T105: =Stage_Check($P$62:$P$68,$Q$61:$S$61,tbl_Refrigeration_Calc_Engine[[#This Row],[Capacity CP1]:[Capacity CP3]],tbl_Refrigeration_Calc_Engine[[#This Row],[Cooling Load Ton]]) ->  | U105: =IF(tbl_Refrigeration_Calc_Engine[[#This Row],[Cooling Load Ton]]=0,0,Compressor_Load(tbl_Refrigeration_Calc_Engine[[#This Row],[Cooling Load Ton]],tbl_Refrigeration_Calc_Engine[[#This Row],[Capacity CP1]:[Capacity CP3]],INDEX($Q$62:$S$68,tbl_Refrigeration_Calc_Engine[[#This Row],[Stage]],0),tbl_Refrigeration_Calc_Engine[[#Headers],[Load CP1]])) -> 0 | V105: =IF(tbl_Refrigeration_Calc_Engine[[#This Row],[Cooling Load Ton]]=0,0,Compressor_Load(tbl_Refrigeration_Calc_Engine[[#This Row],[Cooling Load Ton]],tbl_Refrigeration_Calc_Engine[[#This Row],[Capacity CP1]:[Capacity CP3]],INDEX($Q$62:$S$68,tbl_Refrigeration_Calc_Engine[[#This Row],[Stage]],0),tbl_Refrigeration_Calc_Engine[[#Headers],[Load CP2]])) -> 0 | W105: =IF(tbl_Refrigeration_Calc_Engine[[#This Row],[Cooling Load Ton]]=0,0,Compressor_Load(tbl_Refrigeration_Calc_Engine[[#This Row],[Cooling Load Ton]],tbl_Refrigeration_Calc_Engine[[#This Row],[Capacity CP1]:[Capacity CP3]],INDEX($Q$62:$S$68,tbl_Refrigeration_Calc_Engine[[#This Row],[Stage]],0),tbl_Refrigeration_Calc_Engine[[#Headers],[Load CP3]])) -> 0 | X105: =IF(OR(tbl_Refrigeration_Calc_Engine[[#This Row],[Capacity CP1]]=0,tbl_Refrigeration_Calc_Engine[[#This Row],[Load CP1]]<tbl_Refrigeration_Calc_Engine[[#This Row],[Capacity CP1]]*$E$69),0,tbl_Refrigeration_Calc_Engine[[#This Row],[Load CP1]]/tbl_Refrigeration_Calc_Engine[[#This Row],[Capacity CP1]]) ->  | Y105: =IF(OR(tbl_Refrigeration_Calc_Engine[[#This Row],[Capacity CP2]]=0,tbl_Refrigeration_Calc_Engine[[#This Row],[Load CP2]]<tbl_Refrigeration_Calc_Engine[[#This Row],[Capacity CP2]]*$E$69),0,tbl_Refrigeration_Calc_Engine[[#This Row],[Load CP2]]/tbl_Refrigeration_Calc_Engine[[#This Row],[Capacity CP2]]) ->  | Z105: =IF(OR(tbl_Refrigeration_Calc_Engine[[#This Row],[Capacity CP3]]=0,tbl_Refrigeration_Calc_Engine[[#This Row],[Load CP3]]<tbl_Refrigeration_Calc_Engine[[#This Row],[Capacity CP3]]*$E$69),0,tbl_Refrigeration_Calc_Engine[[#This Row],[Load CP3]]/tbl_Refrigeration_Calc_Engine[[#This Row],[Capacity CP3]]) ->  | AA105: =IF(tbl_Refrigeration_Calc_Engine[[#This Row],[Capacity % CP1]]=0,0,MAX(0,INDEX($U$66:$X$68,Q$72,1)*tbl_Refrigeration_Calc_Engine[[#This Row],[Capacity % CP1]]^3+INDEX($U$66:$X$68,Q$72,2)*tbl_Refrigeration_Calc_Engine[[#This Row],[Capacity % CP1]]^2+INDEX($U$66:$X$68,Q$72,3)*tbl_Refrigeration_Calc_Engine[[#This Row],[Capacity % CP1]]+INDEX($U$66:$X$68,Q$72,4))) ->  | AB105: =IF(tbl_Refrigeration_Calc_Engine[[#This Row],[Capacity % CP2]]=0,0,MAX(0,INDEX($U$66:$X$68,R$72,1)*tbl_Refrigeration_Calc_Engine[[#This Row],[Capacity % CP2]]^3+INDEX($U$66:$X$68,R$72,2)*tbl_Refrigeration_Calc_Engine[[#This Row],[Capacity % CP2]]^2+INDEX($U$66:$X$68,R$72,3)*tbl_Refrigeration_Calc_Engine[[#This Row],[Capacity % CP2]]+INDEX($U$66:$X$68,R$72,4))) ->  | AC105: =IF(tbl_Refrigeration_Calc_Engine[[#This Row],[Capacity % CP3]]=0,0,MAX(0,INDEX($U$66:$X$68,S$72,1)*tbl_Refrigeration_Calc_Engine[[#This Row],[Capacity % CP3]]^3+INDEX($U$66:$X$68,S$72,2)*tbl_Refrigeration_Calc_Engine[[#This Row],[Capacity % CP3]]^2+INDEX($U$66:$X$68,S$72,3)*tbl_Refrigeration_Calc_Engine[[#This Row],[Capacity % CP3]]+INDEX($U$66:$X$68,S$72,4))) ->  | AD105: =IF($D$6="Evaporative",IF($J$65-tbl_Refrigeration_Calc_Engine[[#This Row],[WBT]]<=$E$5,1,IF($J$65<=tbl_Refrigeration_Calc_Engine[[#This Row],[WBT]],1,$E$5/($J$65-tbl_Refrigeration_Calc_Engine[[#This Row],[WBT]]))),IF($J$65-tbl_Refrigeration_Calc_Engine[[#This Row],[DBT]]<=$E$5,1,IF($J$65<=tbl_Refrigeration_Calc_Engine[[#This Row],[DBT]],1,$E$5/($J$65-tbl_Refrigeration_Calc_Engine[[#This Row],[DBT]])))) ->  | AE105: =tbl_Refrigeration_Calc_Engine[[#This Row],[Cooling Load Ton]]/$V$61 ->  | AF105: =IF($T$62="Simple",SUMPRODUCT(tbl_Refrigeration_Calc_Engine[[#This Row],[Power % CP1]:[Power % CP3]],$Q$70:$S$70*O105*0.746/$E$65), SUM( IF(tbl_Refrigeration_Calc_Engine[[#This Row],[Capacity % CP1]]=0,0,MAX(0,tbl_Refrigeration_Calc_Engine[[#This Row],[Power % CP1]]*($AG$65+$AF$65*tbl_Refrigeration_Calc_Engine[[#This Row],[SCT Discharge Temp]]+$AE$65*tbl_Refrigeration_Calc_Engine[[#This Row],[SCT Discharge Temp]]^2+$AD$65*IF($G$6="Detailed", tbl_Refrigeration_Calc_Engine[[#This Row],[Baseline SST CP1]]+$E$74,$J$68)+$AC$65*IF($G$6="Detailed", tbl_Refrigeration_Calc_Engine[[#This Row],[Baseline SST CP1]]+$E$74,$J$68)^2+$AB$65*tbl_Refrigeration_Calc_Engine[[#This Row],[Load CP1]]+$AA$65*tbl_Refrigeration_Calc_Engine[[#This Row],[Load CP1]]^2))), IF(tbl_Refrigeration_Calc_Engine[[#This Row],[Capacity % CP2]]=0,0,MAX(0,tbl_Refrigeration_Calc_Engine[[#This Row],[Power % CP2]]*($AG$66+$AF$66*tbl_Refrigeration_Calc_Engine[[#This Row],[SCT Discharge Temp]]+$AE$66*tbl_Refrigeration_Calc_Engine[[#This Row],[SCT Discharge Temp]]^2+$AD$66*IF($G$6="Detailed", tbl_Refrigeration_Calc_Engine[[#This Row],[Baseline SST CP2]]+$E$74,$J$68)+$AC$66*IF($G$6="Detailed", tbl_Refrigeration_Calc_Engine[[#This Row],[Baseline SST CP2]]+$E$74,$J$68)^2+$AB$66*tbl_Refrigeration_Calc_Engine[[#This Row],[Load CP2]]+$AA$66*tbl_Refrigeration_Calc_Engine[[#This Row],[Load CP2]]^2))), IF(tbl_Refrigeration_Calc_Engine[[#This Row],[Capacity % CP3]]=0,0,MAX(0,tbl_Refrigeration_Calc_Engine[[#This Row],[Power % CP3]]*($AG$67+$AF$67*tbl_Refrigeration_Calc_Engine[[#This Row],[SCT Discharge Temp]]+$AE$67*tbl_Refrigeration_Calc_Engine[[#This Row],[SCT Discharge Temp]]^2+$AD$67*IF($G$6="Detailed", tbl_Refrigeration_Calc_Engine[[#This Row],[Baseline SST CP3]]+$E$74,$J$68)+$AC$67*IF($G$6="Detailed", tbl_Refrigeration_Calc_Engine[[#This Row],[Baseline SST CP3]]+$E$74,$J$68)^2+$AB$67*tbl_Refrigeration_Calc_Engine[[#This Row],[Load CP3]]+$AA$67*tbl_Refrigeration_Calc_Engine[[#This Row],[Load CP3]]^2))))) ->  | AG105: =IF($B$72="On-Off",$J$66*tbl_Refrigeration_Calc_Engine[[#This Row],[Condenser Fan]],$J$66*tbl_Refrigeration_Calc_Engine[[#This Row],[Condenser Fan]]^3/'Refrigeration Template'!$E$61) ->  | AH105: =IF($E$72="VFD",MAX($E$73,tbl_Refrigeration_Calc_Engine[[#This Row],[Calculated Evaporator Fan]])^3,tbl_Refrigeration_Calc_Engine[[#This Row],[Calculated Evaporator Fan]])*$J$67 -> 
